Workbook

Sheet Instructions
A1: =IF('Enter data here!'!D3="", "F3F Competition Spreadsheet",CONCATENATE("F3F Competition - ",'Enter data here!'!D3)) -> F3F Competition - South Open

Sheet Enter data here!
A1: Timing data
A3: Before starting the event, fill out the event parameters (light blue cells): | C3: Event title | D3: South Open
C4: Event date | D4: 2014-05-10
C5: CD Name | D5: John Phillips
C6: No. discards in use (0,1 or 2) | D6: 1
C7: Length of course/m | D7: 100
A9: Now fill out the Pilot Name and Aircraft fields (light blue cells) - once complete, just enter each time (or dnf)
A10: in the relevent box, add any penalties in the box underneath, and all calculations will be completed for you:
B11: Team List | C11: Schwaben | D11: Netherlands | E11: GBU | F11: It's a Fix | G11: Celox Team | H11: Germany 2 | I11: Watering Can | J11: Swillers | K11: SAF | L11: THE Team | M11: Mickey's Massive | N11: No Name | O11: SWISS LURCH | P11: A Team
C12: Pilot | CP12: Round Winners
B13: Pilot Name | C13: Frank Hulton | D13: Mark Redsell | E13: Greg Dakin | F13: Thorsten Folker | G13: Joel West | H13: Klaus Brettner | I13: Markus Meissner | J13: Stefan Bernardy | K13: Søren Krogh | L13: Alvaro Silgado | M13: Pete Burgess | N13: Dieter Perlick | O13: Simon Thornton | P13: André Austen | Q13: Siegfried Schedel | R13: George Young | S13: John Phillips | T13: Stefan Bertschi | U13: Jason Bioletti | V13: Allen Elliott | W13: Thomas Deinert | X13: Mike Evans | Y13: Jon Edison | Z13: Thomas Henselmann | AA13: Sebastian Reichert | AB13: Robert Hermans | AC13: Eberhard Rosemann | AD13: Klaus Kowalski | AE13: Mike Shellim | AF13: Martin Newnham | AG13: Marc Schmieding | AH13: Mark Treble | AI13: Gary Harrison | AJ13: Peter Gunning | AK13: Tobias Reik | AL13: Mick Walsh | AM13: Paul Garnett | AN13: Daniel Schneider | AO13: Torsten Hermann | AP13: Peter Kowalski | AQ13: Martin Kopp | AR13: Plöschberger Hannes | AS13: Rick Ruijsink | AT13: Mark Abbotts | AU13: Arne Finkeldey | AV13: Martin Ulrich | AW13: Tony Robertson | AX13: Jesper Christensen | AY13: Ulrich Duttenhofer | AZ13: Robert Ryan | CP13: Time: | CQ13: Competitor:
B14: Team Name | C14: THE Team | D14: GBU | E14: Swillers | F14: Schwaben | G14: Mickey's Massive | H14: Celox Team | I14: SWISS LURCH | J14: Netherlands | L14: Watering Can | M14: No Name | N14: SAF | O14: GBU | P14: Germany 2 | Q14: Schwaben | R14: A Team | S14: Swillers | T14: Mickey's Massive | V14: It's a Fix | W14: Celox Team | X14: Watering Can | Y14: THE Team | Z14: SWISS LURCH | AA14: Germany 2 | AB14: Netherlands | AC14: No Name | AD14: SAF | AF14: GBU | AH14: THE Team | AI14: It's A Fix | AJ14: Mickey's Massive | AK14: Schwaben | AL14: A Team | AM14: Swillers | AN14: Germany 2 | AO14: Celox Team | AP14: SAF | AQ14: No Name | AS14: Netherlands | AT14: Watering Can | AV14: SWISS LURCH | AW14: It's a Fix | AZ14: A Team
B15: Aircraft 1
B16: Aircraft 2
B17: Current rank | C17: =C229 -> 46 | D17: 1 | E17: 25 | F17: 4 | G17: 7 | H17: 26 | I17: 11 | J17: 24 | K17: 8 | L17: 12 | M17: 37 | N17: 17 | O17: 3 | P17: 5 | Q17: 20 | R17: 28 | S17: 13 | T17: 18 | U17: 45 | V17: 38 | W17: 32 | X17: 42 | Y17: 41 | Z17: 30 | AA17: 16 | AB17: 43 | AC17: 15 | AD17: 19 | AE17: 35 | AF17: 2 | AG17: 39 | AH17: 21 | AI17: 23 | AJ17: 6 | AK17: 9 | AL17: 34 | AM17: 47 | AN17: 14 | AO17: 36 | AP17: 10 | AQ17: 29 | AR17: 22 | AS17: 50 | AT17: 33 | AU17: 49 | AV17: 31 | AW17: 44 | AX17: 27 | AY17: 40 | AZ17: 48 | BA17: 51 | BB17: 51 | BC17: 51 | BD17: 51 | BE17: 51 | BF17: 51 | BG17: 51 | BH17: 51 | BI17: 51 | BJ17: 51 | BK17: 51 | BL17: 51 | BM17: 51 | BN17: 51 | BO17: =BO229 -> 51 | BP17: 51 | BQ17: 51 | BR17: 51 | BS17: 51 | BT17: 51 | BU17: 51 | BV17: 51 | BW17: 51 | BX17: 51 | BY17: 51 | BZ17: 51 | CA17: 51 | CB17: 51 | CC17: 51 | CD17: 51 | CE17: 51 | CF17: 51 | CG17: 51 | CH17: 51 | CI17: 51 | CJ17: 51 | CK17: 51 | CL17: 51 | CM17: 51 | CN17: 51
B18: Total penalties | C18: =SUM(C23,C28,C33,C38,C43,C48,C53,C58,C63,C68,C73,C78,C83,C88,C93,C98,C103,C108,C113,C118,C123,C128,C133,C138,C143,C148,C153,C158,C163,C168)+C19 -> 0 | D18: =SUM(D23,D28,D33,D38,D43,D48,D53,D58,D63,D68,D73,D78,D83,D88,D93,D98,D103,D108,D113,D118,D123,D128,D133,D138,D143,D148,D153,D158,D163,D168)+D19 -> 0 | E18: =SUM(E23,E28,E33,E38,E43,E48,E53,E58,E63,E68,E73,E78,E83,E88,E93,E98,E103,E108,E113,E118,E123,E128,E133,E138,E143,E148,E153,E158,E163,E168)+E19 -> 0 | F18: =SUM(F23,F28,F33,F38,F43,F48,F53,F58,F63,F68,F73,F78,F83,F88,F93,F98,F103,F108,F113,F118,F123,F128,F133,F138,F143,F148,F153,F158,F163,F168)+F19 -> 0 | G18: 0 | H18: 0 | I18: 0 | J18: 0 | K18: 0 | L18: 0 | M18: 0 | N18: 0 | O18: 0 | P18: 0 | Q18: 0 | R18: 0 | S18: 0 | T18: 0 | U18: 0 | V18: 0 | W18: 0 | X18: 0 | Y18: 0 | Z18: 0 | AA18: 0 | AB18: 0 | AC18: 0 | AD18: 0 | AE18: 0 | AF18: 0 | AG18: 0 | AH18: 0 | AI18: 0 | AJ18: 0 | AK18: 0 | AL18: 0 | AM18: 0 | AN18: 0 | AO18: 0 | AP18: 0 | AQ18: 0 | AR18: 0 | AS18: 0 | AT18: 0 | AU18: 0 | AV18: 0 | AW18: 0 | AX18: 0 | AY18: 0 | AZ18: 0 | BA18: 0 | BB18: 0 | BC18: 0 | BD18: 0 | BE18: 0 | BF18: 0 | BG18: 0 | BH18: 0 | BI18: 0 | BJ18: 0 | BK18: 0 | BL18: 0 | BM18: 0 | BN18: 0 | BO18: 0 | BP18: =SUM(BP23,BP28,BP33,BP38,BP43,BP48,BP53,BP58,BP63,BP68,BP73,BP78,BP83,BP88,BP93,BP98,BP103,BP108,BP113,BP118,BP123,BP128,BP133,BP138,BP143,BP148,BP153,BP158,BP163,BP168)+BP19 -> 0 | BQ18: 0 | BR18: 0 | BS18: 0 | BT18: 0 | BU18: 0 | BV18: 0 | BW18: 0 | BX18: 0 | BY18: 0 | BZ18: 0 | CA18: 0 | CB18: 0 | CC18: 0 | CD18: 0 | CE18: 0 | CF18: 0 | CG18: 0 | CH18: 0 | CI18: 0 | CJ18: 0 | CK18: 0 | CL18: 0 | CM18: 0 | CN18: 0
C19: =SUM(C178,C183,C188,C193,C198,C203,C208,C213,C218,C223) -> 0 | D19: =SUM(D178,D183,D188,D193,D198,D203,D208,D213,D218,D223) -> 0 | E19: =SUM(E178,E183,E188,E193,E198,E203,E208,E213,E218,E223) -> 0 | F19: =SUM(F178,F183,F188,F193,F198,F203,F208,F213,F218,F223) -> 0 | G19: 0 | H19: 0 | I19: 0 | J19: 0 | K19: 0 | L19: 0 | M19: 0 | N19: 0 | O19: 0 | P19: 0 | Q19: 0 | R19: 0 | S19: 0 | T19: 0 | U19: 0 | V19: 0 | W19: 0 | X19: 0 | Y19: 0 | Z19: 0 | AA19: 0 | AB19: 0 | AC19: 0 | AD19: 0 | AE19: 0 | AF19: 0 | AG19: 0 | AH19: 0 | AI19: 0 | AJ19: 0 | AK19: 0 | AL19: 0 | AM19: 0 | AN19: 0 | AO19: 0 | AP19: 0 | AQ19: 0 | AR19: 0 | AS19: 0 | AT19: 0 | AU19: 0 | AV19: 0 | AW19: 0 | AX19: 0 | AY19: 0 | AZ19: 0 | BA19: 0 | BB19: 0 | BC19: 0 | BD19: 0 | BE19: 0 | BF19: 0 | BG19: 0 | BH19: 0 | BI19: 0 | BJ19: 0 | BK19: 0 | BL19: 0 | BM19: 0 | BN19: 0 | BO19: 0 | BP19: =SUM(BP178,BP183,BP188,BP193,BP198,BP203,BP208,BP213,BP218,BP223) -> 0 | BQ19: 0 | BR19: 0 | BS19: 0 | BT19: 0 | BU19: 0 | BV19: 0 | BW19: 0 | BX19: 0 | BY19: 0 | BZ19: 0 | CA19: 0 | CB19: 0 | CC19: 0 | CD19: 0 | CE19: 0 | CF19: 0 | CG19: 0 | CH19: 0 | CI19: 0 | CJ19: 0 | CK19: 0 | CL19: 0 | CM19: 0 | CN19: 0
A20: Round
A21: 0 | B21: Round rank | C21: =RANK(C24,$C24:$CN24,0) -> 1 | D21: 1 | E21: 1 | F21: 1 | G21: 1 | H21: 1 | I21: 1 | J21: 1 | K21: 1 | L21: 1 | M21: 1 | N21: 1 | O21: 1 | P21: 1 | Q21: 1 | R21: 1 | S21: 1 | T21: 1 | U21: 1 | V21: 1 | W21: 1 | X21: 1 | Y21: 1 | Z21: 1 | AA21: 1 | AB21: 1 | AC21: 1 | AD21: 1 | AE21: 1
B22: Time | C22: 0 | D22: 0 | E22: 0 | F22: 0 | G22: 0 | H22: 0 | I22: 0 | J22: 0 | K22: 0 | L22: 0 | M22: 0 | N22: 0 | O22: 0 | P22: 0 | CP22: =IF(Randomizer!CP11=0, "",Randomizer!CP11) ->  | CQ22: =IF(CP22=0, "", Randomizer!CQ11) ->  | CT22: =A21 -> 0
B23: Penalties
B24: Score | C24: =Randomizer!C14 -> 0 | D24: =Randomizer!D14 -> 0 | E24: =Randomizer!E14 -> 0 | F24: =Randomizer!F14 -> 0 | G24: =Randomizer!G14 -> 0 | H24: =Randomizer!H14 -> 0 | I24: =Randomizer!I14 -> 0 | J24: =Randomizer!J14 -> 0 | K24: =Randomizer!K14 -> 0 | L24: =Randomizer!L14 -> 0 | M24: =Randomizer!M14 -> 0 | N24: =Randomizer!N14 -> 0 | O24: =Randomizer!O14 -> 0 | P24: =Randomizer!P14 -> 0 | Q24: =Randomizer!Q14 -> 0 | R24: =Randomizer!R14 -> 0 | S24: =Randomizer!S14 -> 0 | T24: =Randomizer!T14 -> 0 | U24: =Randomizer!U14 -> 0 | V24: =Randomizer!V14 -> 0 | W24: =Randomizer!W14 -> 0 | X24: =Randomizer!X14 -> 0 | Y24: =Randomizer!Y14 -> 0 | Z24: =Randomizer!Z14 -> 0 | AA24: =Randomizer!AA14 -> 0 | AB24: =Randomizer!AB14 -> 0 | AC24: =Randomizer!AC14 -> 0 | AD24: =Randomizer!AD14 -> 0 | AE24: =Randomizer!AE14 -> 0 | AF24: =Randomizer!AF14 -> 0 | AG24: =Randomizer!AG14 -> 0 | AH24: =Randomizer!AH14 -> 0 | AI24: =Randomizer!AI14 -> 0 | AJ24: =Randomizer!AJ14 -> 0 | AK24: =Randomizer!AK14 -> 0 | AL24: =Randomizer!AL14 -> 0 | AM24: =Randomizer!AM14 -> 0 | AN24: =Randomizer!AN14 -> 0 | AO24: =Randomizer!AO14 -> 0 | AP24: =Randomizer!AP14 -> 0 | AQ24: =Randomizer!AQ14 -> 0 | AR24: =Randomizer!AR14 -> 0 | AS24: =Randomizer!AS14 -> 0 | AT24: =Randomizer!AT14 -> 0 | AU24: =Randomizer!AU14 -> 0 | AV24: =Randomizer!AV14 -> 0 | AW24: =Randomizer!AW14 -> 0 | AX24: =Randomizer!AX14 -> 0 | AY24: =Randomizer!AY14 -> 0 | AZ24: =Randomizer!AZ14 -> 0 | BA24: =Randomizer!BA14 -> 0 | BB24: =Randomizer!BB14 -> 0 | BC24: =Randomizer!BC14 -> 0 | BD24: =Randomizer!BD14 -> 0 | BE24: =Randomizer!BE14 -> 0 | BF24: =Randomizer!BF14 -> 0 | BG24: =Randomizer!BG14 -> 0 | BH24: =Randomizer!BH14 -> 0 | BI24: =Randomizer!BI14 -> 0 | BJ24: =Randomizer!BJ14 -> 0 | BK24: =Randomizer!BK14 -> 0 | BL24: =Randomizer!BL14 -> 0 | BM24: =Randomizer!BM14 -> 0 | BN24: =Randomizer!BN14 -> 0 | BO24: =Randomizer!BO14 -> 0 | BP24: =Randomizer!BP14 -> 0 | BQ24: =Randomizer!BQ14 -> 0 | BR24: =Randomizer!BR14 -> 0 | BS24: =Randomizer!BS14 -> 0 | BT24: =Randomizer!BT14 -> 0 | BU24: =Randomizer!BU14 -> 0 | BV24: =Randomizer!BV14 -> 0 | BW24: =Randomizer!BW14 -> 0 | BX24: =Randomizer!BX14 -> 0 | BY24: =Randomizer!BY14 -> 0 | BZ24: =Randomizer!BZ14 -> 0 | CA24: =Randomizer!CA14 -> 0 | CB24: =Randomizer!CB14 -> 0 | CC24: =Randomizer!CC14 -> 0 | CD24: =Randomizer!CD14 -> 0 | CE24: =Randomizer!CE14 -> 0 | CF24: =Randomizer!CF14 -> 0 | CG24: =Randomizer!CG14 -> 0 | CH24: =Randomizer!CH14 -> 0 | CI24: =Randomizer!CI14 -> 0 | CJ24: =Randomizer!CJ14 -> 0 | CK24: =Randomizer!CK14 -> 0 | CL24: =Randomizer!CL14 -> 0 | CM24: =Randomizer!CM14 -> 0 | CN24: =Randomizer!CN14 -> 0
B25: Name | C25: =C13 -> Frank Hulton | D25: =D13 -> Mark Redsell | E25: Greg Dakin | F25: Thorsten Folker | G25: Joel West | H25: Klaus Brettner | I25: Markus Meissner | J25: Stefan Bernardy | K25: Søren Krogh | L25: Alvaro Silgado | M25: Pete Burgess | N25: Dieter Perlick | O25: Simon Thornton | P25: André Austen | Q25: Siegfried Schedel | R25: George Young | S25: John Phillips | T25: Stefan Bertschi | U25: Jason Bioletti | V25: Allen Elliott | W25: Thomas Deinert | X25: Mike Evans | Y25: Jon Edison | Z25: Thomas Henselmann | AA25: Sebastian Reichert | AB25: Robert Hermans | AC25: Eberhard Rosemann | AD25: Klaus Kowalski | AE25: Mike Shellim | AF25: Martin Newnham | AG25: Marc Schmieding | AH25: Mark Treble | AI25: Gary Harrison | AJ25: Peter Gunning | AK25: Tobias Reik | AL25: Mick Walsh | AM25: Paul Garnett | AN25: Daniel Schneider | AO25: Torsten Hermann | AP25: Peter Kowalski | AQ25: Martin Kopp | AR25: Plöschberger Hannes | AS25: Rick Ruijsink | AT25: Mark Abbotts | AU25: Arne Finkeldey | AV25: Martin Ulrich | AW25: Tony Robertson | AX25: Jesper Christensen | AY25: Ulrich Duttenhofer | AZ25: Robert Ryan | BA25: 0 | BB25: 0 | BC25: 0 | BD25: 0 | BE25: 0 | BF25: 0 | BG25: 0 | BH25: 0 | BI25: 0 | BJ25: 0 | BK25: 0 | BL25: 0 | BM25: 0 | BN25: 0 | BO25: 0 | BP25: =BP13 -> 0 | BQ25: 0 | BR25: 0 | BS25: 0 | BT25: 0 | BU25: 0 | BV25: 0 | BW25: 0 | BX25: 0 | BY25: 0 | BZ25: 0 | CA25: 0 | CB25: 0 | CC25: 0 | CD25: 0 | CE25: 0 | CF25: 0 | CG25: 0 | CH25: 0 | CI25: 0 | CJ25: 0 | CK25: 0 | CL25: 0 | CM25: 0 | CN25: 0
A26: 1 | B26: Round rank | C26: =RANK(C29,$C29:$CN29,0) -> 46 | D26: =RANK(D29,$C29:$CN29,0) -> 18 | E26: 12 | F26: 3 | G26: 8 | H26: 37 | I26: 17 | J26: 19 | K26: 5 | L26: 23 | M26: 27 | N26: 29 | O26: 30 | P26: 16 | Q26: 41 | R26: 24 | S26: 22 | T26: 50 | U26: 43 | V26: 31 | W26: 34 | X26: 39 | Y26: 32 | Z26: 36 | AA26: 13 | AB26: 38 | AC26: 11 | AD26: 9 | AE26: 15 | AF26: 2 | AG26: 42 | AH26: 20 | AI26: 26 | AJ26: 1 | AK26: 6 | AL26: 10 | AM26: 47 | AN26: 21 | AO26: 33 | AP26: 4 | AQ26: 28 | AR26: 14 | AS26: 45 | AT26: 25 | AU26: 49 | AV26: 7 | AW26: 35 | AX26: 40 | AY26: 44 | AZ26: 48 | BA26: 51 | BB26: 51 | BC26: 51 | BD26: 51 | BE26: 51 | BF26: 51 | BG26: 51 | BH26: 51 | BI26: 51 | BJ26: 51 | BK26: 51 | BL26: 51 | BM26: 51 | BN26: 51 | BO26: 51 | BP26: =RANK(BP29,$C29:$CN29,0) -> 51 | BQ26: 51 | BR26: 51 | BS26: 51 | BT26: 51 | BU26: 51 | BV26: 51 | BW26: 51 | BX26: 51 | BY26: 51 | BZ26: 51 | CA26: 51 | CB26: 51 | CC26: 51 | CD26: 51 | CE26: 51 | CF26: 51 | CG26: 51 | CH26: 51 | CI26: 51 | CJ26: 51 | CK26: 51 | CL26: 51 | CM26: 51 | CN26: 51
B27: Time | C27: dnf | D27: 45 | E27: 43.52 | F27: 40.2 | G27: 42.96 | H27: 52.96 | I27: 44.7 | J27: 45.16 | K27: 41.5 | L27: 46.49 | M27: 48.19 | N27: 48.57 | O27: 48.57 | P27: 44.16 | Q27: 54.25 | R27: 46.65 | S27: 45.93 | T27: dnf | U27: 62.57 | V27: 50.8 | W27: 51.62 | X27: 53.18 | Y27: 51.05 | Z27: 52.55 | AA27: 43.73 | AB27: 53.14 | AC27: 43.32 | AD27: 43.18 | AE27: 44.07 | AF27: 40.03 | AG27: 60.05 | AH27: 45.19 | AI27: 47.7 | AJ27: 37.27 | AK27: 42.37 | AL27: 43.25 | AM27: dnf | AN27: 45.3 | AO27: 51.1 | AP27: 40.53 | AQ27: 48.33 | AR27: 43.83 | AS27: dnf | AT27: 47.53 | AU27: dnf | AV27: 42.43 | AW27: 52.08 | AX27: 53.3 | AY27: 64.69 | AZ27: dnf | CP27: =IF(Randomizer!CP17=0,"",Randomizer!CP17) -> 37.27 | CQ27: =IF(CP27=0, "", Randomizer!CQ17) -> 0 | CT27: =A26 -> 1
B28: Penalties
B29: Score | C29: =Randomizer!C20 -> 9.940762279e-13 | D29: =Randomizer!D20 -> 828.2222222 | E29: =Randomizer!E20 -> 856.3878676 | F29: =Randomizer!F20 -> 927.1144279 | G29: =Randomizer!G20 -> 867.5512104 | H29: =Randomizer!H20 -> 703.7386707 | I29: =Randomizer!I20 -> 833.7807606 | J29: =Randomizer!J20 -> 825.2878654 | K29: =Randomizer!K20 -> 898.0722892 | L29: =Randomizer!L20 -> 801.6777802 | M29: =Randomizer!M20 -> 773.3969703 | N29: =Randomizer!N20 -> 767.3460984 | O29: =Randomizer!O20 -> 767.3460984 | P29: =Randomizer!P20 -> 843.9764493 | Q29: =Randomizer!Q20 -> 687.0046083 | R29: =Randomizer!R20 -> 798.9281886 | S29: =Randomizer!S20 -> 811.4522099 | T29: =Randomizer!T20 -> 2.217052604e-13 | U29: =Randomizer!U20 -> 595.6528688 | V29: =Randomizer!V20 -> 733.6614173 | W29: =Randomizer!W20 -> 722.006974 | X29: =Randomizer!X20 -> 700.8273787 | Y29: =Randomizer!Y20 -> 730.0685602 | Z29: =Randomizer!Z20 -> 709.2293054 | AA29: =Randomizer!AA20 -> 852.2753259 | AB29: =Randomizer!AB20 -> 701.3549116 | AC29: =Randomizer!AC20 -> 860.3416436 | AD29: =Randomizer!AD20 -> 863.1310792 | AE29: =Randomizer!AE20 -> 845.7000227 | AF29: =Randomizer!AF20 -> 931.0517112 | AG29: =Randomizer!AG20 -> 620.6494588 | AH29: =Randomizer!AH20 -> 824.7399867 | AI29: =Randomizer!AI20 -> 781.3417191 | AJ29: =Randomizer!AJ20 -> 1000 | AK29: =Randomizer!AK20 -> 879.631815 | AL29: =Randomizer!AL20 -> 861.734104 | AM29: =Randomizer!AM20 -> 8.042381672e-13 | AN29: =Randomizer!AN20 -> 822.7373068 | AO29: =Randomizer!AO20 -> 729.3542074 | AP29: =Randomizer!AP20 -> 919.5657538 | AQ29: =Randomizer!AQ20 -> 771.1566315 | AR29: =Randomizer!AR20 -> 850.3308236 | AS29: =Randomizer!AS20 -> 9.941380855e-13 | AT29: =Randomizer!AT20 -> 784.1363349 | AU29: =Randomizer!AU20 -> 2.425298766e-13 | AV29: =Randomizer!AV20 -> 878.3879331 | AW29: =Randomizer!AW20 -> 715.6298003 | AX29: =Randomizer!AX20 -> 699.249531 | AY29: =Randomizer!AY20 -> 576.1323234 | AZ29: =Randomizer!AZ20 -> 6.214190725e-13 | BA29: =Randomizer!BA20 -> 0 | BB29: =Randomizer!BB20 -> 0 | BC29: =Randomizer!BC20 -> 0 | BD29: =Randomizer!BD20 -> 0 | BE29: =Randomizer!BE20 -> 0 | BF29: =Randomizer!BF20 -> 0 | BG29: =Randomizer!BG20 -> 0 | BH29: =Randomizer!BH20 -> 0 | BI29: =Randomizer!BI20 -> 0 | BJ29: =Randomizer!BJ20 -> 0 | BK29: =Randomizer!BK20 -> 0 | BL29: =Randomizer!BL20 -> 0 | BM29: =Randomizer!BM20 -> 0 | BN29: =Randomizer!BN20 -> 0 | BO29: =Randomizer!BO20 -> 0 | BP29: =Randomizer!BP20 -> 0 | BQ29: =Randomizer!BQ20 -> 0 | BR29: =Randomizer!BR20 -> 0 | BS29: =Randomizer!BS20 -> 0 | BT29: =Randomizer!BT20 -> 0 | BU29: =Randomizer!BU20 -> 0 | BV29: =Randomizer!BV20 -> 0 | BW29: =Randomizer!BW20 -> 0 | BX29: =Randomizer!BX20 -> 0 | BY29: =Randomizer!BY20 -> 0 | BZ29: =Randomizer!BZ20 -> 0 | CA29: =Randomizer!CA20 -> 0 | CB29: =Randomizer!CB20 -> 0 | CC29: =Randomizer!CC20 -> 0 | CD29: =Randomizer!CD20 -> 0 | CE29: =Randomizer!CE20 -> 0 | CF29: =Randomizer!CF20 -> 0 | CG29: =Randomizer!CG20 -> 0 | CH29: =Randomizer!CH20 -> 0 | CI29: =Randomizer!CI20 -> 0 | CJ29: =Randomizer!CJ20 -> 0 | CK29: =Randomizer!CK20 -> 0 | CL29: =Randomizer!CL20 -> 0 | CM29: =Randomizer!CM20 -> 0 | CN29: =Randomizer!CN20 -> 0
B30: Name | C30: =C25 -> Frank Hulton | D30: =D25 -> Mark Redsell | E30: Greg Dakin | F30: Thorsten Folker | G30: Joel West | H30: Klaus Brettner | I30: Markus Meissner | J30: Stefan Bernardy | K30: Søren Krogh | L30: Alvaro Silgado | M30: Pete Burgess | N30: Dieter Perlick | O30: Simon Thornton | P30: André Austen | Q30: Siegfried Schedel | R30: George Young | S30: John Phillips | T30: Stefan Bertschi | U30: Jason Bioletti | V30: Allen Elliott | W30: Thomas Deinert | X30: Mike Evans | Y30: Jon Edison | Z30: Thomas Henselmann | AA30: Sebastian Reichert | AB30: Robert Hermans | AC30: Eberhard Rosemann | AD30: Klaus Kowalski | AE30: Mike Shellim | AF30: Martin Newnham | AG30: Marc Schmieding | AH30: Mark Treble | AI30: Gary Harrison | AJ30: Peter Gunning | AK30: Tobias Reik | AL30: Mick Walsh | AM30: Paul Garnett | AN30: Daniel Schneider | AO30: Torsten Hermann | AP30: Peter Kowalski | AQ30: Martin Kopp | AR30: Plöschberger Hannes | AS30: Rick Ruijsink | AT30: Mark Abbotts | AU30: Arne Finkeldey | AV30: Martin Ulrich | AW30: Tony Robertson | AX30: Jesper Christensen | AY30: Ulrich Duttenhofer | AZ30: Robert Ryan | BA30: 0 | BB30: 0 | BC30: 0 | BD30: 0 | BE30: 0 | BF30: 0 | BG30: 0 | BH30: 0 | BI30: 0 | BJ30: 0 | BK30: 0 | BL30: 0 | BM30: 0 | BN30: 0 | BO30: 0 | BP30: =BP25 -> 0 | BQ30: 0 | BR30: 0 | BS30: 0 | BT30: 0 | BU30: 0 | BV30: 0 | BW30: 0 | BX30: 0 | BY30: 0 | BZ30: 0 | CA30: 0 | CB30: 0 | CC30: 0 | CD30: 0 | CE30: 0 | CF30: 0 | CG30: 0 | CH30: 0 | CI30: 0 | CJ30: 0 | CK30: 0 | CL30: 0 | CM30: 0 | CN30: 0 | CT30: =A29 -> 0
A31: 2 | B31: Round rank | C31: =RANK(C34,$C34:$CN34,0) -> 42 | D31: =RANK(D34,$C34:$CN34,0) -> 12 | E31: 16 | F31: 3 | G31: 17 | H31: 5 | I31: 2 | J31: 22 | K31: 1 | L31: 10 | M31: 33 | N31: 34 | O31: 8 | P31: 4 | Q31: 20 | R31: 29 | S31: 15 | T31: 21 | U31: 50 | V31: 32 | W31: 31 | X31: 45 | Y31: 48 | Z31: 28 | AA31: 14 | AB31: 39 | AC31: 11 | AD31: 30 | AE31: 41 | AF31: 9 | AG31: 35 | AH31: 40 | AI31: 19 | AJ31: 7 | AK31: 24 | AL31: 27 | AM31: 46 | AN31: 18 | AO31: 36 | AP31: 13 | AQ31: 23 | AR31: 6 | AS31: 44 | AT31: 26 | AU31: 49 | AV31: 37 | AW31: 47 | AX31: 25 | AY31: 38 | AZ31: 43 | BA31: 51 | BB31: 51 | BC31: 51 | BD31: 51 | BE31: 51 | BF31: 51 | BG31: 51 | BH31: 51 | BI31: 51 | BJ31: 51 | BK31: 51 | BL31: 51 | BM31: 51 | BN31: 51 | BO31: 51 | BP31: =RANK(BP34,$C34:$CN34,0) -> 51 | BQ31: 51 | BR31: 51 | BS31: 51 | BT31: 51 | BU31: 51 | BV31: 51 | BW31: 51 | BX31: 51 | BY31: 51 | BZ31: 51 | CA31: 51 | CB31: 51 | CC31: 51 | CD31: 51 | CE31: 51 | CF31: 51 | CG31: 51 | CH31: 51 | CI31: 51 | CJ31: 51 | CK31: 51 | CL31: 51 | CM31: 51 | CN31: 51
B32: Time | C32: dnf | D32: 41.4 | E32: 42.93 | F32: 37.76 | G32: 43.29 | H32: 39.29 | I32: 37.29 | J32: 45.6 | K32: 36.43 | L32: 40.39 | M32: 52.63 | N32: 52.67 | O32: 39.8 | P32: 39.1 | Q32: 44.82 | R32: 49.12 | S32: 42.34 | T32: 45.46 | U32: dnf | V32: 52.11 | W32: 50.91 | X32: dnf | Y32: dnf | Z32: 48.33 | AA32: 41.77 | AB32: 62.51 | AC32: 41.33 | AD32: 49.87 | AE32: 68.18 | AF32: 39.97 | AG32: 53.98 | AH32: 63.99 | AI32: 43.91 | AJ32: 39.41 | AK32: 46.68 | AL32: 48.13 | AM32: dnf | AN32: 43.51 | AO32: 54.08 | AP32: 41.65 | AQ32: 46.68 | AR32: 39.37 | AS32: dnf | AT32: 47.54 | AU32: dnf | AV32: 56.66 | AW32: dnf | AX32: 46.76 | AY32: 61.19 | AZ32: dnf | CP32: =IF(Randomizer!CP23=0,"",Randomizer!CP23) -> 36.43 | CQ32: =IF(CP32=0, "", Randomizer!CQ23) -> Søren Krogh | CT32: =A31 -> 2
B33: Penalties
B34: Score | C34: =Randomizer!C26 -> 7.676750343e-13 | D34: =Randomizer!D26 -> 879.9516908 | E34: =Randomizer!E26 -> 848.5907291 | F34: =Randomizer!F26 -> 964.7775424 | G34: =Randomizer!G26 -> 841.5338415 | H34: =Randomizer!H26 -> 927.207941 | I34: =Randomizer!I26 -> 976.9375168 | J34: =Randomizer!J26 -> 798.9035088 | K34: =Randomizer!K26 -> 1000 | L34: =Randomizer!L26 -> 901.9559297 | M34: =Randomizer!M26 -> 692.1907657 | N34: =Randomizer!N26 -> 691.6650845 | O34: =Randomizer!O26 -> 915.3266332 | P34: =Randomizer!P26 -> 931.713555 | Q34: =Randomizer!Q26 -> 812.8067827 | R34: =Randomizer!R26 -> 741.6530945 | S34: =Randomizer!S26 -> 860.4156826 | T34: =Randomizer!T26 -> 801.3638363 | U34: =Randomizer!U26 -> 3.110894359e-14 | V34: =Randomizer!V26 -> 699.0980618 | W34: =Randomizer!W26 -> 715.5765076 | X34: =Randomizer!X26 -> 3.706731056e-13 | Y34: =Randomizer!Y26 -> 2.145731523e-13 | Z34: =Randomizer!Z26 -> 753.7761225 | AA34: =Randomizer!AA26 -> 872.1570505 | AB34: =Randomizer!AB26 -> 582.7867541 | AC34: =Randomizer!AC26 -> 881.4420518 | AD34: =Randomizer!AD26 -> 730.4992982 | AE34: =Randomizer!AE26 -> 534.3209152 | AF34: =Randomizer!AF26 -> 911.4335752 | AG34: =Randomizer!AG26 -> 674.879585 | AH34: =Randomizer!AH26 -> 569.3077043 | AI34: =Randomizer!AI26 -> 829.65156 | AJ34: =Randomizer!AJ26 -> 924.3846739 | AK34: =Randomizer!AK26 -> 780.41988 | AL34: =Randomizer!AL26 -> 756.9083732 | AM34: =Randomizer!AM26 -> 2.63601634e-13 | AN34: =Randomizer!AN26 -> 837.2787865 | AO34: =Randomizer!AO26 -> 673.6316568 | AP34: =Randomizer!AP26 -> 874.6698679 | AQ34: =Randomizer!AQ26 -> 780.41988 | AR34: =Randomizer!AR26 -> 925.3238506 | AS34: =Randomizer!AS26 -> 3.948748477e-13 | AT34: =Randomizer!AT26 -> 766.3020614 | AU34: =Randomizer!AU26 -> 3.858237995e-14 | AV34: =Randomizer!AV26 -> 642.9579951 | AW34: =Randomizer!AW26 -> 2.534999509e-13 | AX34: =Randomizer!AX26 -> 779.0846878 | AY34: =Randomizer!AY26 -> 595.3587187 | AZ34: =Randomizer!AZ26 -> 6.83810496e-13 | BA34: =Randomizer!BA26 -> 0 | BB34: =Randomizer!BB26 -> 0 | BC34: =Randomizer!BC26 -> 0 | BD34: =Randomizer!BD26 -> 0 | BE34: =Randomizer!BE26 -> 0 | BF34: =Randomizer!BF26 -> 0 | BG34: =Randomizer!BG26 -> 0 | BH34: =Randomizer!BH26 -> 0 | BI34: =Randomizer!BI26 -> 0 | BJ34: =Randomizer!BJ26 -> 0 | BK34: =Randomizer!BK26 -> 0 | BL34: =Randomizer!BL26 -> 0 | BM34: =Randomizer!BM26 -> 0 | BN34: =Randomizer!BN26 -> 0 | BO34: =Randomizer!BO26 -> 0 | BP34: =Randomizer!BP26 -> 0 | BQ34: =Randomizer!BQ26 -> 0 | BR34: =Randomizer!BR26 -> 0 | BS34: =Randomizer!BS26 -> 0 | BT34: =Randomizer!BT26 -> 0 | BU34: =Randomizer!BU26 -> 0 | BV34: =Randomizer!BV26 -> 0 | BW34: =Randomizer!BW26 -> 0 | BX34: =Randomizer!BX26 -> 0 | BY34: =Randomizer!BY26 -> 0 | BZ34: =Randomizer!BZ26 -> 0 | CA34: =Randomizer!CA26 -> 0 | CB34: =Randomizer!CB26 -> 0 | CC34: =Randomizer!CC26 -> 0 | CD34: =Randomizer!CD26 -> 0 | CE34: =Randomizer!CE26 -> 0 | CF34: =Randomizer!CF26 -> 0 | CG34: =Randomizer!CG26 -> 0 | CH34: =Randomizer!CH26 -> 0 | CI34: =Randomizer!CI26 -> 0 | CJ34: =Randomizer!CJ26 -> 0 | CK34: =Randomizer!CK26 -> 0 | CL34: =Randomizer!CL26 -> 0 | CM34: =Randomizer!CM26 -> 0 | CN34: =Randomizer!CN26 -> 0
B35: Name | C35: =C30 -> Frank Hulton | D35: =D30 -> Mark Redsell | E35: Greg Dakin | F35: Thorsten Folker | G35: Joel West | H35: Klaus Brettner | I35: Markus Meissner | J35: Stefan Bernardy | K35: Søren Krogh | L35: Alvaro Silgado | M35: Pete Burgess | N35: Dieter Perlick | O35: Simon Thornton | P35: André Austen | Q35: Siegfried Schedel | R35: George Young | S35: John Phillips | T35: Stefan Bertschi | U35: Jason Bioletti | V35: Allen Elliott | W35: Thomas Deinert | X35: Mike Evans | Y35: Jon Edison | Z35: Thomas Henselmann | AA35: Sebastian Reichert | AB35: Robert Hermans | AC35: Eberhard Rosemann | AD35: Klaus Kowalski | AE35: Mike Shellim | AF35: Martin Newnham | AG35: Marc Schmieding | AH35: Mark Treble | AI35: Gary Harrison | AJ35: Peter Gunning | AK35: Tobias Reik | AL35: Mick Walsh | AM35: Paul Garnett | AN35: Daniel Schneider | AO35: Torsten Hermann | AP35: Peter Kowalski | AQ35: Martin Kopp | AR35: Plöschberger Hannes | AS35: Rick Ruijsink | AT35: Mark Abbotts | AU35: Arne Finkeldey | AV35: Martin Ulrich | AW35: Tony Robertson | AX35: Jesper Christensen | AY35: Ulrich Duttenhofer | AZ35: Robert Ryan | BA35: 0 | BB35: 0 | BC35: 0 | BD35: 0 | BE35: 0 | BF35: 0 | BG35: 0 | BH35: 0 | BI35: 0 | BJ35: 0 | BK35: 0 | BL35: 0 | BM35: 0 | BN35: 0 | BO35: 0 | BP35: =BP30 -> 0 | BQ35: 0 | BR35: 0 | BS35: 0 | BT35: 0 | BU35: 0 | BV35: 0 | BW35: 0 | BX35: 0 | BY35: 0 | BZ35: 0 | CA35: 0 | CB35: 0 | CC35: 0 | CD35: 0 | CE35: 0 | CF35: 0 | CG35: 0 | CH35: 0 | CI35: 0 | CJ35: 0 | CK35: 0 | CL35: 0 | CM35: 0 | CN35: 0 | CT35: =A34 -> 0
A36: 3 | B36: Round rank | C36: =RANK(C39,$C39:$CN39,0) -> 41 | D36: =RANK(D39,$C39:$CN39,0) -> 2 | E36: 10 | F36: 3 | G36: 16 | H36: 20 | I36: 7 | J36: 8 | K36: 21 | L36: 11 | M36: 35 | N36: 4 | O36: 1 | P36: 9 | Q36: 25 | R36: 49 | S36: 14 | T36: 22 | U36: 46 | V36: 32 | W36: 18 | X36: 42 | Y36: 44 | Z36: 36 | AA36: 23 | AB36: 40 | AC36: 15 | AD36: 13 | AE36: 45 | AF36: 6 | AG36: 37 | AH36: 19 | AI36: 34 | AJ36: 24 | AK36: 17 | AL36: 47 | AM36: 38 | AN36: 12 | AO36: 27 | AP36: 5 | AQ36: 29 | AR36: 28 | AS36: 48 | AT36: 26 | AU36: 43 | AV36: 33 | AW36: 50 | AX36: 30 | AY36: 31 | AZ36: 39 | BA36: 51 | BB36: 51 | BC36: 51 | BD36: 51 | BE36: 51 | BF36: 51 | BG36: 51 | BH36: 51 | BI36: 51 | BJ36: 51 | BK36: 51 | BL36: 51 | BM36: 51 | BN36: 51 | BO36: 51 | BP36: =RANK(BP39,$C39:$CN39,0) -> 51 | BQ36: 51 | BR36: 51 | BS36: 51 | BT36: 51 | BU36: 51 | BV36: 51 | BW36: 51 | BX36: 51 | BY36: 51 | BZ36: 51 | CA36: 51 | CB36: 51 | CC36: 51 | CD36: 51 | CE36: 51 | CF36: 51 | CG36: 51 | CH36: 51 | CI36: 51 | CJ36: 51 | CK36: 51 | CL36: 51 | CM36: 51 | CN36: 51
B37: Time | C37: dnf | D37: 34.13 | E37: 39.94 | F37: 34.83 | G37: 41.89 | H37: 43.06 | I37: 38.8 | J37: 39 | K37: 43.12 | L37: 40.1 | M37: 54.88 | N37: 34.97 | O37: 34.11 | P37: 39.46 | Q37: 48.66 | R37: dnf | S37: 40.66 | T37: 44.76 | U37: dnf | V37: 52.09 | W37: 42.71 | X37: dnf | Y37: dnf | Z37: 55.49 | AA37: 45.74 | AB37: dnf | AC37: 40.9 | AD37: 40.55 | AE37: dnf | AF37: 36.95 | AG37: 57.46 | AH37: 42.91 | AI37: 53.12 | AJ37: 46.92 | AK37: 42.33 | AL37: dnf | AM37: dnf | AN37: 40.55 | AO37: 49.05 | AP37: 35.4 | AQ37: 50.56 | AR37: 49.85 | AS37: dnf | AT37: 48.77 | AU37: dnf | AV37: 52.44 | AW37: dnf | AX37: 50.76 | AY37: 51.17 | AZ37: dnf | CP37: =IF(Randomizer!CP29=0,"",Randomizer!CP29) -> 34.11 | CQ37: =IF(CP37=0, "", Randomizer!CQ29) -> Simon Thornton | CT37: =A36 -> 3
B38: Penalties
B39: Score | C39: =Randomizer!C32 -> 8.13740203e-13 | D39: =Randomizer!D32 -> 999.4140053 | E39: =Randomizer!E32 -> 854.0310466 | F39: =Randomizer!F32 -> 979.3281654 | G39: =Randomizer!G32 -> 814.2754834 | H39: =Randomizer!H32 -> 792.1504877 | I39: =Randomizer!I32 -> 879.1237113 | J39: =Randomizer!J32 -> 874.6153846 | K39: =Randomizer!K32 -> 791.0482375 | L39: =Randomizer!L32 -> 850.6234414 | M39: =Randomizer!M32 -> 621.5379009 | N39: =Randomizer!N32 -> 975.4074921 | O39: =Randomizer!O32 -> 1000 | P39: =Randomizer!P32 -> 864.4196655 | Q39: =Randomizer!Q32 -> 700.9864365 | R39: =Randomizer!R32 -> 1.471615745e-13 | S39: =Randomizer!S32 -> 838.9080177 | T39: =Randomizer!T32 -> 762.0643432 | U39: =Randomizer!U32 -> 3.216157941e-13 | V39: =Randomizer!V32 -> 654.828182 | W39: =Randomizer!W32 -> 798.6420042 | X39: =Randomizer!X32 -> 7.147195136e-13 | Y39: =Randomizer!Y32 -> 5.789806866e-13 | Z39: =Randomizer!Z32 -> 614.7053523 | AA39: =Randomizer!AA32 -> 745.7367731 | AB39: =Randomizer!AB32 -> 8.42746951e-13 | AC39: =Randomizer!AC32 -> 833.9853301 | AD39: =Randomizer!AD32 -> 841.1837238 | AE39: =Randomizer!AE32 -> 4.286117623e-13 | AF39: =Randomizer!AF32 -> 923.1393775 | AG39: =Randomizer!AG32 -> 593.6303515 | AH39: =Randomizer!AH32 -> 794.9195992 | AI39: =Randomizer!AI32 -> 642.1310241 | AJ39: =Randomizer!AJ32 -> 726.9820972 | AK39: =Randomizer!AK32 -> 805.8114812 | AL39: =Randomizer!AL32 -> 2.070933974e-13 | AM39: =Randomizer!AM32 -> 9.394319348e-13 | AN39: =Randomizer!AN32 -> 841.1837238 | AO39: =Randomizer!AO32 -> 695.412844 | AP39: =Randomizer!AP32 -> 963.559322 | AQ39: =Randomizer!AQ32 -> 674.6439873 | AR39: =Randomizer!AR32 -> 684.2527583 | AS39: =Randomizer!AS32 -> 2.013815768e-13 | AT39: =Randomizer!AT32 -> 699.4053722 | AU39: =Randomizer!AU32 -> 6.619485135e-13 | AV39: =Randomizer!AV32 -> 650.4576659 | AW39: =Randomizer!AW32 -> 1.296022877e-13 | AX39: =Randomizer!AX32 -> 671.9858156 | AY39: =Randomizer!AY32 -> 666.6015243 | AZ39: =Randomizer!AZ32 -> 8.668536393e-13 | BA39: =Randomizer!BA32 -> 0 | BB39: =Randomizer!BB32 -> 0 | BC39: =Randomizer!BC32 -> 0 | BD39: =Randomizer!BD32 -> 0 | BE39: =Randomizer!BE32 -> 0 | BF39: =Randomizer!BF32 -> 0 | BG39: =Randomizer!BG32 -> 0 | BH39: =Randomizer!BH32 -> 0 | BI39: =Randomizer!BI32 -> 0 | BJ39: =Randomizer!BJ32 -> 0 | BK39: =Randomizer!BK32 -> 0 | BL39: =Randomizer!BL32 -> 0 | BM39: =Randomizer!BM32 -> 0 | BN39: =Randomizer!BN32 -> 0 | BO39: =Randomizer!BO32 -> 0 | BP39: =Randomizer!BP32 -> 0 | BQ39: =Randomizer!BQ32 -> 0 | BR39: =Randomizer!BR32 -> 0 | BS39: =Randomizer!BS32 -> 0 | BT39: =Randomizer!BT32 -> 0 | BU39: =Randomizer!BU32 -> 0 | BV39: =Randomizer!BV32 -> 0 | BW39: =Randomizer!BW32 -> 0 | BX39: =Randomizer!BX32 -> 0 | BY39: =Randomizer!BY32 -> 0 | BZ39: =Randomizer!BZ32 -> 0 | CA39: =Randomizer!CA32 -> 0 | CB39: =Randomizer!CB32 -> 0 | CC39: =Randomizer!CC32 -> 0 | CD39: =Randomizer!CD32 -> 0 | CE39: =Randomizer!CE32 -> 0 | CF39: =Randomizer!CF32 -> 0 | CG39: =Randomizer!CG32 -> 0 | CH39: =Randomizer!CH32 -> 0 | CI39: =Randomizer!CI32 -> 0 | CJ39: =Randomizer!CJ32 -> 0 | CK39: =Randomizer!CK32 -> 0 | CL39: =Randomizer!CL32 -> 0 | CM39: =Randomizer!CM32 -> 0 | CN39: =Randomizer!CN32 -> 0
B40: Name | C40: =C30 -> Frank Hulton | D40: =D30 -> Mark Redsell | E40: Greg Dakin | F40: Thorsten Folker | G40: Joel West | H40: Klaus Brettner | I40: Markus Meissner | J40: Stefan Bernardy | K40: Søren Krogh | L40: Alvaro Silgado | M40: Pete Burgess | N40: Dieter Perlick | O40: Simon Thornton | P40: André Austen | Q40: Siegfried Schedel | R40: George Young | S40: John Phillips | T40: Stefan Bertschi | U40: Jason Bioletti | V40: Allen Elliott | W40: Thomas Deinert | X40: Mike Evans | Y40: Jon Edison | Z40: Thomas Henselmann | AA40: Sebastian Reichert | AB40: Robert Hermans | AC40: Eberhard Rosemann | AD40: Klaus Kowalski | AE40: Mike Shellim | AF40: Martin Newnham | AG40: Marc Schmieding | AH40: Mark Treble | AI40: Gary Harrison | AJ40: Peter Gunning | AK40: Tobias Reik | AL40: Mick Walsh | AM40: Paul Garnett | AN40: Daniel Schneider | AO40: Torsten Hermann | AP40: Peter Kowalski | AQ40: Martin Kopp | AR40: Plöschberger Hannes | AS40: Rick Ruijsink | AT40: Mark Abbotts | AU40: Arne Finkeldey | AV40: Martin Ulrich | AW40: Tony Robertson | AX40: Jesper Christensen | AY40: Ulrich Duttenhofer | AZ40: Robert Ryan | BA40: 0 | BB40: 0 | BC40: 0 | BD40: 0 | BE40: 0 | BF40: 0 | BG40: 0 | BH40: 0 | BI40: 0 | BJ40: 0 | BK40: 0 | BL40: 0 | BM40: 0 | BN40: 0 | BO40: 0 | BP40: =BP30 -> 0 | BQ40: 0 | BR40: 0 | BS40: 0 | BT40: 0 | BU40: 0 | BV40: 0 | BW40: 0 | BX40: 0 | BY40: 0 | BZ40: 0 | CA40: 0 | CB40: 0 | CC40: 0 | CD40: 0 | CE40: 0 | CF40: 0 | CG40: 0 | CH40: 0 | CI40: 0 | CJ40: 0 | CK40: 0 | CL40: 0 | CM40: 0 | CN40: 0 | CT40: =A39 -> 0
A41: 4 | B41: Round rank | C41: =RANK(C44,$C44:$CN44,0) -> 44 | D41: =RANK(D44,$C44:$CN44,0) -> 1 | E41: 37 | F41: 13 | G41: 2 | H41: 7 | I41: 11 | J41: 30 | K41: 10 | L41: 22 | M41: 39 | N41: 14 | O41: 6 | P41: 3 | Q41: 16 | R41: 25 | S41: 17 | T41: 9 | U41: 45 | V41: 41 | W41: 31 | X41: 18 | Y41: 36 | Z41: 33 | AA41: 21 | AB41: 43 | AC41: 26 | AD41: 20 | AE41: 38 | AF41: 4 | AG41: 40 | AH41: 24 | AI41: 23 | AJ41: 15 | AK41: 5 | AL41: 35 | AM41: 46 | AN41: 19 | AO41: 34 | AP41: 8 | AQ41: 28 | AR41: 32 | AS41: 50 | AT41: 27 | AU41: 48 | AV41: 29 | AW41: 47 | AX41: 12 | AY41: 42 | AZ41: 49 | BA41: 51 | BB41: 51 | BC41: 51 | BD41: 51 | BE41: 51 | BF41: 51 | BG41: 51 | BH41: 51 | BI41: 51 | BJ41: 51 | BK41: 51 | BL41: 51 | BM41: 51 | BN41: 51 | BO41: 51 | BP41: =RANK(BP44,$C44:$CN44,0) -> 51 | BQ41: 51 | BR41: 51 | BS41: 51 | BT41: 51 | BU41: 51 | BV41: 51 | BW41: 51 | BX41: 51 | BY41: 51 | BZ41: 51 | CA41: 51 | CB41: 51 | CC41: 51 | CD41: 51 | CE41: 51 | CF41: 51 | CG41: 51 | CH41: 51 | CI41: 51 | CJ41: 51 | CK41: 51 | CL41: 51 | CM41: 51 | CN41: 51
B42: Time | C42: dnf | D42: 37.4 | E42: 55.79 | F42: 44.17 | G42: 38.02 | H42: 42.79 | I42: 43.29 | J42: 51.82 | K42: 43.25 | L42: 47.33 | M42: 57.76 | N42: 44.29 | O42: 42.66 | P42: 38.2 | Q42: 44.64 | R42: 49.07 | S42: 44.68 | T42: 43.17 | U42: dnf | V42: 67.77 | W42: 51.83 | X42: 45.29 | Y42: 54.73 | Z42: 53.14 | AA42: 46.88 | AB42: dnf | AC42: 49.59 | AD42: 46.81 | AE42: 56.67 | AF42: 40.76 | AG42: 60.87 | AH42: 47.96 | AI42: 47.9 | AJ42: 44.44 | AK42: 42.23 | AL42: 54.12 | AM42: dnf | AN42: 46.65 | AO42: 53.71 | AP42: 42.84 | AQ42: 50.04 | AR42: 52.46 | AS42: dnf | AT42: 49.76 | AU42: dnf | AV42: 50.07 | AW42: dnf | AX42: 44.13 | AY42: 71.26 | AZ42: dnf | CP42: =IF(Randomizer!CP35=0,"",Randomizer!CP35) -> 37.4 | CQ42: =IF(CP42=0, "", Randomizer!CQ35) -> Mark Redsell | CT42: =A41 -> 4
B43: Penalties
B44: Score | C44: =Randomizer!C38 -> 8.140513084e-13 | D44: =Randomizer!D38 -> 1000 | E44: =Randomizer!E38 -> 670.3710342 | F44: =Randomizer!F38 -> 846.7285488 | G44: =Randomizer!G38 -> 983.6927933 | H44: =Randomizer!H38 -> 874.0359897 | I44: =Randomizer!I38 -> 863.9408639 | J44: =Randomizer!J38 -> 721.7290621 | K44: =Randomizer!K38 -> 864.7398844 | L44: =Randomizer!L38 -> 790.1964927 | M44: =Randomizer!M38 -> 647.5069252 | N44: =Randomizer!N38 -> 844.4344096 | O44: =Randomizer!O38 -> 876.6994843 | P44: =Randomizer!P38 -> 979.0575916 | Q44: =Randomizer!Q38 -> 837.8136201 | R44: =Randomizer!R38 -> 762.1764826 | S44: =Randomizer!S38 -> 837.0635631 | T44: =Randomizer!T38 -> 866.3423674 | U44: =Randomizer!U38 -> 6.304662136e-13 | V44: =Randomizer!V38 -> 551.8666076 | W44: =Randomizer!W38 -> 721.5898128 | X44: =Randomizer!X38 -> 825.7893575 | Y44: =Randomizer!Y38 -> 683.3546501 | Z44: =Randomizer!Z38 -> 703.8012796 | AA44: =Randomizer!AA38 -> 797.78157 | AB44: =Randomizer!AB38 -> 8.366277129e-13 | AC44: =Randomizer!AC38 -> 754.1843114 | AD44: =Randomizer!AD38 -> 798.9745781 | AE44: =Randomizer!AE38 -> 659.9611788 | AF44: =Randomizer!AF38 -> 917.5662414 | AG44: =Randomizer!AG38 -> 614.4241827 | AH44: =Randomizer!AH38 -> 779.8165138 | AI44: =Randomizer!AI38 -> 780.7933194 | AJ44: =Randomizer!AJ38 -> 841.5841584 | AK44: =Randomizer!AK38 -> 885.626332 | AL44: =Randomizer!AL38 -> 691.0569106 | AM44: =Randomizer!AM38 -> 5.069489323e-13 | AN44: =Randomizer!AN38 -> 801.7148982 | AO44: =Randomizer!AO38 -> 696.3321542 | AP44: =Randomizer!AP38 -> 873.015873 | AQ44: =Randomizer!AQ38 -> 747.4020783 | AR44: =Randomizer!AR38 -> 712.9241327 | AS44: =Randomizer!AS38 -> 2.625683239e-13 | AT44: =Randomizer!AT38 -> 751.607717 | AU44: =Randomizer!AU38 -> 3.689921642e-13 | AV44: =Randomizer!AV38 -> 746.954264 | AW44: =Randomizer!AW38 -> 4.442076351e-13 | AX44: =Randomizer!AX38 -> 847.4960344 | AY44: =Randomizer!AY38 -> 524.8386191 | AZ44: =Randomizer!AZ38 -> 3.63911975e-13 | BA44: =Randomizer!BA38 -> 0 | BB44: =Randomizer!BB38 -> 0 | BC44: =Randomizer!BC38 -> 0 | BD44: =Randomizer!BD38 -> 0 | BE44: =Randomizer!BE38 -> 0 | BF44: =Randomizer!BF38 -> 0 | BG44: =Randomizer!BG38 -> 0 | BH44: =Randomizer!BH38 -> 0 | BI44: =Randomizer!BI38 -> 0 | BJ44: =Randomizer!BJ38 -> 0 | BK44: =Randomizer!BK38 -> 0 | BL44: =Randomizer!BL38 -> 0 | BM44: =Randomizer!BM38 -> 0 | BN44: =Randomizer!BN38 -> 0 | BO44: =Randomizer!BO38 -> 0 | BP44: =Randomizer!BP38 -> 0 | BQ44: =Randomizer!BQ38 -> 0 | BR44: =Randomizer!BR38 -> 0 | BS44: =Randomizer!BS38 -> 0 | BT44: =Randomizer!BT38 -> 0 | BU44: =Randomizer!BU38 -> 0 | BV44: =Randomizer!BV38 -> 0 | BW44: =Randomizer!BW38 -> 0 | BX44: =Randomizer!BX38 -> 0 | BY44: =Randomizer!BY38 -> 0 | BZ44: =Randomizer!BZ38 -> 0 | CA44: =Randomizer!CA38 -> 0 | CB44: =Randomizer!CB38 -> 0 | CC44: =Randomizer!CC38 -> 0 | CD44: =Randomizer!CD38 -> 0 | CE44: =Randomizer!CE38 -> 0 | CF44: =Randomizer!CF38 -> 0 | CG44: =Randomizer!CG38 -> 0 | CH44: =Randomizer!CH38 -> 0 | CI44: =Randomizer!CI38 -> 0 | CJ44: =Randomizer!CJ38 -> 0 | CK44: =Randomizer!CK38 -> 0 | CL44: =Randomizer!CL38 -> 0 | CM44: =Randomizer!CM38 -> 0 | CN44: =Randomizer!CN38 -> 0
B45: Name | C45: =C40 -> Frank Hulton | D45: =D40 -> Mark Redsell | E45: Greg Dakin | F45: Thorsten Folker | G45: Joel West | H45: Klaus Brettner | I45: Markus Meissner | J45: Stefan Bernardy | K45: Søren Krogh | L45: Alvaro Silgado | M45: Pete Burgess | N45: Dieter Perlick | O45: Simon Thornton | P45: André Austen | Q45: Siegfried Schedel | R45: George Young | S45: John Phillips | T45: Stefan Bertschi | U45: Jason Bioletti | V45: Allen Elliott | W45: Thomas Deinert | X45: Mike Evans | Y45: Jon Edison | Z45: Thomas Henselmann | AA45: Sebastian Reichert | AB45: Robert Hermans | AC45: Eberhard Rosemann | AD45: Klaus Kowalski | AE45: Mike Shellim | AF45: Martin Newnham | AG45: Marc Schmieding | AH45: Mark Treble | AI45: Gary Harrison | AJ45: Peter Gunning | AK45: Tobias Reik | AL45: Mick Walsh | AM45: Paul Garnett | AN45: Daniel Schneider | AO45: Torsten Hermann | AP45: Peter Kowalski | AQ45: Martin Kopp | AR45: Plöschberger Hannes | AS45: Rick Ruijsink | AT45: Mark Abbotts | AU45: Arne Finkeldey | AV45: Martin Ulrich | AW45: Tony Robertson | AX45: Jesper Christensen | AY45: Ulrich Duttenhofer | AZ45: Robert Ryan | BA45: 0 | BB45: 0 | BC45: 0 | BD45: 0 | BE45: 0 | BF45: 0 | BG45: 0 | BH45: 0 | BI45: 0 | BJ45: 0 | BK45: 0 | BL45: 0 | BM45: 0 | BN45: 0 | BO45: 0 | BP45: =BP40 -> 0 | BQ45: 0 | BR45: 0 | BS45: 0 | BT45: 0 | BU45: 0 | BV45: 0 | BW45: 0 | BX45: 0 | BY45: 0 | BZ45: 0 | CA45: 0 | CB45: 0 | CC45: 0 | CD45: 0 | CE45: 0 | CF45: 0 | CG45: 0 | CH45: 0 | CI45: 0 | CJ45: 0 | CK45: 0 | CL45: 0 | CM45: 0 | CN45: 0 | CT45: =A44 -> 0
A46: 5 | B46: Round rank | C46: =RANK(C49,$C49:$CN49,0) -> 48 | D46: =RANK(D49,$C49:$CN49,0) -> 10 | E46: 34 | F46: 33 | G46: 2 | H46: 26 | I46: 14 | J46: 36 | K46: 12 | L46: 3 | M46: 40 | N46: 9 | O46: 5 | P46: 6 | Q46: 11 | R46: 17 | S46: 1 | T46: 7 | U46: 50 | V46: 35 | W46: 27 | X46: 42 | Y46: 30 | Z46: 20 | AA46: 21 | AB46: 44 | AC46: 19 | AD46: 23 | AE46: 37 | AF46: 4 | AG46: 41 | AH46: 8 | AI46: 32 | AJ46: 15 | AK46: 13 | AL46: 28 | AM46: 47 | AN46: 24 | AO46: 38 | AP46: 29 | AQ46: 31 | AR46: 18 | AS46: 45 | AT46: 22 | AU46: 43 | AV46: 25 | AW46: 49 | AX46: 16 | AY46: 39 | AZ46: 46 | BA46: 51 | BB46: 51 | BC46: 51 | BD46: 51 | BE46: 51 | BF46: 51 | BG46: 51 | BH46: 51 | BI46: 51 | BJ46: 51 | BK46: 51 | BL46: 51 | BM46: 51 | BN46: 51 | BO46: 51 | BP46: =RANK(BP49,$C49:$CN49,0) -> 51 | BQ46: 51 | BR46: 51 | BS46: 51 | BT46: 51 | BU46: 51 | BV46: 51 | BW46: 51 | BX46: 51 | BY46: 51 | BZ46: 51 | CA46: 51 | CB46: 51 | CC46: 51 | CD46: 51 | CE46: 51 | CF46: 51 | CG46: 51 | CH46: 51 | CI46: 51 | CJ46: 51 | CK46: 51 | CL46: 51 | CM46: 51 | CN46: 51
B47: Time | C47: dnf | D47: 44.81 | E47: 51.51 | F47: 51.29 | G47: 39.73 | H47: 49.18 | I47: 45.61 | J47: 53.29 | K47: 44.97 | L47: 41.65 | M47: 62.36 | N47: 44.33 | O47: 42.21 | P47: 43.55 | Q47: 44.87 | R47: 46.56 | S47: 39.2 | T47: 43.94 | U47: dnf | V47: 51.79 | W47: 49.48 | X47: dnf | Y47: 49.91 | Z47: 47.66 | AA47: 47.74 | AB47: dnf | AC47: 46.75 | AD47: 48.85 | AE47: 53.58 | AF47: 42.08 | AG47: 68.98 | AH47: 44.14 | AI47: 50.82 | AJ47: 45.92 | AK47: 45.24 | AL47: 49.61 | AM47: dnf | AN47: 48.89 | AO47: 58.47 | AP47: 49.73 | AQ47: 50.05 | AR47: 46.68 | AS47: dnf | AT47: 47.83 | AU47: dnf | AV47: 49.03 | AW47: dnf | AX47: 46.45 | AY47: 59.26 | AZ47: dnf | CP47: =IF(Randomizer!CP41=0,"",Randomizer!CP41) -> 39.2 | CQ47: =IF(CP47=0, "", Randomizer!CQ41) -> John Phillips | CT47: =A46 -> 5
B48: Penalties
B49: Score | C49: =Randomizer!C44 -> 3.159769193e-13 | D49: =Randomizer!D44 -> 874.8047311 | E49: =Randomizer!E44 -> 761.0172782 | F49: =Randomizer!F44 -> 764.2815364 | G49: =Randomizer!G44 -> 986.6599547 | H49: =Randomizer!H44 -> 797.0719805 | I49: =Randomizer!I44 -> 859.4606446 | J49: =Randomizer!J44 -> 735.5976731 | K49: =Randomizer!K44 -> 871.6922393 | L49: =Randomizer!L44 -> 941.1764706 | M49: =Randomizer!M44 -> 628.6080821 | N49: =Randomizer!N44 -> 884.2770133 | O49: =Randomizer!O44 -> 928.6898839 | P49: =Randomizer!P44 -> 900.1148106 | Q49: =Randomizer!Q44 -> 873.6349454 | R49: =Randomizer!R44 -> 841.9243986 | S49: =Randomizer!S44 -> 1000 | T49: =Randomizer!T44 -> 892.1256259 | U49: =Randomizer!U44 -> 2.616033022e-13 | V49: =Randomizer!V44 -> 756.902877 | W49: =Randomizer!W44 -> 792.2392886 | X49: =Randomizer!X44 -> 9.628202463e-13 | Y49: =Randomizer!Y44 -> 785.4137447 | Z49: =Randomizer!Z44 -> 822.4926563 | AA49: =Randomizer!AA44 -> 821.1143695 | AB49: =Randomizer!AB44 -> 8.766745214e-13 | AC49: =Randomizer!AC44 -> 838.5026738 | AD49: =Randomizer!AD44 -> 802.4564995 | AE49: =Randomizer!AE44 -> 731.6162747 | AF49: =Randomizer!AF44 -> 931.5589354 | AG49: =Randomizer!AG44 -> 568.2806611 | AH49: =Randomizer!AH44 -> 888.0833711 | AI49: =Randomizer!AI44 -> 771.3498623 | AJ49: =Randomizer!AJ44 -> 853.6585366 | AK49: =Randomizer!AK44 -> 866.489832 | AL49: =Randomizer!AL44 -> 790.1632735 | AM49: =Randomizer!AM44 -> 4.095065719e-13 | AN49: =Randomizer!AN44 -> 801.7999591 | AO49: =Randomizer!AO44 -> 670.42928 | AP49: =Randomizer!AP44 -> 788.2565856 | AQ49: =Randomizer!AQ44 -> 783.2167832 | AR49: =Randomizer!AR44 -> 839.7600686 | AS49: =Randomizer!AS44 -> 7.850240315e-13 | AT49: =Randomizer!AT44 -> 819.569308 | AU49: =Randomizer!AU44 -> 9.424809768e-13 | AV49: =Randomizer!AV44 -> 799.5105038 | AW49: =Randomizer!AW44 -> 2.762573406e-13 | AX49: =Randomizer!AX44 -> 843.9181916 | AY49: =Randomizer!AY44 -> 661.4917314 | AZ49: =Randomizer!AZ44 -> 4.524559492e-13 | BA49: =Randomizer!BA44 -> 0 | BB49: =Randomizer!BB44 -> 0 | BC49: =Randomizer!BC44 -> 0 | BD49: =Randomizer!BD44 -> 0 | BE49: =Randomizer!BE44 -> 0 | BF49: =Randomizer!BF44 -> 0 | BG49: =Randomizer!BG44 -> 0 | BH49: =Randomizer!BH44 -> 0 | BI49: =Randomizer!BI44 -> 0 | BJ49: =Randomizer!BJ44 -> 0 | BK49: =Randomizer!BK44 -> 0 | BL49: =Randomizer!BL44 -> 0 | BM49: =Randomizer!BM44 -> 0 | BN49: =Randomizer!BN44 -> 0 | BO49: =Randomizer!BO44 -> 0 | BP49: =Randomizer!BP44 -> 0 | BQ49: =Randomizer!BQ44 -> 0 | BR49: =Randomizer!BR44 -> 0 | BS49: =Randomizer!BS44 -> 0 | BT49: =Randomizer!BT44 -> 0 | BU49: =Randomizer!BU44 -> 0 | BV49: =Randomizer!BV44 -> 0 | BW49: =Randomizer!BW44 -> 0 | BX49: =Randomizer!BX44 -> 0 | BY49: =Randomizer!BY44 -> 0 | BZ49: =Randomizer!BZ44 -> 0 | CA49: =Randomizer!CA44 -> 0 | CB49: =Randomizer!CB44 -> 0 | CC49: =Randomizer!CC44 -> 0 | CD49: =Randomizer!CD44 -> 0 | CE49: =Randomizer!CE44 -> 0 | CF49: =Randomizer!CF44 -> 0 | CG49: =Randomizer!CG44 -> 0 | CH49: =Randomizer!CH44 -> 0 | CI49: =Randomizer!CI44 -> 0 | CJ49: =Randomizer!CJ44 -> 0 | CK49: =Randomizer!CK44 -> 0 | CL49: =Randomizer!CL44 -> 0 | CM49: =Randomizer!CM44 -> 0 | CN49: =Randomizer!CN44 -> 0
B50: Name | C50: =C45 -> Frank Hulton | D50: =D45 -> Mark Redsell | E50: Greg Dakin | F50: Thorsten Folker | G50: Joel West | H50: Klaus Brettner | I50: Markus Meissner | J50: Stefan Bernardy | K50: Søren Krogh | L50: Alvaro Silgado | M50: Pete Burgess | N50: Dieter Perlick | O50: Simon Thornton | P50: André Austen | Q50: Siegfried Schedel | R50: George Young | S50: John Phillips | T50: Stefan Bertschi | U50: Jason Bioletti | V50: Allen Elliott | W50: Thomas Deinert | X50: Mike Evans | Y50: Jon Edison | Z50: Thomas Henselmann | AA50: Sebastian Reichert | AB50: Robert Hermans | AC50: Eberhard Rosemann | AD50: Klaus Kowalski | AE50: Mike Shellim | AF50: Martin Newnham | AG50: Marc Schmieding | AH50: Mark Treble | AI50: Gary Harrison | AJ50: Peter Gunning | AK50: Tobias Reik | AL50: Mick Walsh | AM50: Paul Garnett | AN50: Daniel Schneider | AO50: Torsten Hermann | AP50: Peter Kowalski | AQ50: Martin Kopp | AR50: Plöschberger Hannes | AS50: Rick Ruijsink | AT50: Mark Abbotts | AU50: Arne Finkeldey | AV50: Martin Ulrich | AW50: Tony Robertson | AX50: Jesper Christensen | AY50: Ulrich Duttenhofer | AZ50: Robert Ryan | BA50: 0 | BB50: 0 | BC50: 0 | BD50: 0 | BE50: 0 | BF50: 0 | BG50: 0 | BH50: 0 | BI50: 0 | BJ50: 0 | BK50: 0 | BL50: 0 | BM50: 0 | BN50: 0 | BO50: 0 | BP50: =BP45 -> 0 | BQ50: 0 | BR50: 0 | BS50: 0 | BT50: 0 | BU50: 0 | BV50: 0 | BW50: 0 | BX50: 0 | BY50: 0 | BZ50: 0 | CA50: 0 | CB50: 0 | CC50: 0 | CD50: 0 | CE50: 0 | CF50: 0 | CG50: 0 | CH50: 0 | CI50: 0 | CJ50: 0 | CK50: 0 | CL50: 0 | CM50: 0 | CN50: 0 | CT50: =A49 -> 0
A51: 6 | B51: Round rank | C51: =RANK(C54,$C54:$CN54,0) -> 49 | D51: =RANK(D54,$C54:$CN54,0) -> 4 | E51: 17 | F51: 6 | G51: 12 | H51: 33 | I51: 8 | J51: 36 | K51: 15 | L51: 14 | M51: 37 | N51: 25 | O51: 7 | P51: 29 | Q51: 5 | R51: 30 | S51: 27 | T51: 13 | U51: 46 | V51: 34 | W51: 24 | X51: 48 | Y51: 40 | Z51: 21 | AA51: 11 | AB51: 44 | AC51: 23 | AD51: 20 | AE51: 28 | AF51: 2 | AG51: 38 | AH51: 31 | AI51: 10 | AJ51: 18 | AK51: 1 | AL51: 39 | AM51: 45 | AN51: 3 | AO51: 32 | AP51: 9 | AQ51: 26 | AR51: 19 | AS51: 47 | AT51: 35 | AU51: 43 | AV51: 16 | AW51: 42 | AX51: 22 | AY51: 41 | AZ51: 50 | BA51: 51 | BB51: 51 | BC51: 51 | BD51: 51 | BE51: 51 | BF51: 51 | BG51: 51 | BH51: 51 | BI51: 51 | BJ51: 51 | BK51: 51 | BL51: 51 | BM51: 51 | BN51: 51 | BO51: 51 | BP51: =RANK(BP54,$C54:$CN54,0) -> 51 | BQ51: 51 | BR51: 51 | BS51: 51 | BT51: 51 | BU51: 51 | BV51: 51 | BW51: 51 | BX51: 51 | BY51: 51 | BZ51: 51 | CA51: 51 | CB51: 51 | CC51: 51 | CD51: 51 | CE51: 51 | CF51: 51 | CG51: 51 | CH51: 51 | CI51: 51 | CJ51: 51 | CK51: 51 | CL51: 51 | CM51: 51 | CN51: 51
B52: Time | C52: dnf | D52: 42.14 | E52: 46.84 | F52: 42.55 | G52: 46.08 | H52: 54.43 | I52: 44.2 | J52: 59.23 | K52: 46.6 | L52: 46.15 | M52: 59.96 | N52: 49.68 | O52: 43.36 | P52: 51.08 | Q52: 42.45 | R52: 51.16 | S52: 50.09 | T52: 46.09 | U52: dnf | V52: 55.22 | W52: 48.81 | X52: dnf | Y52: 64.39 | Z52: 47.83 | AA52: 45.35 | AB52: dnf | AC52: 48.53 | AD52: 47.8 | AE52: 51.04 | AF52: 40.1 | AG52: 62.05 | AH52: 51.99 | AI52: 44.99 | AJ52: 46.89 | AK52: 38.16 | AL52: 63.33 | AM52: dnf | AN52: 41.28 | AO52: 53.11 | AP52: 44.59 | AQ52: 50.05 | AR52: 47.62 | AS52: dnf | AT52: 58.24 | AU52: dnf | AV52: 46.62 | AW52: dnf | AX52: 48.42 | AY52: 68.26 | AZ52: dnf | CP52: =IF(Randomizer!CP47=0,"",Randomizer!CP47) -> 38.16 | CQ52: =IF(CP52=0, "", Randomizer!CQ47) -> 0 | CT52: =A51 -> 6
B53: Penalties
B54: Score | C54: =Randomizer!C50 -> 7.046511091e-14 | D54: =Randomizer!D50 -> 905.5529188 | E54: =Randomizer!E50 -> 814.6883006 | F54: =Randomizer!F50 -> 896.827262 | G54: =Randomizer!G50 -> 828.125 | H54: =Randomizer!H50 -> 701.0839611 | I54: =Randomizer!I50 -> 863.3484163 | J54: =Randomizer!J50 -> 644.2681074 | K54: =Randomizer!K50 -> 818.8841202 | L54: =Randomizer!L50 -> 826.8689057 | M54: =Randomizer!M50 -> 636.4242829 | N54: =Randomizer!N50 -> 768.115942 | O54: =Randomizer!O50 -> 880.0738007 | P54: =Randomizer!P50 -> 747.0634299 | Q54: =Randomizer!Q50 -> 898.9399293 | R54: =Randomizer!R50 -> 745.8952306 | S54: =Randomizer!S50 -> 761.8287083 | T54: =Randomizer!T50 -> 827.9453244 | U54: =Randomizer!U50 -> 5.842982479e-13 | V54: =Randomizer!V50 -> 691.053966 | W54: =Randomizer!W50 -> 781.8070068 | X54: =Randomizer!X50 -> 2.3319423e-13 | Y54: =Randomizer!Y50 -> 592.6386085 | Z54: =Randomizer!Z50 -> 797.8256324 | AA54: =Randomizer!AA50 -> 841.4553473 | AB54: =Randomizer!AB50 -> 5.891823305e-13 | AC54: =Randomizer!AC50 -> 786.3177416 | AD54: =Randomizer!AD50 -> 798.3263598 | AE54: =Randomizer!AE50 -> 747.6489028 | AF54: =Randomizer!AF50 -> 951.6209476 | AG54: =Randomizer!AG50 -> 614.987913 | AH54: =Randomizer!AH50 -> 733.9873053 | AI54: =Randomizer!AI50 -> 848.1884863 | AJ54: =Randomizer!AJ50 -> 813.8195777 | AK54: =Randomizer!AK50 -> 1000 | AL54: =Randomizer!AL50 -> 602.5580294 | AM54: =Randomizer!AM50 -> 5.861793487e-13 | AN54: =Randomizer!AN50 -> 924.4186047 | AO54: =Randomizer!AO50 -> 718.5087554 | AP54: =Randomizer!AP50 -> 855.797264 | AQ54: =Randomizer!AQ50 -> 762.4375624 | AR54: =Randomizer!AR50 -> 801.3439731 | AS54: =Randomizer!AS50 -> 4.447028952e-13 | AT54: =Randomizer!AT50 -> 655.2197802 | AU54: =Randomizer!AU50 -> 6.958764408e-13 | AV54: =Randomizer!AV50 -> 818.5328185 | AW54: =Randomizer!AW50 -> 8.724081533e-13 | AX54: =Randomizer!AX50 -> 788.1040892 | AY54: =Randomizer!AY50 -> 559.0389686 | AZ54: =Randomizer!AZ50 -> 5.798932396e-14 | BA54: =Randomizer!BA50 -> 0 | BB54: =Randomizer!BB50 -> 0 | BC54: =Randomizer!BC50 -> 0 | BD54: =Randomizer!BD50 -> 0 | BE54: =Randomizer!BE50 -> 0 | BF54: =Randomizer!BF50 -> 0 | BG54: =Randomizer!BG50 -> 0 | BH54: =Randomizer!BH50 -> 0 | BI54: =Randomizer!BI50 -> 0 | BJ54: =Randomizer!BJ50 -> 0 | BK54: =Randomizer!BK50 -> 0 | BL54: =Randomizer!BL50 -> 0 | BM54: =Randomizer!BM50 -> 0 | BN54: =Randomizer!BN50 -> 0 | BO54: =Randomizer!BO50 -> 0 | BP54: =Randomizer!BP50 -> 0 | BQ54: =Randomizer!BQ50 -> 0 | BR54: =Randomizer!BR50 -> 0 | BS54: =Randomizer!BS50 -> 0 | BT54: =Randomizer!BT50 -> 0 | BU54: =Randomizer!BU50 -> 0 | BV54: =Randomizer!BV50 -> 0 | BW54: =Randomizer!BW50 -> 0 | BX54: =Randomizer!BX50 -> 0 | BY54: =Randomizer!BY50 -> 0 | BZ54: =Randomizer!BZ50 -> 0 | CA54: =Randomizer!CA50 -> 0 | CB54: =Randomizer!CB50 -> 0 | CC54: =Randomizer!CC50 -> 0 | CD54: =Randomizer!CD50 -> 0 | CE54: =Randomizer!CE50 -> 0 | CF54: =Randomizer!CF50 -> 0 | CG54: =Randomizer!CG50 -> 0 | CH54: =Randomizer!CH50 -> 0 | CI54: =Randomizer!CI50 -> 0 | CJ54: =Randomizer!CJ50 -> 0 | CK54: =Randomizer!CK50 -> 0 | CL54: =Randomizer!CL50 -> 0 | CM54: =Randomizer!CM50 -> 0 | CN54: =Randomizer!CN50 -> 0
B55: Name | C55: =C50 -> Frank Hulton | D55: =D50 -> Mark Redsell | E55: Greg Dakin | F55: Thorsten Folker | G55: Joel West | H55: Klaus Brettner | I55: Markus Meissner | J55: Stefan Bernardy | K55: Søren Krogh | L55: Alvaro Silgado | M55: Pete Burgess | N55: Dieter Perlick | O55: Simon Thornton | P55: André Austen | Q55: Siegfried Schedel | R55: George Young | S55: John Phillips | T55: Stefan Bertschi | U55: Jason Bioletti | V55: Allen Elliott | W55: Thomas Deinert | X55: Mike Evans | Y55: Jon Edison | Z55: Thomas Henselmann | AA55: Sebastian Reichert | AB55: Robert Hermans | AC55: Eberhard Rosemann | AD55: Klaus Kowalski | AE55: Mike Shellim | AF55: Martin Newnham | AG55: Marc Schmieding | AH55: Mark Treble | AI55: Gary Harrison | AJ55: Peter Gunning | AK55: Tobias Reik | AL55: Mick Walsh | AM55: Paul Garnett | AN55: Daniel Schneider | AO55: Torsten Hermann | AP55: Peter Kowalski | AQ55: Martin Kopp | AR55: Plöschberger Hannes | AS55: Rick Ruijsink | AT55: Mark Abbotts | AU55: Arne Finkeldey | AV55: Martin Ulrich | AW55: Tony Robertson | AX55: Jesper Christensen | AY55: Ulrich Duttenhofer | AZ55: Robert Ryan | BA55: 0 | BB55: 0 | BC55: 0 | BD55: 0 | BE55: 0 | BF55: 0 | BG55: 0 | BH55: 0 | BI55: 0 | BJ55: 0 | BK55: 0 | BL55: 0 | BM55: 0 | BN55: 0 | BO55: 0 | BP55: =BP50 -> 0 | BQ55: 0 | BR55: 0 | BS55: 0 | BT55: 0 | BU55: 0 | BV55: 0 | BW55: 0 | BX55: 0 | BY55: 0 | BZ55: 0 | CA55: 0 | CB55: 0 | CC55: 0 | CD55: 0 | CE55: 0 | CF55: 0 | CG55: 0 | CH55: 0 | CI55: 0 | CJ55: 0 | CK55: 0 | CL55: 0 | CM55: 0 | CN55: 0 | CT55: =A54 -> 0
A56: 7 | B56: Round rank | C56: =RANK(C59,$C59:$CN59,0) -> 39 | D56: =RANK(D59,$C59:$CN59,0) -> 1 | E56: 35 | F56: 16 | G56: 23 | H56: 48 | I56: 18 | J56: 13 | K56: 11 | L56: 17 | M56: 25 | N56: 24 | O56: 4 | P56: 6 | Q56: 12 | R56: 31 | S56: 21 | T56: 9 | U56: 49 | V56: 36 | W56: 38 | X56: 45 | Y56: 37 | Z56: 27 | AA56: 10 | AB56: 47 | AC56: 15 | AD56: 7 | AE56: 28 | AF56: 2 | AG56: 32 | AH56: 3 | AI56: 19 | AJ56: 5 | AK56: 8 | AL56: 26 | AM56: 46 | AN56: 14 | AO56: 33 | AP56: 20 | AQ56: 29 | AR56: 30 | AS56: 50 | AT56: 42 | AU56: 43 | AV56: 44 | AW56: 40 | AX56: 22 | AY56: 34 | AZ56: 41 | BA56: 51 | BB56: 51 | BC56: 51 | BD56: 51 | BE56: 51 | BF56: 51 | BG56: 51 | BH56: 51 | BI56: 51 | BJ56: 51 | BK56: 51 | BL56: 51 | BM56: 51 | BN56: 51 | BO56: 51 | BP56: =RANK(BP59,$C59:$CN59,0) -> 51 | BQ56: 51 | BR56: 51 | BS56: 51 | BT56: 51 | BU56: 51 | BV56: 51 | BW56: 51 | BX56: 51 | BY56: 51 | BZ56: 51 | CA56: 51 | CB56: 51 | CC56: 51 | CD56: 51 | CE56: 51 | CF56: 51 | CG56: 51 | CH56: 51 | CI56: 51 | CJ56: 51 | CK56: 51 | CL56: 51 | CM56: 51 | CN56: 51
B57: Time | C57: dnf | D57: 36.99 | E57: 61.52 | F57: 43.69 | G57: 47.53 | H57: dnf | I57: 44.76 | J57: 43.56 | K57: 43.2 | L57: 43.91 | M57: 48.62 | N57: 47.64 | O57: 39.65 | P57: 41.37 | Q57: 43.49 | R57: 53.26 | S57: 46.72 | T57: 42.78 | U57: dnf | V57: 62.91 | W57: dnf | X57: dnf | Y57: dnf | Z57: 49.13 | AA57: 42.91 | AB57: dnf | AC57: 43.63 | AD57: 41.77 | AE57: 49.87 | AF57: 38.36 | AG57: 54.38 | AH57: 39.04 | AI57: 45.11 | AJ57: 39.68 | AK57: 42.5 | AL57: 48.64 | AM57: dnf | AN57: 43.57 | AO57: 56.25 | AP57: 46.49 | AQ57: 50.03 | AR57: 50.39 | AS57: dnf | AT57: dnf | AU57: dnf | AV57: dnf | AW57: dnf | AX57: 47.02 | AY57: 60.7 | AZ57: dnf | CP57: =IF(Randomizer!CP53=0,"",Randomizer!CP53) -> 36.99 | CQ57: =IF(CP57=0, "", Randomizer!CQ53) -> Mark Redsell | CT57: =A56 -> 7
B58: Penalties
B59: Score | C59: =Randomizer!C56 -> 7.260013895e-13 | D59: =Randomizer!D56 -> 1000 | E59: =Randomizer!E56 -> 601.2678804 | F59: =Randomizer!F56 -> 846.6468299 | G59: =Randomizer!G56 -> 778.2453187 | H59: =Randomizer!H56 -> 4.534066843e-13 | I59: =Randomizer!I56 -> 826.4075067 | J59: =Randomizer!J56 -> 849.1735537 | K59: =Randomizer!K56 -> 856.25 | L59: =Randomizer!L56 -> 842.4049192 | M59: =Randomizer!M56 -> 760.7980255 | N59: =Randomizer!N56 -> 776.4483627 | O59: =Randomizer!O56 -> 932.9129887 | P59: =Randomizer!P56 -> 894.1261784 | Q59: =Randomizer!Q56 -> 850.5403541 | R59: =Randomizer!R56 -> 694.5174615 | S59: =Randomizer!S56 -> 791.7380137 | T59: =Randomizer!T56 -> 864.6563815 | U59: =Randomizer!U56 -> 3.886771676e-13 | V59: =Randomizer!V56 -> 587.9828326 | W59: =Randomizer!W56 -> 8.038039688e-13 | X59: =Randomizer!X56 -> 5.866564943e-13 | Y59: =Randomizer!Y56 -> 9.123354195e-13 | Z59: =Randomizer!Z56 -> 752.9004681 | AA59: =Randomizer!AA56 -> 862.0368213 | AB59: =Randomizer!AB56 -> 5.194978335e-13 | AC59: =Randomizer!AC56 -> 847.8111391 | AD59: =Randomizer!AD56 -> 885.5638018 | AE59: =Randomizer!AE56 -> 741.7284941 | AF59: =Randomizer!AF56 -> 964.2857143 | AG59: =Randomizer!AG56 -> 680.2133137 | AH59: =Randomizer!AH56 -> 947.4897541 | AI59: =Randomizer!AI56 -> 819.9955664 | AJ59: =Randomizer!AJ56 -> 932.2076613 | AK59: =Randomizer!AK56 -> 870.3529412 | AL59: =Randomizer!AL56 -> 760.4851974 | AM59: =Randomizer!AM56 -> 5.44278972e-13 | AN59: =Randomizer!AN56 -> 848.978655 | AO59: =Randomizer!AO56 -> 657.6 | AP59: =Randomizer!AP56 -> 795.6549796 | AQ59: =Randomizer!AQ56 -> 739.3563862 | AR59: =Randomizer!AR56 -> 734.0742211 | AS59: =Randomizer!AS56 -> 7.237894376e-14 | AT59: =Randomizer!AT56 -> 6.417301074e-13 | AU59: =Randomizer!AU56 -> 6.108395113e-13 | AV59: =Randomizer!AV56 -> 5.969894651e-13 | AW59: =Randomizer!AW56 -> 7.029407278e-13 | AX59: =Randomizer!AX56 -> 786.6865164 | AY59: =Randomizer!AY56 -> 609.3904448 | AZ59: =Randomizer!AZ56 -> 6.675861506e-13 | BA59: =Randomizer!BA56 -> 0 | BB59: =Randomizer!BB56 -> 0 | BC59: =Randomizer!BC56 -> 0 | BD59: =Randomizer!BD56 -> 0 | BE59: =Randomizer!BE56 -> 0 | BF59: =Randomizer!BF56 -> 0 | BG59: =Randomizer!BG56 -> 0 | BH59: =Randomizer!BH56 -> 0 | BI59: =Randomizer!BI56 -> 0 | BJ59: =Randomizer!BJ56 -> 0 | BK59: =Randomizer!BK56 -> 0 | BL59: =Randomizer!BL56 -> 0 | BM59: =Randomizer!BM56 -> 0 | BN59: =Randomizer!BN56 -> 0 | BO59: =Randomizer!BO56 -> 0 | BP59: =Randomizer!BP56 -> 0 | BQ59: =Randomizer!BQ56 -> 0 | BR59: =Randomizer!BR56 -> 0 | BS59: =Randomizer!BS56 -> 0 | BT59: =Randomizer!BT56 -> 0 | BU59: =Randomizer!BU56 -> 0 | BV59: =Randomizer!BV56 -> 0 | BW59: =Randomizer!BW56 -> 0 | BX59: =Randomizer!BX56 -> 0 | BY59: =Randomizer!BY56 -> 0 | BZ59: =Randomizer!BZ56 -> 0 | CA59: =Randomizer!CA56 -> 0 | CB59: =Randomizer!CB56 -> 0 | CC59: =Randomizer!CC56 -> 0 | CD59: =Randomizer!CD56 -> 0 | CE59: =Randomizer!CE56 -> 0 | CF59: =Randomizer!CF56 -> 0 | CG59: =Randomizer!CG56 -> 0 | CH59: =Randomizer!CH56 -> 0 | CI59: =Randomizer!CI56 -> 0 | CJ59: =Randomizer!CJ56 -> 0 | CK59: =Randomizer!CK56 -> 0 | CL59: =Randomizer!CL56 -> 0 | CM59: =Randomizer!CM56 -> 0 | CN59: =Randomizer!CN56 -> 0
B60: Name | C60: =C55 -> Frank Hulton | D60: =D55 -> Mark Redsell | E60: Greg Dakin | F60: Thorsten Folker | G60: Joel West | H60: Klaus Brettner | I60: Markus Meissner | J60: Stefan Bernardy | K60: Søren Krogh | L60: Alvaro Silgado | M60: Pete Burgess | N60: Dieter Perlick | O60: Simon Thornton | P60: André Austen | Q60: Siegfried Schedel | R60: George Young | S60: John Phillips | T60: Stefan Bertschi | U60: Jason Bioletti | V60: Allen Elliott | W60: Thomas Deinert | X60: Mike Evans | Y60: Jon Edison | Z60: Thomas Henselmann | AA60: Sebastian Reichert | AB60: Robert Hermans | AC60: Eberhard Rosemann | AD60: Klaus Kowalski | AE60: Mike Shellim | AF60: Martin Newnham | AG60: Marc Schmieding | AH60: Mark Treble | AI60: Gary Harrison | AJ60: Peter Gunning | AK60: Tobias Reik | AL60: Mick Walsh | AM60: Paul Garnett | AN60: Daniel Schneider | AO60: Torsten Hermann | AP60: Peter Kowalski | AQ60: Martin Kopp | AR60: Plöschberger Hannes | AS60: Rick Ruijsink | AT60: Mark Abbotts | AU60: Arne Finkeldey | AV60: Martin Ulrich | AW60: Tony Robertson | AX60: Jesper Christensen | AY60: Ulrich Duttenhofer | AZ60: Robert Ryan | BA60: 0 | BB60: 0 | BC60: 0 | BD60: 0 | BE60: 0 | BF60: 0 | BG60: 0 | BH60: 0 | BI60: 0 | BJ60: 0 | BK60: 0 | BL60: 0 | BM60: 0 | BN60: 0 | BO60: 0 | BP60: =BP55 -> 0 | BQ60: 0 | BR60: 0 | BS60: 0 | BT60: 0 | BU60: 0 | BV60: 0 | BW60: 0 | BX60: 0 | BY60: 0 | BZ60: 0 | CA60: 0 | CB60: 0 | CC60: 0 | CD60: 0 | CE60: 0 | CF60: 0 | CG60: 0 | CH60: 0 | CI60: 0 | CJ60: 0 | CK60: 0 | CL60: 0 | CM60: 0 | CN60: 0 | CT60: =A59 -> 0
A61: 8 | B61: Round rank | C61: =RANK(C64,$C64:$CN64,0) -> 1 | D61: =RANK(D64,$C64:$CN64,0) -> 1 | E61: 1 | F61: 1 | G61: 1 | H61: 1 | I61: 1 | J61: 1 | K61: 1 | L61: 1 | M61: 1 | N61: 1 | O61: 1 | P61: 1 | Q61: 1 | R61: 1 | S61: 1 | T61: 1 | U61: 1 | V61: 1 | W61: 1 | X61: 1 | Y61: 1 | Z61: 1 | AA61: 1 | AB61: 1 | AC61: 1 | AD61: 1 | AE61: 1 | AF61: 1 | AG61: 1 | AH61: 1 | AI61: 1 | AJ61: 1 | AK61: 1 | AL61: 1 | AM61: 1 | AN61: 1 | AO61: 1 | AP61: 1 | AQ61: 1 | AR61: 1 | AS61: 1 | AT61: 1 | AU61: 1 | AV61: 1 | AW61: 1 | AX61: 1 | AY61: 1 | AZ61: 1 | BA61: 1 | BB61: 1 | BC61: 1 | BD61: 1 | BE61: 1 | BF61: 1 | BG61: 1 | BH61: 1 | BI61: 1 | BJ61: 1 | BK61: 1 | BL61: 1 | BM61: 1 | BN61: 1 | BO61: 1 | BP61: =RANK(BP64,$C64:$CN64,0) -> 1 | BQ61: 1 | BR61: 1 | BS61: 1 | BT61: 1 | BU61: 1 | BV61: 1 | BW61: 1 | BX61: 1 | BY61: 1 | BZ61: 1 | CA61: 1 | CB61: 1 | CC61: 1 | CD61: 1 | CE61: 1 | CF61: 1 | CG61: 1 | CH61: 1 | CI61: 1 | CJ61: 1 | CK61: 1 | CL61: 1 | CM61: 1 | CN61: 1
B62: Time | CP62: =IF(Randomizer!CP59=0,"",Randomizer!CP59) ->  | CQ62: =IF(CP62=0, "", Randomizer!CQ59) ->  | CT62: =A61 -> 8
B63: Penalties
B64: Score | C64: =Randomizer!C62 -> 0 | D64: =Randomizer!D62 -> 0 | E64: =Randomizer!E62 -> 0 | F64: =Randomizer!F62 -> 0 | G64: =Randomizer!G62 -> 0 | H64: =Randomizer!H62 -> 0 | I64: =Randomizer!I62 -> 0 | J64: =Randomizer!J62 -> 0 | K64: =Randomizer!K62 -> 0 | L64: =Randomizer!L62 -> 0 | M64: =Randomizer!M62 -> 0 | N64: =Randomizer!N62 -> 0 | O64: =Randomizer!O62 -> 0 | P64: =Randomizer!P62 -> 0 | Q64: =Randomizer!Q62 -> 0 | R64: =Randomizer!R62 -> 0 | S64: =Randomizer!S62 -> 0 | T64: =Randomizer!T62 -> 0 | U64: =Randomizer!U62 -> 0 | V64: =Randomizer!V62 -> 0 | W64: =Randomizer!W62 -> 0 | X64: =Randomizer!X62 -> 0 | Y64: =Randomizer!Y62 -> 0 | Z64: =Randomizer!Z62 -> 0 | AA64: =Randomizer!AA62 -> 0 | AB64: =Randomizer!AB62 -> 0 | AC64: =Randomizer!AC62 -> 0 | AD64: =Randomizer!AD62 -> 0 | AE64: =Randomizer!AE62 -> 0 | AF64: =Randomizer!AF62 -> 0 | AG64: =Randomizer!AG62 -> 0 | AH64: =Randomizer!AH62 -> 0 | AI64: =Randomizer!AI62 -> 0 | AJ64: =Randomizer!AJ62 -> 0 | AK64: =Randomizer!AK62 -> 0 | AL64: =Randomizer!AL62 -> 0 | AM64: =Randomizer!AM62 -> 0 | AN64: =Randomizer!AN62 -> 0 | AO64: =Randomizer!AO62 -> 0 | AP64: =Randomizer!AP62 -> 0 | AQ64: =Randomizer!AQ62 -> 0 | AR64: =Randomizer!AR62 -> 0 | AS64: =Randomizer!AS62 -> 0 | AT64: =Randomizer!AT62 -> 0 | AU64: =Randomizer!AU62 -> 0 | AV64: =Randomizer!AV62 -> 0 | AW64: =Randomizer!AW62 -> 0 | AX64: =Randomizer!AX62 -> 0 | AY64: =Randomizer!AY62 -> 0 | AZ64: =Randomizer!AZ62 -> 0 | BA64: =Randomizer!BA62 -> 0 | BB64: =Randomizer!BB62 -> 0 | BC64: =Randomizer!BC62 -> 0 | BD64: =Randomizer!BD62 -> 0 | BE64: =Randomizer!BE62 -> 0 | BF64: =Randomizer!BF62 -> 0 | BG64: =Randomizer!BG62 -> 0 | BH64: =Randomizer!BH62 -> 0 | BI64: =Randomizer!BI62 -> 0 | BJ64: =Randomizer!BJ62 -> 0 | BK64: =Randomizer!BK62 -> 0 | BL64: =Randomizer!BL62 -> 0 | BM64: =Randomizer!BM62 -> 0 | BN64: =Randomizer!BN62 -> 0 | BO64: =Randomizer!BO62 -> 0 | BP64: =Randomizer!BP62 -> 0 | BQ64: =Randomizer!BQ62 -> 0 | BR64: =Randomizer!BR62 -> 0 | BS64: =Randomizer!BS62 -> 0 | BT64: =Randomizer!BT62 -> 0 | BU64: =Randomizer!BU62 -> 0 | BV64: =Randomizer!BV62 -> 0 | BW64: =Randomizer!BW62 -> 0 | BX64: =Randomizer!BX62 -> 0 | BY64: =Randomizer!BY62 -> 0 | BZ64: =Randomizer!BZ62 -> 0 | CA64: =Randomizer!CA62 -> 0 | CB64: =Randomizer!CB62 -> 0 | CC64: =Randomizer!CC62 -> 0 | CD64: =Randomizer!CD62 -> 0 | CE64: =Randomizer!CE62 -> 0 | CF64: =Randomizer!CF62 -> 0 | CG64: =Randomizer!CG62 -> 0 | CH64: =Randomizer!CH62 -> 0 | CI64: =Randomizer!CI62 -> 0 | CJ64: =Randomizer!CJ62 -> 0 | CK64: =Randomizer!CK62 -> 0 | CL64: =Randomizer!CL62 -> 0 | CM64: =Randomizer!CM62 -> 0 | CN64: =Randomizer!CN62 -> 0
B65: Name | C65: =C60 -> Frank Hulton | D65: =D60 -> Mark Redsell | E65: Greg Dakin | F65: Thorsten Folker | G65: Joel West | H65: Klaus Brettner | I65: Markus Meissner | J65: Stefan Bernardy | K65: Søren Krogh | L65: Alvaro Silgado | M65: Pete Burgess | N65: Dieter Perlick | O65: Simon Thornton | P65: André Austen | Q65: Siegfried Schedel | R65: George Young | S65: John Phillips | T65: Stefan Bertschi | U65: Jason Bioletti | V65: Allen Elliott | W65: Thomas Deinert | X65: Mike Evans | Y65: Jon Edison | Z65: Thomas Henselmann | AA65: Sebastian Reichert | AB65: Robert Hermans | AC65: Eberhard Rosemann | AD65: Klaus Kowalski | AE65: Mike Shellim | AF65: Martin Newnham | AG65: Marc Schmieding | AH65: Mark Treble | AI65: Gary Harrison | AJ65: Peter Gunning | AK65: Tobias Reik | AL65: Mick Walsh | AM65: Paul Garnett | AN65: Daniel Schneider | AO65: Torsten Hermann | AP65: Peter Kowalski | AQ65: Martin Kopp | AR65: Plöschberger Hannes | AS65: Rick Ruijsink | AT65: Mark Abbotts | AU65: Arne Finkeldey | AV65: Martin Ulrich | AW65: Tony Robertson | AX65: Jesper Christensen | AY65: Ulrich Duttenhofer | AZ65: Robert Ryan | BA65: 0 | BB65: 0 | BC65: 0 | BD65: 0 | BE65: 0 | BF65: 0 | BG65: 0 | BH65: 0 | BI65: 0 | BJ65: 0 | BK65: 0 | BL65: 0 | BM65: 0 | BN65: 0 | BO65: 0 | BP65: =BP60 -> 0 | BQ65: 0 | BR65: 0 | BS65: 0 | BT65: 0 | BU65: 0 | BV65: 0 | BW65: 0 | BX65: 0 | BY65: 0 | BZ65: 0 | CA65: 0 | CB65: 0 | CC65: 0 | CD65: 0 | CE65: 0 | CF65: 0 | CG65: 0 | CH65: 0 | CI65: 0 | CJ65: 0 | CK65: 0 | CL65: 0 | CM65: 0 | CN65: 0 | CT65: =A64 -> 0
A66: 9 | B66: Round rank | C66: =RANK(C69,$C69:$CN69,0) -> 1 | D66: =RANK(D69,$C69:$CN69,0) -> 1 | E66: 1 | F66: 1 | G66: 1 | H66: 1 | I66: 1 | J66: 1 | K66: 1 | L66: 1 | M66: 1 | N66: 1 | O66: 1 | P66: 1 | Q66: 1 | R66: 1 | S66: 1 | T66: 1 | U66: 1 | V66: 1 | W66: 1 | X66: 1 | Y66: 1 | Z66: 1 | AA66: 1 | AB66: 1 | AC66: 1 | AD66: 1 | AE66: 1 | AF66: 1 | AG66: 1 | AH66: 1 | AI66: 1 | AJ66: 1 | AK66: 1 | AL66: 1 | AM66: 1 | AN66: 1 | AO66: 1 | AP66: 1 | AQ66: 1 | AR66: 1 | AS66: 1 | AT66: 1 | AU66: 1 | AV66: 1 | AW66: 1 | AX66: 1 | AY66: 1 | AZ66: 1 | BA66: 1 | BB66: 1 | BC66: 1 | BD66: 1 | BE66: 1 | BF66: 1 | BG66: 1 | BH66: 1 | BI66: 1 | BJ66: 1 | BK66: 1 | BL66: 1 | BM66: 1 | BN66: 1 | BO66: 1 | BP66: =RANK(BP69,$C69:$CN69,0) -> 1 | BQ66: 1 | BR66: 1 | BS66: 1 | BT66: 1 | BU66: 1 | BV66: 1 | BW66: 1 | BX66: 1 | BY66: 1 | BZ66: 1 | CA66: 1 | CB66: 1 | CC66: 1 | CD66: 1 | CE66: 1 | CF66: 1 | CG66: 1 | CH66: 1 | CI66: 1 | CJ66: 1 | CK66: 1 | CL66: 1 | CM66: 1 | CN66: 1
B67: Time | CP67: =IF(Randomizer!CP65=0,"",Randomizer!CP65) ->  | CQ67: =IF(CP67=0, "", Randomizer!CQ65) ->  | CT67: =A66 -> 9
B68: Penalties
B69: Score | C69: =Randomizer!C68 -> 0 | D69: =Randomizer!D68 -> 0 | E69: =Randomizer!E68 -> 0 | F69: =Randomizer!F68 -> 0 | G69: =Randomizer!G68 -> 0 | H69: =Randomizer!H68 -> 0 | I69: =Randomizer!I68 -> 0 | J69: =Randomizer!J68 -> 0 | K69: =Randomizer!K68 -> 0 | L69: =Randomizer!L68 -> 0 | M69: =Randomizer!M68 -> 0 | N69: =Randomizer!N68 -> 0 | O69: =Randomizer!O68 -> 0 | P69: =Randomizer!P68 -> 0 | Q69: =Randomizer!Q68 -> 0 | R69: =Randomizer!R68 -> 0 | S69: =Randomizer!S68 -> 0 | T69: =Randomizer!T68 -> 0 | U69: =Randomizer!U68 -> 0 | V69: =Randomizer!V68 -> 0 | W69: =Randomizer!W68 -> 0 | X69: =Randomizer!X68 -> 0 | Y69: =Randomizer!Y68 -> 0 | Z69: =Randomizer!Z68 -> 0 | AA69: =Randomizer!AA68 -> 0 | AB69: =Randomizer!AB68 -> 0 | AC69: =Randomizer!AC68 -> 0 | AD69: =Randomizer!AD68 -> 0 | AE69: =Randomizer!AE68 -> 0 | AF69: =Randomizer!AF68 -> 0 | AG69: =Randomizer!AG68 -> 0 | AH69: =Randomizer!AH68 -> 0 | AI69: =Randomizer!AI68 -> 0 | AJ69: =Randomizer!AJ68 -> 0 | AK69: =Randomizer!AK68 -> 0 | AL69: =Randomizer!AL68 -> 0 | AM69: =Randomizer!AM68 -> 0 | AN69: =Randomizer!AN68 -> 0 | AO69: =Randomizer!AO68 -> 0 | AP69: =Randomizer!AP68 -> 0 | AQ69: =Randomizer!AQ68 -> 0 | AR69: =Randomizer!AR68 -> 0 | AS69: =Randomizer!AS68 -> 0 | AT69: =Randomizer!AT68 -> 0 | AU69: =Randomizer!AU68 -> 0 | AV69: =Randomizer!AV68 -> 0 | AW69: =Randomizer!AW68 -> 0 | AX69: =Randomizer!AX68 -> 0 | AY69: =Randomizer!AY68 -> 0 | AZ69: =Randomizer!AZ68 -> 0 | BA69: =Randomizer!BA68 -> 0 | BB69: =Randomizer!BB68 -> 0 | BC69: =Randomizer!BC68 -> 0 | BD69: =Randomizer!BD68 -> 0 | BE69: =Randomizer!BE68 -> 0 | BF69: =Randomizer!BF68 -> 0 | BG69: =Randomizer!BG68 -> 0 | BH69: =Randomizer!BH68 -> 0 | BI69: =Randomizer!BI68 -> 0 | BJ69: =Randomizer!BJ68 -> 0 | BK69: =Randomizer!BK68 -> 0 | BL69: =Randomizer!BL68 -> 0 | BM69: =Randomizer!BM68 -> 0 | BN69: =Randomizer!BN68 -> 0 | BO69: =Randomizer!BO68 -> 0 | BP69: =Randomizer!BP68 -> 0 | BQ69: =Randomizer!BQ68 -> 0 | BR69: =Randomizer!BR68 -> 0 | BS69: =Randomizer!BS68 -> 0 | BT69: =Randomizer!BT68 -> 0 | BU69: =Randomizer!BU68 -> 0 | BV69: =Randomizer!BV68 -> 0 | BW69: =Randomizer!BW68 -> 0 | BX69: =Randomizer!BX68 -> 0 | BY69: =Randomizer!BY68 -> 0 | BZ69: =Randomizer!BZ68 -> 0 | CA69: =Randomizer!CA68 -> 0 | CB69: =Randomizer!CB68 -> 0 | CC69: =Randomizer!CC68 -> 0 | CD69: =Randomizer!CD68 -> 0 | CE69: =Randomizer!CE68 -> 0 | CF69: =Randomizer!CF68 -> 0 | CG69: =Randomizer!CG68 -> 0 | CH69: =Randomizer!CH68 -> 0 | CI69: =Randomizer!CI68 -> 0 | CJ69: =Randomizer!CJ68 -> 0 | CK69: =Randomizer!CK68 -> 0 | CL69: =Randomizer!CL68 -> 0 | CM69: =Randomizer!CM68 -> 0 | CN69: =Randomizer!CN68 -> 0
B70: Name | C70: =C65 -> Frank Hulton | D70: =D65 -> Mark Redsell | E70: Greg Dakin | F70: Thorsten Folker | G70: Joel West | H70: Klaus Brettner | I70: Markus Meissner | J70: Stefan Bernardy | K70: Søren Krogh | L70: Alvaro Silgado | M70: Pete Burgess | N70: Dieter Perlick | O70: Simon Thornton | P70: André Austen | Q70: Siegfried Schedel | R70: George Young | S70: John Phillips | T70: Stefan Bertschi | U70: Jason Bioletti | V70: Allen Elliott | W70: Thomas Deinert | X70: Mike Evans | Y70: Jon Edison | Z70: Thomas Henselmann | AA70: Sebastian Reichert | AB70: Robert Hermans | AC70: Eberhard Rosemann | AD70: Klaus Kowalski | AE70: Mike Shellim | AF70: Martin Newnham | AG70: Marc Schmieding | AH70: Mark Treble | AI70: Gary Harrison | AJ70: Peter Gunning | AK70: Tobias Reik | AL70: Mick Walsh | AM70: Paul Garnett | AN70: Daniel Schneider | AO70: Torsten Hermann | AP70: Peter Kowalski | AQ70: Martin Kopp | AR70: Plöschberger Hannes | AS70: Rick Ruijsink | AT70: Mark Abbotts | AU70: Arne Finkeldey | AV70: Martin Ulrich | AW70: Tony Robertson | AX70: Jesper Christensen | AY70: Ulrich Duttenhofer | AZ70: Robert Ryan | BA70: 0 | BB70: 0 | BC70: 0 | BD70: 0 | BE70: 0 | BF70: 0 | BG70: 0 | BH70: 0 | BI70: 0 | BJ70: 0 | BK70: 0 | BL70: 0 | BM70: 0 | BN70: 0 | BO70: 0 | BP70: =BP65 -> 0 | BQ70: 0 | BR70: 0 | BS70: 0 | BT70: 0 | BU70: 0 | BV70: 0 | BW70: 0 | BX70: 0 | BY70: 0 | BZ70: 0 | CA70: 0 | CB70: 0 | CC70: 0 | CD70: 0 | CE70: 0 | CF70: 0 | CG70: 0 | CH70: 0 | CI70: 0 | CJ70: 0 | CK70: 0 | CL70: 0 | CM70: 0 | CN70: 0 | CT70: =A69 -> 0
A71: 10 | B71: Round rank | C71: =RANK(C74,$C74:$CN74,0) -> 1 | D71: =RANK(D74,$C74:$CN74,0) -> 1 | E71: 1 | F71: 1 | G71: 1 | H71: 1 | I71: 1 | J71: 1 | K71: 1 | L71: 1 | M71: 1 | N71: 1 | O71: 1 | P71: 1 | Q71: 1 | R71: 1 | S71: 1 | T71: 1 | U71: 1 | V71: 1 | W71: 1 | X71: 1 | Y71: 1 | Z71: 1 | AA71: 1 | AB71: 1 | AC71: 1 | AD71: 1 | AE71: 1 | AF71: 1 | AG71: 1 | AH71: 1 | AI71: 1 | AJ71: 1 | AK71: 1 | AL71: 1 | AM71: 1 | AN71: 1 | AO71: 1 | AP71: 1 | AQ71: 1 | AR71: 1 | AS71: 1 | AT71: 1 | AU71: 1 | AV71: 1 | AW71: 1 | AX71: 1 | AY71: 1 | AZ71: 1 | BA71: 1 | BB71: 1 | BC71: 1 | BD71: 1 | BE71: 1 | BF71: 1 | BG71: 1 | BH71: 1 | BI71: 1 | BJ71: 1 | BK71: 1 | BL71: 1 | BM71: 1 | BN71: 1 | BO71: 1 | BP71: =RANK(BP74,$C74:$CN74,0) -> 1 | BQ71: 1 | BR71: 1 | BS71: 1 | BT71: 1 | BU71: 1 | BV71: 1 | BW71: 1 | BX71: 1 | BY71: 1 | BZ71: 1 | CA71: 1 | CB71: 1 | CC71: 1 | CD71: 1 | CE71: 1 | CF71: 1 | CG71: 1 | CH71: 1 | CI71: 1 | CJ71: 1 | CK71: 1 | CL71: 1 | CM71: 1 | CN71: 1
B72: Time | CP72: =IF(Randomizer!CP71=0,"",Randomizer!CP71) ->  | CQ72: =IF(CP72=0, "", Randomizer!CQ71) ->  | CT72: =A71 -> 10
B73: Penalties
B74: Score | C74: =Randomizer!C74 -> 0 | D74: =Randomizer!D74 -> 0 | E74: =Randomizer!E74 -> 0 | F74: =Randomizer!F74 -> 0 | G74: =Randomizer!G74 -> 0 | H74: =Randomizer!H74 -> 0 | I74: =Randomizer!I74 -> 0 | J74: =Randomizer!J74 -> 0 | K74: =Randomizer!K74 -> 0 | L74: =Randomizer!L74 -> 0 | M74: =Randomizer!M74 -> 0 | N74: =Randomizer!N74 -> 0 | O74: =Randomizer!O74 -> 0 | P74: =Randomizer!P74 -> 0 | Q74: =Randomizer!Q74 -> 0 | R74: =Randomizer!R74 -> 0 | S74: =Randomizer!S74 -> 0 | T74: =Randomizer!T74 -> 0 | U74: =Randomizer!U74 -> 0 | V74: =Randomizer!V74 -> 0 | W74: =Randomizer!W74 -> 0 | X74: =Randomizer!X74 -> 0 | Y74: =Randomizer!Y74 -> 0 | Z74: =Randomizer!Z74 -> 0 | AA74: =Randomizer!AA74 -> 0 | AB74: =Randomizer!AB74 -> 0 | AC74: =Randomizer!AC74 -> 0 | AD74: =Randomizer!AD74 -> 0 | AE74: =Randomizer!AE74 -> 0 | AF74: =Randomizer!AF74 -> 0 | AG74: =Randomizer!AG74 -> 0 | AH74: =Randomizer!AH74 -> 0 | AI74: =Randomizer!AI74 -> 0 | AJ74: =Randomizer!AJ74 -> 0 | AK74: =Randomizer!AK74 -> 0 | AL74: =Randomizer!AL74 -> 0 | AM74: =Randomizer!AM74 -> 0 | AN74: =Randomizer!AN74 -> 0 | AO74: =Randomizer!AO74 -> 0 | AP74: =Randomizer!AP74 -> 0 | AQ74: =Randomizer!AQ74 -> 0 | AR74: =Randomizer!AR74 -> 0 | AS74: =Randomizer!AS74 -> 0 | AT74: =Randomizer!AT74 -> 0 | AU74: =Randomizer!AU74 -> 0 | AV74: =Randomizer!AV74 -> 0 | AW74: =Randomizer!AW74 -> 0 | AX74: =Randomizer!AX74 -> 0 | AY74: =Randomizer!AY74 -> 0 | AZ74: =Randomizer!AZ74 -> 0 | BA74: =Randomizer!BA74 -> 0 | BB74: =Randomizer!BB74 -> 0 | BC74: =Randomizer!BC74 -> 0 | BD74: =Randomizer!BD74 -> 0 | BE74: =Randomizer!BE74 -> 0 | BF74: =Randomizer!BF74 -> 0 | BG74: =Randomizer!BG74 -> 0 | BH74: =Randomizer!BH74 -> 0 | BI74: =Randomizer!BI74 -> 0 | BJ74: =Randomizer!BJ74 -> 0 | BK74: =Randomizer!BK74 -> 0 | BL74: =Randomizer!BL74 -> 0 | BM74: =Randomizer!BM74 -> 0 | BN74: =Randomizer!BN74 -> 0 | BO74: =Randomizer!BO74 -> 0 | BP74: =Randomizer!BP74 -> 0 | BQ74: =Randomizer!BQ74 -> 0 | BR74: =Randomizer!BR74 -> 0 | BS74: =Randomizer!BS74 -> 0 | BT74: =Randomizer!BT74 -> 0 | BU74: =Randomizer!BU74 -> 0 | BV74: =Randomizer!BV74 -> 0 | BW74: =Randomizer!BW74 -> 0 | BX74: =Randomizer!BX74 -> 0 | BY74: =Randomizer!BY74 -> 0 | BZ74: =Randomizer!BZ74 -> 0 | CA74: =Randomizer!CA74 -> 0 | CB74: =Randomizer!CB74 -> 0 | CC74: =Randomizer!CC74 -> 0 | CD74: =Randomizer!CD74 -> 0 | CE74: =Randomizer!CE74 -> 0 | CF74: =Randomizer!CF74 -> 0 | CG74: =Randomizer!CG74 -> 0 | CH74: =Randomizer!CH74 -> 0 | CI74: =Randomizer!CI74 -> 0 | CJ74: =Randomizer!CJ74 -> 0 | CK74: =Randomizer!CK74 -> 0 | CL74: =Randomizer!CL74 -> 0 | CM74: =Randomizer!CM74 -> 0 | CN74: =Randomizer!CN74 -> 0
B75: Name | C75: =C70 -> Frank Hulton | D75: =D70 -> Mark Redsell | E75: Greg Dakin | F75: Thorsten Folker | G75: Joel West | H75: Klaus Brettner | I75: Markus Meissner | J75: Stefan Bernardy | K75: Søren Krogh | L75: Alvaro Silgado | M75: Pete Burgess | N75: Dieter Perlick | O75: Simon Thornton | P75: André Austen | Q75: Siegfried Schedel | R75: George Young | S75: John Phillips | T75: Stefan Bertschi | U75: Jason Bioletti | V75: Allen Elliott | W75: Thomas Deinert | X75: Mike Evans | Y75: Jon Edison | Z75: Thomas Henselmann | AA75: Sebastian Reichert | AB75: Robert Hermans | AC75: Eberhard Rosemann | AD75: Klaus Kowalski | AE75: Mike Shellim | AF75: Martin Newnham | AG75: Marc Schmieding | AH75: Mark Treble | AI75: Gary Harrison | AJ75: Peter Gunning | AK75: Tobias Reik | AL75: Mick Walsh | AM75: Paul Garnett | AN75: Daniel Schneider | AO75: Torsten Hermann | AP75: Peter Kowalski | AQ75: Martin Kopp | AR75: Plöschberger Hannes | AS75: Rick Ruijsink | AT75: Mark Abbotts | AU75: Arne Finkeldey | AV75: Martin Ulrich | AW75: Tony Robertson | AX75: Jesper Christensen | AY75: Ulrich Duttenhofer | AZ75: Robert Ryan | BA75: 0 | BB75: 0 | BC75: 0 | BD75: 0 | BE75: 0 | BF75: 0 | BG75: 0 | BH75: 0 | BI75: 0 | BJ75: 0 | BK75: 0 | BL75: 0 | BM75: 0 | BN75: 0 | BO75: 0 | BP75: =BP70 -> 0 | BQ75: 0 | BR75: 0 | BS75: 0 | BT75: 0 | BU75: 0 | BV75: 0 | BW75: 0 | BX75: 0 | BY75: 0 | BZ75: 0 | CA75: 0 | CB75: 0 | CC75: 0 | CD75: 0 | CE75: 0 | CF75: 0 | CG75: 0 | CH75: 0 | CI75: 0 | CJ75: 0 | CK75: 0 | CL75: 0 | CM75: 0 | CN75: 0 | CT75: =A74 -> 0
A76: 11 | B76: Round rank | C76: =RANK(C79,$C79:$CN79,0) -> 1 | D76: =RANK(D79,$C79:$CN79,0) -> 1 | E76: 1 | F76: 1 | G76: 1 | H76: 1 | I76: 1 | J76: 1 | K76: 1 | L76: 1 | M76: 1 | N76: 1 | O76: 1 | P76: 1 | Q76: 1 | R76: 1 | S76: 1 | T76: 1 | U76: 1 | V76: 1 | W76: 1 | X76: 1 | Y76: 1 | Z76: 1 | AA76: 1 | AB76: 1 | AC76: 1 | AD76: 1 | AE76: 1 | AF76: 1 | AG76: 1 | AH76: 1 | AI76: 1 | AJ76: 1 | AK76: 1 | AL76: 1 | AM76: 1 | AN76: 1 | AO76: 1 | AP76: 1 | AQ76: 1 | AR76: 1 | AS76: 1 | AT76: 1 | AU76: 1 | AV76: 1 | AW76: 1 | AX76: 1 | AY76: 1 | AZ76: 1 | BA76: 1 | BB76: 1 | BC76: 1 | BD76: 1 | BE76: 1 | BF76: 1 | BG76: 1 | BH76: 1 | BI76: 1 | BJ76: 1 | BK76: 1 | BL76: 1 | BM76: 1 | BN76: 1 | BO76: 1 | BP76: =RANK(BP79,$C79:$CN79,0) -> 1 | BQ76: 1 | BR76: 1 | BS76: 1 | BT76: 1 | BU76: 1 | BV76: 1 | BW76: 1 | BX76: 1 | BY76: 1 | BZ76: 1 | CA76: 1 | CB76: 1 | CC76: 1 | CD76: 1 | CE76: 1 | CF76: 1 | CG76: 1 | CH76: 1 | CI76: 1 | CJ76: 1 | CK76: 1 | CL76: 1 | CM76: 1 | CN76: 1
B77: Time | CP77: =IF(Randomizer!CP77=0,"",Randomizer!CP77) ->  | CQ77: =IF(CP77=0, "", Randomizer!CQ77) ->  | CT77: =A76 -> 11
B78: Penalties
B79: Score | C79: =Randomizer!C80 -> 0 | D79: =Randomizer!D80 -> 0 | E79: =Randomizer!E80 -> 0 | F79: =Randomizer!F80 -> 0 | G79: =Randomizer!G80 -> 0 | H79: =Randomizer!H80 -> 0 | I79: =Randomizer!I80 -> 0 | J79: =Randomizer!J80 -> 0 | K79: =Randomizer!K80 -> 0 | L79: =Randomizer!L80 -> 0 | M79: =Randomizer!M80 -> 0 | N79: =Randomizer!N80 -> 0 | O79: =Randomizer!O80 -> 0 | P79: =Randomizer!P80 -> 0 | Q79: =Randomizer!Q80 -> 0 | R79: =Randomizer!R80 -> 0 | S79: =Randomizer!S80 -> 0 | T79: =Randomizer!T80 -> 0 | U79: =Randomizer!U80 -> 0 | V79: =Randomizer!V80 -> 0 | W79: =Randomizer!W80 -> 0 | X79: =Randomizer!X80 -> 0 | Y79: =Randomizer!Y80 -> 0 | Z79: =Randomizer!Z80 -> 0 | AA79: =Randomizer!AA80 -> 0 | AB79: =Randomizer!AB80 -> 0 | AC79: =Randomizer!AC80 -> 0 | AD79: =Randomizer!AD80 -> 0 | AE79: =Randomizer!AE80 -> 0 | AF79: =Randomizer!AF80 -> 0 | AG79: =Randomizer!AG80 -> 0 | AH79: =Randomizer!AH80 -> 0 | AI79: =Randomizer!AI80 -> 0 | AJ79: =Randomizer!AJ80 -> 0 | AK79: =Randomizer!AK80 -> 0 | AL79: =Randomizer!AL80 -> 0 | AM79: =Randomizer!AM80 -> 0 | AN79: =Randomizer!AN80 -> 0 | AO79: =Randomizer!AO80 -> 0 | AP79: =Randomizer!AP80 -> 0 | AQ79: =Randomizer!AQ80 -> 0 | AR79: =Randomizer!AR80 -> 0 | AS79: =Randomizer!AS80 -> 0 | AT79: =Randomizer!AT80 -> 0 | AU79: =Randomizer!AU80 -> 0 | AV79: =Randomizer!AV80 -> 0 | AW79: =Randomizer!AW80 -> 0 | AX79: =Randomizer!AX80 -> 0 | AY79: =Randomizer!AY80 -> 0 | AZ79: =Randomizer!AZ80 -> 0 | BA79: =Randomizer!BA80 -> 0 | BB79: =Randomizer!BB80 -> 0 | BC79: =Randomizer!BC80 -> 0 | BD79: =Randomizer!BD80 -> 0 | BE79: =Randomizer!BE80 -> 0 | BF79: =Randomizer!BF80 -> 0 | BG79: =Randomizer!BG80 -> 0 | BH79: =Randomizer!BH80 -> 0 | BI79: =Randomizer!BI80 -> 0 | BJ79: =Randomizer!BJ80 -> 0 | BK79: =Randomizer!BK80 -> 0 | BL79: =Randomizer!BL80 -> 0 | BM79: =Randomizer!BM80 -> 0 | BN79: =Randomizer!BN80 -> 0 | BO79: =Randomizer!BO80 -> 0 | BP79: =Randomizer!BP80 -> 0 | BQ79: =Randomizer!BQ80 -> 0 | BR79: =Randomizer!BR80 -> 0 | BS79: =Randomizer!BS80 -> 0 | BT79: =Randomizer!BT80 -> 0 | BU79: =Randomizer!BU80 -> 0 | BV79: =Randomizer!BV80 -> 0 | BW79: =Randomizer!BW80 -> 0 | BX79: =Randomizer!BX80 -> 0 | BY79: =Randomizer!BY80 -> 0 | BZ79: =Randomizer!BZ80 -> 0 | CA79: =Randomizer!CA80 -> 0 | CB79: =Randomizer!CB80 -> 0 | CC79: =Randomizer!CC80 -> 0 | CD79: =Randomizer!CD80 -> 0 | CE79: =Randomizer!CE80 -> 0 | CF79: =Randomizer!CF80 -> 0 | CG79: =Randomizer!CG80 -> 0 | CH79: =Randomizer!CH80 -> 0 | CI79: =Randomizer!CI80 -> 0 | CJ79: =Randomizer!CJ80 -> 0 | CK79: =Randomizer!CK80 -> 0 | CL79: =Randomizer!CL80 -> 0 | CM79: =Randomizer!CM80 -> 0 | CN79: =Randomizer!CN80 -> 0
B80: Name | C80: =C75 -> Frank Hulton | D80: =D75 -> Mark Redsell | E80: Greg Dakin | F80: Thorsten Folker | G80: Joel West | H80: Klaus Brettner | I80: Markus Meissner | J80: Stefan Bernardy | K80: Søren Krogh | L80: Alvaro Silgado | M80: Pete Burgess | N80: Dieter Perlick | O80: Simon Thornton | P80: André Austen | Q80: Siegfried Schedel | R80: George Young | S80: John Phillips | T80: Stefan Bertschi | U80: Jason Bioletti | V80: Allen Elliott | W80: Thomas Deinert | X80: Mike Evans | Y80: Jon Edison | Z80: Thomas Henselmann | AA80: Sebastian Reichert | AB80: Robert Hermans | AC80: Eberhard Rosemann | AD80: Klaus Kowalski | AE80: Mike Shellim | AF80: Martin Newnham | AG80: Marc Schmieding | AH80: Mark Treble | AI80: Gary Harrison | AJ80: Peter Gunning | AK80: Tobias Reik | AL80: Mick Walsh | AM80: Paul Garnett | AN80: Daniel Schneider | AO80: Torsten Hermann | AP80: Peter Kowalski | AQ80: Martin Kopp | AR80: Plöschberger Hannes | AS80: Rick Ruijsink | AT80: Mark Abbotts | AU80: Arne Finkeldey | AV80: Martin Ulrich | AW80: Tony Robertson | AX80: Jesper Christensen | AY80: Ulrich Duttenhofer | AZ80: Robert Ryan | BA80: 0 | BB80: 0 | BC80: 0 | BD80: 0 | BE80: 0 | BF80: 0 | BG80: 0 | BH80: 0 | BI80: 0 | BJ80: 0 | BK80: 0 | BL80: 0 | BM80: 0 | BN80: 0 | BO80: 0 | BP80: =BP75 -> 0 | BQ80: 0 | BR80: 0 | BS80: 0 | BT80: 0 | BU80: 0 | BV80: 0 | BW80: 0 | BX80: 0 | BY80: 0 | BZ80: 0 | CA80: 0 | CB80: 0 | CC80: 0 | CD80: 0 | CE80: 0 | CF80: 0 | CG80: 0 | CH80: 0 | CI80: 0 | CJ80: 0 | CK80: 0 | CL80: 0 | CM80: 0 | CN80: 0 | CT80: =A79 -> 0
A81: 12 | B81: Round rank | C81: =RANK(C84,$C84:$CN84,0) -> 1 | D81: =RANK(D84,$C84:$CN84,0) -> 1 | E81: 1 | F81: 1 | G81: 1 | H81: 1 | I81: 1 | J81: 1 | K81: 1 | L81: 1 | M81: 1 | N81: 1 | O81: 1 | P81: 1 | Q81: 1 | R81: 1 | S81: 1 | T81: 1 | U81: 1 | V81: 1 | W81: 1 | X81: 1 | Y81: 1 | Z81: 1 | AA81: 1 | AB81: 1 | AC81: 1 | AD81: 1 | AE81: 1 | AF81: 1 | AG81: 1 | AH81: 1 | AI81: 1 | AJ81: 1 | AK81: 1 | AL81: 1 | AM81: 1 | AN81: 1 | AO81: 1 | AP81: 1 | AQ81: 1 | AR81: 1 | AS81: 1 | AT81: 1 | AU81: 1 | AV81: 1 | AW81: 1 | AX81: 1 | AY81: 1 | AZ81: 1 | BA81: 1 | BB81: 1 | BC81: 1 | BD81: 1 | BE81: 1 | BF81: 1 | BG81: 1 | BH81: 1 | BI81: 1 | BJ81: 1 | BK81: 1 | BL81: 1 | BM81: 1 | BN81: 1 | BO81: 1 | BP81: =RANK(BP84,$C84:$CN84,0) -> 1 | BQ81: 1 | BR81: 1 | BS81: 1 | BT81: 1 | BU81: 1 | BV81: 1 | BW81: 1 | BX81: 1 | BY81: 1 | BZ81: 1 | CA81: 1 | CB81: 1 | CC81: 1 | CD81: 1 | CE81: 1 | CF81: 1 | CG81: 1 | CH81: 1 | CI81: 1 | CJ81: 1 | CK81: 1 | CL81: 1 | CM81: 1 | CN81: 1
B82: Time | CP82: =IF(Randomizer!CP83=0,"",Randomizer!CP83) ->  | CQ82: =IF(CP82=0, "", Randomizer!CQ83) ->  | CT82: =A81 -> 12
B83: Penalties
B84: Score | C84: =Randomizer!C86 -> 0 | D84: =Randomizer!D86 -> 0 | E84: =Randomizer!E86 -> 0 | F84: =Randomizer!F86 -> 0 | G84: =Randomizer!G86 -> 0 | H84: =Randomizer!H86 -> 0 | I84: =Randomizer!I86 -> 0 | J84: =Randomizer!J86 -> 0 | K84: =Randomizer!K86 -> 0 | L84: =Randomizer!L86 -> 0 | M84: =Randomizer!M86 -> 0 | N84: =Randomizer!N86 -> 0 | O84: =Randomizer!O86 -> 0 | P84: =Randomizer!P86 -> 0 | Q84: =Randomizer!Q86 -> 0 | R84: =Randomizer!R86 -> 0 | S84: =Randomizer!S86 -> 0 | T84: =Randomizer!T86 -> 0 | U84: =Randomizer!U86 -> 0 | V84: =Randomizer!V86 -> 0 | W84: =Randomizer!W86 -> 0 | X84: =Randomizer!X86 -> 0 | Y84: =Randomizer!Y86 -> 0 | Z84: =Randomizer!Z86 -> 0 | AA84: =Randomizer!AA86 -> 0 | AB84: =Randomizer!AB86 -> 0 | AC84: =Randomizer!AC86 -> 0 | AD84: =Randomizer!AD86 -> 0 | AE84: =Randomizer!AE86 -> 0 | AF84: =Randomizer!AF86 -> 0 | AG84: =Randomizer!AG86 -> 0 | AH84: =Randomizer!AH86 -> 0 | AI84: =Randomizer!AI86 -> 0 | AJ84: =Randomizer!AJ86 -> 0 | AK84: =Randomizer!AK86 -> 0 | AL84: =Randomizer!AL86 -> 0 | AM84: =Randomizer!AM86 -> 0 | AN84: =Randomizer!AN86 -> 0 | AO84: =Randomizer!AO86 -> 0 | AP84: =Randomizer!AP86 -> 0 | AQ84: =Randomizer!AQ86 -> 0 | AR84: =Randomizer!AR86 -> 0 | AS84: =Randomizer!AS86 -> 0 | AT84: =Randomizer!AT86 -> 0 | AU84: =Randomizer!AU86 -> 0 | AV84: =Randomizer!AV86 -> 0 | AW84: =Randomizer!AW86 -> 0 | AX84: =Randomizer!AX86 -> 0 | AY84: =Randomizer!AY86 -> 0 | AZ84: =Randomizer!AZ86 -> 0 | BA84: =Randomizer!BA86 -> 0 | BB84: =Randomizer!BB86 -> 0 | BC84: =Randomizer!BC86 -> 0 | BD84: =Randomizer!BD86 -> 0 | BE84: =Randomizer!BE86 -> 0 | BF84: =Randomizer!BF86 -> 0 | BG84: =Randomizer!BG86 -> 0 | BH84: =Randomizer!BH86 -> 0 | BI84: =Randomizer!BI86 -> 0 | BJ84: =Randomizer!BJ86 -> 0 | BK84: =Randomizer!BK86 -> 0 | BL84: =Randomizer!BL86 -> 0 | BM84: =Randomizer!BM86 -> 0 | BN84: =Randomizer!BN86 -> 0 | BO84: =Randomizer!BO86 -> 0 | BP84: =Randomizer!BP86 -> 0 | BQ84: =Randomizer!BQ86 -> 0 | BR84: =Randomizer!BR86 -> 0 | BS84: =Randomizer!BS86 -> 0 | BT84: =Randomizer!BT86 -> 0 | BU84: =Randomizer!BU86 -> 0 | BV84: =Randomizer!BV86 -> 0 | BW84: =Randomizer!BW86 -> 0 | BX84: =Randomizer!BX86 -> 0 | BY84: =Randomizer!BY86 -> 0 | BZ84: =Randomizer!BZ86 -> 0 | CA84: =Randomizer!CA86 -> 0 | CB84: =Randomizer!CB86 -> 0 | CC84: =Randomizer!CC86 -> 0 | CD84: =Randomizer!CD86 -> 0 | CE84: =Randomizer!CE86 -> 0 | CF84: =Randomizer!CF86 -> 0 | CG84: =Randomizer!CG86 -> 0 | CH84: =Randomizer!CH86 -> 0 | CI84: =Randomizer!CI86 -> 0 | CJ84: =Randomizer!CJ86 -> 0 | CK84: =Randomizer!CK86 -> 0 | CL84: =Randomizer!CL86 -> 0 | CM84: =Randomizer!CM86 -> 0 | CN84: =Randomizer!CN86 -> 0
B85: Name | C85: =C80 -> Frank Hulton | D85: =D80 -> Mark Redsell | E85: Greg Dakin | F85: Thorsten Folker | G85: Joel West | H85: Klaus Brettner | I85: Markus Meissner | J85: Stefan Bernardy | K85: Søren Krogh | L85: Alvaro Silgado | M85: Pete Burgess | N85: Dieter Perlick | O85: Simon Thornton | P85: André Austen | Q85: Siegfried Schedel | R85: George Young | S85: John Phillips | T85: Stefan Bertschi | U85: Jason Bioletti | V85: Allen Elliott | W85: Thomas Deinert | X85: Mike Evans | Y85: Jon Edison | Z85: Thomas Henselmann | AA85: Sebastian Reichert | AB85: Robert Hermans | AC85: Eberhard Rosemann | AD85: Klaus Kowalski | AE85: Mike Shellim | AF85: Martin Newnham | AG85: Marc Schmieding | AH85: Mark Treble | AI85: Gary Harrison | AJ85: Peter Gunning | AK85: Tobias Reik | AL85: Mick Walsh | AM85: Paul Garnett | AN85: Daniel Schneider | AO85: Torsten Hermann | AP85: Peter Kowalski | AQ85: Martin Kopp | AR85: Plöschberger Hannes | AS85: Rick Ruijsink | AT85: Mark Abbotts | AU85: Arne Finkeldey | AV85: Martin Ulrich | AW85: Tony Robertson | AX85: Jesper Christensen | AY85: Ulrich Duttenhofer | AZ85: Robert Ryan | BA85: 0 | BB85: 0 | BC85: 0 | BD85: 0 | BE85: 0 | BF85: 0 | BG85: 0 | BH85: 0 | BI85: 0 | BJ85: 0 | BK85: 0 | BL85: 0 | BM85: 0 | BN85: 0 | BO85: 0 | BP85: =BP80 -> 0 | BQ85: 0 | BR85: 0 | BS85: 0 | BT85: 0 | BU85: 0 | BV85: 0 | BW85: 0 | BX85: 0 | BY85: 0 | BZ85: 0 | CA85: 0 | CB85: 0 | CC85: 0 | CD85: 0 | CE85: 0 | CF85: 0 | CG85: 0 | CH85: 0 | CI85: 0 | CJ85: 0 | CK85: 0 | CL85: 0 | CM85: 0 | CN85: 0 | CT85: =A84 -> 0
A86: 13 | B86: Round rank | C86: =RANK(C89,$C89:$CN89,0) -> 1 | D86: =RANK(D89,$C89:$CN89,0) -> 1 | E86: 1 | F86: 1 | G86: 1 | H86: 1 | I86: 1 | J86: 1 | K86: 1 | L86: 1 | M86: 1 | N86: 1 | O86: 1 | P86: 1 | Q86: 1 | R86: 1 | S86: 1 | T86: 1 | U86: 1 | V86: 1 | W86: 1 | X86: 1 | Y86: 1 | Z86: 1 | AA86: 1 | AB86: 1 | AC86: 1 | AD86: 1 | AE86: 1 | AF86: 1 | AG86: 1 | AH86: 1 | AI86: 1 | AJ86: 1 | AK86: 1 | AL86: 1 | AM86: 1 | AN86: 1 | AO86: 1 | AP86: 1 | AQ86: 1 | AR86: 1 | AS86: 1 | AT86: 1 | AU86: 1 | AV86: 1 | AW86: 1 | AX86: 1 | AY86: 1 | AZ86: 1 | BA86: 1 | BB86: 1 | BC86: 1 | BD86: 1 | BE86: 1 | BF86: 1 | BG86: 1 | BH86: 1 | BI86: 1 | BJ86: 1 | BK86: 1 | BL86: 1 | BM86: 1 | BN86: 1 | BO86: 1 | BP86: =RANK(BP89,$C89:$CN89,0) -> 1 | BQ86: 1 | BR86: 1 | BS86: 1 | BT86: 1 | BU86: 1 | BV86: 1 | BW86: 1 | BX86: 1 | BY86: 1 | BZ86: 1 | CA86: 1 | CB86: 1 | CC86: 1 | CD86: 1 | CE86: 1 | CF86: 1 | CG86: 1 | CH86: 1 | CI86: 1 | CJ86: 1 | CK86: 1 | CL86: 1 | CM86: 1 | CN86: 1
B87: Time | CP87: =IF(Randomizer!CP89=0,"",Randomizer!CP89) ->  | CQ87: =IF(CP87=0, "", Randomizer!CQ89) ->  | CT87: =A86 -> 13
B88: Penalties
B89: Score | C89: =Randomizer!C92 -> 0 | D89: =Randomizer!D92 -> 0 | E89: =Randomizer!E92 -> 0 | F89: =Randomizer!F92 -> 0 | G89: =Randomizer!G92 -> 0 | H89: =Randomizer!H92 -> 0 | I89: =Randomizer!I92 -> 0 | J89: =Randomizer!J92 -> 0 | K89: =Randomizer!K92 -> 0 | L89: =Randomizer!L92 -> 0 | M89: =Randomizer!M92 -> 0 | N89: =Randomizer!N92 -> 0 | O89: =Randomizer!O92 -> 0 | P89: =Randomizer!P92 -> 0 | Q89: =Randomizer!Q92 -> 0 | R89: =Randomizer!R92 -> 0 | S89: =Randomizer!S92 -> 0 | T89: =Randomizer!T92 -> 0 | U89: =Randomizer!U92 -> 0 | V89: =Randomizer!V92 -> 0 | W89: =Randomizer!W92 -> 0 | X89: =Randomizer!X92 -> 0 | Y89: =Randomizer!Y92 -> 0 | Z89: =Randomizer!Z92 -> 0 | AA89: =Randomizer!AA92 -> 0 | AB89: =Randomizer!AB92 -> 0 | AC89: =Randomizer!AC92 -> 0 | AD89: =Randomizer!AD92 -> 0 | AE89: =Randomizer!AE92 -> 0 | AF89: =Randomizer!AF92 -> 0 | AG89: =Randomizer!AG92 -> 0 | AH89: =Randomizer!AH92 -> 0 | AI89: =Randomizer!AI92 -> 0 | AJ89: =Randomizer!AJ92 -> 0 | AK89: =Randomizer!AK92 -> 0 | AL89: =Randomizer!AL92 -> 0 | AM89: =Randomizer!AM92 -> 0 | AN89: =Randomizer!AN92 -> 0 | AO89: =Randomizer!AO92 -> 0 | AP89: =Randomizer!AP92 -> 0 | AQ89: =Randomizer!AQ92 -> 0 | AR89: =Randomizer!AR92 -> 0 | AS89: =Randomizer!AS92 -> 0 | AT89: =Randomizer!AT92 -> 0 | AU89: =Randomizer!AU92 -> 0 | AV89: =Randomizer!AV92 -> 0 | AW89: =Randomizer!AW92 -> 0 | AX89: =Randomizer!AX92 -> 0 | AY89: =Randomizer!AY92 -> 0 | AZ89: =Randomizer!AZ92 -> 0 | BA89: =Randomizer!BA92 -> 0 | BB89: =Randomizer!BB92 -> 0 | BC89: =Randomizer!BC92 -> 0 | BD89: =Randomizer!BD92 -> 0 | BE89: =Randomizer!BE92 -> 0 | BF89: =Randomizer!BF92 -> 0 | BG89: =Randomizer!BG92 -> 0 | BH89: =Randomizer!BH92 -> 0 | BI89: =Randomizer!BI92 -> 0 | BJ89: =Randomizer!BJ92 -> 0 | BK89: =Randomizer!BK92 -> 0 | BL89: =Randomizer!BL92 -> 0 | BM89: =Randomizer!BM92 -> 0 | BN89: =Randomizer!BN92 -> 0 | BO89: =Randomizer!BO92 -> 0 | BP89: =Randomizer!BP92 -> 0 | BQ89: =Randomizer!BQ92 -> 0 | BR89: =Randomizer!BR92 -> 0 | BS89: =Randomizer!BS92 -> 0 | BT89: =Randomizer!BT92 -> 0 | BU89: =Randomizer!BU92 -> 0 | BV89: =Randomizer!BV92 -> 0 | BW89: =Randomizer!BW92 -> 0 | BX89: =Randomizer!BX92 -> 0 | BY89: =Randomizer!BY92 -> 0 | BZ89: =Randomizer!BZ92 -> 0 | CA89: =Randomizer!CA92 -> 0 | CB89: =Randomizer!CB92 -> 0 | CC89: =Randomizer!CC92 -> 0 | CD89: =Randomizer!CD92 -> 0 | CE89: =Randomizer!CE92 -> 0 | CF89: =Randomizer!CF92 -> 0 | CG89: =Randomizer!CG92 -> 0 | CH89: =Randomizer!CH92 -> 0 | CI89: =Randomizer!CI92 -> 0 | CJ89: =Randomizer!CJ92 -> 0 | CK89: =Randomizer!CK92 -> 0 | CL89: =Randomizer!CL92 -> 0 | CM89: =Randomizer!CM92 -> 0 | CN89: =Randomizer!CN92 -> 0
B90: Name | C90: =C85 -> Frank Hulton | D90: =D85 -> Mark Redsell | E90: Greg Dakin | F90: Thorsten Folker | G90: Joel West | H90: Klaus Brettner | I90: Markus Meissner | J90: Stefan Bernardy | K90: Søren Krogh | L90: Alvaro Silgado | M90: Pete Burgess | N90: Dieter Perlick | O90: Simon Thornton | P90: André Austen | Q90: Siegfried Schedel | R90: George Young | S90: John Phillips | T90: Stefan Bertschi | U90: Jason Bioletti | V90: Allen Elliott | W90: Thomas Deinert | X90: Mike Evans | Y90: Jon Edison | Z90: Thomas Henselmann | AA90: Sebastian Reichert | AB90: Robert Hermans | AC90: Eberhard Rosemann | AD90: Klaus Kowalski | AE90: Mike Shellim | AF90: Martin Newnham | AG90: Marc Schmieding | AH90: Mark Treble | AI90: Gary Harrison | AJ90: Peter Gunning | AK90: Tobias Reik | AL90: Mick Walsh | AM90: Paul Garnett | AN90: Daniel Schneider | AO90: Torsten Hermann | AP90: Peter Kowalski | AQ90: Martin Kopp | AR90: Plöschberger Hannes | AS90: Rick Ruijsink | AT90: Mark Abbotts | AU90: Arne Finkeldey | AV90: Martin Ulrich | AW90: Tony Robertson | AX90: Jesper Christensen | AY90: Ulrich Duttenhofer | AZ90: Robert Ryan | BA90: 0 | BB90: 0 | BC90: 0 | BD90: 0 | BE90: 0 | BF90: 0 | BG90: 0 | BH90: 0 | BI90: 0 | BJ90: 0 | BK90: 0 | BL90: 0 | BM90: 0 | BN90: 0 | BO90: 0 | BP90: =BP85 -> 0 | BQ90: 0 | BR90: 0 | BS90: 0 | BT90: 0 | BU90: 0 | BV90: 0 | BW90: 0 | BX90: 0 | BY90: 0 | BZ90: 0 | CA90: 0 | CB90: 0 | CC90: 0 | CD90: 0 | CE90: 0 | CF90: 0 | CG90: 0 | CH90: 0 | CI90: 0 | CJ90: 0 | CK90: 0 | CL90: 0 | CM90: 0 | CN90: 0 | CT90: =A89 -> 0
A91: 14 | B91: Round rank | C91: =RANK(C94,$C94:$CN94,0) -> 1 | D91: =RANK(D94,$C94:$CN94,0) -> 1 | E91: 1 | F91: 1 | G91: 1 | H91: 1 | I91: 1 | J91: 1 | K91: 1 | L91: 1 | M91: 1 | N91: 1 | O91: 1 | P91: 1 | Q91: 1 | R91: 1 | S91: 1 | T91: 1 | U91: 1 | V91: 1 | W91: 1 | X91: 1 | Y91: 1 | Z91: 1 | AA91: 1 | AB91: 1 | AC91: 1 | AD91: 1 | AE91: 1 | AF91: 1 | AG91: 1 | AH91: 1 | AI91: 1 | AJ91: 1 | AK91: 1 | AL91: 1 | AM91: 1 | AN91: 1 | AO91: 1 | AP91: 1 | AQ91: 1 | AR91: 1 | AS91: 1 | AT91: 1 | AU91: 1 | AV91: 1 | AW91: 1 | AX91: 1 | AY91: 1 | AZ91: 1 | BA91: 1 | BB91: 1 | BC91: 1 | BD91: 1 | BE91: 1 | BF91: 1 | BG91: 1 | BH91: 1 | BI91: 1 | BJ91: 1 | BK91: 1 | BL91: 1 | BM91: 1 | BN91: 1 | BO91: 1 | BP91: =RANK(BP94,$C94:$CN94,0) -> 1 | BQ91: 1 | BR91: 1 | BS91: 1 | BT91: 1 | BU91: 1 | BV91: 1 | BW91: 1 | BX91: 1 | BY91: 1 | BZ91: 1 | CA91: 1 | CB91: 1 | CC91: 1 | CD91: 1 | CE91: 1 | CF91: 1 | CG91: 1 | CH91: 1 | CI91: 1 | CJ91: 1 | CK91: 1 | CL91: 1 | CM91: 1 | CN91: 1
B92: Time | CP92: =IF(Randomizer!CP95=0,"",Randomizer!CP95) ->  | CQ92: =IF(CP92=0, "", Randomizer!CQ95) ->  | CT92: =A91 -> 14
B93: Penalties
B94: Score | C94: =Randomizer!C98 -> 0 | D94: =Randomizer!D98 -> 0 | E94: =Randomizer!E98 -> 0 | F94: =Randomizer!F98 -> 0 | G94: =Randomizer!G98 -> 0 | H94: =Randomizer!H98 -> 0 | I94: =Randomizer!I98 -> 0 | J94: =Randomizer!J98 -> 0 | K94: =Randomizer!K98 -> 0 | L94: =Randomizer!L98 -> 0 | M94: =Randomizer!M98 -> 0 | N94: =Randomizer!N98 -> 0 | O94: =Randomizer!O98 -> 0 | P94: =Randomizer!P98 -> 0 | Q94: =Randomizer!Q98 -> 0 | R94: =Randomizer!R98 -> 0 | S94: =Randomizer!S98 -> 0 | T94: =Randomizer!T98 -> 0 | U94: =Randomizer!U98 -> 0 | V94: =Randomizer!V98 -> 0 | W94: =Randomizer!W98 -> 0 | X94: =Randomizer!X98 -> 0 | Y94: =Randomizer!Y98 -> 0 | Z94: =Randomizer!Z98 -> 0 | AA94: =Randomizer!AA98 -> 0 | AB94: =Randomizer!AB98 -> 0 | AC94: =Randomizer!AC98 -> 0 | AD94: =Randomizer!AD98 -> 0 | AE94: =Randomizer!AE98 -> 0 | AF94: =Randomizer!AF98 -> 0 | AG94: =Randomizer!AG98 -> 0 | AH94: =Randomizer!AH98 -> 0 | AI94: =Randomizer!AI98 -> 0 | AJ94: =Randomizer!AJ98 -> 0 | AK94: =Randomizer!AK98 -> 0 | AL94: =Randomizer!AL98 -> 0 | AM94: =Randomizer!AM98 -> 0 | AN94: =Randomizer!AN98 -> 0 | AO94: =Randomizer!AO98 -> 0 | AP94: =Randomizer!AP98 -> 0 | AQ94: =Randomizer!AQ98 -> 0 | AR94: =Randomizer!AR98 -> 0 | AS94: =Randomizer!AS98 -> 0 | AT94: =Randomizer!AT98 -> 0 | AU94: =Randomizer!AU98 -> 0 | AV94: =Randomizer!AV98 -> 0 | AW94: =Randomizer!AW98 -> 0 | AX94: =Randomizer!AX98 -> 0 | AY94: =Randomizer!AY98 -> 0 | AZ94: =Randomizer!AZ98 -> 0 | BA94: =Randomizer!BA98 -> 0 | BB94: =Randomizer!BB98 -> 0 | BC94: =Randomizer!BC98 -> 0 | BD94: =Randomizer!BD98 -> 0 | BE94: =Randomizer!BE98 -> 0 | BF94: =Randomizer!BF98 -> 0 | BG94: =Randomizer!BG98 -> 0 | BH94: =Randomizer!BH98 -> 0 | BI94: =Randomizer!BI98 -> 0 | BJ94: =Randomizer!BJ98 -> 0 | BK94: =Randomizer!BK98 -> 0 | BL94: =Randomizer!BL98 -> 0 | BM94: =Randomizer!BM98 -> 0 | BN94: =Randomizer!BN98 -> 0 | BO94: =Randomizer!BO98 -> 0 | BP94: =Randomizer!BP98 -> 0 | BQ94: =Randomizer!BQ98 -> 0 | BR94: =Randomizer!BR98 -> 0 | BS94: =Randomizer!BS98 -> 0 | BT94: =Randomizer!BT98 -> 0 | BU94: =Randomizer!BU98 -> 0 | BV94: =Randomizer!BV98 -> 0 | BW94: =Randomizer!BW98 -> 0 | BX94: =Randomizer!BX98 -> 0 | BY94: =Randomizer!BY98 -> 0 | BZ94: =Randomizer!BZ98 -> 0 | CA94: =Randomizer!CA98 -> 0 | CB94: =Randomizer!CB98 -> 0 | CC94: =Randomizer!CC98 -> 0 | CD94: =Randomizer!CD98 -> 0 | CE94: =Randomizer!CE98 -> 0 | CF94: =Randomizer!CF98 -> 0 | CG94: =Randomizer!CG98 -> 0 | CH94: =Randomizer!CH98 -> 0 | CI94: =Randomizer!CI98 -> 0 | CJ94: =Randomizer!CJ98 -> 0 | CK94: =Randomizer!CK98 -> 0 | CL94: =Randomizer!CL98 -> 0 | CM94: =Randomizer!CM98 -> 0 | CN94: =Randomizer!CN98 -> 0
B95: Name | C95: =C90 -> Frank Hulton | D95: =D90 -> Mark Redsell | E95: Greg Dakin | F95: Thorsten Folker | G95: Joel West | H95: Klaus Brettner | I95: Markus Meissner | J95: Stefan Bernardy | K95: Søren Krogh | L95: Alvaro Silgado | M95: Pete Burgess | N95: Dieter Perlick | O95: Simon Thornton | P95: André Austen | Q95: Siegfried Schedel | R95: George Young | S95: John Phillips | T95: Stefan Bertschi | U95: Jason Bioletti | V95: Allen Elliott | W95: Thomas Deinert | X95: Mike Evans | Y95: Jon Edison | Z95: Thomas Henselmann | AA95: Sebastian Reichert | AB95: Robert Hermans | AC95: Eberhard Rosemann | AD95: Klaus Kowalski | AE95: Mike Shellim | AF95: Martin Newnham | AG95: Marc Schmieding | AH95: Mark Treble | AI95: Gary Harrison | AJ95: Peter Gunning | AK95: Tobias Reik | AL95: Mick Walsh | AM95: Paul Garnett | AN95: Daniel Schneider | AO95: Torsten Hermann | AP95: Peter Kowalski | AQ95: Martin Kopp | AR95: Plöschberger Hannes | AS95: Rick Ruijsink | AT95: Mark Abbotts | AU95: Arne Finkeldey | AV95: Martin Ulrich | AW95: Tony Robertson | AX95: Jesper Christensen | AY95: Ulrich Duttenhofer | AZ95: Robert Ryan | BA95: 0 | BB95: 0 | BC95: 0 | BD95: 0 | BE95: 0 | BF95: 0 | BG95: 0 | BH95: 0 | BI95: 0 | BJ95: 0 | BK95: 0 | BL95: 0 | BM95: 0 | BN95: 0 | BO95: 0 | BP95: =BP90 -> 0 | BQ95: 0 | BR95: 0 | BS95: 0 | BT95: 0 | BU95: 0 | BV95: 0 | BW95: 0 | BX95: 0 | BY95: 0 | BZ95: 0 | CA95: 0 | CB95: 0 | CC95: 0 | CD95: 0 | CE95: 0 | CF95: 0 | CG95: 0 | CH95: 0 | CI95: 0 | CJ95: 0 | CK95: 0 | CL95: 0 | CM95: 0 | CN95: 0 | CT95: =A94 -> 0
A96: 15 | B96: Round rank | C96: =RANK(C99,$C99:$CN99,0) -> 1 | D96: =RANK(D99,$C99:$CN99,0) -> 1 | E96: 1 | F96: 1 | G96: 1 | H96: 1 | I96: 1 | J96: 1 | K96: 1 | L96: 1 | M96: 1 | N96: 1 | O96: 1 | P96: 1 | Q96: 1 | R96: 1 | S96: 1 | T96: 1 | U96: 1 | V96: 1 | W96: 1 | X96: 1 | Y96: 1 | Z96: 1 | AA96: 1 | AB96: 1 | AC96: 1 | AD96: 1 | AE96: 1 | AF96: 1 | AG96: 1 | AH96: 1 | AI96: 1 | AJ96: 1 | AK96: 1 | AL96: 1 | AM96: 1 | AN96: 1 | AO96: 1 | AP96: 1 | AQ96: 1 | AR96: 1 | AS96: 1 | AT96: 1 | AU96: 1 | AV96: 1 | AW96: 1 | AX96: 1 | AY96: 1 | AZ96: 1 | BA96: 1 | BB96: 1 | BC96: 1 | BD96: 1 | BE96: 1 | BF96: 1 | BG96: 1 | BH96: 1 | BI96: 1 | BJ96: 1 | BK96: 1 | BL96: 1 | BM96: 1 | BN96: 1 | BO96: 1 | BP96: =RANK(BP99,$C99:$CN99,0) -> 1 | BQ96: 1 | BR96: 1 | BS96: 1 | BT96: 1 | BU96: 1 | BV96: 1 | BW96: 1 | BX96: 1 | BY96: 1 | BZ96: 1 | CA96: 1 | CB96: 1 | CC96: 1 | CD96: 1 | CE96: 1 | CF96: 1 | CG96: 1 | CH96: 1 | CI96: 1 | CJ96: 1 | CK96: 1 | CL96: 1 | CM96: 1 | CN96: 1
B97: Time | CP97: =IF(Randomizer!CP101=0,"",Randomizer!CP101) ->  | CQ97: =IF(CP97=0, "", Randomizer!CQ101) ->  | CT97: =A96 -> 15
B98: Penalties
B99: Score | C99: =Randomizer!C104 -> 0 | D99: =Randomizer!D104 -> 0 | E99: =Randomizer!E104 -> 0 | F99: =Randomizer!F104 -> 0 | G99: =Randomizer!G104 -> 0 | H99: =Randomizer!H104 -> 0 | I99: =Randomizer!I104 -> 0 | J99: =Randomizer!J104 -> 0 | K99: =Randomizer!K104 -> 0 | L99: =Randomizer!L104 -> 0 | M99: =Randomizer!M104 -> 0 | N99: =Randomizer!N104 -> 0 | O99: =Randomizer!O104 -> 0 | P99: =Randomizer!P104 -> 0 | Q99: =Randomizer!Q104 -> 0 | R99: =Randomizer!R104 -> 0 | S99: =Randomizer!S104 -> 0 | T99: =Randomizer!T104 -> 0 | U99: =Randomizer!U104 -> 0 | V99: =Randomizer!V104 -> 0 | W99: =Randomizer!W104 -> 0 | X99: =Randomizer!X104 -> 0 | Y99: =Randomizer!Y104 -> 0 | Z99: =Randomizer!Z104 -> 0 | AA99: =Randomizer!AA104 -> 0 | AB99: =Randomizer!AB104 -> 0 | AC99: =Randomizer!AC104 -> 0 | AD99: =Randomizer!AD104 -> 0 | AE99: =Randomizer!AE104 -> 0 | AF99: =Randomizer!AF104 -> 0 | AG99: =Randomizer!AG104 -> 0 | AH99: =Randomizer!AH104 -> 0 | AI99: =Randomizer!AI104 -> 0 | AJ99: =Randomizer!AJ104 -> 0 | AK99: =Randomizer!AK104 -> 0 | AL99: =Randomizer!AL104 -> 0 | AM99: =Randomizer!AM104 -> 0 | AN99: =Randomizer!AN104 -> 0 | AO99: =Randomizer!AO104 -> 0 | AP99: =Randomizer!AP104 -> 0 | AQ99: =Randomizer!AQ104 -> 0 | AR99: =Randomizer!AR104 -> 0 | AS99: =Randomizer!AS104 -> 0 | AT99: =Randomizer!AT104 -> 0 | AU99: =Randomizer!AU104 -> 0 | AV99: =Randomizer!AV104 -> 0 | AW99: =Randomizer!AW104 -> 0 | AX99: =Randomizer!AX104 -> 0 | AY99: =Randomizer!AY104 -> 0 | AZ99: =Randomizer!AZ104 -> 0 | BA99: =Randomizer!BA104 -> 0 | BB99: =Randomizer!BB104 -> 0 | BC99: =Randomizer!BC104 -> 0 | BD99: =Randomizer!BD104 -> 0 | BE99: =Randomizer!BE104 -> 0 | BF99: =Randomizer!BF104 -> 0 | BG99: =Randomizer!BG104 -> 0 | BH99: =Randomizer!BH104 -> 0 | BI99: =Randomizer!BI104 -> 0 | BJ99: =Randomizer!BJ104 -> 0 | BK99: =Randomizer!BK104 -> 0 | BL99: =Randomizer!BL104 -> 0 | BM99: =Randomizer!BM104 -> 0 | BN99: =Randomizer!BN104 -> 0 | BO99: =Randomizer!BO104 -> 0 | BP99: =Randomizer!BP104 -> 0 | BQ99: =Randomizer!BQ104 -> 0 | BR99: =Randomizer!BR104 -> 0 | BS99: =Randomizer!BS104 -> 0 | BT99: =Randomizer!BT104 -> 0 | BU99: =Randomizer!BU104 -> 0 | BV99: =Randomizer!BV104 -> 0 | BW99: =Randomizer!BW104 -> 0 | BX99: =Randomizer!BX104 -> 0 | BY99: =Randomizer!BY104 -> 0 | BZ99: =Randomizer!BZ104 -> 0 | CA99: =Randomizer!CA104 -> 0 | CB99: =Randomizer!CB104 -> 0 | CC99: =Randomizer!CC104 -> 0 | CD99: =Randomizer!CD104 -> 0 | CE99: =Randomizer!CE104 -> 0 | CF99: =Randomizer!CF104 -> 0 | CG99: =Randomizer!CG104 -> 0 | CH99: =Randomizer!CH104 -> 0 | CI99: =Randomizer!CI104 -> 0 | CJ99: =Randomizer!CJ104 -> 0 | CK99: =Randomizer!CK104 -> 0 | CL99: =Randomizer!CL104 -> 0 | CM99: =Randomizer!CM104 -> 0 | CN99: =Randomizer!CN104 -> 0
B100: Name | C100: =C95 -> Frank Hulton | D100: =D95 -> Mark Redsell | E100: Greg Dakin | F100: Thorsten Folker | G100: Joel West | H100: Klaus Brettner | I100: Markus Meissner | J100: Stefan Bernardy | K100: Søren Krogh | L100: Alvaro Silgado | M100: Pete Burgess | N100: Dieter Perlick | O100: Simon Thornton | P100: André Austen | Q100: Siegfried Schedel | R100: George Young | S100: John Phillips | T100: Stefan Bertschi | U100: Jason Bioletti | V100: Allen Elliott | W100: Thomas Deinert | X100: Mike Evans | Y100: Jon Edison | Z100: Thomas Henselmann | AA100: Sebastian Reichert | AB100: Robert Hermans | AC100: Eberhard Rosemann | AD100: Klaus Kowalski | AE100: Mike Shellim | AF100: Martin Newnham | AG100: Marc Schmieding | AH100: Mark Treble | AI100: Gary Harrison | AJ100: Peter Gunning | AK100: Tobias Reik | AL100: Mick Walsh | AM100: Paul Garnett | AN100: Daniel Schneider | AO100: Torsten Hermann | AP100: Peter Kowalski | AQ100: Martin Kopp | AR100: Plöschberger Hannes | AS100: Rick Ruijsink | AT100: Mark Abbotts | AU100: Arne Finkeldey | AV100: Martin Ulrich | AW100: Tony Robertson | AX100: Jesper Christensen | AY100: Ulrich Duttenhofer | AZ100: Robert Ryan | BA100: 0 | BB100: 0 | BC100: 0 | BD100: 0 | BE100: 0 | BF100: 0 | BG100: 0 | BH100: 0 | BI100: 0 | BJ100: 0 | BK100: 0 | BL100: 0 | BM100: 0 | BN100: 0 | BO100: 0 | BP100: =BP95 -> 0 | BQ100: 0 | BR100: 0 | BS100: 0 | BT100: 0 | BU100: 0 | BV100: 0 | BW100: 0 | BX100: 0 | BY100: 0 | BZ100: 0 | CA100: 0 | CB100: 0 | CC100: 0 | CD100: 0 | CE100: 0 | CF100: 0 | CG100: 0 | CH100: 0 | CI100: 0 | CJ100: 0 | CK100: 0 | CL100: 0 | CM100: 0 | CN100: 0 | CT100: =A99 -> 0
A101: 16 | B101: Round rank | C101: =RANK(C104,$C104:$CN104,0) -> 1 | D101: 1 | E101: 1 | F101: 1 | G101: 1 | H101: 1 | I101: 1 | J101: 1 | K101: 1 | L101: 1 | M101: 1 | N101: 1 | O101: 1 | P101: 1 | Q101: 1 | R101: 1 | S101: =RANK(S104,$C104:$CN104,0) -> 1 | T101: 1 | U101: 1 | V101: 1 | W101: 1 | X101: 1 | Y101: 1 | Z101: 1 | AA101: 1 | AB101: 1 | AC101: 1 | AD101: 1 | AE101: 1 | AF101: 1 | AG101: 1 | AH101: 1 | AI101: 1 | AJ101: 1 | AK101: 1 | AL101: 1 | AM101: 1 | AN101: 1 | AO101: 1 | AP101: 1 | AQ101: 1 | AR101: 1 | AS101: 1 | AT101: 1 | AU101: 1 | AV101: 1 | AW101: 1 | AX101: 1 | AY101: 1 | AZ101: 1 | BA101: 1 | BB101: 1 | BC101: 1 | BD101: 1 | BE101: 1 | BF101: 1 | BG101: 1 | BH101: 1 | BI101: 1 | BJ101: 1 | BK101: 1 | BL101: 1 | BM101: 1 | BN101: 1 | BO101: 1 | BP101: 1 | BQ101: 1 | BR101: 1 | BS101: 1 | BT101: 1 | BU101: 1 | BV101: 1 | BW101: 1 | BX101: 1 | BY101: 1 | BZ101: 1 | CA101: 1 | CB101: 1 | CC101: 1 | CD101: 1 | CE101: =RANK(CE104,$C104:$CN104,0) -> 1 | CF101: 1 | CG101: 1 | CH101: 1 | CI101: 1 | CJ101: 1 | CK101: 1 | CL101: 1 | CM101: 1 | CN101: 1
B102: Time | CP102: =IF(Randomizer!CP107=0,"",Randomizer!CP107) ->  | CQ102: =IF(CP102=0, "", Randomizer!CQ107) ->  | CT102: =A101 -> 16
B103: Penalties
B104: Score | C104: =Randomizer!C110 -> 0 | D104: =Randomizer!D110 -> 0 | E104: =Randomizer!E110 -> 0 | F104: =Randomizer!F110 -> 0 | G104: =Randomizer!G110 -> 0 | H104: =Randomizer!H110 -> 0 | I104: =Randomizer!I110 -> 0 | J104: =Randomizer!J110 -> 0 | K104: =Randomizer!K110 -> 0 | L104: =Randomizer!L110 -> 0 | M104: =Randomizer!M110 -> 0 | N104: =Randomizer!N110 -> 0 | O104: =Randomizer!O110 -> 0 | P104: =Randomizer!P110 -> 0 | Q104: =Randomizer!Q110 -> 0 | R104: =Randomizer!R110 -> 0 | S104: =Randomizer!S110 -> 0 | T104: =Randomizer!T110 -> 0 | U104: =Randomizer!U110 -> 0 | V104: =Randomizer!V110 -> 0 | W104: =Randomizer!W110 -> 0 | X104: =Randomizer!X110 -> 0 | Y104: =Randomizer!Y110 -> 0 | Z104: =Randomizer!Z110 -> 0 | AA104: =Randomizer!AA110 -> 0 | AB104: =Randomizer!AB110 -> 0 | AC104: =Randomizer!AC110 -> 0 | AD104: =Randomizer!AD110 -> 0 | AE104: =Randomizer!AE110 -> 0 | AF104: =Randomizer!AF110 -> 0 | AG104: =Randomizer!AG110 -> 0 | AH104: =Randomizer!AH110 -> 0 | AI104: =Randomizer!AI110 -> 0 | AJ104: =Randomizer!AJ110 -> 0 | AK104: =Randomizer!AK110 -> 0 | AL104: =Randomizer!AL110 -> 0 | AM104: =Randomizer!AM110 -> 0 | AN104: =Randomizer!AN110 -> 0 | AO104: =Randomizer!AO110 -> 0 | AP104: =Randomizer!AP110 -> 0 | AQ104: =Randomizer!AQ110 -> 0 | AR104: =Randomizer!AR110 -> 0 | AS104: =Randomizer!AS110 -> 0 | AT104: =Randomizer!AT110 -> 0 | AU104: =Randomizer!AU110 -> 0 | AV104: =Randomizer!AV110 -> 0 | AW104: =Randomizer!AW110 -> 0 | AX104: =Randomizer!AX110 -> 0 | AY104: =Randomizer!AY110 -> 0 | AZ104: =Randomizer!AZ110 -> 0 | BA104: =Randomizer!BA110 -> 0 | BB104: =Randomizer!BB110 -> 0 | BC104: =Randomizer!BC110 -> 0 | BD104: =Randomizer!BD110 -> 0 | BE104: =Randomizer!BE110 -> 0 | BF104: =Randomizer!BF110 -> 0 | BG104: =Randomizer!BG110 -> 0 | BH104: =Randomizer!BH110 -> 0 | BI104: =Randomizer!BI110 -> 0 | BJ104: =Randomizer!BJ110 -> 0 | BK104: =Randomizer!BK110 -> 0 | BL104: =Randomizer!BL110 -> 0 | BM104: =Randomizer!BM110 -> 0 | BN104: =Randomizer!BN110 -> 0 | BO104: =Randomizer!BO110 -> 0 | BP104: =Randomizer!BP110 -> 0 | BQ104: =Randomizer!BQ110 -> 0 | BR104: =Randomizer!BR110 -> 0 | BS104: =Randomizer!BS110 -> 0 | BT104: =Randomizer!BT110 -> 0 | BU104: =Randomizer!BU110 -> 0 | BV104: =Randomizer!BV110 -> 0 | BW104: =Randomizer!BW110 -> 0 | BX104: =Randomizer!BX110 -> 0 | BY104: =Randomizer!BY110 -> 0 | BZ104: =Randomizer!BZ110 -> 0 | CA104: =Randomizer!CA110 -> 0 | CB104: =Randomizer!CB110 -> 0 | CC104: =Randomizer!CC110 -> 0 | CD104: =Randomizer!CD110 -> 0 | CE104: =Randomizer!CE110 -> 0 | CF104: =Randomizer!CF110 -> 0 | CG104: =Randomizer!CG110 -> 0 | CH104: =Randomizer!CH110 -> 0 | CI104: =Randomizer!CI110 -> 0 | CJ104: =Randomizer!CJ110 -> 0 | CK104: =Randomizer!CK110 -> 0 | CL104: =Randomizer!CL110 -> 0 | CM104: =Randomizer!CM110 -> 0 | CN104: =Randomizer!CN110 -> 0
B105: Name | C105: =C100 -> Frank Hulton | D105: Mark Redsell | E105: Greg Dakin | F105: Thorsten Folker | G105: Joel West | H105: Klaus Brettner | I105: Markus Meissner | J105: Stefan Bernardy | K105: Søren Krogh | L105: Alvaro Silgado | M105: Pete Burgess | N105: Dieter Perlick | O105: Simon Thornton | P105: André Austen | Q105: Siegfried Schedel | R105: George Young | S105: =S100 -> John Phillips | T105: Stefan Bertschi | U105: Jason Bioletti | V105: Allen Elliott | W105: Thomas Deinert | X105: Mike Evans | Y105: Jon Edison | Z105: Thomas Henselmann | AA105: Sebastian Reichert | AB105: Robert Hermans | AC105: Eberhard Rosemann | AD105: Klaus Kowalski | AE105: Mike Shellim | AF105: Martin Newnham | AG105: Marc Schmieding | AH105: Mark Treble | AI105: Gary Harrison | AJ105: Peter Gunning | AK105: Tobias Reik | AL105: Mick Walsh | AM105: Paul Garnett | AN105: Daniel Schneider | AO105: Torsten Hermann | AP105: Peter Kowalski | AQ105: Martin Kopp | AR105: Plöschberger Hannes | AS105: Rick Ruijsink | AT105: Mark Abbotts | AU105: Arne Finkeldey | AV105: Martin Ulrich | AW105: Tony Robertson | AX105: Jesper Christensen | AY105: Ulrich Duttenhofer | AZ105: Robert Ryan | BA105: 0 | BB105: 0 | BC105: 0 | BD105: 0 | BE105: 0 | BF105: 0 | BG105: 0 | BH105: 0 | BI105: 0 | BJ105: 0 | BK105: 0 | BL105: 0 | BM105: 0 | BN105: 0 | BO105: 0 | BP105: 0 | BQ105: 0 | BR105: 0 | BS105: 0 | BT105: 0 | BU105: 0 | BV105: 0 | BW105: 0 | BX105: 0 | BY105: 0 | BZ105: 0 | CA105: 0 | CB105: 0 | CC105: 0 | CD105: 0 | CE105: =CE100 -> 0 | CF105: 0 | CG105: 0 | CH105: 0 | CI105: 0 | CJ105: 0 | CK105: 0 | CL105: 0 | CM105: 0 | CN105: 0 | CT105: =A104 -> 0
A106: 17 | B106: Round rank | C106: =RANK(C109,$C109:$CN109,0) -> 1 | D106: 1 | E106: 1 | F106: 1 | G106: 1 | H106: 1 | I106: 1 | J106: 1 | K106: 1 | L106: 1 | M106: 1 | N106: 1 | O106: 1 | P106: 1 | Q106: 1 | R106: 1 | S106: =RANK(S109,$C109:$CN109,0) -> 1 | T106: 1 | U106: 1 | V106: 1 | W106: 1 | X106: 1 | Y106: 1 | Z106: 1 | AA106: 1 | AB106: 1 | AC106: 1 | AD106: 1 | AE106: 1 | AF106: 1 | AG106: 1 | AH106: 1 | AI106: 1 | AJ106: 1 | AK106: 1 | AL106: 1 | AM106: 1 | AN106: 1 | AO106: 1 | AP106: 1 | AQ106: 1 | AR106: 1 | AS106: 1 | AT106: 1 | AU106: 1 | AV106: 1 | AW106: 1 | AX106: 1 | AY106: 1 | AZ106: 1 | BA106: 1 | BB106: 1 | BC106: 1 | BD106: 1 | BE106: 1 | BF106: 1 | BG106: 1 | BH106: 1 | BI106: 1 | BJ106: 1 | BK106: 1 | BL106: 1 | BM106: 1 | BN106: 1 | BO106: 1 | BP106: 1 | BQ106: 1 | BR106: 1 | BS106: 1 | BT106: 1 | BU106: 1 | BV106: 1 | BW106: 1 | BX106: 1 | BY106: 1 | BZ106: 1 | CA106: 1 | CB106: 1 | CC106: 1 | CD106: 1 | CE106: =RANK(CE109,$C109:$CN109,0) -> 1 | CF106: 1 | CG106: 1 | CH106: 1 | CI106: 1 | CJ106: 1 | CK106: 1 | CL106: 1 | CM106: 1 | CN106: 1
B107: Time | CP107: =IF(Randomizer!CP113=0,"",Randomizer!CP113) ->  | CQ107: =IF(CP107=0, "", Randomizer!CQ113) ->  | CT107: =A106 -> 17
B108: Penalties
B109: Score | C109: =Randomizer!C116 -> 0 | D109: =Randomizer!D116 -> 0 | E109: =Randomizer!E116 -> 0 | F109: =Randomizer!F116 -> 0 | G109: =Randomizer!G116 -> 0 | H109: =Randomizer!H116 -> 0 | I109: =Randomizer!I116 -> 0 | J109: =Randomizer!J116 -> 0 | K109: =Randomizer!K116 -> 0 | L109: =Randomizer!L116 -> 0 | M109: =Randomizer!M116 -> 0 | N109: =Randomizer!N116 -> 0 | O109: =Randomizer!O116 -> 0 | P109: =Randomizer!P116 -> 0 | Q109: =Randomizer!Q116 -> 0 | R109: =Randomizer!R116 -> 0 | S109: =Randomizer!S116 -> 0 | T109: =Randomizer!T116 -> 0 | U109: =Randomizer!U116 -> 0 | V109: =Randomizer!V116 -> 0 | W109: =Randomizer!W116 -> 0 | X109: =Randomizer!X116 -> 0 | Y109: =Randomizer!Y116 -> 0 | Z109: =Randomizer!Z116 -> 0 | AA109: =Randomizer!AA116 -> 0 | AB109: =Randomizer!AB116 -> 0 | AC109: =Randomizer!AC116 -> 0 | AD109: =Randomizer!AD116 -> 0 | AE109: =Randomizer!AE116 -> 0 | AF109: =Randomizer!AF116 -> 0 | AG109: =Randomizer!AG116 -> 0 | AH109: =Randomizer!AH116 -> 0 | AI109: =Randomizer!AI116 -> 0 | AJ109: =Randomizer!AJ116 -> 0 | AK109: =Randomizer!AK116 -> 0 | AL109: =Randomizer!AL116 -> 0 | AM109: =Randomizer!AM116 -> 0 | AN109: =Randomizer!AN116 -> 0 | AO109: =Randomizer!AO116 -> 0 | AP109: =Randomizer!AP116 -> 0 | AQ109: =Randomizer!AQ116 -> 0 | AR109: =Randomizer!AR116 -> 0 | AS109: =Randomizer!AS116 -> 0 | AT109: =Randomizer!AT116 -> 0 | AU109: =Randomizer!AU116 -> 0 | AV109: =Randomizer!AV116 -> 0 | AW109: =Randomizer!AW116 -> 0 | AX109: =Randomizer!AX116 -> 0 | AY109: =Randomizer!AY116 -> 0 | AZ109: =Randomizer!AZ116 -> 0 | BA109: =Randomizer!BA116 -> 0 | BB109: =Randomizer!BB116 -> 0 | BC109: =Randomizer!BC116 -> 0 | BD109: =Randomizer!BD116 -> 0 | BE109: =Randomizer!BE116 -> 0 | BF109: =Randomizer!BF116 -> 0 | BG109: =Randomizer!BG116 -> 0 | BH109: =Randomizer!BH116 -> 0 | BI109: =Randomizer!BI116 -> 0 | BJ109: =Randomizer!BJ116 -> 0 | BK109: =Randomizer!BK116 -> 0 | BL109: =Randomizer!BL116 -> 0 | BM109: =Randomizer!BM116 -> 0 | BN109: =Randomizer!BN116 -> 0 | BO109: =Randomizer!BO116 -> 0 | BP109: =Randomizer!BP116 -> 0 | BQ109: =Randomizer!BQ116 -> 0 | BR109: =Randomizer!BR116 -> 0 | BS109: =Randomizer!BS116 -> 0 | BT109: =Randomizer!BT116 -> 0 | BU109: =Randomizer!BU116 -> 0 | BV109: =Randomizer!BV116 -> 0 | BW109: =Randomizer!BW116 -> 0 | BX109: =Randomizer!BX116 -> 0 | BY109: =Randomizer!BY116 -> 0 | BZ109: =Randomizer!BZ116 -> 0 | CA109: =Randomizer!CA116 -> 0 | CB109: =Randomizer!CB116 -> 0 | CC109: =Randomizer!CC116 -> 0 | CD109: =Randomizer!CD116 -> 0 | CE109: =Randomizer!CE116 -> 0 | CF109: =Randomizer!CF116 -> 0 | CG109: =Randomizer!CG116 -> 0 | CH109: =Randomizer!CH116 -> 0 | CI109: =Randomizer!CI116 -> 0 | CJ109: =Randomizer!CJ116 -> 0 | CK109: =Randomizer!CK116 -> 0 | CL109: =Randomizer!CL116 -> 0 | CM109: =Randomizer!CM116 -> 0 | CN109: =Randomizer!CN116 -> 0
B110: Name | C110: =C105 -> Frank Hulton | D110: Mark Redsell | E110: Greg Dakin | F110: Thorsten Folker | G110: Joel West | H110: Klaus Brettner | I110: Markus Meissner | J110: Stefan Bernardy | K110: Søren Krogh | L110: Alvaro Silgado | M110: Pete Burgess | N110: Dieter Perlick | O110: Simon Thornton | P110: André Austen | Q110: Siegfried Schedel | R110: George Young | S110: =S105 -> John Phillips | T110: Stefan Bertschi | U110: Jason Bioletti | V110: Allen Elliott | W110: Thomas Deinert | X110: Mike Evans | Y110: Jon Edison | Z110: Thomas Henselmann | AA110: Sebastian Reichert | AB110: Robert Hermans | AC110: Eberhard Rosemann | AD110: Klaus Kowalski | AE110: Mike Shellim | AF110: Martin Newnham | AG110: Marc Schmieding | AH110: Mark Treble | AI110: Gary Harrison | AJ110: Peter Gunning | AK110: Tobias Reik | AL110: Mick Walsh | AM110: Paul Garnett | AN110: Daniel Schneider | AO110: Torsten Hermann | AP110: Peter Kowalski | AQ110: Martin Kopp | AR110: Plöschberger Hannes | AS110: Rick Ruijsink | AT110: Mark Abbotts | AU110: Arne Finkeldey | AV110: Martin Ulrich | AW110: Tony Robertson | AX110: Jesper Christensen | AY110: Ulrich Duttenhofer | AZ110: Robert Ryan | BA110: 0 | BB110: 0 | BC110: 0 | BD110: 0 | BE110: 0 | BF110: 0 | BG110: 0 | BH110: 0 | BI110: 0 | BJ110: 0 | BK110: 0 | BL110: 0 | BM110: 0 | BN110: 0 | BO110: 0 | BP110: 0 | BQ110: 0 | BR110: 0 | BS110: 0 | BT110: 0 | BU110: 0 | BV110: 0 | BW110: 0 | BX110: 0 | BY110: 0 | BZ110: 0 | CA110: 0 | CB110: 0 | CC110: 0 | CD110: 0 | CE110: =CE105 -> 0 | CF110: 0 | CG110: 0 | CH110: 0 | CI110: 0 | CJ110: 0 | CK110: 0 | CL110: 0 | CM110: 0 | CN110: 0 | CT110: =A109 -> 0
A111: 18 | B111: Round rank | C111: =RANK(C114,$C114:$CN114,0) -> 1 | D111: 1 | E111: 1 | F111: 1 | G111: 1 | H111: 1 | I111: 1 | J111: 1 | K111: 1 | L111: 1 | M111: 1 | N111: 1 | O111: 1 | P111: 1 | Q111: 1 | R111: 1 | S111: =RANK(S114,$C114:$CN114,0) -> 1 | T111: 1 | U111: 1 | V111: 1 | W111: 1 | X111: 1 | Y111: 1 | Z111: 1 | AA111: 1 | AB111: 1 | AC111: 1 | AD111: 1 | AE111: 1 | AF111: 1 | AG111: 1 | AH111: 1 | AI111: 1 | AJ111: 1 | AK111: 1 | AL111: 1 | AM111: 1 | AN111: 1 | AO111: 1 | AP111: 1 | AQ111: 1 | AR111: 1 | AS111: 1 | AT111: 1 | AU111: 1 | AV111: 1 | AW111: 1 | AX111: 1 | AY111: 1 | AZ111: 1 | BA111: 1 | BB111: 1 | BC111: 1 | BD111: 1 | BE111: 1 | BF111: 1 | BG111: 1 | BH111: 1 | BI111: 1 | BJ111: 1 | BK111: 1 | BL111: 1 | BM111: 1 | BN111: 1 | BO111: 1 | BP111: 1 | BQ111: 1 | BR111: 1 | BS111: 1 | BT111: 1 | BU111: 1 | BV111: 1 | BW111: 1 | BX111: 1 | BY111: 1 | BZ111: 1 | CA111: 1 | CB111: 1 | CC111: 1 | CD111: 1 | CE111: =RANK(CE114,$C114:$CN114,0) -> 1 | CF111: 1 | CG111: 1 | CH111: 1 | CI111: 1 | CJ111: 1 | CK111: 1 | CL111: 1 | CM111: 1 | CN111: 1
B112: Time | CP112: =IF(Randomizer!CP119=0,"",Randomizer!CP119) ->  | CQ112: =IF(CP112=0, "", Randomizer!CQ119) ->  | CT112: =A111 -> 18
B113: Penalties
B114: Score | C114: =Randomizer!C122 -> 0 | D114: =Randomizer!D122 -> 0 | E114: =Randomizer!E122 -> 0 | F114: =Randomizer!F122 -> 0 | G114: =Randomizer!G122 -> 0 | H114: =Randomizer!H122 -> 0 | I114: =Randomizer!I122 -> 0 | J114: =Randomizer!J122 -> 0 | K114: =Randomizer!K122 -> 0 | L114: =Randomizer!L122 -> 0 | M114: =Randomizer!M122 -> 0 | N114: =Randomizer!N122 -> 0 | O114: =Randomizer!O122 -> 0 | P114: =Randomizer!P122 -> 0 | Q114: =Randomizer!Q122 -> 0 | R114: =Randomizer!R122 -> 0 | S114: =Randomizer!S122 -> 0 | T114: =Randomizer!T122 -> 0 | U114: =Randomizer!U122 -> 0 | V114: =Randomizer!V122 -> 0 | W114: =Randomizer!W122 -> 0 | X114: =Randomizer!X122 -> 0 | Y114: =Randomizer!Y122 -> 0 | Z114: =Randomizer!Z122 -> 0 | AA114: =Randomizer!AA122 -> 0 | AB114: =Randomizer!AB122 -> 0 | AC114: =Randomizer!AC122 -> 0 | AD114: =Randomizer!AD122 -> 0 | AE114: =Randomizer!AE122 -> 0 | AF114: =Randomizer!AF122 -> 0 | AG114: =Randomizer!AG122 -> 0 | AH114: =Randomizer!AH122 -> 0 | AI114: =Randomizer!AI122 -> 0 | AJ114: =Randomizer!AJ122 -> 0 | AK114: =Randomizer!AK122 -> 0 | AL114: =Randomizer!AL122 -> 0 | AM114: =Randomizer!AM122 -> 0 | AN114: =Randomizer!AN122 -> 0 | AO114: =Randomizer!AO122 -> 0 | AP114: =Randomizer!AP122 -> 0 | AQ114: =Randomizer!AQ122 -> 0 | AR114: =Randomizer!AR122 -> 0 | AS114: =Randomizer!AS122 -> 0 | AT114: =Randomizer!AT122 -> 0 | AU114: =Randomizer!AU122 -> 0 | AV114: =Randomizer!AV122 -> 0 | AW114: =Randomizer!AW122 -> 0 | AX114: =Randomizer!AX122 -> 0 | AY114: =Randomizer!AY122 -> 0 | AZ114: =Randomizer!AZ122 -> 0 | BA114: =Randomizer!BA122 -> 0 | BB114: =Randomizer!BB122 -> 0 | BC114: =Randomizer!BC122 -> 0 | BD114: =Randomizer!BD122 -> 0 | BE114: =Randomizer!BE122 -> 0 | BF114: =Randomizer!BF122 -> 0 | BG114: =Randomizer!BG122 -> 0 | BH114: =Randomizer!BH122 -> 0 | BI114: =Randomizer!BI122 -> 0 | BJ114: =Randomizer!BJ122 -> 0 | BK114: =Randomizer!BK122 -> 0 | BL114: =Randomizer!BL122 -> 0 | BM114: =Randomizer!BM122 -> 0 | BN114: =Randomizer!BN122 -> 0 | BO114: =Randomizer!BO122 -> 0 | BP114: =Randomizer!BP122 -> 0 | BQ114: =Randomizer!BQ122 -> 0 | BR114: =Randomizer!BR122 -> 0 | BS114: =Randomizer!BS122 -> 0 | BT114: =Randomizer!BT122 -> 0 | BU114: =Randomizer!BU122 -> 0 | BV114: =Randomizer!BV122 -> 0 | BW114: =Randomizer!BW122 -> 0 | BX114: =Randomizer!BX122 -> 0 | BY114: =Randomizer!BY122 -> 0 | BZ114: =Randomizer!BZ122 -> 0 | CA114: =Randomizer!CA122 -> 0 | CB114: =Randomizer!CB122 -> 0 | CC114: =Randomizer!CC122 -> 0 | CD114: =Randomizer!CD122 -> 0 | CE114: =Randomizer!CE122 -> 0 | CF114: =Randomizer!CF122 -> 0 | CG114: =Randomizer!CG122 -> 0 | CH114: =Randomizer!CH122 -> 0 | CI114: =Randomizer!CI122 -> 0 | CJ114: =Randomizer!CJ122 -> 0 | CK114: =Randomizer!CK122 -> 0 | CL114: =Randomizer!CL122 -> 0 | CM114: =Randomizer!CM122 -> 0 | CN114: =Randomizer!CN122 -> 0
B115: Name | C115: =C110 -> Frank Hulton | D115: Mark Redsell | E115: Greg Dakin | F115: Thorsten Folker | G115: Joel West | H115: Klaus Brettner | I115: Markus Meissner | J115: Stefan Bernardy | K115: Søren Krogh | L115: Alvaro Silgado | M115: Pete Burgess | N115: Dieter Perlick | O115: Simon Thornton | P115: André Austen | Q115: Siegfried Schedel | R115: George Young | S115: John Phillips | T115: Stefan Bertschi | U115: Jason Bioletti | V115: Allen Elliott | W115: Thomas Deinert | X115: Mike Evans | Y115: Jon Edison | Z115: Thomas Henselmann | AA115: Sebastian Reichert | AB115: Robert Hermans | AC115: Eberhard Rosemann | AD115: Klaus Kowalski | AE115: Mike Shellim | AF115: Martin Newnham | AG115: Marc Schmieding | AH115: Mark Treble | AI115: Gary Harrison | AJ115: Peter Gunning | AK115: Tobias Reik | AL115: Mick Walsh | AM115: Paul Garnett | AN115: Daniel Schneider | AO115: Torsten Hermann | AP115: Peter Kowalski | AQ115: Martin Kopp | AR115: Plöschberger Hannes | AS115: Rick Ruijsink | AT115: Mark Abbotts | AU115: Arne Finkeldey | AV115: Martin Ulrich | AW115: Tony Robertson | AX115: Jesper Christensen | AY115: Ulrich Duttenhofer | AZ115: Robert Ryan | BA115: 0 | BB115: 0 | BC115: 0 | BD115: 0 | BE115: 0 | BF115: 0 | BG115: 0 | BH115: 0 | BI115: 0 | BJ115: 0 | BK115: 0 | BL115: 0 | BM115: 0 | BN115: 0 | BO115: =BO110 -> 0 | BP115: 0 | BQ115: 0 | BR115: 0 | BS115: 0 | BT115: 0 | BU115: 0 | BV115: 0 | BW115: 0 | BX115: 0 | BY115: 0 | BZ115: 0 | CA115: 0 | CB115: 0 | CC115: 0 | CD115: 0 | CE115: 0 | CF115: 0 | CG115: 0 | CH115: 0 | CI115: 0 | CJ115: 0 | CK115: 0 | CL115: 0 | CM115: 0 | CN115: 0 | CT115: =A114 -> 0
A116: 19 | B116: Round rank | C116: =RANK(C119,$C119:$CN119,0) -> 1 | D116: =RANK(D119,$C119:$CN119,0) -> 1 | E116: 1 | F116: 1 | G116: 1 | H116: 1 | I116: 1 | J116: 1 | K116: 1 | L116: 1 | M116: 1 | N116: 1 | O116: 1 | P116: 1 | Q116: 1 | R116: 1 | S116: 1 | T116: 1 | U116: 1 | V116: 1 | W116: 1 | X116: 1 | Y116: 1 | Z116: 1 | AA116: 1 | AB116: 1 | AC116: 1 | AD116: 1 | AE116: 1 | AF116: 1 | AG116: 1 | AH116: 1 | AI116: 1 | AJ116: 1 | AK116: 1 | AL116: 1 | AM116: 1 | AN116: 1 | AO116: 1 | AP116: 1 | AQ116: 1 | AR116: 1 | AS116: 1 | AT116: 1 | AU116: 1 | AV116: 1 | AW116: 1 | AX116: 1 | AY116: 1 | AZ116: 1 | BA116: 1 | BB116: 1 | BC116: 1 | BD116: 1 | BE116: 1 | BF116: 1 | BG116: 1 | BH116: 1 | BI116: 1 | BJ116: 1 | BK116: 1 | BL116: 1 | BM116: 1 | BN116: 1 | BO116: 1 | BP116: =RANK(BP119,$C119:$CN119,0) -> 1 | BQ116: 1 | BR116: 1 | BS116: 1 | BT116: 1 | BU116: 1 | BV116: 1 | BW116: 1 | BX116: 1 | BY116: 1 | BZ116: 1 | CA116: 1 | CB116: 1 | CC116: 1 | CD116: 1 | CE116: 1 | CF116: 1 | CG116: 1 | CH116: 1 | CI116: 1 | CJ116: 1 | CK116: 1 | CL116: 1 | CM116: 1 | CN116: 1
B117: Time | CP117: =IF(Randomizer!CP125=0,"",Randomizer!CP125) ->  | CQ117: =IF(CP117=0, "", Randomizer!CQ125) ->  | CT117: =A116 -> 19
B118: Penalties
B119: Score | C119: =Randomizer!C128 -> 0 | D119: =Randomizer!D128 -> 0 | E119: =Randomizer!E128 -> 0 | F119: =Randomizer!F128 -> 0 | G119: =Randomizer!G128 -> 0 | H119: =Randomizer!H128 -> 0 | I119: =Randomizer!I128 -> 0 | J119: =Randomizer!J128 -> 0 | K119: =Randomizer!K128 -> 0 | L119: =Randomizer!L128 -> 0 | M119: =Randomizer!M128 -> 0 | N119: =Randomizer!N128 -> 0 | O119: =Randomizer!O128 -> 0 | P119: =Randomizer!P128 -> 0 | Q119: =Randomizer!Q128 -> 0 | R119: =Randomizer!R128 -> 0 | S119: =Randomizer!S128 -> 0 | T119: =Randomizer!T128 -> 0 | U119: =Randomizer!U128 -> 0 | V119: =Randomizer!V128 -> 0 | W119: =Randomizer!W128 -> 0 | X119: =Randomizer!X128 -> 0 | Y119: =Randomizer!Y128 -> 0 | Z119: =Randomizer!Z128 -> 0 | AA119: =Randomizer!AA128 -> 0 | AB119: =Randomizer!AB128 -> 0 | AC119: =Randomizer!AC128 -> 0 | AD119: =Randomizer!AD128 -> 0 | AE119: =Randomizer!AE128 -> 0 | AF119: =Randomizer!AF128 -> 0 | AG119: =Randomizer!AG128 -> 0 | AH119: =Randomizer!AH128 -> 0 | AI119: =Randomizer!AI128 -> 0 | AJ119: =Randomizer!AJ128 -> 0 | AK119: =Randomizer!AK128 -> 0 | AL119: =Randomizer!AL128 -> 0 | AM119: =Randomizer!AM128 -> 0 | AN119: =Randomizer!AN128 -> 0 | AO119: =Randomizer!AO128 -> 0 | AP119: =Randomizer!AP128 -> 0 | AQ119: =Randomizer!AQ128 -> 0 | AR119: =Randomizer!AR128 -> 0 | AS119: =Randomizer!AS128 -> 0 | AT119: =Randomizer!AT128 -> 0 | AU119: =Randomizer!AU128 -> 0 | AV119: =Randomizer!AV128 -> 0 | AW119: =Randomizer!AW128 -> 0 | AX119: =Randomizer!AX128 -> 0 | AY119: =Randomizer!AY128 -> 0 | AZ119: =Randomizer!AZ128 -> 0 | BA119: =Randomizer!BA128 -> 0 | BB119: =Randomizer!BB128 -> 0 | BC119: =Randomizer!BC128 -> 0 | BD119: =Randomizer!BD128 -> 0 | BE119: =Randomizer!BE128 -> 0 | BF119: =Randomizer!BF128 -> 0 | BG119: =Randomizer!BG128 -> 0 | BH119: =Randomizer!BH128 -> 0 | BI119: =Randomizer!BI128 -> 0 | BJ119: =Randomizer!BJ128 -> 0 | BK119: =Randomizer!BK128 -> 0 | BL119: =Randomizer!BL128 -> 0 | BM119: =Randomizer!BM128 -> 0 | BN119: =Randomizer!BN128 -> 0 | BO119: =Randomizer!BO128 -> 0 | BP119: =Randomizer!BP128 -> 0 | BQ119: =Randomizer!BQ128 -> 0 | BR119: =Randomizer!BR128 -> 0 | BS119: =Randomizer!BS128 -> 0 | BT119: =Randomizer!BT128 -> 0 | BU119: =Randomizer!BU128 -> 0 | BV119: =Randomizer!BV128 -> 0 | BW119: =Randomizer!BW128 -> 0 | BX119: =Randomizer!BX128 -> 0 | BY119: =Randomizer!BY128 -> 0 | BZ119: =Randomizer!BZ128 -> 0 | CA119: =Randomizer!CA128 -> 0 | CB119: =Randomizer!CB128 -> 0 | CC119: =Randomizer!CC128 -> 0 | CD119: =Randomizer!CD128 -> 0 | CE119: =Randomizer!CE128 -> 0 | CF119: =Randomizer!CF128 -> 0 | CG119: =Randomizer!CG128 -> 0 | CH119: =Randomizer!CH128 -> 0 | CI119: =Randomizer!CI128 -> 0 | CJ119: =Randomizer!CJ128 -> 0 | CK119: =Randomizer!CK128 -> 0 | CL119: =Randomizer!CL128 -> 0 | CM119: =Randomizer!CM128 -> 0 | CN119: =Randomizer!CN128 -> 0
B120: Name | C120: =C115 -> Frank Hulton | D120: Mark Redsell | E120: Greg Dakin | F120: Thorsten Folker | G120: Joel West | H120: Klaus Brettner | I120: Markus Meissner | J120: Stefan Bernardy | K120: Søren Krogh | L120: Alvaro Silgado | M120: Pete Burgess | N120: Dieter Perlick | O120: Simon Thornton | P120: André Austen | Q120: Siegfried Schedel | R120: George Young | S120: =S115 -> John Phillips | T120: Stefan Bertschi | U120: Jason Bioletti | V120: Allen Elliott | W120: Thomas Deinert | X120: Mike Evans | Y120: Jon Edison | Z120: Thomas Henselmann | AA120: Sebastian Reichert | AB120: Robert Hermans | AC120: Eberhard Rosemann | AD120: Klaus Kowalski | AE120: Mike Shellim | AF120: Martin Newnham | AG120: Marc Schmieding | AH120: Mark Treble | AI120: Gary Harrison | AJ120: Peter Gunning | AK120: Tobias Reik | AL120: Mick Walsh | AM120: Paul Garnett | AN120: Daniel Schneider | AO120: Torsten Hermann | AP120: Peter Kowalski | AQ120: Martin Kopp | AR120: Plöschberger Hannes | AS120: Rick Ruijsink | AT120: Mark Abbotts | AU120: Arne Finkeldey | AV120: Martin Ulrich | AW120: Tony Robertson | AX120: Jesper Christensen | AY120: Ulrich Duttenhofer | AZ120: Robert Ryan | BA120: 0 | BB120: 0 | BC120: 0 | BD120: 0 | BE120: 0 | BF120: 0 | BG120: 0 | BH120: 0 | BI120: 0 | BJ120: 0 | BK120: 0 | BL120: 0 | BM120: 0 | BN120: 0 | BO120: 0 | BP120: 0 | BQ120: 0 | BR120: 0 | BS120: 0 | BT120: 0 | BU120: 0 | BV120: 0 | BW120: 0 | BX120: 0 | BY120: 0 | BZ120: 0 | CA120: 0 | CB120: 0 | CC120: 0 | CD120: 0 | CE120: =CE115 -> 0 | CF120: 0 | CG120: 0 | CH120: 0 | CI120: 0 | CJ120: 0 | CK120: 0 | CL120: 0 | CM120: 0 | CN120: 0 | CT120: =A119 -> 0
A121: 20 | B121: Round rank | C121: =RANK(C124,$C124:$CN124,0) -> 1 | D121: =RANK(D124,$C124:$CN124,0) -> 1 | E121: 1 | F121: 1 | G121: 1 | H121: 1 | I121: 1 | J121: 1 | K121: 1 | L121: 1 | M121: 1 | N121: 1 | O121: 1 | P121: 1 | Q121: 1 | R121: 1 | S121: 1 | T121: 1 | U121: 1 | V121: 1 | W121: 1 | X121: 1 | Y121: 1 | Z121: 1 | AA121: 1 | AB121: 1 | AC121: 1 | AD121: 1 | AE121: 1 | AF121: 1 | AG121: 1 | AH121: 1 | AI121: 1 | AJ121: 1 | AK121: 1 | AL121: 1 | AM121: 1 | AN121: 1 | AO121: 1 | AP121: 1 | AQ121: 1 | AR121: 1 | AS121: 1 | AT121: 1 | AU121: 1 | AV121: 1 | AW121: 1 | AX121: 1 | AY121: 1 | AZ121: 1 | BA121: 1 | BB121: 1 | BC121: 1 | BD121: 1 | BE121: 1 | BF121: 1 | BG121: 1 | BH121: 1 | BI121: 1 | BJ121: 1 | BK121: 1 | BL121: 1 | BM121: 1 | BN121: 1 | BO121: 1 | BP121: =RANK(BP124,$C124:$CN124,0) -> 1 | BQ121: 1 | BR121: 1 | BS121: 1 | BT121: 1 | BU121: 1 | BV121: 1 | BW121: 1 | BX121: 1 | BY121: 1 | BZ121: 1 | CA121: 1 | CB121: 1 | CC121: 1 | CD121: 1 | CE121: 1 | CF121: 1 | CG121: 1 | CH121: 1 | CI121: 1 | CJ121: 1 | CK121: 1 | CL121: 1 | CM121: 1 | CN121: 1
B122: Time | CP122: =IF(Randomizer!CP131=0,"",Randomizer!CP131) ->  | CQ122: =IF(CP122=0, "", Randomizer!CQ131) ->  | CT122: =A121 -> 20
B123: Penalties
B124: Score | C124: =Randomizer!C134 -> 0 | D124: =Randomizer!D134 -> 0 | E124: =Randomizer!E134 -> 0 | F124: =Randomizer!F134 -> 0 | G124: =Randomizer!G134 -> 0 | H124: =Randomizer!H134 -> 0 | I124: =Randomizer!I134 -> 0 | J124: =Randomizer!J134 -> 0 | K124: =Randomizer!K134 -> 0 | L124: =Randomizer!L134 -> 0 | M124: =Randomizer!M134 -> 0 | N124: =Randomizer!N134 -> 0 | O124: =Randomizer!O134 -> 0 | P124: =Randomizer!P134 -> 0 | Q124: =Randomizer!Q134 -> 0 | R124: =Randomizer!R134 -> 0 | S124: =Randomizer!S134 -> 0 | T124: =Randomizer!T134 -> 0 | U124: =Randomizer!U134 -> 0 | V124: =Randomizer!V134 -> 0 | W124: =Randomizer!W134 -> 0 | X124: =Randomizer!X134 -> 0 | Y124: =Randomizer!Y134 -> 0 | Z124: =Randomizer!Z134 -> 0 | AA124: =Randomizer!AA134 -> 0 | AB124: =Randomizer!AB134 -> 0 | AC124: =Randomizer!AC134 -> 0 | AD124: =Randomizer!AD134 -> 0 | AE124: =Randomizer!AE134 -> 0 | AF124: =Randomizer!AF134 -> 0 | AG124: =Randomizer!AG134 -> 0 | AH124: =Randomizer!AH134 -> 0 | AI124: =Randomizer!AI134 -> 0 | AJ124: =Randomizer!AJ134 -> 0 | AK124: =Randomizer!AK134 -> 0 | AL124: =Randomizer!AL134 -> 0 | AM124: =Randomizer!AM134 -> 0 | AN124: =Randomizer!AN134 -> 0 | AO124: =Randomizer!AO134 -> 0 | AP124: =Randomizer!AP134 -> 0 | AQ124: =Randomizer!AQ134 -> 0 | AR124: =Randomizer!AR134 -> 0 | AS124: =Randomizer!AS134 -> 0 | AT124: =Randomizer!AT134 -> 0 | AU124: =Randomizer!AU134 -> 0 | AV124: =Randomizer!AV134 -> 0 | AW124: =Randomizer!AW134 -> 0 | AX124: =Randomizer!AX134 -> 0 | AY124: =Randomizer!AY134 -> 0 | AZ124: =Randomizer!AZ134 -> 0 | BA124: =Randomizer!BA134 -> 0 | BB124: =Randomizer!BB134 -> 0 | BC124: =Randomizer!BC134 -> 0 | BD124: =Randomizer!BD134 -> 0 | BE124: =Randomizer!BE134 -> 0 | BF124: =Randomizer!BF134 -> 0 | BG124: =Randomizer!BG134 -> 0 | BH124: =Randomizer!BH134 -> 0 | BI124: =Randomizer!BI134 -> 0 | BJ124: =Randomizer!BJ134 -> 0 | BK124: =Randomizer!BK134 -> 0 | BL124: =Randomizer!BL134 -> 0 | BM124: =Randomizer!BM134 -> 0 | BN124: =Randomizer!BN134 -> 0 | BO124: =Randomizer!BO134 -> 0 | BP124: =Randomizer!BP134 -> 0 | BQ124: =Randomizer!BQ134 -> 0 | BR124: =Randomizer!BR134 -> 0 | BS124: =Randomizer!BS134 -> 0 | BT124: =Randomizer!BT134 -> 0 | BU124: =Randomizer!BU134 -> 0 | BV124: =Randomizer!BV134 -> 0 | BW124: =Randomizer!BW134 -> 0 | BX124: =Randomizer!BX134 -> 0 | BY124: =Randomizer!BY134 -> 0 | BZ124: =Randomizer!BZ134 -> 0 | CA124: =Randomizer!CA134 -> 0 | CB124: =Randomizer!CB134 -> 0 | CC124: =Randomizer!CC134 -> 0 | CD124: =Randomizer!CD134 -> 0 | CE124: =Randomizer!CE134 -> 0 | CF124: =Randomizer!CF134 -> 0 | CG124: =Randomizer!CG134 -> 0 | CH124: =Randomizer!CH134 -> 0 | CI124: =Randomizer!CI134 -> 0 | CJ124: =Randomizer!CJ134 -> 0 | CK124: =Randomizer!CK134 -> 0 | CL124: =Randomizer!CL134 -> 0 | CM124: =Randomizer!CM134 -> 0 | CN124: =Randomizer!CN134 -> 0
B125: Name | C125: =C120 -> Frank Hulton | D125: =D120 -> Mark Redsell | E125: Greg Dakin | F125: Thorsten Folker | G125: Joel West | H125: Klaus Brettner | I125: Markus Meissner | J125: Stefan Bernardy | K125: Søren Krogh | L125: Alvaro Silgado | M125: Pete Burgess | N125: Dieter Perlick | O125: Simon Thornton | P125: André Austen | Q125: Siegfried Schedel | R125: George Young | S125: John Phillips | T125: Stefan Bertschi | U125: Jason Bioletti | V125: Allen Elliott | W125: Thomas Deinert | X125: Mike Evans | Y125: Jon Edison | Z125: Thomas Henselmann | AA125: Sebastian Reichert | AB125: Robert Hermans | AC125: Eberhard Rosemann | AD125: Klaus Kowalski | AE125: Mike Shellim | AF125: Martin Newnham | AG125: Marc Schmieding | AH125: Mark Treble | AI125: Gary Harrison | AJ125: Peter Gunning | AK125: Tobias Reik | AL125: Mick Walsh | AM125: Paul Garnett | AN125: Daniel Schneider | AO125: Torsten Hermann | AP125: Peter Kowalski | AQ125: Martin Kopp | AR125: Plöschberger Hannes | AS125: Rick Ruijsink | AT125: Mark Abbotts | AU125: Arne Finkeldey | AV125: Martin Ulrich | AW125: Tony Robertson | AX125: Jesper Christensen | AY125: Ulrich Duttenhofer | AZ125: Robert Ryan | BA125: 0 | BB125: 0 | BC125: 0 | BD125: 0 | BE125: 0 | BF125: 0 | BG125: 0 | BH125: 0 | BI125: 0 | BJ125: 0 | BK125: 0 | BL125: 0 | BM125: 0 | BN125: 0 | BO125: 0 | BP125: =BP120 -> 0 | BQ125: 0 | BR125: 0 | BS125: 0 | BT125: 0 | BU125: 0 | BV125: 0 | BW125: 0 | BX125: 0 | BY125: 0 | BZ125: 0 | CA125: 0 | CB125: 0 | CC125: 0 | CD125: 0 | CE125: 0 | CF125: 0 | CG125: 0 | CH125: 0 | CI125: 0 | CJ125: 0 | CK125: 0 | CL125: 0 | CM125: 0 | CN125: 0 | CT125: =A124 -> 0
A126: 21 | B126: Round rank | C126: =RANK(C129,$C129:$CN129,0) -> 1 | D126: =RANK(D129,$C129:$CN129,0) -> 1 | E126: 1 | F126: 1 | G126: 1 | H126: 1 | I126: 1 | J126: 1 | K126: 1 | L126: 1 | M126: 1 | N126: 1 | O126: 1 | P126: 1 | Q126: 1 | R126: 1 | S126: 1 | T126: 1 | U126: 1 | V126: 1 | W126: 1 | X126: 1 | Y126: 1 | Z126: 1 | AA126: 1 | AB126: 1 | AC126: 1 | AD126: 1 | AE126: 1 | AF126: 1 | AG126: 1 | AH126: 1 | AI126: 1 | AJ126: 1 | AK126: 1 | AL126: 1 | AM126: 1 | AN126: 1 | AO126: 1 | AP126: 1 | AQ126: 1 | AR126: 1 | AS126: 1 | AT126: 1 | AU126: 1 | AV126: 1 | AW126: 1 | AX126: 1 | AY126: 1 | AZ126: 1 | BA126: 1 | BB126: 1 | BC126: 1 | BD126: 1 | BE126: 1 | BF126: 1 | BG126: 1 | BH126: 1 | BI126: 1 | BJ126: 1 | BK126: 1 | BL126: 1 | BM126: 1 | BN126: 1 | BO126: 1 | BP126: =RANK(BP129,$C129:$CN129,0) -> 1 | BQ126: 1 | BR126: 1 | BS126: 1 | BT126: 1 | BU126: 1 | BV126: 1 | BW126: 1 | BX126: 1 | BY126: 1 | BZ126: 1 | CA126: 1 | CB126: 1 | CC126: 1 | CD126: 1 | CE126: 1 | CF126: 1 | CG126: 1 | CH126: 1 | CI126: 1 | CJ126: 1 | CK126: 1 | CL126: 1 | CM126: 1 | CN126: 1
B127: Time | CP127: =IF(Randomizer!CP114=0,"",Randomizer!CP114) ->  | CQ127: =IF(CP127=0, "", Randomizer!CQ137) ->  | CT127: =A126 -> 21
B128: Penalties
B129: Score | C129: =Randomizer!C140 -> 0 | D129: =Randomizer!D140 -> 0 | E129: =Randomizer!E140 -> 0 | F129: =Randomizer!F140 -> 0 | G129: =Randomizer!G140 -> 0 | H129: =Randomizer!H140 -> 0 | I129: =Randomizer!I140 -> 0 | J129: =Randomizer!J140 -> 0 | K129: =Randomizer!K140 -> 0 | L129: =Randomizer!L140 -> 0 | M129: =Randomizer!M140 -> 0 | N129: =Randomizer!N140 -> 0 | O129: =Randomizer!O140 -> 0 | P129: =Randomizer!P140 -> 0 | Q129: =Randomizer!Q140 -> 0 | R129: =Randomizer!R140 -> 0 | S129: =Randomizer!S140 -> 0 | T129: =Randomizer!T140 -> 0 | U129: =Randomizer!U140 -> 0 | V129: =Randomizer!V140 -> 0 | W129: =Randomizer!W140 -> 0 | X129: =Randomizer!X140 -> 0 | Y129: =Randomizer!Y140 -> 0 | Z129: =Randomizer!Z140 -> 0 | AA129: =Randomizer!AA140 -> 0 | AB129: =Randomizer!AB140 -> 0 | AC129: =Randomizer!AC140 -> 0 | AD129: =Randomizer!AD140 -> 0 | AE129: =Randomizer!AE140 -> 0 | AF129: =Randomizer!AF140 -> 0 | AG129: =Randomizer!AG140 -> 0 | AH129: =Randomizer!AH140 -> 0 | AI129: =Randomizer!AI140 -> 0 | AJ129: =Randomizer!AJ140 -> 0 | AK129: =Randomizer!AK140 -> 0 | AL129: =Randomizer!AL140 -> 0 | AM129: =Randomizer!AM140 -> 0 | AN129: =Randomizer!AN140 -> 0 | AO129: =Randomizer!AO140 -> 0 | AP129: =Randomizer!AP140 -> 0 | AQ129: =Randomizer!AQ140 -> 0 | AR129: =Randomizer!AR140 -> 0 | AS129: =Randomizer!AS140 -> 0 | AT129: =Randomizer!AT140 -> 0 | AU129: =Randomizer!AU140 -> 0 | AV129: =Randomizer!AV140 -> 0 | AW129: =Randomizer!AW140 -> 0 | AX129: =Randomizer!AX140 -> 0 | AY129: =Randomizer!AY140 -> 0 | AZ129: =Randomizer!AZ140 -> 0 | BA129: =Randomizer!BA140 -> 0 | BB129: =Randomizer!BB140 -> 0 | BC129: =Randomizer!BC140 -> 0 | BD129: =Randomizer!BD140 -> 0 | BE129: =Randomizer!BE140 -> 0 | BF129: =Randomizer!BF140 -> 0 | BG129: =Randomizer!BG140 -> 0 | BH129: =Randomizer!BH140 -> 0 | BI129: =Randomizer!BI140 -> 0 | BJ129: =Randomizer!BJ140 -> 0 | BK129: =Randomizer!BK140 -> 0 | BL129: =Randomizer!BL140 -> 0 | BM129: =Randomizer!BM140 -> 0 | BN129: =Randomizer!BN140 -> 0 | BO129: =Randomizer!BO140 -> 0 | BP129: =Randomizer!BP140 -> 0 | BQ129: =Randomizer!BQ140 -> 0 | BR129: =Randomizer!BR140 -> 0 | BS129: =Randomizer!BS140 -> 0 | BT129: =Randomizer!BT140 -> 0 | BU129: =Randomizer!BU140 -> 0 | BV129: =Randomizer!BV140 -> 0 | BW129: =Randomizer!BW140 -> 0 | BX129: =Randomizer!BX140 -> 0 | BY129: =Randomizer!BY140 -> 0 | BZ129: =Randomizer!BZ140 -> 0 | CA129: =Randomizer!CA140 -> 0 | CB129: =Randomizer!CB140 -> 0 | CC129: =Randomizer!CC140 -> 0 | CD129: =Randomizer!CD140 -> 0 | CE129: =Randomizer!CE140 -> 0 | CF129: =Randomizer!CF140 -> 0 | CG129: =Randomizer!CG140 -> 0 | CH129: =Randomizer!CH140 -> 0 | CI129: =Randomizer!CI140 -> 0 | CJ129: =Randomizer!CJ140 -> 0 | CK129: =Randomizer!CK140 -> 0 | CL129: =Randomizer!CL140 -> 0 | CM129: =Randomizer!CM140 -> 0 | CN129: =Randomizer!CN140 -> 0
B130: Name | C130: =C125 -> Frank Hulton | D130: =D125 -> Mark Redsell | E130: Greg Dakin | F130: Thorsten Folker | G130: Joel West | H130: Klaus Brettner | I130: Markus Meissner | J130: Stefan Bernardy | K130: Søren Krogh | L130: Alvaro Silgado | M130: Pete Burgess | N130: Dieter Perlick | O130: Simon Thornton | P130: André Austen | Q130: Siegfried Schedel | R130: George Young | S130: John Phillips | T130: Stefan Bertschi | U130: Jason Bioletti | V130: Allen Elliott | W130: Thomas Deinert | X130: Mike Evans | Y130: Jon Edison | Z130: Thomas Henselmann | AA130: Sebastian Reichert | AB130: Robert Hermans | AC130: Eberhard Rosemann | AD130: Klaus Kowalski | AE130: Mike Shellim | AF130: Martin Newnham | AG130: Marc Schmieding | AH130: Mark Treble | AI130: Gary Harrison | AJ130: Peter Gunning | AK130: Tobias Reik | AL130: Mick Walsh | AM130: Paul Garnett | AN130: Daniel Schneider | AO130: Torsten Hermann | AP130: Peter Kowalski | AQ130: Martin Kopp | AR130: Plöschberger Hannes | AS130: Rick Ruijsink | AT130: Mark Abbotts | AU130: Arne Finkeldey | AV130: Martin Ulrich | AW130: Tony Robertson | AX130: Jesper Christensen | AY130: Ulrich Duttenhofer | AZ130: Robert Ryan | BA130: 0 | BB130: 0 | BC130: 0 | BD130: 0 | BE130: 0 | BF130: 0 | BG130: 0 | BH130: 0 | BI130: 0 | BJ130: 0 | BK130: 0 | BL130: 0 | BM130: 0 | BN130: 0 | BO130: 0 | BP130: =BP125 -> 0 | BQ130: 0 | BR130: 0 | BS130: 0 | BT130: 0 | BU130: 0 | BV130: 0 | BW130: 0 | BX130: 0 | BY130: 0 | BZ130: 0 | CA130: 0 | CB130: 0 | CC130: 0 | CD130: 0 | CE130: 0 | CF130: 0 | CG130: 0 | CH130: 0 | CI130: 0 | CJ130: 0 | CK130: 0 | CL130: 0 | CM130: 0 | CN130: 0 | CT130: =A129 -> 0
A131: 22 | B131: Round rank | C131: =RANK(C134,$C134:$CN134,0) -> 1 | D131: =RANK(D134,$C134:$CN134,0) -> 1 | E131: 1 | F131: 1 | G131: 1 | H131: 1 | I131: 1 | J131: 1 | K131: 1 | L131: 1 | M131: 1 | N131: 1 | O131: 1 | P131: 1 | Q131: 1 | R131: 1 | S131: 1 | T131: 1 | U131: 1 | V131: 1 | W131: 1 | X131: 1 | Y131: 1 | Z131: 1 | AA131: 1 | AB131: 1 | AC131: 1 | AD131: 1 | AE131: 1 | AF131: 1 | AG131: 1 | AH131: 1 | AI131: 1 | AJ131: 1 | AK131: 1 | AL131: 1 | AM131: 1 | AN131: 1 | AO131: 1 | AP131: 1 | AQ131: 1 | AR131: 1 | AS131: 1 | AT131: 1 | AU131: 1 | AV131: 1 | AW131: 1 | AX131: 1 | AY131: 1 | AZ131: 1 | BA131: 1 | BB131: 1 | BC131: 1 | BD131: 1 | BE131: 1 | BF131: 1 | BG131: 1 | BH131: 1 | BI131: 1 | BJ131: 1 | BK131: 1 | BL131: 1 | BM131: 1 | BN131: 1 | BO131: 1 | BP131: =RANK(BP134,$C134:$CN134,0) -> 1 | BQ131: 1 | BR131: 1 | BS131: 1 | BT131: 1 | BU131: 1 | BV131: 1 | BW131: 1 | BX131: 1 | BY131: 1 | BZ131: 1 | CA131: 1 | CB131: 1 | CC131: 1 | CD131: 1 | CE131: 1 | CF131: 1 | CG131: 1 | CH131: 1 | CI131: 1 | CJ131: 1 | CK131: 1 | CL131: 1 | CM131: 1 | CN131: 1
B132: Time | CP132: =IF(Randomizer!CP143=0,"",Randomizer!CP143) ->  | CQ132: =IF(CP132=0, "", Randomizer!CQ143) ->  | CT132: =A131 -> 22
B133: Penalties
B134: Score | C134: =Randomizer!C146 -> 0 | D134: =Randomizer!D146 -> 0 | E134: =Randomizer!E146 -> 0 | F134: =Randomizer!F146 -> 0 | G134: =Randomizer!G146 -> 0 | H134: =Randomizer!H146 -> 0 | I134: =Randomizer!I146 -> 0 | J134: =Randomizer!J146 -> 0 | K134: =Randomizer!K146 -> 0 | L134: =Randomizer!L146 -> 0 | M134: =Randomizer!M146 -> 0 | N134: =Randomizer!N146 -> 0 | O134: =Randomizer!O146 -> 0 | P134: =Randomizer!P146 -> 0 | Q134: =Randomizer!Q146 -> 0 | R134: =Randomizer!R146 -> 0 | S134: =Randomizer!S146 -> 0 | T134: =Randomizer!T146 -> 0 | U134: =Randomizer!U146 -> 0 | V134: =Randomizer!V146 -> 0 | W134: =Randomizer!W146 -> 0 | X134: =Randomizer!X146 -> 0 | Y134: =Randomizer!Y146 -> 0 | Z134: =Randomizer!Z146 -> 0 | AA134: =Randomizer!AA146 -> 0 | AB134: =Randomizer!AB146 -> 0 | AC134: =Randomizer!AC146 -> 0 | AD134: =Randomizer!AD146 -> 0 | AE134: =Randomizer!AE146 -> 0 | AF134: =Randomizer!AF146 -> 0 | AG134: =Randomizer!AG146 -> 0 | AH134: =Randomizer!AH146 -> 0 | AI134: =Randomizer!AI146 -> 0 | AJ134: =Randomizer!AJ146 -> 0 | AK134: =Randomizer!AK146 -> 0 | AL134: =Randomizer!AL146 -> 0 | AM134: =Randomizer!AM146 -> 0 | AN134: =Randomizer!AN146 -> 0 | AO134: =Randomizer!AO146 -> 0 | AP134: =Randomizer!AP146 -> 0 | AQ134: =Randomizer!AQ146 -> 0 | AR134: =Randomizer!AR146 -> 0 | AS134: =Randomizer!AS146 -> 0 | AT134: =Randomizer!AT146 -> 0 | AU134: =Randomizer!AU146 -> 0 | AV134: =Randomizer!AV146 -> 0 | AW134: =Randomizer!AW146 -> 0 | AX134: =Randomizer!AX146 -> 0 | AY134: =Randomizer!AY146 -> 0 | AZ134: =Randomizer!AZ146 -> 0 | BA134: =Randomizer!BA146 -> 0 | BB134: =Randomizer!BB146 -> 0 | BC134: =Randomizer!BC146 -> 0 | BD134: =Randomizer!BD146 -> 0 | BE134: =Randomizer!BE146 -> 0 | BF134: =Randomizer!BF146 -> 0 | BG134: =Randomizer!BG146 -> 0 | BH134: =Randomizer!BH146 -> 0 | BI134: =Randomizer!BI146 -> 0 | BJ134: =Randomizer!BJ146 -> 0 | BK134: =Randomizer!BK146 -> 0 | BL134: =Randomizer!BL146 -> 0 | BM134: =Randomizer!BM146 -> 0 | BN134: =Randomizer!BN146 -> 0 | BO134: =Randomizer!BO146 -> 0 | BP134: =Randomizer!BP146 -> 0 | BQ134: =Randomizer!BQ146 -> 0 | BR134: =Randomizer!BR146 -> 0 | BS134: =Randomizer!BS146 -> 0 | BT134: =Randomizer!BT146 -> 0 | BU134: =Randomizer!BU146 -> 0 | BV134: =Randomizer!BV146 -> 0 | BW134: =Randomizer!BW146 -> 0 | BX134: =Randomizer!BX146 -> 0 | BY134: =Randomizer!BY146 -> 0 | BZ134: =Randomizer!BZ146 -> 0 | CA134: =Randomizer!CA146 -> 0 | CB134: =Randomizer!CB146 -> 0 | CC134: =Randomizer!CC146 -> 0 | CD134: =Randomizer!CD146 -> 0 | CE134: =Randomizer!CE146 -> 0 | CF134: =Randomizer!CF146 -> 0 | CG134: =Randomizer!CG146 -> 0 | CH134: =Randomizer!CH146 -> 0 | CI134: =Randomizer!CI146 -> 0 | CJ134: =Randomizer!CJ146 -> 0 | CK134: =Randomizer!CK146 -> 0 | CL134: =Randomizer!CL146 -> 0 | CM134: =Randomizer!CM146 -> 0 | CN134: =Randomizer!CN146 -> 0
B135: Name | C135: =C130 -> Frank Hulton | D135: =D130 -> Mark Redsell | E135: Greg Dakin | F135: Thorsten Folker | G135: Joel West | H135: Klaus Brettner | I135: Markus Meissner | J135: Stefan Bernardy | K135: Søren Krogh | L135: Alvaro Silgado | M135: Pete Burgess | N135: Dieter Perlick | O135: Simon Thornton | P135: André Austen | Q135: Siegfried Schedel | R135: George Young | S135: John Phillips | T135: Stefan Bertschi | U135: Jason Bioletti | V135: Allen Elliott | W135: Thomas Deinert | X135: Mike Evans | Y135: Jon Edison | Z135: Thomas Henselmann | AA135: Sebastian Reichert | AB135: Robert Hermans | AC135: Eberhard Rosemann | AD135: Klaus Kowalski | AE135: Mike Shellim | AF135: Martin Newnham | AG135: Marc Schmieding | AH135: Mark Treble | AI135: Gary Harrison | AJ135: Peter Gunning | AK135: Tobias Reik | AL135: Mick Walsh | AM135: Paul Garnett | AN135: Daniel Schneider | AO135: Torsten Hermann | AP135: Peter Kowalski | AQ135: Martin Kopp | AR135: Plöschberger Hannes | AS135: Rick Ruijsink | AT135: Mark Abbotts | AU135: Arne Finkeldey | AV135: Martin Ulrich | AW135: Tony Robertson | AX135: Jesper Christensen | AY135: Ulrich Duttenhofer | AZ135: Robert Ryan | BA135: 0 | BB135: 0 | BC135: 0 | BD135: 0 | BE135: 0 | BF135: 0 | BG135: 0 | BH135: 0 | BI135: 0 | BJ135: 0 | BK135: 0 | BL135: 0 | BM135: 0 | BN135: 0 | BO135: 0 | BP135: =BP130 -> 0 | BQ135: 0 | BR135: 0 | BS135: 0 | BT135: 0 | BU135: 0 | BV135: 0 | BW135: 0 | BX135: 0 | BY135: 0 | BZ135: 0 | CA135: 0 | CB135: 0 | CC135: 0 | CD135: 0 | CE135: 0 | CF135: 0 | CG135: 0 | CH135: 0 | CI135: 0 | CJ135: 0 | CK135: 0 | CL135: 0 | CM135: 0 | CN135: 0 | CT135: =A134 -> 0
A136: 23 | B136: Round rank | C136: =RANK(C139,$C139:$CN139,0) -> 1 | D136: =RANK(D139,$C139:$CN139,0) -> 1 | E136: 1 | F136: 1 | G136: 1 | H136: 1 | I136: 1 | J136: 1 | K136: 1 | L136: 1 | M136: 1 | N136: 1 | O136: 1 | P136: 1 | Q136: 1 | R136: 1 | S136: 1 | T136: 1 | U136: 1 | V136: 1 | W136: 1 | X136: 1 | Y136: 1 | Z136: 1 | AA136: 1 | AB136: 1 | AC136: 1 | AD136: 1 | AE136: 1 | AF136: 1 | AG136: 1 | AH136: 1 | AI136: 1 | AJ136: 1 | AK136: 1 | AL136: 1 | AM136: 1 | AN136: 1 | AO136: 1 | AP136: 1 | AQ136: 1 | AR136: 1 | AS136: 1 | AT136: 1 | AU136: 1 | AV136: 1 | AW136: 1 | AX136: 1 | AY136: 1 | AZ136: 1 | BA136: 1 | BB136: 1 | BC136: 1 | BD136: 1 | BE136: 1 | BF136: 1 | BG136: 1 | BH136: 1 | BI136: 1 | BJ136: 1 | BK136: 1 | BL136: 1 | BM136: 1 | BN136: 1 | BO136: 1 | BP136: =RANK(BP139,$C139:$CN139,0) -> 1 | BQ136: 1 | BR136: 1 | BS136: 1 | BT136: 1 | BU136: 1 | BV136: 1 | BW136: 1 | BX136: 1 | BY136: 1 | BZ136: 1 | CA136: 1 | CB136: 1 | CC136: 1 | CD136: 1 | CE136: 1 | CF136: 1 | CG136: 1 | CH136: 1 | CI136: 1 | CJ136: 1 | CK136: 1 | CL136: 1 | CM136: 1 | CN136: 1
B137: Time | CP137: =IF(Randomizer!CP149=0,"",Randomizer!CP149) ->  | CQ137: =IF(CP137=0, "", Randomizer!CQ149) ->  | CT137: =A136 -> 23
B138: Penalties
B139: Score | C139: =Randomizer!C152 -> 0 | D139: =Randomizer!D152 -> 0 | E139: =Randomizer!E152 -> 0 | F139: =Randomizer!F152 -> 0 | G139: =Randomizer!G152 -> 0 | H139: =Randomizer!H152 -> 0 | I139: =Randomizer!I152 -> 0 | J139: =Randomizer!J152 -> 0 | K139: =Randomizer!K152 -> 0 | L139: =Randomizer!L152 -> 0 | M139: =Randomizer!M152 -> 0 | N139: =Randomizer!N152 -> 0 | O139: =Randomizer!O152 -> 0 | P139: =Randomizer!P152 -> 0 | Q139: =Randomizer!Q152 -> 0 | R139: =Randomizer!R152 -> 0 | S139: =Randomizer!S152 -> 0 | T139: =Randomizer!T152 -> 0 | U139: =Randomizer!U152 -> 0 | V139: =Randomizer!V152 -> 0 | W139: =Randomizer!W152 -> 0 | X139: =Randomizer!X152 -> 0 | Y139: =Randomizer!Y152 -> 0 | Z139: =Randomizer!Z152 -> 0 | AA139: =Randomizer!AA152 -> 0 | AB139: =Randomizer!AB152 -> 0 | AC139: =Randomizer!AC152 -> 0 | AD139: =Randomizer!AD152 -> 0 | AE139: =Randomizer!AE152 -> 0 | AF139: =Randomizer!AF152 -> 0 | AG139: =Randomizer!AG152 -> 0 | AH139: =Randomizer!AH152 -> 0 | AI139: =Randomizer!AI152 -> 0 | AJ139: =Randomizer!AJ152 -> 0 | AK139: =Randomizer!AK152 -> 0 | AL139: =Randomizer!AL152 -> 0 | AM139: =Randomizer!AM152 -> 0 | AN139: =Randomizer!AN152 -> 0 | AO139: =Randomizer!AO152 -> 0 | AP139: =Randomizer!AP152 -> 0 | AQ139: =Randomizer!AQ152 -> 0 | AR139: =Randomizer!AR152 -> 0 | AS139: =Randomizer!AS152 -> 0 | AT139: =Randomizer!AT152 -> 0 | AU139: =Randomizer!AU152 -> 0 | AV139: =Randomizer!AV152 -> 0 | AW139: =Randomizer!AW152 -> 0 | AX139: =Randomizer!AX152 -> 0 | AY139: =Randomizer!AY152 -> 0 | AZ139: =Randomizer!AZ152 -> 0 | BA139: =Randomizer!BA152 -> 0 | BB139: =Randomizer!BB152 -> 0 | BC139: =Randomizer!BC152 -> 0 | BD139: =Randomizer!BD152 -> 0 | BE139: =Randomizer!BE152 -> 0 | BF139: =Randomizer!BF152 -> 0 | BG139: =Randomizer!BG152 -> 0 | BH139: =Randomizer!BH152 -> 0 | BI139: =Randomizer!BI152 -> 0 | BJ139: =Randomizer!BJ152 -> 0 | BK139: =Randomizer!BK152 -> 0 | BL139: =Randomizer!BL152 -> 0 | BM139: =Randomizer!BM152 -> 0 | BN139: =Randomizer!BN152 -> 0 | BO139: =Randomizer!BO152 -> 0 | BP139: =Randomizer!BP152 -> 0 | BQ139: =Randomizer!BQ152 -> 0 | BR139: =Randomizer!BR152 -> 0 | BS139: =Randomizer!BS152 -> 0 | BT139: =Randomizer!BT152 -> 0 | BU139: =Randomizer!BU152 -> 0 | BV139: =Randomizer!BV152 -> 0 | BW139: =Randomizer!BW152 -> 0 | BX139: =Randomizer!BX152 -> 0 | BY139: =Randomizer!BY152 -> 0 | BZ139: =Randomizer!BZ152 -> 0 | CA139: =Randomizer!CA152 -> 0 | CB139: =Randomizer!CB152 -> 0 | CC139: =Randomizer!CC152 -> 0 | CD139: =Randomizer!CD152 -> 0 | CE139: =Randomizer!CE152 -> 0 | CF139: =Randomizer!CF152 -> 0 | CG139: =Randomizer!CG152 -> 0 | CH139: =Randomizer!CH152 -> 0 | CI139: =Randomizer!CI152 -> 0 | CJ139: =Randomizer!CJ152 -> 0 | CK139: =Randomizer!CK152 -> 0 | CL139: =Randomizer!CL152 -> 0 | CM139: =Randomizer!CM152 -> 0 | CN139: =Randomizer!CN152 -> 0
B140: Name | C140: =C135 -> Frank Hulton | D140: =D135 -> Mark Redsell | E140: Greg Dakin | F140: Thorsten Folker | G140: Joel West | H140: Klaus Brettner | I140: Markus Meissner | J140: Stefan Bernardy | K140: Søren Krogh | L140: Alvaro Silgado | M140: Pete Burgess | N140: Dieter Perlick | O140: Simon Thornton | P140: André Austen | Q140: Siegfried Schedel | R140: George Young | S140: John Phillips | T140: Stefan Bertschi | U140: Jason Bioletti | V140: Allen Elliott | W140: Thomas Deinert | X140: Mike Evans | Y140: Jon Edison | Z140: Thomas Henselmann | AA140: Sebastian Reichert | AB140: Robert Hermans | AC140: Eberhard Rosemann | AD140: Klaus Kowalski | AE140: Mike Shellim | AF140: Martin Newnham | AG140: Marc Schmieding | AH140: Mark Treble | AI140: Gary Harrison | AJ140: Peter Gunning | AK140: Tobias Reik | AL140: Mick Walsh | AM140: Paul Garnett | AN140: Daniel Schneider | AO140: Torsten Hermann | AP140: Peter Kowalski | AQ140: Martin Kopp | AR140: Plöschberger Hannes | AS140: Rick Ruijsink | AT140: Mark Abbotts | AU140: Arne Finkeldey | AV140: Martin Ulrich | AW140: Tony Robertson | AX140: Jesper Christensen | AY140: Ulrich Duttenhofer | AZ140: Robert Ryan | BA140: 0 | BB140: 0 | BC140: 0 | BD140: 0 | BE140: 0 | BF140: 0 | BG140: 0 | BH140: 0 | BI140: 0 | BJ140: 0 | BK140: 0 | BL140: 0 | BM140: 0 | BN140: 0 | BO140: 0 | BP140: =BP135 -> 0 | BQ140: 0 | BR140: 0 | BS140: 0 | BT140: 0 | BU140: 0 | BV140: 0 | BW140: 0 | BX140: 0 | BY140: 0 | BZ140: 0 | CA140: 0 | CB140: 0 | CC140: 0 | CD140: 0 | CE140: 0 | CF140: 0 | CG140: 0 | CH140: 0 | CI140: 0 | CJ140: 0 | CK140: 0 | CL140: 0 | CM140: 0 | CN140: 0 | CT140: =A139 -> 0
A141: 24 | B141: Round rank | C141: =RANK(C144,$C144:$CN144,0) -> 1 | D141: =RANK(D144,$C144:$CN144,0) -> 1 | E141: 1 | F141: 1 | G141: 1 | H141: 1 | I141: 1 | J141: 1 | K141: 1 | L141: 1 | M141: 1 | N141: 1 | O141: 1 | P141: 1 | Q141: 1 | R141: 1 | S141: 1 | T141: 1 | U141: 1 | V141: 1 | W141: 1 | X141: 1 | Y141: 1 | Z141: 1 | AA141: 1 | AB141: 1 | AC141: 1 | AD141: 1 | AE141: 1 | AF141: 1 | AG141: 1 | AH141: 1 | AI141: 1 | AJ141: 1 | AK141: 1 | AL141: 1 | AM141: 1 | AN141: 1 | AO141: 1 | AP141: 1 | AQ141: 1 | AR141: 1 | AS141: 1 | AT141: 1 | AU141: 1 | AV141: 1 | AW141: 1 | AX141: 1 | AY141: 1 | AZ141: 1 | BA141: 1 | BB141: 1 | BC141: 1 | BD141: 1 | BE141: 1 | BF141: 1 | BG141: 1 | BH141: 1 | BI141: 1 | BJ141: 1 | BK141: 1 | BL141: 1 | BM141: 1 | BN141: 1 | BO141: 1 | BP141: =RANK(BP144,$C144:$CN144,0) -> 1 | BQ141: 1 | BR141: 1 | BS141: 1 | BT141: 1 | BU141: 1 | BV141: 1 | BW141: 1 | BX141: 1 | BY141: 1 | BZ141: 1 | CA141: 1 | CB141: 1 | CC141: 1 | CD141: 1 | CE141: 1 | CF141: 1 | CG141: 1 | CH141: 1 | CI141: 1 | CJ141: 1 | CK141: 1 | CL141: 1 | CM141: 1 | CN141: 1
B142: Time | CP142: =IF(Randomizer!CP1072=0,"",Randomizer!CP155) ->  | CQ142: =IF(CP142=0, "", Randomizer!CQ155) ->  | CT142: =A141 -> 24
B143: Penalties
B144: Score | C144: =Randomizer!C158 -> 0 | D144: =Randomizer!D158 -> 0 | E144: =Randomizer!E158 -> 0 | F144: =Randomizer!F158 -> 0 | G144: =Randomizer!G158 -> 0 | H144: =Randomizer!H158 -> 0 | I144: =Randomizer!I158 -> 0 | J144: =Randomizer!J158 -> 0 | K144: =Randomizer!K158 -> 0 | L144: =Randomizer!L158 -> 0 | M144: =Randomizer!M158 -> 0 | N144: =Randomizer!N158 -> 0 | O144: =Randomizer!O158 -> 0 | P144: =Randomizer!P158 -> 0 | Q144: =Randomizer!Q158 -> 0 | R144: =Randomizer!R158 -> 0 | S144: =Randomizer!S158 -> 0 | T144: =Randomizer!T158 -> 0 | U144: =Randomizer!U158 -> 0 | V144: =Randomizer!V158 -> 0 | W144: =Randomizer!W158 -> 0 | X144: =Randomizer!X158 -> 0 | Y144: =Randomizer!Y158 -> 0 | Z144: =Randomizer!Z158 -> 0 | AA144: =Randomizer!AA158 -> 0 | AB144: =Randomizer!AB158 -> 0 | AC144: =Randomizer!AC158 -> 0 | AD144: =Randomizer!AD158 -> 0 | AE144: =Randomizer!AE158 -> 0 | AF144: =Randomizer!AF158 -> 0 | AG144: =Randomizer!AG158 -> 0 | AH144: =Randomizer!AH158 -> 0 | AI144: =Randomizer!AI158 -> 0 | AJ144: =Randomizer!AJ158 -> 0 | AK144: =Randomizer!AK158 -> 0 | AL144: =Randomizer!AL158 -> 0 | AM144: =Randomizer!AM158 -> 0 | AN144: =Randomizer!AN158 -> 0 | AO144: =Randomizer!AO158 -> 0 | AP144: =Randomizer!AP158 -> 0 | AQ144: =Randomizer!AQ158 -> 0 | AR144: =Randomizer!AR158 -> 0 | AS144: =Randomizer!AS158 -> 0 | AT144: =Randomizer!AT158 -> 0 | AU144: =Randomizer!AU158 -> 0 | AV144: =Randomizer!AV158 -> 0 | AW144: =Randomizer!AW158 -> 0 | AX144: =Randomizer!AX158 -> 0 | AY144: =Randomizer!AY158 -> 0 | AZ144: =Randomizer!AZ158 -> 0 | BA144: =Randomizer!BA158 -> 0 | BB144: =Randomizer!BB158 -> 0 | BC144: =Randomizer!BC158 -> 0 | BD144: =Randomizer!BD158 -> 0 | BE144: =Randomizer!BE158 -> 0 | BF144: =Randomizer!BF158 -> 0 | BG144: =Randomizer!BG158 -> 0 | BH144: =Randomizer!BH158 -> 0 | BI144: =Randomizer!BI158 -> 0 | BJ144: =Randomizer!BJ158 -> 0 | BK144: =Randomizer!BK158 -> 0 | BL144: =Randomizer!BL158 -> 0 | BM144: =Randomizer!BM158 -> 0 | BN144: =Randomizer!BN158 -> 0 | BO144: =Randomizer!BO158 -> 0 | BP144: =Randomizer!BP158 -> 0 | BQ144: =Randomizer!BQ158 -> 0 | BR144: =Randomizer!BR158 -> 0 | BS144: =Randomizer!BS158 -> 0 | BT144: =Randomizer!BT158 -> 0 | BU144: =Randomizer!BU158 -> 0 | BV144: =Randomizer!BV158 -> 0 | BW144: =Randomizer!BW158 -> 0 | BX144: =Randomizer!BX158 -> 0 | BY144: =Randomizer!BY158 -> 0 | BZ144: =Randomizer!BZ158 -> 0 | CA144: =Randomizer!CA158 -> 0 | CB144: =Randomizer!CB158 -> 0 | CC144: =Randomizer!CC158 -> 0 | CD144: =Randomizer!CD158 -> 0 | CE144: =Randomizer!CE158 -> 0 | CF144: =Randomizer!CF158 -> 0 | CG144: =Randomizer!CG158 -> 0 | CH144: =Randomizer!CH158 -> 0 | CI144: =Randomizer!CI158 -> 0 | CJ144: =Randomizer!CJ158 -> 0 | CK144: =Randomizer!CK158 -> 0 | CL144: =Randomizer!CL158 -> 0 | CM144: =Randomizer!CM158 -> 0 | CN144: =Randomizer!CN158 -> 0
B145: Name | C145: =C140 -> Frank Hulton | D145: =D140 -> Mark Redsell | E145: Greg Dakin | F145: Thorsten Folker | G145: Joel West | H145: Klaus Brettner | I145: Markus Meissner | J145: Stefan Bernardy | K145: Søren Krogh | L145: Alvaro Silgado | M145: Pete Burgess | N145: Dieter Perlick | O145: Simon Thornton | P145: André Austen | Q145: Siegfried Schedel | R145: George Young | S145: John Phillips | T145: Stefan Bertschi | U145: Jason Bioletti | V145: Allen Elliott | W145: Thomas Deinert | X145: Mike Evans | Y145: Jon Edison | Z145: Thomas Henselmann | AA145: Sebastian Reichert | AB145: Robert Hermans | AC145: Eberhard Rosemann | AD145: Klaus Kowalski | AE145: Mike Shellim | AF145: Martin Newnham | AG145: Marc Schmieding | AH145: Mark Treble | AI145: Gary Harrison | AJ145: Peter Gunning | AK145: Tobias Reik | AL145: Mick Walsh | AM145: Paul Garnett | AN145: Daniel Schneider | AO145: Torsten Hermann | AP145: Peter Kowalski | AQ145: Martin Kopp | AR145: Plöschberger Hannes | AS145: Rick Ruijsink | AT145: Mark Abbotts | AU145: Arne Finkeldey | AV145: Martin Ulrich | AW145: Tony Robertson | AX145: Jesper Christensen | AY145: Ulrich Duttenhofer | AZ145: Robert Ryan | BA145: 0 | BB145: 0 | BC145: 0 | BD145: 0 | BE145: 0 | BF145: 0 | BG145: 0 | BH145: 0 | BI145: 0 | BJ145: 0 | BK145: 0 | BL145: 0 | BM145: 0 | BN145: 0 | BO145: 0 | BP145: =BP140 -> 0 | BQ145: 0 | BR145: 0 | BS145: 0 | BT145: 0 | BU145: 0 | BV145: 0 | BW145: 0 | BX145: 0 | BY145: 0 | BZ145: 0 | CA145: 0 | CB145: 0 | CC145: 0 | CD145: 0 | CE145: 0 | CF145: 0 | CG145: 0 | CH145: 0 | CI145: 0 | CJ145: 0 | CK145: 0 | CL145: 0 | CM145: 0 | CN145: 0 | CT145: =A144 -> 0
A146: 25 | B146: Round rank | C146: =RANK(C149,$C149:$CN149,0) -> 1 | D146: =RANK(D149,$C149:$CN149,0) -> 1 | E146: 1 | F146: 1 | G146: 1 | H146: 1 | I146: 1 | J146: 1 | K146: 1 | L146: 1 | M146: 1 | N146: 1 | O146: 1 | P146: 1 | Q146: 1 | R146: 1 | S146: 1 | T146: 1 | U146: 1 | V146: 1 | W146: 1 | X146: 1 | Y146: 1 | Z146: 1 | AA146: 1 | AB146: 1 | AC146: 1 | AD146: 1 | AE146: 1 | AF146: 1 | AG146: 1 | AH146: 1 | AI146: 1 | AJ146: 1 | AK146: 1 | AL146: 1 | AM146: 1 | AN146: 1 | AO146: 1 | AP146: 1 | AQ146: 1 | AR146: 1 | AS146: 1 | AT146: 1 | AU146: 1 | AV146: 1 | AW146: 1 | AX146: 1 | AY146: 1 | AZ146: 1 | BA146: 1 | BB146: 1 | BC146: 1 | BD146: 1 | BE146: 1 | BF146: 1 | BG146: 1 | BH146: 1 | BI146: 1 | BJ146: 1 | BK146: 1 | BL146: 1 | BM146: 1 | BN146: 1 | BO146: 1 | BP146: =RANK(BP149,$C149:$CN149,0) -> 1 | BQ146: 1 | BR146: 1 | BS146: 1 | BT146: 1 | BU146: 1 | BV146: 1 | BW146: 1 | BX146: 1 | BY146: 1 | BZ146: 1 | CA146: 1 | CB146: 1 | CC146: 1 | CD146: 1 | CE146: 1 | CF146: 1 | CG146: 1 | CH146: 1 | CI146: 1 | CJ146: 1 | CK146: 1 | CL146: 1 | CM146: 1 | CN146: 1
B147: Time | CP147: =IF(Randomizer!CP161=0,"",Randomizer!CP161) ->  | CQ147: =IF(CP147=0, "", Randomizer!CQ161) ->  | CT147: =A146 -> 25
B148: Penalties
B149: Score | C149: =Randomizer!C164 -> 0 | D149: =Randomizer!D164 -> 0 | E149: =Randomizer!E164 -> 0 | F149: =Randomizer!F164 -> 0 | G149: =Randomizer!G164 -> 0 | H149: =Randomizer!H164 -> 0 | I149: =Randomizer!I164 -> 0 | J149: =Randomizer!J164 -> 0 | K149: =Randomizer!K164 -> 0 | L149: =Randomizer!L164 -> 0 | M149: =Randomizer!M164 -> 0 | N149: =Randomizer!N164 -> 0 | O149: =Randomizer!O164 -> 0 | P149: =Randomizer!P164 -> 0 | Q149: =Randomizer!Q164 -> 0 | R149: =Randomizer!R164 -> 0 | S149: =Randomizer!S164 -> 0 | T149: =Randomizer!T164 -> 0 | U149: =Randomizer!U164 -> 0 | V149: =Randomizer!V164 -> 0 | W149: =Randomizer!W164 -> 0 | X149: =Randomizer!X164 -> 0 | Y149: =Randomizer!Y164 -> 0 | Z149: =Randomizer!Z164 -> 0 | AA149: =Randomizer!AA164 -> 0 | AB149: =Randomizer!AB164 -> 0 | AC149: =Randomizer!AC164 -> 0 | AD149: =Randomizer!AD164 -> 0 | AE149: =Randomizer!AE164 -> 0 | AF149: =Randomizer!AF164 -> 0 | AG149: =Randomizer!AG164 -> 0 | AH149: =Randomizer!AH164 -> 0 | AI149: =Randomizer!AI164 -> 0 | AJ149: =Randomizer!AJ164 -> 0 | AK149: =Randomizer!AK164 -> 0 | AL149: =Randomizer!AL164 -> 0 | AM149: =Randomizer!AM164 -> 0 | AN149: =Randomizer!AN164 -> 0 | AO149: =Randomizer!AO164 -> 0 | AP149: =Randomizer!AP164 -> 0 | AQ149: =Randomizer!AQ164 -> 0 | AR149: =Randomizer!AR164 -> 0 | AS149: =Randomizer!AS164 -> 0 | AT149: =Randomizer!AT164 -> 0 | AU149: =Randomizer!AU164 -> 0 | AV149: =Randomizer!AV164 -> 0 | AW149: =Randomizer!AW164 -> 0 | AX149: =Randomizer!AX164 -> 0 | AY149: =Randomizer!AY164 -> 0 | AZ149: =Randomizer!AZ164 -> 0 | BA149: =Randomizer!BA164 -> 0 | BB149: =Randomizer!BB164 -> 0 | BC149: =Randomizer!BC164 -> 0 | BD149: =Randomizer!BD164 -> 0 | BE149: =Randomizer!BE164 -> 0 | BF149: =Randomizer!BF164 -> 0 | BG149: =Randomizer!BG164 -> 0 | BH149: =Randomizer!BH164 -> 0 | BI149: =Randomizer!BI164 -> 0 | BJ149: =Randomizer!BJ164 -> 0 | BK149: =Randomizer!BK164 -> 0 | BL149: =Randomizer!BL164 -> 0 | BM149: =Randomizer!BM164 -> 0 | BN149: =Randomizer!BN164 -> 0 | BO149: =Randomizer!BO164 -> 0 | BP149: =Randomizer!BP164 -> 0 | BQ149: =Randomizer!BQ164 -> 0 | BR149: =Randomizer!BR164 -> 0 | BS149: =Randomizer!BS164 -> 0 | BT149: =Randomizer!BT164 -> 0 | BU149: =Randomizer!BU164 -> 0 | BV149: =Randomizer!BV164 -> 0 | BW149: =Randomizer!BW164 -> 0 | BX149: =Randomizer!BX164 -> 0 | BY149: =Randomizer!BY164 -> 0 | BZ149: =Randomizer!BZ164 -> 0 | CA149: =Randomizer!CA164 -> 0 | CB149: =Randomizer!CB164 -> 0 | CC149: =Randomizer!CC164 -> 0 | CD149: =Randomizer!CD164 -> 0 | CE149: =Randomizer!CE164 -> 0 | CF149: =Randomizer!CF164 -> 0 | CG149: =Randomizer!CG164 -> 0 | CH149: =Randomizer!CH164 -> 0 | CI149: =Randomizer!CI164 -> 0 | CJ149: =Randomizer!CJ164 -> 0 | CK149: =Randomizer!CK164 -> 0 | CL149: =Randomizer!CL164 -> 0 | CM149: =Randomizer!CM164 -> 0 | CN149: =Randomizer!CN164 -> 0
B150: Name | C150: =C145 -> Frank Hulton | D150: =D145 -> Mark Redsell | E150: Greg Dakin | F150: Thorsten Folker | G150: Joel West | H150: Klaus Brettner | I150: Markus Meissner | J150: Stefan Bernardy | K150: Søren Krogh | L150: Alvaro Silgado | M150: Pete Burgess | N150: Dieter Perlick | O150: Simon Thornton | P150: André Austen | Q150: Siegfried Schedel | R150: George Young | S150: John Phillips | T150: Stefan Bertschi | U150: Jason Bioletti | V150: Allen Elliott | W150: Thomas Deinert | X150: Mike Evans | Y150: Jon Edison | Z150: Thomas Henselmann | AA150: Sebastian Reichert | AB150: Robert Hermans | AC150: Eberhard Rosemann | AD150: Klaus Kowalski | AE150: Mike Shellim | AF150: Martin Newnham | AG150: Marc Schmieding | AH150: Mark Treble | AI150: Gary Harrison | AJ150: Peter Gunning | AK150: Tobias Reik | AL150: Mick Walsh | AM150: Paul Garnett | AN150: Daniel Schneider | AO150: Torsten Hermann | AP150: Peter Kowalski | AQ150: Martin Kopp | AR150: Plöschberger Hannes | AS150: Rick Ruijsink | AT150: Mark Abbotts | AU150: Arne Finkeldey | AV150: Martin Ulrich | AW150: Tony Robertson | AX150: Jesper Christensen | AY150: Ulrich Duttenhofer | AZ150: Robert Ryan | BA150: 0 | BB150: 0 | BC150: 0 | BD150: 0 | BE150: 0 | BF150: 0 | BG150: 0 | BH150: 0 | BI150: 0 | BJ150: 0 | BK150: 0 | BL150: 0 | BM150: 0 | BN150: 0 | BO150: 0 | BP150: =BP145 -> 0 | BQ150: 0 | BR150: 0 | BS150: 0 | BT150: 0 | BU150: 0 | BV150: 0 | BW150: 0 | BX150: 0 | BY150: 0 | BZ150: 0 | CA150: 0 | CB150: 0 | CC150: 0 | CD150: 0 | CE150: 0 | CF150: 0 | CG150: 0 | CH150: 0 | CI150: 0 | CJ150: 0 | CK150: 0 | CL150: 0 | CM150: 0 | CN150: 0 | CT150: =A149 -> 0
A151: 26 | B151: Round rank | C151: =RANK(C154,$C154:$CN154,0) -> 1 | D151: =RANK(D154,$C154:$CN154,0) -> 1 | E151: 1 | F151: 1 | G151: 1 | H151: 1 | I151: 1 | J151: 1 | K151: 1 | L151: 1 | M151: 1 | N151: 1 | O151: 1 | P151: 1 | Q151: 1 | R151: 1 | S151: 1 | T151: 1 | U151: 1 | V151: 1 | W151: 1 | X151: 1 | Y151: 1 | Z151: 1 | AA151: 1 | AB151: 1 | AC151: 1 | AD151: 1 | AE151: 1 | AF151: 1 | AG151: 1 | AH151: 1 | AI151: 1 | AJ151: 1 | AK151: 1 | AL151: 1 | AM151: 1 | AN151: 1 | AO151: 1 | AP151: 1 | AQ151: 1 | AR151: 1 | AS151: 1 | AT151: 1 | AU151: 1 | AV151: 1 | AW151: 1 | AX151: 1 | AY151: 1 | AZ151: 1 | BA151: 1 | BB151: 1 | BC151: 1 | BD151: 1 | BE151: 1 | BF151: 1 | BG151: 1 | BH151: 1 | BI151: 1 | BJ151: 1 | BK151: 1 | BL151: 1 | BM151: 1 | BN151: 1 | BO151: 1 | BP151: =RANK(BP154,$C154:$CN154,0) -> 1 | BQ151: 1 | BR151: 1 | BS151: 1 | BT151: 1 | BU151: 1 | BV151: 1 | BW151: 1 | BX151: 1 | BY151: 1 | BZ151: 1 | CA151: 1 | CB151: 1 | CC151: 1 | CD151: 1 | CE151: 1 | CF151: 1 | CG151: 1 | CH151: 1 | CI151: 1 | CJ151: 1 | CK151: 1 | CL151: 1 | CM151: 1 | CN151: 1
B152: Time | CP152: =IF(Randomizer!CP167=0,"",Randomizer!CP167) ->  | CQ152: =IF(CP152=0, "", Randomizer!CQ167) ->  | CT152: =A151 -> 26
B154: Score | C154: =Randomizer!C170 -> 0 | D154: =Randomizer!D170 -> 0 | E154: =Randomizer!E170 -> 0 | F154: =Randomizer!F170 -> 0 | G154: =Randomizer!G170 -> 0 | H154: =Randomizer!H170 -> 0 | I154: =Randomizer!I170 -> 0 | J154: =Randomizer!J170 -> 0 | K154: =Randomizer!K170 -> 0 | L154: =Randomizer!L170 -> 0 | M154: =Randomizer!M170 -> 0 | N154: =Randomizer!N170 -> 0 | O154: =Randomizer!O170 -> 0 | P154: =Randomizer!P170 -> 0 | Q154: =Randomizer!Q170 -> 0 | R154: =Randomizer!R170 -> 0 | S154: =Randomizer!S170 -> 0 | T154: =Randomizer!T170 -> 0 | U154: =Randomizer!U170 -> 0 | V154: =Randomizer!V170 -> 0 | W154: =Randomizer!W170 -> 0 | X154: =Randomizer!X170 -> 0 | Y154: =Randomizer!Y170 -> 0 | Z154: =Randomizer!Z170 -> 0 | AA154: =Randomizer!AA170 -> 0 | AB154: =Randomizer!AB170 -> 0 | AC154: =Randomizer!AC170 -> 0 | AD154: =Randomizer!AD170 -> 0 | AE154: =Randomizer!AE170 -> 0 | AF154: =Randomizer!AF170 -> 0 | AG154: =Randomizer!AG170 -> 0 | AH154: =Randomizer!AH170 -> 0 | AI154: =Randomizer!AI170 -> 0 | AJ154: =Randomizer!AJ170 -> 0 | AK154: =Randomizer!AK170 -> 0 | AL154: =Randomizer!AL170 -> 0 | AM154: =Randomizer!AM170 -> 0 | AN154: =Randomizer!AN170 -> 0 | AO154: =Randomizer!AO170 -> 0 | AP154: =Randomizer!AP170 -> 0 | AQ154: =Randomizer!AQ170 -> 0 | AR154: =Randomizer!AR170 -> 0 | AS154: =Randomizer!AS170 -> 0 | AT154: =Randomizer!AT170 -> 0 | AU154: =Randomizer!AU170 -> 0 | AV154: =Randomizer!AV170 -> 0 | AW154: =Randomizer!AW170 -> 0 | AX154: =Randomizer!AX170 -> 0 | AY154: =Randomizer!AY170 -> 0 | AZ154: =Randomizer!AZ170 -> 0 | BA154: =Randomizer!BA170 -> 0 | BB154: =Randomizer!BB170 -> 0 | BC154: =Randomizer!BC170 -> 0 | BD154: =Randomizer!BD170 -> 0 | BE154: =Randomizer!BE170 -> 0 | BF154: =Randomizer!BF170 -> 0 | BG154: =Randomizer!BG170 -> 0 | BH154: =Randomizer!BH170 -> 0 | BI154: =Randomizer!BI170 -> 0 | BJ154: =Randomizer!BJ170 -> 0 | BK154: =Randomizer!BK170 -> 0 | BL154: =Randomizer!BL170 -> 0 | BM154: =Randomizer!BM170 -> 0 | BN154: =Randomizer!BN170 -> 0 | BO154: =Randomizer!BO170 -> 0 | BP154: =Randomizer!BP170 -> 0 | BQ154: =Randomizer!BQ170 -> 0 | BR154: =Randomizer!BR170 -> 0 | BS154: =Randomizer!BS170 -> 0 | BT154: =Randomizer!BT170 -> 0 | BU154: =Randomizer!BU170 -> 0 | BV154: =Randomizer!BV170 -> 0 | BW154: =Randomizer!BW170 -> 0 | BX154: =Randomizer!BX170 -> 0 | BY154: =Randomizer!BY170 -> 0 | BZ154: =Randomizer!BZ170 -> 0 | CA154: =Randomizer!CA170 -> 0 | CB154: =Randomizer!CB170 -> 0 | CC154: =Randomizer!CC170 -> 0 | CD154: =Randomizer!CD170 -> 0 | CE154: =Randomizer!CE170 -> 0 | CF154: =Randomizer!CF170 -> 0 | CG154: =Randomizer!CG170 -> 0 | CH154: =Randomizer!CH170 -> 0 | CI154: =Randomizer!CI170 -> 0 | CJ154: =Randomizer!CJ170 -> 0 | CK154: =Randomizer!CK170 -> 0 | CL154: =Randomizer!CL170 -> 0 | CM154: =Randomizer!CM170 -> 0 | CN154: =Randomizer!CN170 -> 0
B155: Name | C155: =C150 -> Frank Hulton | D155: =D150 -> Mark Redsell | E155: Greg Dakin | F155: Thorsten Folker | G155: Joel West | H155: Klaus Brettner | I155: Markus Meissner | J155: Stefan Bernardy | K155: Søren Krogh | L155: Alvaro Silgado | M155: Pete Burgess | N155: Dieter Perlick | O155: Simon Thornton | P155: André Austen | Q155: Siegfried Schedel | R155: George Young | S155: John Phillips | T155: Stefan Bertschi | U155: Jason Bioletti | V155: Allen Elliott | W155: Thomas Deinert | X155: Mike Evans | Y155: Jon Edison | Z155: Thomas Henselmann | AA155: Sebastian Reichert | AB155: Robert Hermans | AC155: Eberhard Rosemann | AD155: Klaus Kowalski | AE155: Mike Shellim | AF155: Martin Newnham | AG155: Marc Schmieding | AH155: Mark Treble | AI155: Gary Harrison | AJ155: Peter Gunning | AK155: Tobias Reik | AL155: Mick Walsh | AM155: Paul Garnett | AN155: Daniel Schneider | AO155: Torsten Hermann | AP155: Peter Kowalski | AQ155: Martin Kopp | AR155: Plöschberger Hannes | AS155: Rick Ruijsink | AT155: Mark Abbotts | AU155: Arne Finkeldey | AV155: Martin Ulrich | AW155: Tony Robertson | AX155: Jesper Christensen | AY155: Ulrich Duttenhofer | AZ155: Robert Ryan | BA155: 0 | BB155: 0 | BC155: 0 | BD155: 0 | BE155: 0 | BF155: 0 | BG155: 0 | BH155: 0 | BI155: 0 | BJ155: 0 | BK155: 0 | BL155: 0 | BM155: 0 | BN155: 0 | BO155: 0 | BP155: =BP150 -> 0 | BQ155: 0 | BR155: 0 | BS155: 0 | BT155: 0 | BU155: 0 | BV155: 0 | BW155: 0 | BX155: 0 | BY155: 0 | BZ155: 0 | CA155: 0 | CB155: 0 | CC155: 0 | CD155: 0 | CE155: 0 | CF155: 0 | CG155: 0 | CH155: 0 | CI155: 0 | CJ155: 0 | CK155: 0 | CL155: 0 | CM155: 0 | CN155: 0 | CT155: =A154 -> 0
A156: 27 | B156: Round rank | C156: =RANK(C159,$C159:$CN159,0) -> 1 | D156: =RANK(D159,$C159:$CN159,0) -> 1 | E156: 1 | F156: 1 | G156: 1 | H156: 1 | I156: 1 | J156: 1 | K156: 1 | L156: 1 | M156: 1 | N156: 1 | O156: 1 | P156: 1 | Q156: 1 | R156: 1 | S156: 1 | T156: 1 | U156: 1 | V156: 1 | W156: 1 | X156: 1 | Y156: 1 | Z156: 1 | AA156: 1 | AB156: 1 | AC156: 1 | AD156: 1 | AE156: 1 | AF156: 1 | AG156: 1 | AH156: 1 | AI156: 1 | AJ156: 1 | AK156: 1 | AL156: 1 | AM156: 1 | AN156: 1 | AO156: 1 | AP156: 1 | AQ156: 1 | AR156: 1 | AS156: 1 | AT156: 1 | AU156: 1 | AV156: 1 | AW156: 1 | AX156: 1 | AY156: 1 | AZ156: 1 | BA156: 1 | BB156: 1 | BC156: 1 | BD156: 1 | BE156: 1 | BF156: 1 | BG156: 1 | BH156: 1 | BI156: 1 | BJ156: 1 | BK156: 1 | BL156: 1 | BM156: 1 | BN156: 1 | BO156: 1 | BP156: =RANK(BP159,$C159:$CN159,0) -> 1 | BQ156: 1 | BR156: 1 | BS156: 1 | BT156: 1 | BU156: 1 | BV156: 1 | BW156: 1 | BX156: 1 | BY156: 1 | BZ156: 1 | CA156: 1 | CB156: 1 | CC156: 1 | CD156: 1 | CE156: 1 | CF156: 1 | CG156: 1 | CH156: 1 | CI156: 1 | CJ156: 1 | CK156: 1 | CL156: 1 | CM156: 1 | CN156: 1
B157: Time | CP157: =IF(Randomizer!CP173=0,"",Randomizer!CP173) ->  | CQ157: =IF(CP157=0, "", Randomizer!CQ173) ->  | CT157: =A156 -> 27
B158: Penalties
B159: Score | C159: =Randomizer!C176 -> 0 | D159: =Randomizer!D176 -> 0 | E159: =Randomizer!E176 -> 0 | F159: =Randomizer!F176 -> 0 | G159: =Randomizer!G176 -> 0 | H159: =Randomizer!H176 -> 0 | I159: =Randomizer!I176 -> 0 | J159: =Randomizer!J176 -> 0 | K159: =Randomizer!K176 -> 0 | L159: =Randomizer!L176 -> 0 | M159: =Randomizer!M176 -> 0 | N159: =Randomizer!N176 -> 0 | O159: =Randomizer!O176 -> 0 | P159: =Randomizer!P176 -> 0 | Q159: =Randomizer!Q176 -> 0 | R159: =Randomizer!R176 -> 0 | S159: =Randomizer!S176 -> 0 | T159: =Randomizer!T176 -> 0 | U159: =Randomizer!U176 -> 0 | V159: =Randomizer!V176 -> 0 | W159: =Randomizer!W176 -> 0 | X159: =Randomizer!X176 -> 0 | Y159: =Randomizer!Y176 -> 0 | Z159: =Randomizer!Z176 -> 0 | AA159: =Randomizer!AA176 -> 0 | AB159: =Randomizer!AB176 -> 0 | AC159: =Randomizer!AC176 -> 0 | AD159: =Randomizer!AD176 -> 0 | AE159: =Randomizer!AE176 -> 0 | AF159: =Randomizer!AF176 -> 0 | AG159: =Randomizer!AG176 -> 0 | AH159: =Randomizer!AH176 -> 0 | AI159: =Randomizer!AI176 -> 0 | AJ159: =Randomizer!AJ176 -> 0 | AK159: =Randomizer!AK176 -> 0 | AL159: =Randomizer!AL176 -> 0 | AM159: =Randomizer!AM176 -> 0 | AN159: =Randomizer!AN176 -> 0 | AO159: =Randomizer!AO176 -> 0 | AP159: =Randomizer!AP176 -> 0 | AQ159: =Randomizer!AQ176 -> 0 | AR159: =Randomizer!AR176 -> 0 | AS159: =Randomizer!AS176 -> 0 | AT159: =Randomizer!AT176 -> 0 | AU159: =Randomizer!AU176 -> 0 | AV159: =Randomizer!AV176 -> 0 | AW159: =Randomizer!AW176 -> 0 | AX159: =Randomizer!AX176 -> 0 | AY159: =Randomizer!AY176 -> 0 | AZ159: =Randomizer!AZ176 -> 0 | BA159: =Randomizer!BA176 -> 0 | BB159: =Randomizer!BB176 -> 0 | BC159: =Randomizer!BC176 -> 0 | BD159: =Randomizer!BD176 -> 0 | BE159: =Randomizer!BE176 -> 0 | BF159: =Randomizer!BF176 -> 0 | BG159: =Randomizer!BG176 -> 0 | BH159: =Randomizer!BH176 -> 0 | BI159: =Randomizer!BI176 -> 0 | BJ159: =Randomizer!BJ176 -> 0 | BK159: =Randomizer!BK176 -> 0 | BL159: =Randomizer!BL176 -> 0 | BM159: =Randomizer!BM176 -> 0 | BN159: =Randomizer!BN176 -> 0 | BO159: =Randomizer!BO176 -> 0 | BP159: =Randomizer!BP176 -> 0 | BQ159: =Randomizer!BQ176 -> 0 | BR159: =Randomizer!BR176 -> 0 | BS159: =Randomizer!BS176 -> 0 | BT159: =Randomizer!BT176 -> 0 | BU159: =Randomizer!BU176 -> 0 | BV159: =Randomizer!BV176 -> 0 | BW159: =Randomizer!BW176 -> 0 | BX159: =Randomizer!BX176 -> 0 | BY159: =Randomizer!BY176 -> 0 | BZ159: =Randomizer!BZ176 -> 0 | CA159: =Randomizer!CA176 -> 0 | CB159: =Randomizer!CB176 -> 0 | CC159: =Randomizer!CC176 -> 0 | CD159: =Randomizer!CD176 -> 0 | CE159: =Randomizer!CE176 -> 0 | CF159: =Randomizer!CF176 -> 0 | CG159: =Randomizer!CG176 -> 0 | CH159: =Randomizer!CH176 -> 0 | CI159: =Randomizer!CI176 -> 0 | CJ159: =Randomizer!CJ176 -> 0 | CK159: =Randomizer!CK176 -> 0 | CL159: =Randomizer!CL176 -> 0 | CM159: =Randomizer!CM176 -> 0 | CN159: =Randomizer!CN176 -> 0
B160: Name | C160: =C155 -> Frank Hulton | D160: =D155 -> Mark Redsell | E160: Greg Dakin | F160: Thorsten Folker | G160: Joel West | H160: Klaus Brettner | I160: Markus Meissner | J160: Stefan Bernardy | K160: Søren Krogh | L160: Alvaro Silgado | M160: Pete Burgess | N160: Dieter Perlick | O160: Simon Thornton | P160: André Austen | Q160: Siegfried Schedel | R160: George Young | S160: John Phillips | T160: Stefan Bertschi | U160: Jason Bioletti | V160: Allen Elliott | W160: Thomas Deinert | X160: Mike Evans | Y160: Jon Edison | Z160: Thomas Henselmann | AA160: Sebastian Reichert | AB160: Robert Hermans | AC160: Eberhard Rosemann | AD160: Klaus Kowalski | AE160: Mike Shellim | AF160: Martin Newnham | AG160: Marc Schmieding | AH160: Mark Treble | AI160: Gary Harrison | AJ160: Peter Gunning | AK160: Tobias Reik | AL160: Mick Walsh | AM160: Paul Garnett | AN160: Daniel Schneider | AO160: Torsten Hermann | AP160: Peter Kowalski | AQ160: Martin Kopp | AR160: Plöschberger Hannes | AS160: Rick Ruijsink | AT160: Mark Abbotts | AU160: Arne Finkeldey | AV160: Martin Ulrich | AW160: Tony Robertson | AX160: Jesper Christensen | AY160: Ulrich Duttenhofer | AZ160: Robert Ryan | BA160: 0 | BB160: 0 | BC160: 0 | BD160: 0 | BE160: 0 | BF160: 0 | BG160: 0 | BH160: 0 | BI160: 0 | BJ160: 0 | BK160: 0 | BL160: 0 | BM160: 0 | BN160: 0 | BO160: 0 | BP160: =BP155 -> 0 | BQ160: 0 | BR160: 0 | BS160: 0 | BT160: 0 | BU160: 0 | BV160: 0 | BW160: 0 | BX160: 0 | BY160: 0 | BZ160: 0 | CA160: 0 | CB160: 0 | CC160: 0 | CD160: 0 | CE160: 0 | CF160: 0 | CG160: 0 | CH160: 0 | CI160: 0 | CJ160: 0 | CK160: 0 | CL160: 0 | CM160: 0 | CN160: 0 | CT160: =A159 -> 0
A161: 28 | B161: Round rank | C161: =RANK(C164,$C164:$CN164,0) -> 1 | D161: =RANK(D164,$C164:$CN164,0) -> 1 | E161: 1 | F161: 1 | G161: 1 | H161: 1 | I161: 1 | J161: 1 | K161: 1 | L161: 1 | M161: 1 | N161: 1 | O161: 1 | P161: 1 | Q161: 1 | R161: 1 | S161: 1 | T161: 1 | U161: 1 | V161: 1 | W161: 1 | X161: 1 | Y161: 1 | Z161: 1 | AA161: 1 | AB161: 1 | AC161: 1 | AD161: 1 | AE161: 1 | AF161: 1 | AG161: 1 | AH161: 1 | AI161: 1 | AJ161: 1 | AK161: 1 | AL161: 1 | AM161: 1 | AN161: 1 | AO161: 1 | AP161: 1 | AQ161: 1 | AR161: 1 | AS161: 1 | AT161: 1 | AU161: 1 | AV161: 1 | AW161: 1 | AX161: 1 | AY161: 1 | AZ161: 1 | BA161: 1 | BB161: 1 | BC161: 1 | BD161: 1 | BE161: 1 | BF161: 1 | BG161: 1 | BH161: 1 | BI161: 1 | BJ161: 1 | BK161: 1 | BL161: 1 | BM161: 1 | BN161: 1 | BO161: 1 | BP161: =RANK(BP164,$C164:$CN164,0) -> 1 | BQ161: 1 | BR161: 1 | BS161: 1 | BT161: 1 | BU161: 1 | BV161: 1 | BW161: 1 | BX161: 1 | BY161: 1 | BZ161: 1 | CA161: 1 | CB161: 1 | CC161: 1 | CD161: 1 | CE161: 1 | CF161: 1 | CG161: 1 | CH161: 1 | CI161: 1 | CJ161: 1 | CK161: 1 | CL161: 1 | CM161: 1 | CN161: 1
B162: Time | CP162: =IF(Randomizer!CP179=0,"",Randomizer!CP179) ->  | CQ162: =IF(CP162=0, "", Randomizer!CQ179) ->  | CT162: =A161 -> 28
B163: Penalties
B164: Score | C164: =Randomizer!C182 -> 0 | D164: =Randomizer!D182 -> 0 | E164: =Randomizer!E182 -> 0 | F164: =Randomizer!F182 -> 0 | G164: =Randomizer!G182 -> 0 | H164: =Randomizer!H182 -> 0 | I164: =Randomizer!I182 -> 0 | J164: =Randomizer!J182 -> 0 | K164: =Randomizer!K182 -> 0 | L164: =Randomizer!L182 -> 0 | M164: =Randomizer!M182 -> 0 | N164: =Randomizer!N182 -> 0 | O164: =Randomizer!O182 -> 0 | P164: =Randomizer!P182 -> 0 | Q164: =Randomizer!Q182 -> 0 | R164: =Randomizer!R182 -> 0 | S164: =Randomizer!S182 -> 0 | T164: =Randomizer!T182 -> 0 | U164: =Randomizer!U182 -> 0 | V164: =Randomizer!V182 -> 0 | W164: =Randomizer!W182 -> 0 | X164: =Randomizer!X182 -> 0 | Y164: =Randomizer!Y182 -> 0 | Z164: =Randomizer!Z182 -> 0 | AA164: =Randomizer!AA182 -> 0 | AB164: =Randomizer!AB182 -> 0 | AC164: =Randomizer!AC182 -> 0 | AD164: =Randomizer!AD182 -> 0 | AE164: =Randomizer!AE182 -> 0 | AF164: =Randomizer!AF182 -> 0 | AG164: =Randomizer!AG182 -> 0 | AH164: =Randomizer!AH182 -> 0 | AI164: =Randomizer!AI182 -> 0 | AJ164: =Randomizer!AJ182 -> 0 | AK164: =Randomizer!AK182 -> 0 | AL164: =Randomizer!AL182 -> 0 | AM164: =Randomizer!AM182 -> 0 | AN164: =Randomizer!AN182 -> 0 | AO164: =Randomizer!AO182 -> 0 | AP164: =Randomizer!AP182 -> 0 | AQ164: =Randomizer!AQ182 -> 0 | AR164: =Randomizer!AR182 -> 0 | AS164: =Randomizer!AS182 -> 0 | AT164: =Randomizer!AT182 -> 0 | AU164: =Randomizer!AU182 -> 0 | AV164: =Randomizer!AV182 -> 0 | AW164: =Randomizer!AW182 -> 0 | AX164: =Randomizer!AX182 -> 0 | AY164: =Randomizer!AY182 -> 0 | AZ164: =Randomizer!AZ182 -> 0 | BA164: =Randomizer!BA182 -> 0 | BB164: =Randomizer!BB182 -> 0 | BC164: =Randomizer!BC182 -> 0 | BD164: =Randomizer!BD182 -> 0 | BE164: =Randomizer!BE182 -> 0 | BF164: =Randomizer!BF182 -> 0 | BG164: =Randomizer!BG182 -> 0 | BH164: =Randomizer!BH182 -> 0 | BI164: =Randomizer!BI182 -> 0 | BJ164: =Randomizer!BJ182 -> 0 | BK164: =Randomizer!BK182 -> 0 | BL164: =Randomizer!BL182 -> 0 | BM164: =Randomizer!BM182 -> 0 | BN164: =Randomizer!BN182 -> 0 | BO164: =Randomizer!BO182 -> 0 | BP164: =Randomizer!BP182 -> 0 | BQ164: =Randomizer!BQ182 -> 0 | BR164: =Randomizer!BR182 -> 0 | BS164: =Randomizer!BS182 -> 0 | BT164: =Randomizer!BT182 -> 0 | BU164: =Randomizer!BU182 -> 0 | BV164: =Randomizer!BV182 -> 0 | BW164: =Randomizer!BW182 -> 0 | BX164: =Randomizer!BX182 -> 0 | BY164: =Randomizer!BY182 -> 0 | BZ164: =Randomizer!BZ182 -> 0 | CA164: =Randomizer!CA182 -> 0 | CB164: =Randomizer!CB182 -> 0 | CC164: =Randomizer!CC182 -> 0 | CD164: =Randomizer!CD182 -> 0 | CE164: =Randomizer!CE182 -> 0 | CF164: =Randomizer!CF182 -> 0 | CG164: =Randomizer!CG182 -> 0 | CH164: =Randomizer!CH182 -> 0 | CI164: =Randomizer!CI182 -> 0 | CJ164: =Randomizer!CJ182 -> 0 | CK164: =Randomizer!CK182 -> 0 | CL164: =Randomizer!CL182 -> 0 | CM164: =Randomizer!CM182 -> 0 | CN164: =Randomizer!CN182 -> 0
B165: Name | C165: =C160 -> Frank Hulton | D165: =D160 -> Mark Redsell | E165: Greg Dakin | F165: Thorsten Folker | G165: Joel West | H165: Klaus Brettner | I165: Markus Meissner | J165: Stefan Bernardy | K165: Søren Krogh | L165: Alvaro Silgado | M165: Pete Burgess | N165: Dieter Perlick | O165: Simon Thornton | P165: André Austen | Q165: Siegfried Schedel | R165: George Young | S165: John Phillips | T165: Stefan Bertschi | U165: Jason Bioletti | V165: Allen Elliott | W165: Thomas Deinert | X165: Mike Evans | Y165: Jon Edison | Z165: Thomas Henselmann | AA165: Sebastian Reichert | AB165: Robert Hermans | AC165: Eberhard Rosemann | AD165: Klaus Kowalski | AE165: Mike Shellim | AF165: Martin Newnham | AG165: Marc Schmieding | AH165: Mark Treble | AI165: Gary Harrison | AJ165: Peter Gunning | AK165: Tobias Reik | AL165: Mick Walsh | AM165: Paul Garnett | AN165: Daniel Schneider | AO165: Torsten Hermann | AP165: Peter Kowalski | AQ165: Martin Kopp | AR165: Plöschberger Hannes | AS165: Rick Ruijsink | AT165: Mark Abbotts | AU165: Arne Finkeldey | AV165: Martin Ulrich | AW165: Tony Robertson | AX165: Jesper Christensen | AY165: Ulrich Duttenhofer | AZ165: Robert Ryan | BA165: 0 | BB165: 0 | BC165: 0 | BD165: 0 | BE165: 0 | BF165: 0 | BG165: 0 | BH165: 0 | BI165: 0 | BJ165: 0 | BK165: 0 | BL165: 0 | BM165: 0 | BN165: 0 | BO165: 0 | BP165: =BP160 -> 0 | BQ165: 0 | BR165: 0 | BS165: 0 | BT165: 0 | BU165: 0 | BV165: 0 | BW165: 0 | BX165: 0 | BY165: 0 | BZ165: 0 | CA165: 0 | CB165: 0 | CC165: 0 | CD165: 0 | CE165: 0 | CF165: 0 | CG165: 0 | CH165: 0 | CI165: 0 | CJ165: 0 | CK165: 0 | CL165: 0 | CM165: 0 | CN165: 0 | CT165: =A164 -> 0
A166: 29 | B166: Round rank | C166: =RANK(C169,$C169:$CN169,0) -> 1 | D166: =RANK(D169,$C169:$CN169,0) -> 1 | E166: 1 | F166: 1 | G166: 1 | H166: 1 | I166: 1 | J166: 1 | K166: 1 | L166: 1 | M166: 1 | N166: 1 | O166: 1 | P166: 1 | Q166: 1 | R166: 1 | S166: 1 | T166: 1 | U166: 1 | V166: 1 | W166: 1 | X166: 1 | Y166: 1 | Z166: 1 | AA166: 1 | AB166: 1 | AC166: 1 | AD166: 1 | AE166: 1 | AF166: 1 | AG166: 1 | AH166: 1 | AI166: 1 | AJ166: 1 | AK166: 1 | AL166: 1 | AM166: 1 | AN166: 1 | AO166: 1 | AP166: 1 | AQ166: 1 | AR166: 1 | AS166: 1 | AT166: 1 | AU166: 1 | AV166: 1 | AW166: 1 | AX166: 1 | AY166: 1 | AZ166: 1 | BA166: 1 | BB166: 1 | BC166: 1 | BD166: 1 | BE166: 1 | BF166: 1 | BG166: 1 | BH166: 1 | BI166: 1 | BJ166: 1 | BK166: 1 | BL166: 1 | BM166: 1 | BN166: 1 | BO166: 1 | BP166: =RANK(BP169,$C169:$CN169,0) -> 1 | BQ166: 1 | BR166: 1 | BS166: 1 | BT166: 1 | BU166: 1 | BV166: 1 | BW166: 1 | BX166: 1 | BY166: 1 | BZ166: 1 | CA166: 1 | CB166: 1 | CC166: 1 | CD166: 1 | CE166: 1 | CF166: 1 | CG166: 1 | CH166: 1 | CI166: 1 | CJ166: 1 | CK166: 1 | CL166: 1 | CM166: 1 | CN166: 1
B167: Time | CP167: =IF(Randomizer!CP185=0,"",Randomizer!CP185) ->  | CQ167: =IF(CP167=0, "", Randomizer!CQ185) ->  | CT167: =A166 -> 29
B168: Penalties
B169: Score | C169: =Randomizer!C188 -> 0 | D169: =Randomizer!D188 -> 0 | E169: =Randomizer!E188 -> 0 | F169: =Randomizer!F188 -> 0 | G169: =Randomizer!G188 -> 0 | H169: =Randomizer!H188 -> 0 | I169: =Randomizer!I188 -> 0 | J169: =Randomizer!J188 -> 0 | K169: =Randomizer!K188 -> 0 | L169: =Randomizer!L188 -> 0 | M169: =Randomizer!M188 -> 0 | N169: =Randomizer!N188 -> 0 | O169: =Randomizer!O188 -> 0 | P169: =Randomizer!P188 -> 0 | Q169: =Randomizer!Q188 -> 0 | R169: =Randomizer!R188 -> 0 | S169: =Randomizer!S188 -> 0 | T169: =Randomizer!T188 -> 0 | U169: =Randomizer!U188 -> 0 | V169: =Randomizer!V188 -> 0 | W169: =Randomizer!W188 -> 0 | X169: =Randomizer!X188 -> 0 | Y169: =Randomizer!Y188 -> 0 | Z169: =Randomizer!Z188 -> 0 | AA169: =Randomizer!AA188 -> 0 | AB169: =Randomizer!AB188 -> 0 | AC169: =Randomizer!AC188 -> 0 | AD169: =Randomizer!AD188 -> 0 | AE169: =Randomizer!AE188 -> 0 | AF169: =Randomizer!AF188 -> 0 | AG169: =Randomizer!AG188 -> 0 | AH169: =Randomizer!AH188 -> 0 | AI169: =Randomizer!AI188 -> 0 | AJ169: =Randomizer!AJ188 -> 0 | AK169: =Randomizer!AK188 -> 0 | AL169: =Randomizer!AL188 -> 0 | AM169: =Randomizer!AM188 -> 0 | AN169: =Randomizer!AN188 -> 0 | AO169: =Randomizer!AO188 -> 0 | AP169: =Randomizer!AP188 -> 0 | AQ169: =Randomizer!AQ188 -> 0 | AR169: =Randomizer!AR188 -> 0 | AS169: =Randomizer!AS188 -> 0 | AT169: =Randomizer!AT188 -> 0 | AU169: =Randomizer!AU188 -> 0 | AV169: =Randomizer!AV188 -> 0 | AW169: =Randomizer!AW188 -> 0 | AX169: =Randomizer!AX188 -> 0 | AY169: =Randomizer!AY188 -> 0 | AZ169: =Randomizer!AZ188 -> 0 | BA169: =Randomizer!BA188 -> 0 | BB169: =Randomizer!BB188 -> 0 | BC169: =Randomizer!BC188 -> 0 | BD169: =Randomizer!BD188 -> 0 | BE169: =Randomizer!BE188 -> 0 | BF169: =Randomizer!BF188 -> 0 | BG169: =Randomizer!BG188 -> 0 | BH169: =Randomizer!BH188 -> 0 | BI169: =Randomizer!BI188 -> 0 | BJ169: =Randomizer!BJ188 -> 0 | BK169: =Randomizer!BK188 -> 0 | BL169: =Randomizer!BL188 -> 0 | BM169: =Randomizer!BM188 -> 0 | BN169: =Randomizer!BN188 -> 0 | BO169: =Randomizer!BO188 -> 0 | BP169: =Randomizer!BP188 -> 0 | BQ169: =Randomizer!BQ188 -> 0 | BR169: =Randomizer!BR188 -> 0 | BS169: =Randomizer!BS188 -> 0 | BT169: =Randomizer!BT188 -> 0 | BU169: =Randomizer!BU188 -> 0 | BV169: =Randomizer!BV188 -> 0 | BW169: =Randomizer!BW188 -> 0 | BX169: =Randomizer!BX188 -> 0 | BY169: =Randomizer!BY188 -> 0 | BZ169: =Randomizer!BZ188 -> 0 | CA169: =Randomizer!CA188 -> 0 | CB169: =Randomizer!CB188 -> 0 | CC169: =Randomizer!CC188 -> 0 | CD169: =Randomizer!CD188 -> 0 | CE169: =Randomizer!CE188 -> 0 | CF169: =Randomizer!CF188 -> 0 | CG169: =Randomizer!CG188 -> 0 | CH169: =Randomizer!CH188 -> 0 | CI169: =Randomizer!CI188 -> 0 | CJ169: =Randomizer!CJ188 -> 0 | CK169: =Randomizer!CK188 -> 0 | CL169: =Randomizer!CL188 -> 0 | CM169: =Randomizer!CM188 -> 0 | CN169: =Randomizer!CN188 -> 0
B170: Name | C170: =C165 -> Frank Hulton | D170: =D165 -> Mark Redsell | E170: Greg Dakin | F170: Thorsten Folker | G170: Joel West | H170: Klaus Brettner | I170: Markus Meissner | J170: Stefan Bernardy | K170: Søren Krogh | L170: Alvaro Silgado | M170: Pete Burgess | N170: Dieter Perlick | O170: Simon Thornton | P170: André Austen | Q170: Siegfried Schedel | R170: George Young | S170: John Phillips | T170: Stefan Bertschi | U170: Jason Bioletti | V170: Allen Elliott | W170: Thomas Deinert | X170: Mike Evans | Y170: Jon Edison | Z170: Thomas Henselmann | AA170: Sebastian Reichert | AB170: Robert Hermans | AC170: Eberhard Rosemann | AD170: Klaus Kowalski | AE170: Mike Shellim | AF170: Martin Newnham | AG170: Marc Schmieding | AH170: Mark Treble | AI170: Gary Harrison | AJ170: Peter Gunning | AK170: Tobias Reik | AL170: Mick Walsh | AM170: Paul Garnett | AN170: Daniel Schneider | AO170: Torsten Hermann | AP170: Peter Kowalski | AQ170: Martin Kopp | AR170: Plöschberger Hannes | AS170: Rick Ruijsink | AT170: Mark Abbotts | AU170: Arne Finkeldey | AV170: Martin Ulrich | AW170: Tony Robertson | AX170: Jesper Christensen | AY170: Ulrich Duttenhofer | AZ170: Robert Ryan | BA170: 0 | BB170: 0 | BC170: 0 | BD170: 0 | BE170: 0 | BF170: 0 | BG170: 0 | BH170: 0 | BI170: 0 | BJ170: 0 | BK170: 0 | BL170: 0 | BM170: 0 | BN170: 0 | BO170: 0 | BP170: =BP165 -> 0 | BQ170: 0 | BR170: 0 | BS170: 0 | BT170: 0 | BU170: 0 | BV170: 0 | BW170: 0 | BX170: 0 | BY170: 0 | BZ170: 0 | CA170: 0 | CB170: 0 | CC170: 0 | CD170: 0 | CE170: 0 | CF170: 0 | CG170: 0 | CH170: 0 | CI170: 0 | CJ170: 0 | CK170: 0 | CL170: 0 | CM170: 0 | CN170: 0 | CT170: =A169 -> 0
A171: 30 | B171: Round rank | C171: =RANK(C174,$C174:$CN174,0) -> 1 | D171: =RANK(D174,$C174:$CN174,0) -> 1 | E171: 1 | F171: 1 | G171: 1 | H171: 1 | I171: 1 | J171: 1 | K171: 1 | L171: 1 | M171: 1 | N171: 1 | O171: 1 | P171: 1 | Q171: 1 | R171: 1 | S171: 1 | T171: 1 | U171: 1 | V171: 1 | W171: 1 | X171: 1 | Y171: 1 | Z171: 1 | AA171: 1 | AB171: 1 | AC171: 1 | AD171: 1 | AE171: 1 | AF171: 1 | AG171: 1 | AH171: 1 | AI171: 1 | AJ171: 1 | AK171: 1 | AL171: 1 | AM171: 1 | AN171: 1 | AO171: 1 | AP171: 1 | AQ171: 1 | AR171: 1 | AS171: 1 | AT171: 1 | AU171: 1 | AV171: 1 | AW171: 1 | AX171: 1 | AY171: 1 | AZ171: 1 | BA171: 1 | BB171: 1 | BC171: 1 | BD171: 1 | BE171: 1 | BF171: 1 | BG171: 1 | BH171: 1 | BI171: 1 | BJ171: 1 | BK171: 1 | BL171: 1 | BM171: 1 | BN171: 1 | BO171: 1 | BP171: =RANK(BP174,$C174:$CN174,0) -> 1 | BQ171: 1 | BR171: 1 | BS171: 1 | BT171: 1 | BU171: 1 | BV171: 1 | BW171: 1 | BX171: 1 | BY171: 1 | BZ171: 1 | CA171: 1 | CB171: 1 | CC171: 1 | CD171: 1 | CE171: 1 | CF171: 1 | CG171: 1 | CH171: 1 | CI171: 1 | CJ171: 1 | CK171: 1 | CL171: 1 | CM171: 1 | CN171: 1
B172: Time | CP172: =IF(Randomizer!CP191=0,"",Randomizer!CP191) ->  | CQ172: =IF(CP172=0, "", Randomizer!CQ191) ->  | CT172: =A171 -> 30
B173: Penalties
B174: Score | C174: =Randomizer!C194 -> 0 | D174: =Randomizer!D194 -> 0 | E174: =Randomizer!E194 -> 0 | F174: =Randomizer!F194 -> 0 | G174: =Randomizer!G194 -> 0 | H174: =Randomizer!H194 -> 0 | I174: =Randomizer!I194 -> 0 | J174: =Randomizer!J194 -> 0 | K174: =Randomizer!K194 -> 0 | L174: =Randomizer!L194 -> 0 | M174: =Randomizer!M194 -> 0 | N174: =Randomizer!N194 -> 0 | O174: =Randomizer!O194 -> 0 | P174: =Randomizer!P194 -> 0 | Q174: =Randomizer!Q194 -> 0 | R174: =Randomizer!R194 -> 0 | S174: =Randomizer!S194 -> 0 | T174: =Randomizer!T194 -> 0 | U174: =Randomizer!U194 -> 0 | V174: =Randomizer!V194 -> 0 | W174: =Randomizer!W194 -> 0 | X174: =Randomizer!X194 -> 0 | Y174: =Randomizer!Y194 -> 0 | Z174: =Randomizer!Z194 -> 0 | AA174: =Randomizer!AA194 -> 0 | AB174: =Randomizer!AB194 -> 0 | AC174: =Randomizer!AC194 -> 0 | AD174: =Randomizer!AD194 -> 0 | AE174: =Randomizer!AE194 -> 0 | AF174: =Randomizer!AF194 -> 0 | AG174: =Randomizer!AG194 -> 0 | AH174: =Randomizer!AH194 -> 0 | AI174: =Randomizer!AI194 -> 0 | AJ174: =Randomizer!AJ194 -> 0 | AK174: =Randomizer!AK194 -> 0 | AL174: =Randomizer!AL194 -> 0 | AM174: =Randomizer!AM194 -> 0 | AN174: =Randomizer!AN194 -> 0 | AO174: =Randomizer!AO194 -> 0 | AP174: =Randomizer!AP194 -> 0 | AQ174: =Randomizer!AQ194 -> 0 | AR174: =Randomizer!AR194 -> 0 | AS174: =Randomizer!AS194 -> 0 | AT174: =Randomizer!AT194 -> 0 | AU174: =Randomizer!AU194 -> 0 | AV174: =Randomizer!AV194 -> 0 | AW174: =Randomizer!AW194 -> 0 | AX174: =Randomizer!AX194 -> 0 | AY174: =Randomizer!AY194 -> 0 | AZ174: =Randomizer!AZ194 -> 0 | BA174: =Randomizer!BA194 -> 0 | BB174: =Randomizer!BB194 -> 0 | BC174: =Randomizer!BC194 -> 0 | BD174: =Randomizer!BD194 -> 0 | BE174: =Randomizer!BE194 -> 0 | BF174: =Randomizer!BF194 -> 0 | BG174: =Randomizer!BG194 -> 0 | BH174: =Randomizer!BH194 -> 0 | BI174: =Randomizer!BI194 -> 0 | BJ174: =Randomizer!BJ194 -> 0 | BK174: =Randomizer!BK194 -> 0 | BL174: =Randomizer!BL194 -> 0 | BM174: =Randomizer!BM194 -> 0 | BN174: =Randomizer!BN194 -> 0 | BO174: =Randomizer!BO194 -> 0 | BP174: =Randomizer!BP194 -> 0 | BQ174: =Randomizer!BQ194 -> 0 | BR174: =Randomizer!BR194 -> 0 | BS174: =Randomizer!BS194 -> 0 | BT174: =Randomizer!BT194 -> 0 | BU174: =Randomizer!BU194 -> 0 | BV174: =Randomizer!BV194 -> 0 | BW174: =Randomizer!BW194 -> 0 | BX174: =Randomizer!BX194 -> 0 | BY174: =Randomizer!BY194 -> 0 | BZ174: =Randomizer!BZ194 -> 0 | CA174: =Randomizer!CA194 -> 0 | CB174: =Randomizer!CB194 -> 0 | CC174: =Randomizer!CC194 -> 0 | CD174: =Randomizer!CD194 -> 0 | CE174: =Randomizer!CE194 -> 0 | CF174: =Randomizer!CF194 -> 0 | CG174: =Randomizer!CG194 -> 0 | CH174: =Randomizer!CH194 -> 0 | CI174: =Randomizer!CI194 -> 0 | CJ174: =Randomizer!CJ194 -> 0 | CK174: =Randomizer!CK194 -> 0 | CL174: =Randomizer!CL194 -> 0 | CM174: =Randomizer!CM194 -> 0 | CN174: =Randomizer!CN194 -> 0
B175: Name | C175: =C170 -> Frank Hulton | D175: =D170 -> Mark Redsell | E175: Greg Dakin | F175: Thorsten Folker | G175: Joel West | H175: Klaus Brettner | I175: Markus Meissner | J175: Stefan Bernardy | K175: Søren Krogh | L175: Alvaro Silgado | M175: Pete Burgess | N175: Dieter Perlick | O175: Simon Thornton | P175: André Austen | Q175: Siegfried Schedel | R175: George Young | S175: John Phillips | T175: Stefan Bertschi | U175: Jason Bioletti | V175: Allen Elliott | W175: Thomas Deinert | X175: Mike Evans | Y175: Jon Edison | Z175: Thomas Henselmann | AA175: Sebastian Reichert | AB175: Robert Hermans | AC175: Eberhard Rosemann | AD175: Klaus Kowalski | AE175: Mike Shellim | AF175: Martin Newnham | AG175: Marc Schmieding | AH175: Mark Treble | AI175: Gary Harrison | AJ175: Peter Gunning | AK175: Tobias Reik | AL175: Mick Walsh | AM175: Paul Garnett | AN175: Daniel Schneider | AO175: Torsten Hermann | AP175: Peter Kowalski | AQ175: Martin Kopp | AR175: Plöschberger Hannes | AS175: Rick Ruijsink | AT175: Mark Abbotts | AU175: Arne Finkeldey | AV175: Martin Ulrich | AW175: Tony Robertson | AX175: Jesper Christensen | AY175: Ulrich Duttenhofer | AZ175: Robert Ryan | BA175: 0 | BB175: 0 | BC175: 0 | BD175: 0 | BE175: 0 | BF175: 0 | BG175: 0 | BH175: 0 | BI175: 0 | BJ175: 0 | BK175: 0 | BL175: 0 | BM175: 0 | BN175: 0 | BO175: 0 | BP175: =BP170 -> 0 | BQ175: 0 | BR175: 0 | BS175: 0 | BT175: 0 | BU175: 0 | BV175: 0 | BW175: 0 | BX175: 0 | BY175: 0 | BZ175: 0 | CA175: 0 | CB175: 0 | CC175: 0 | CD175: 0 | CE175: 0 | CF175: 0 | CG175: 0 | CH175: 0 | CI175: 0 | CJ175: 0 | CK175: 0 | CL175: 0 | CM175: 0 | CN175: 0 | CT175: =A174 -> 0
A176: 31 | B176: Round rank | C176: =RANK(C179,$C179:$CN179,0) -> 1 | D176: =RANK(D179,$C179:$CN179,0) -> 1 | E176: 1 | F176: 1 | G176: 1 | H176: 1 | I176: 1 | J176: 1 | K176: 1 | L176: 1 | M176: 1 | N176: 1 | O176: 1 | P176: 1 | Q176: 1 | R176: 1 | S176: 1 | T176: 1 | U176: 1 | V176: 1 | W176: 1 | X176: 1 | Y176: 1 | Z176: 1 | AA176: 1 | AB176: 1 | AC176: 1 | AD176: 1 | AE176: 1 | AF176: 1 | AG176: 1 | AH176: 1 | AI176: 1 | AJ176: 1 | AK176: 1 | AL176: 1 | AM176: 1 | AN176: 1 | AO176: 1 | AP176: 1 | AQ176: 1 | AR176: 1 | AS176: 1 | AT176: 1 | AU176: 1 | AV176: 1 | AW176: 1 | AX176: 1 | AY176: 1 | AZ176: 1 | BA176: 1 | BB176: 1 | BC176: 1 | BD176: 1 | BE176: 1 | BF176: 1 | BG176: 1 | BH176: 1 | BI176: 1 | BJ176: 1 | BK176: 1 | BL176: 1 | BM176: 1 | BN176: 1 | BO176: 1 | BP176: =RANK(BP179,$C179:$CN179,0) -> 1 | BQ176: 1 | BR176: 1 | BS176: 1 | BT176: 1 | BU176: 1 | BV176: 1 | BW176: 1 | BX176: 1 | BY176: 1 | BZ176: 1 | CA176: 1 | CB176: 1 | CC176: 1 | CD176: 1 | CE176: 1 | CF176: 1 | CG176: 1 | CH176: 1 | CI176: 1 | CJ176: 1 | CK176: 1 | CL176: 1 | CM176: 1 | CN176: 1
B177: Time | CP177: =IF(Randomizer!CP197=0,"",Randomizer!CP197) ->  | CQ177: =IF(CP177=0, "", Randomizer!CQ197) ->  | CT177: =A176 -> 31
B178: Penalties
B179: Score | C179: =Randomizer!C200 -> 0 | D179: =Randomizer!D200 -> 0 | E179: =Randomizer!E200 -> 0 | F179: =Randomizer!F200 -> 0 | G179: =Randomizer!G200 -> 0 | H179: =Randomizer!H200 -> 0 | I179: =Randomizer!I200 -> 0 | J179: =Randomizer!J200 -> 0 | K179: =Randomizer!K200 -> 0 | L179: =Randomizer!L200 -> 0 | M179: =Randomizer!M200 -> 0 | N179: =Randomizer!N200 -> 0 | O179: =Randomizer!O200 -> 0 | P179: =Randomizer!P200 -> 0 | Q179: =Randomizer!Q200 -> 0 | R179: =Randomizer!R200 -> 0 | S179: =Randomizer!S200 -> 0 | T179: =Randomizer!T200 -> 0 | U179: =Randomizer!U200 -> 0 | V179: =Randomizer!V200 -> 0 | W179: =Randomizer!W200 -> 0 | X179: =Randomizer!X200 -> 0 | Y179: =Randomizer!Y200 -> 0 | Z179: =Randomizer!Z200 -> 0 | AA179: =Randomizer!AA200 -> 0 | AB179: =Randomizer!AB200 -> 0 | AC179: =Randomizer!AC200 -> 0 | AD179: =Randomizer!AD200 -> 0 | AE179: =Randomizer!AE200 -> 0 | AF179: =Randomizer!AF200 -> 0 | AG179: =Randomizer!AG200 -> 0 | AH179: =Randomizer!AH200 -> 0 | AI179: =Randomizer!AI200 -> 0 | AJ179: =Randomizer!AJ200 -> 0 | AK179: =Randomizer!AK200 -> 0 | AL179: =Randomizer!AL200 -> 0 | AM179: =Randomizer!AM200 -> 0 | AN179: =Randomizer!AN200 -> 0 | AO179: =Randomizer!AO200 -> 0 | AP179: =Randomizer!AP200 -> 0 | AQ179: =Randomizer!AQ200 -> 0 | AR179: =Randomizer!AR200 -> 0 | AS179: =Randomizer!AS200 -> 0 | AT179: =Randomizer!AT200 -> 0 | AU179: =Randomizer!AU200 -> 0 | AV179: =Randomizer!AV200 -> 0 | AW179: =Randomizer!AW200 -> 0 | AX179: =Randomizer!AX200 -> 0 | AY179: =Randomizer!AY200 -> 0 | AZ179: =Randomizer!AZ200 -> 0 | BA179: =Randomizer!BA200 -> 0 | BB179: =Randomizer!BB200 -> 0 | BC179: =Randomizer!BC200 -> 0 | BD179: =Randomizer!BD200 -> 0 | BE179: =Randomizer!BE200 -> 0 | BF179: =Randomizer!BF200 -> 0 | BG179: =Randomizer!BG200 -> 0 | BH179: =Randomizer!BH200 -> 0 | BI179: =Randomizer!BI200 -> 0 | BJ179: =Randomizer!BJ200 -> 0 | BK179: =Randomizer!BK200 -> 0 | BL179: =Randomizer!BL200 -> 0 | BM179: =Randomizer!BM200 -> 0 | BN179: =Randomizer!BN200 -> 0 | BO179: =Randomizer!BO200 -> 0 | BP179: =Randomizer!BP200 -> 0 | BQ179: =Randomizer!BQ200 -> 0 | BR179: =Randomizer!BR200 -> 0 | BS179: =Randomizer!BS200 -> 0 | BT179: =Randomizer!BT200 -> 0 | BU179: =Randomizer!BU200 -> 0 | BV179: =Randomizer!BV200 -> 0 | BW179: =Randomizer!BW200 -> 0 | BX179: =Randomizer!BX200 -> 0 | BY179: =Randomizer!BY200 -> 0 | BZ179: =Randomizer!BZ200 -> 0 | CA179: =Randomizer!CA200 -> 0 | CB179: =Randomizer!CB200 -> 0 | CC179: =Randomizer!CC200 -> 0 | CD179: =Randomizer!CD200 -> 0 | CE179: =Randomizer!CE200 -> 0 | CF179: =Randomizer!CF200 -> 0 | CG179: =Randomizer!CG200 -> 0 | CH179: =Randomizer!CH200 -> 0 | CI179: =Randomizer!CI200 -> 0 | CJ179: =Randomizer!CJ200 -> 0 | CK179: =Randomizer!CK200 -> 0 | CL179: =Randomizer!CL200 -> 0 | CM179: =Randomizer!CM200 -> 0 | CN179: =Randomizer!CN200 -> 0
B180: Name | C180: =C175 -> Frank Hulton | D180: =D175 -> Mark Redsell | E180: Greg Dakin | F180: Thorsten Folker | G180: Joel West | H180: Klaus Brettner | I180: Markus Meissner | J180: Stefan Bernardy | K180: Søren Krogh | L180: Alvaro Silgado | M180: Pete Burgess | N180: Dieter Perlick | O180: Simon Thornton | P180: André Austen | Q180: Siegfried Schedel | R180: George Young | S180: John Phillips | T180: Stefan Bertschi | U180: Jason Bioletti | V180: Allen Elliott | W180: Thomas Deinert | X180: Mike Evans | Y180: Jon Edison | Z180: Thomas Henselmann | AA180: Sebastian Reichert | AB180: Robert Hermans | AC180: Eberhard Rosemann | AD180: Klaus Kowalski | AE180: Mike Shellim | AF180: Martin Newnham | AG180: Marc Schmieding | AH180: Mark Treble | AI180: Gary Harrison | AJ180: Peter Gunning | AK180: Tobias Reik | AL180: Mick Walsh | AM180: Paul Garnett | AN180: Daniel Schneider | AO180: Torsten Hermann | AP180: Peter Kowalski | AQ180: Martin Kopp | AR180: Plöschberger Hannes | AS180: Rick Ruijsink | AT180: Mark Abbotts | AU180: Arne Finkeldey | AV180: Martin Ulrich | AW180: Tony Robertson | AX180: Jesper Christensen | AY180: Ulrich Duttenhofer | AZ180: Robert Ryan | BA180: 0 | BB180: 0 | BC180: 0 | BD180: 0 | BE180: 0 | BF180: 0 | BG180: 0 | BH180: 0 | BI180: 0 | BJ180: 0 | BK180: 0 | BL180: 0 | BM180: 0 | BN180: 0 | BO180: 0 | BP180: =BP175 -> 0 | BQ180: 0 | BR180: 0 | BS180: 0 | BT180: 0 | BU180: 0 | BV180: 0 | BW180: 0 | BX180: 0 | BY180: 0 | BZ180: 0 | CA180: 0 | CB180: 0 | CC180: 0 | CD180: 0 | CE180: 0 | CF180: 0 | CG180: 0 | CH180: 0 | CI180: 0 | CJ180: 0 | CK180: 0 | CL180: 0 | CM180: 0 | CN180: 0 | CT180: =A179 -> 0
A181: 32 | B181: Round rank | C181: =RANK(C184,$C184:$CN184,0) -> 1 | D181: =RANK(D184,$C184:$CN184,0) -> 1 | E181: 1 | F181: 1 | G181: 1 | H181: 1 | I181: 1 | J181: 1 | K181: 1 | L181: 1 | M181: 1 | N181: 1 | O181: 1 | P181: 1 | Q181: 1 | R181: 1 | S181: 1 | T181: 1 | U181: 1 | V181: 1 | W181: 1 | X181: 1 | Y181: 1 | Z181: 1 | AA181: 1 | AB181: 1 | AC181: 1 | AD181: 1 | AE181: 1 | AF181: 1 | AG181: 1 | AH181: 1 | AI181: 1 | AJ181: 1 | AK181: 1 | AL181: 1 | AM181: 1 | AN181: 1 | AO181: 1 | AP181: 1 | AQ181: 1 | AR181: 1 | AS181: 1 | AT181: 1 | AU181: 1 | AV181: 1 | AW181: 1 | AX181: 1 | AY181: 1 | AZ181: 1 | BA181: 1 | BB181: 1 | BC181: 1 | BD181: 1 | BE181: 1 | BF181: 1 | BG181: 1 | BH181: 1 | BI181: 1 | BJ181: 1 | BK181: 1 | BL181: 1 | BM181: 1 | BN181: 1 | BO181: 1 | BP181: =RANK(BP184,$C184:$CN184,0) -> 1 | BQ181: 1 | BR181: 1 | BS181: 1 | BT181: 1 | BU181: 1 | BV181: 1 | BW181: 1 | BX181: 1 | BY181: 1 | BZ181: 1 | CA181: 1 | CB181: 1 | CC181: 1 | CD181: 1 | CE181: 1 | CF181: 1 | CG181: 1 | CH181: 1 | CI181: 1 | CJ181: 1 | CK181: 1 | CL181: 1 | CM181: 1 | CN181: 1
B182: Time | CP182: =IF(Randomizer!CP203=0,"",Randomizer!CP203) ->  | CQ182: =IF(CP182=0, "", Randomizer!CQ203) ->  | CT182: =A181 -> 32
B183: Penalties
B184: Score | C184: =Randomizer!C206 -> 0 | D184: =Randomizer!D206 -> 0 | E184: =Randomizer!E206 -> 0 | F184: =Randomizer!F206 -> 0 | G184: =Randomizer!G206 -> 0 | H184: =Randomizer!H206 -> 0 | I184: =Randomizer!I206 -> 0 | J184: =Randomizer!J206 -> 0 | K184: =Randomizer!K206 -> 0 | L184: =Randomizer!L206 -> 0 | M184: =Randomizer!M206 -> 0 | N184: =Randomizer!N206 -> 0 | O184: =Randomizer!O206 -> 0 | P184: =Randomizer!P206 -> 0 | Q184: =Randomizer!Q206 -> 0 | R184: =Randomizer!R206 -> 0 | S184: =Randomizer!S206 -> 0 | T184: =Randomizer!T206 -> 0 | U184: =Randomizer!U206 -> 0 | V184: =Randomizer!V206 -> 0 | W184: =Randomizer!W206 -> 0 | X184: =Randomizer!X206 -> 0 | Y184: =Randomizer!Y206 -> 0 | Z184: =Randomizer!Z206 -> 0 | AA184: =Randomizer!AA206 -> 0 | AB184: =Randomizer!AB206 -> 0 | AC184: =Randomizer!AC206 -> 0 | AD184: =Randomizer!AD206 -> 0 | AE184: =Randomizer!AE206 -> 0 | AF184: =Randomizer!AF206 -> 0 | AG184: =Randomizer!AG206 -> 0 | AH184: =Randomizer!AH206 -> 0 | AI184: =Randomizer!AI206 -> 0 | AJ184: =Randomizer!AJ206 -> 0 | AK184: =Randomizer!AK206 -> 0 | AL184: =Randomizer!AL206 -> 0 | AM184: =Randomizer!AM206 -> 0 | AN184: =Randomizer!AN206 -> 0 | AO184: =Randomizer!AO206 -> 0 | AP184: =Randomizer!AP206 -> 0 | AQ184: =Randomizer!AQ206 -> 0 | AR184: =Randomizer!AR206 -> 0 | AS184: =Randomizer!AS206 -> 0 | AT184: =Randomizer!AT206 -> 0 | AU184: =Randomizer!AU206 -> 0 | AV184: =Randomizer!AV206 -> 0 | AW184: =Randomizer!AW206 -> 0 | AX184: =Randomizer!AX206 -> 0 | AY184: =Randomizer!AY206 -> 0 | AZ184: =Randomizer!AZ206 -> 0 | BA184: =Randomizer!BA206 -> 0 | BB184: =Randomizer!BB206 -> 0 | BC184: =Randomizer!BC206 -> 0 | BD184: =Randomizer!BD206 -> 0 | BE184: =Randomizer!BE206 -> 0 | BF184: =Randomizer!BF206 -> 0 | BG184: =Randomizer!BG206 -> 0 | BH184: =Randomizer!BH206 -> 0 | BI184: =Randomizer!BI206 -> 0 | BJ184: =Randomizer!BJ206 -> 0 | BK184: =Randomizer!BK206 -> 0 | BL184: =Randomizer!BL206 -> 0 | BM184: =Randomizer!BM206 -> 0 | BN184: =Randomizer!BN206 -> 0 | BO184: =Randomizer!BO206 -> 0 | BP184: =Randomizer!BP206 -> 0 | BQ184: =Randomizer!BQ206 -> 0 | BR184: =Randomizer!BR206 -> 0 | BS184: =Randomizer!BS206 -> 0 | BT184: =Randomizer!BT206 -> 0 | BU184: =Randomizer!BU206 -> 0 | BV184: =Randomizer!BV206 -> 0 | BW184: =Randomizer!BW206 -> 0 | BX184: =Randomizer!BX206 -> 0 | BY184: =Randomizer!BY206 -> 0 | BZ184: =Randomizer!BZ206 -> 0 | CA184: =Randomizer!CA206 -> 0 | CB184: =Randomizer!CB206 -> 0 | CC184: =Randomizer!CC206 -> 0 | CD184: =Randomizer!CD206 -> 0 | CE184: =Randomizer!CE206 -> 0 | CF184: =Randomizer!CF206 -> 0 | CG184: =Randomizer!CG206 -> 0 | CH184: =Randomizer!CH206 -> 0 | CI184: =Randomizer!CI206 -> 0 | CJ184: =Randomizer!CJ206 -> 0 | CK184: =Randomizer!CK206 -> 0 | CL184: =Randomizer!CL206 -> 0 | CM184: =Randomizer!CM206 -> 0 | CN184: =Randomizer!CN206 -> 0
B185: Name | C185: =C180 -> Frank Hulton | D185: =D180 -> Mark Redsell | E185: Greg Dakin | F185: Thorsten Folker | G185: Joel West | H185: Klaus Brettner | I185: Markus Meissner | J185: Stefan Bernardy | K185: Søren Krogh | L185: Alvaro Silgado | M185: Pete Burgess | N185: Dieter Perlick | O185: Simon Thornton | P185: André Austen | Q185: Siegfried Schedel | R185: George Young | S185: John Phillips | T185: Stefan Bertschi | U185: Jason Bioletti | V185: Allen Elliott | W185: Thomas Deinert | X185: Mike Evans | Y185: Jon Edison | Z185: Thomas Henselmann | AA185: Sebastian Reichert | AB185: Robert Hermans | AC185: Eberhard Rosemann | AD185: Klaus Kowalski | AE185: Mike Shellim | AF185: Martin Newnham | AG185: Marc Schmieding | AH185: Mark Treble | AI185: Gary Harrison | AJ185: Peter Gunning | AK185: Tobias Reik | AL185: Mick Walsh | AM185: Paul Garnett | AN185: Daniel Schneider | AO185: Torsten Hermann | AP185: Peter Kowalski | AQ185: Martin Kopp | AR185: Plöschberger Hannes | AS185: Rick Ruijsink | AT185: Mark Abbotts | AU185: Arne Finkeldey | AV185: Martin Ulrich | AW185: Tony Robertson | AX185: Jesper Christensen | AY185: Ulrich Duttenhofer | AZ185: Robert Ryan | BA185: 0 | BB185: 0 | BC185: 0 | BD185: 0 | BE185: 0 | BF185: 0 | BG185: 0 | BH185: 0 | BI185: 0 | BJ185: 0 | BK185: 0 | BL185: 0 | BM185: 0 | BN185: 0 | BO185: 0 | BP185: =BP180 -> 0 | BQ185: 0 | BR185: 0 | BS185: 0 | BT185: 0 | BU185: 0 | BV185: 0 | BW185: 0 | BX185: 0 | BY185: 0 | BZ185: 0 | CA185: 0 | CB185: 0 | CC185: 0 | CD185: 0 | CE185: 0 | CF185: 0 | CG185: 0 | CH185: 0 | CI185: 0 | CJ185: 0 | CK185: 0 | CL185: 0 | CM185: 0 | CN185: 0 | CT185: =A184 -> 0
A186: 33 | B186: Round rank | C186: =RANK(C189,$C189:$CN189,0) -> 1 | D186: =RANK(D189,$C189:$CN189,0) -> 1 | E186: 1 | F186: 1 | G186: 1 | H186: 1 | I186: 1 | J186: 1 | K186: 1 | L186: 1 | M186: 1 | N186: 1 | O186: 1 | P186: 1 | Q186: 1 | R186: 1 | S186: 1 | T186: 1 | U186: 1 | V186: 1 | W186: 1 | X186: 1 | Y186: 1 | Z186: 1 | AA186: 1 | AB186: 1 | AC186: 1 | AD186: 1 | AE186: 1 | AF186: 1 | AG186: 1 | AH186: 1 | AI186: 1 | AJ186: 1 | AK186: 1 | AL186: 1 | AM186: 1 | AN186: 1 | AO186: 1 | AP186: 1 | AQ186: 1 | AR186: 1 | AS186: 1 | AT186: 1 | AU186: 1 | AV186: 1 | AW186: 1 | AX186: 1 | AY186: 1 | AZ186: 1 | BA186: 1 | BB186: 1 | BC186: 1 | BD186: 1 | BE186: 1 | BF186: 1 | BG186: 1 | BH186: 1 | BI186: 1 | BJ186: 1 | BK186: 1 | BL186: 1 | BM186: 1 | BN186: 1 | BO186: 1 | BP186: =RANK(BP189,$C189:$CN189,0) -> 1 | BQ186: 1 | BR186: 1 | BS186: 1 | BT186: 1 | BU186: 1 | BV186: 1 | BW186: 1 | BX186: 1 | BY186: 1 | BZ186: 1 | CA186: 1 | CB186: 1 | CC186: 1 | CD186: 1 | CE186: 1 | CF186: 1 | CG186: 1 | CH186: 1 | CI186: 1 | CJ186: 1 | CK186: 1 | CL186: 1 | CM186: 1 | CN186: 1
B187: Time | CP187: =IF(Randomizer!CP209=0,"",Randomizer!CP209) ->  | CQ187: =IF(CP187=0, "", Randomizer!CQ209) ->  | CT187: =A186 -> 33
B188: Penalties
B189: Score | C189: =Randomizer!C212 -> 0 | D189: =Randomizer!D212 -> 0 | E189: =Randomizer!E212 -> 0 | F189: =Randomizer!F212 -> 0 | G189: =Randomizer!G212 -> 0 | H189: =Randomizer!H212 -> 0 | I189: =Randomizer!I212 -> 0 | J189: =Randomizer!J212 -> 0 | K189: =Randomizer!K212 -> 0 | L189: =Randomizer!L212 -> 0 | M189: =Randomizer!M212 -> 0 | N189: =Randomizer!N212 -> 0 | O189: =Randomizer!O212 -> 0 | P189: =Randomizer!P212 -> 0 | Q189: =Randomizer!Q212 -> 0 | R189: =Randomizer!R212 -> 0 | S189: =Randomizer!S212 -> 0 | T189: =Randomizer!T212 -> 0 | U189: =Randomizer!U212 -> 0 | V189: =Randomizer!V212 -> 0 | W189: =Randomizer!W212 -> 0 | X189: =Randomizer!X212 -> 0 | Y189: =Randomizer!Y212 -> 0 | Z189: =Randomizer!Z212 -> 0 | AA189: =Randomizer!AA212 -> 0 | AB189: =Randomizer!AB212 -> 0 | AC189: =Randomizer!AC212 -> 0 | AD189: =Randomizer!AD212 -> 0 | AE189: =Randomizer!AE212 -> 0 | AF189: =Randomizer!AF212 -> 0 | AG189: =Randomizer!AG212 -> 0 | AH189: =Randomizer!AH212 -> 0 | AI189: =Randomizer!AI212 -> 0 | AJ189: =Randomizer!AJ212 -> 0 | AK189: =Randomizer!AK212 -> 0 | AL189: =Randomizer!AL212 -> 0 | AM189: =Randomizer!AM212 -> 0 | AN189: =Randomizer!AN212 -> 0 | AO189: =Randomizer!AO212 -> 0 | AP189: =Randomizer!AP212 -> 0 | AQ189: =Randomizer!AQ212 -> 0 | AR189: =Randomizer!AR212 -> 0 | AS189: =Randomizer!AS212 -> 0 | AT189: =Randomizer!AT212 -> 0 | AU189: =Randomizer!AU212 -> 0 | AV189: =Randomizer!AV212 -> 0 | AW189: =Randomizer!AW212 -> 0 | AX189: =Randomizer!AX212 -> 0 | AY189: =Randomizer!AY212 -> 0 | AZ189: =Randomizer!AZ212 -> 0 | BA189: =Randomizer!BA212 -> 0 | BB189: =Randomizer!BB212 -> 0 | BC189: =Randomizer!BC212 -> 0 | BD189: =Randomizer!BD212 -> 0 | BE189: =Randomizer!BE212 -> 0 | BF189: =Randomizer!BF212 -> 0 | BG189: =Randomizer!BG212 -> 0 | BH189: =Randomizer!BH212 -> 0 | BI189: =Randomizer!BI212 -> 0 | BJ189: =Randomizer!BJ212 -> 0 | BK189: =Randomizer!BK212 -> 0 | BL189: =Randomizer!BL212 -> 0 | BM189: =Randomizer!BM212 -> 0 | BN189: =Randomizer!BN212 -> 0 | BO189: =Randomizer!BO212 -> 0 | BP189: =Randomizer!BP212 -> 0 | BQ189: =Randomizer!BQ212 -> 0 | BR189: =Randomizer!BR212 -> 0 | BS189: =Randomizer!BS212 -> 0 | BT189: =Randomizer!BT212 -> 0 | BU189: =Randomizer!BU212 -> 0 | BV189: =Randomizer!BV212 -> 0 | BW189: =Randomizer!BW212 -> 0 | BX189: =Randomizer!BX212 -> 0 | BY189: =Randomizer!BY212 -> 0 | BZ189: =Randomizer!BZ212 -> 0 | CA189: =Randomizer!CA212 -> 0 | CB189: =Randomizer!CB212 -> 0 | CC189: =Randomizer!CC212 -> 0 | CD189: =Randomizer!CD212 -> 0 | CE189: =Randomizer!CE212 -> 0 | CF189: =Randomizer!CF212 -> 0 | CG189: =Randomizer!CG212 -> 0 | CH189: =Randomizer!CH212 -> 0 | CI189: =Randomizer!CI212 -> 0 | CJ189: =Randomizer!CJ212 -> 0 | CK189: =Randomizer!CK212 -> 0 | CL189: =Randomizer!CL212 -> 0 | CM189: =Randomizer!CM212 -> 0 | CN189: =Randomizer!CN212 -> 0
B190: Name | C190: =C185 -> Frank Hulton | D190: =D185 -> Mark Redsell | E190: Greg Dakin | F190: Thorsten Folker | G190: Joel West | H190: Klaus Brettner | I190: Markus Meissner | J190: Stefan Bernardy | K190: Søren Krogh | L190: Alvaro Silgado | M190: Pete Burgess | N190: Dieter Perlick | O190: Simon Thornton | P190: André Austen | Q190: Siegfried Schedel | R190: George Young | S190: John Phillips | T190: Stefan Bertschi | U190: Jason Bioletti | V190: Allen Elliott | W190: Thomas Deinert | X190: Mike Evans | Y190: Jon Edison | Z190: Thomas Henselmann | AA190: Sebastian Reichert | AB190: Robert Hermans | AC190: Eberhard Rosemann | AD190: Klaus Kowalski | AE190: Mike Shellim | AF190: Martin Newnham | AG190: Marc Schmieding | AH190: Mark Treble | AI190: Gary Harrison | AJ190: Peter Gunning | AK190: Tobias Reik | AL190: Mick Walsh | AM190: Paul Garnett | AN190: Daniel Schneider | AO190: Torsten Hermann | AP190: Peter Kowalski | AQ190: Martin Kopp | AR190: Plöschberger Hannes | AS190: Rick Ruijsink | AT190: Mark Abbotts | AU190: Arne Finkeldey | AV190: Martin Ulrich | AW190: Tony Robertson | AX190: Jesper Christensen | AY190: Ulrich Duttenhofer | AZ190: Robert Ryan | BA190: 0 | BB190: 0 | BC190: 0 | BD190: 0 | BE190: 0 | BF190: 0 | BG190: 0 | BH190: 0 | BI190: 0 | BJ190: 0 | BK190: 0 | BL190: 0 | BM190: 0 | BN190: 0 | BO190: 0 | BP190: =BP185 -> 0 | BQ190: 0 | BR190: 0 | BS190: 0 | BT190: 0 | BU190: 0 | BV190: 0 | BW190: 0 | BX190: 0 | BY190: 0 | BZ190: 0 | CA190: 0 | CB190: 0 | CC190: 0 | CD190: 0 | CE190: 0 | CF190: 0 | CG190: 0 | CH190: 0 | CI190: 0 | CJ190: 0 | CK190: 0 | CL190: 0 | CM190: 0 | CN190: 0 | CT190: =A189 -> 0
A191: 34 | B191: Round rank | C191: =RANK(C194,$C194:$CN194,0) -> 1 | D191: 1 | E191: 1 | F191: 1 | G191: 1 | H191: 1 | I191: 1 | J191: 1 | K191: 1 | L191: 1 | M191: 1 | N191: 1 | O191: 1 | P191: 1 | Q191: 1 | R191: 1 | S191: =RANK(S194,$C194:$CN194,0) -> 1 | T191: 1 | U191: 1 | V191: 1 | W191: 1 | X191: 1 | Y191: 1 | Z191: 1 | AA191: 1 | AB191: 1 | AC191: 1 | AD191: 1 | AE191: 1 | AF191: 1 | AG191: 1 | AH191: 1 | AI191: 1 | AJ191: 1 | AK191: 1 | AL191: 1 | AM191: 1 | AN191: 1 | AO191: 1 | AP191: 1 | AQ191: 1 | AR191: 1 | AS191: 1 | AT191: 1 | AU191: 1 | AV191: 1 | AW191: 1 | AX191: 1 | AY191: 1 | AZ191: 1 | BA191: 1 | BB191: 1 | BC191: 1 | BD191: 1 | BE191: 1 | BF191: 1 | BG191: 1 | BH191: 1 | BI191: 1 | BJ191: 1 | BK191: 1 | BL191: 1 | BM191: 1 | BN191: 1 | BO191: 1 | BP191: 1 | BQ191: 1 | BR191: 1 | BS191: 1 | BT191: 1 | BU191: 1 | BV191: 1 | BW191: 1 | BX191: 1 | BY191: 1 | BZ191: 1 | CA191: 1 | CB191: 1 | CC191: 1 | CD191: 1 | CE191: =RANK(CE194,$C194:$CN194,0) -> 1 | CF191: 1 | CG191: 1 | CH191: 1 | CI191: 1 | CJ191: 1 | CK191: 1 | CL191: 1 | CM191: 1 | CN191: 1
B192: Time | CP192: =IF(Randomizer!CP215=0,"",Randomizer!CP215) ->  | CQ192: =IF(CP192=0, "", Randomizer!CQ215) ->  | CT192: =A191 -> 34
B193: Penalties
B194: Score | C194: =Randomizer!C218 -> 0 | D194: =Randomizer!D218 -> 0 | E194: =Randomizer!E218 -> 0 | F194: =Randomizer!F218 -> 0 | G194: =Randomizer!G218 -> 0 | H194: =Randomizer!H218 -> 0 | I194: =Randomizer!I218 -> 0 | J194: =Randomizer!J218 -> 0 | K194: =Randomizer!K218 -> 0 | L194: =Randomizer!L218 -> 0 | M194: =Randomizer!M218 -> 0 | N194: =Randomizer!N218 -> 0 | O194: =Randomizer!O218 -> 0 | P194: =Randomizer!P218 -> 0 | Q194: =Randomizer!Q218 -> 0 | R194: =Randomizer!R218 -> 0 | S194: =Randomizer!S218 -> 0 | T194: =Randomizer!T218 -> 0 | U194: =Randomizer!U218 -> 0 | V194: =Randomizer!V218 -> 0 | W194: =Randomizer!W218 -> 0 | X194: =Randomizer!X218 -> 0 | Y194: =Randomizer!Y218 -> 0 | Z194: =Randomizer!Z218 -> 0 | AA194: =Randomizer!AA218 -> 0 | AB194: =Randomizer!AB218 -> 0 | AC194: =Randomizer!AC218 -> 0 | AD194: =Randomizer!AD218 -> 0 | AE194: =Randomizer!AE218 -> 0 | AF194: =Randomizer!AF218 -> 0 | AG194: =Randomizer!AG218 -> 0 | AH194: =Randomizer!AH218 -> 0 | AI194: =Randomizer!AI218 -> 0 | AJ194: =Randomizer!AJ218 -> 0 | AK194: =Randomizer!AK218 -> 0 | AL194: =Randomizer!AL218 -> 0 | AM194: =Randomizer!AM218 -> 0 | AN194: =Randomizer!AN218 -> 0 | AO194: =Randomizer!AO218 -> 0 | AP194: =Randomizer!AP218 -> 0 | AQ194: =Randomizer!AQ218 -> 0 | AR194: =Randomizer!AR218 -> 0 | AS194: =Randomizer!AS218 -> 0 | AT194: =Randomizer!AT218 -> 0 | AU194: =Randomizer!AU218 -> 0 | AV194: =Randomizer!AV218 -> 0 | AW194: =Randomizer!AW218 -> 0 | AX194: =Randomizer!AX218 -> 0 | AY194: =Randomizer!AY218 -> 0 | AZ194: =Randomizer!AZ218 -> 0 | BA194: =Randomizer!BA218 -> 0 | BB194: =Randomizer!BB218 -> 0 | BC194: =Randomizer!BC218 -> 0 | BD194: =Randomizer!BD218 -> 0 | BE194: =Randomizer!BE218 -> 0 | BF194: =Randomizer!BF218 -> 0 | BG194: =Randomizer!BG218 -> 0 | BH194: =Randomizer!BH218 -> 0 | BI194: =Randomizer!BI218 -> 0 | BJ194: =Randomizer!BJ218 -> 0 | BK194: =Randomizer!BK218 -> 0 | BL194: =Randomizer!BL218 -> 0 | BM194: =Randomizer!BM218 -> 0 | BN194: =Randomizer!BN218 -> 0 | BO194: =Randomizer!BO218 -> 0 | BP194: =Randomizer!BP218 -> 0 | BQ194: =Randomizer!BQ218 -> 0 | BR194: =Randomizer!BR218 -> 0 | BS194: =Randomizer!BS218 -> 0 | BT194: =Randomizer!BT218 -> 0 | BU194: =Randomizer!BU218 -> 0 | BV194: =Randomizer!BV218 -> 0 | BW194: =Randomizer!BW218 -> 0 | BX194: =Randomizer!BX218 -> 0 | BY194: =Randomizer!BY218 -> 0 | BZ194: =Randomizer!BZ218 -> 0 | CA194: =Randomizer!CA218 -> 0 | CB194: =Randomizer!CB218 -> 0 | CC194: =Randomizer!CC218 -> 0 | CD194: =Randomizer!CD218 -> 0 | CE194: =Randomizer!CE218 -> 0 | CF194: =Randomizer!CF218 -> 0 | CG194: =Randomizer!CG218 -> 0 | CH194: =Randomizer!CH218 -> 0 | CI194: =Randomizer!CI218 -> 0 | CJ194: =Randomizer!CJ218 -> 0 | CK194: =Randomizer!CK218 -> 0 | CL194: =Randomizer!CL218 -> 0 | CM194: =Randomizer!CM218 -> 0 | CN194: =Randomizer!CN218 -> 0
B195: Name | C195: =C190 -> Frank Hulton | D195: =D190 -> Mark Redsell | E195: Greg Dakin | F195: Thorsten Folker | G195: Joel West | H195: Klaus Brettner | I195: Markus Meissner | J195: Stefan Bernardy | K195: Søren Krogh | L195: Alvaro Silgado | M195: Pete Burgess | N195: Dieter Perlick | O195: Simon Thornton | P195: André Austen | Q195: Siegfried Schedel | R195: George Young | S195: John Phillips | T195: Stefan Bertschi | U195: Jason Bioletti | V195: Allen Elliott | W195: Thomas Deinert | X195: Mike Evans | Y195: Jon Edison | Z195: Thomas Henselmann | AA195: Sebastian Reichert | AB195: Robert Hermans | AC195: Eberhard Rosemann | AD195: Klaus Kowalski | AE195: Mike Shellim | AF195: Martin Newnham | AG195: Marc Schmieding | AH195: Mark Treble | AI195: Gary Harrison | AJ195: Peter Gunning | AK195: Tobias Reik | AL195: Mick Walsh | AM195: Paul Garnett | AN195: Daniel Schneider | AO195: Torsten Hermann | AP195: Peter Kowalski | AQ195: Martin Kopp | AR195: Plöschberger Hannes | AS195: Rick Ruijsink | AT195: Mark Abbotts | AU195: Arne Finkeldey | AV195: Martin Ulrich | AW195: Tony Robertson | AX195: Jesper Christensen | AY195: Ulrich Duttenhofer | AZ195: Robert Ryan | BA195: 0 | BB195: 0 | BC195: 0 | BD195: 0 | BE195: 0 | BF195: 0 | BG195: 0 | BH195: 0 | BI195: 0 | BJ195: 0 | BK195: 0 | BL195: 0 | BM195: 0 | BN195: 0 | BO195: 0 | BP195: =BP190 -> 0 | BQ195: 0 | BR195: 0 | BS195: 0 | BT195: 0 | BU195: 0 | BV195: 0 | BW195: 0 | BX195: 0 | BY195: 0 | BZ195: 0 | CA195: 0 | CB195: 0 | CC195: 0 | CD195: 0 | CE195: 0 | CF195: 0 | CG195: 0 | CH195: 0 | CI195: 0 | CJ195: 0 | CK195: 0 | CL195: 0 | CM195: 0 | CN195: 0 | CT195: =A194 -> 0
A196: 35 | B196: Round rank | C196: =RANK(C199,$C199:$CN199,0) -> 1 | D196: =RANK(D199,$C199:$CN199,0) -> 1 | E196: 1 | F196: 1 | G196: 1 | H196: 1 | I196: 1 | J196: 1 | K196: 1 | L196: 1 | M196: 1 | N196: 1 | O196: 1 | P196: 1 | Q196: 1 | R196: 1 | S196: 1 | T196: 1 | U196: 1 | V196: 1 | W196: 1 | X196: 1 | Y196: 1 | Z196: 1 | AA196: 1 | AB196: 1 | AC196: 1 | AD196: 1 | AE196: 1 | AF196: 1 | AG196: 1 | AH196: 1 | AI196: 1 | AJ196: 1 | AK196: 1 | AL196: 1 | AM196: 1 | AN196: 1 | AO196: 1 | AP196: 1 | AQ196: 1 | AR196: 1 | AS196: 1 | AT196: 1 | AU196: 1 | AV196: 1 | AW196: 1 | AX196: 1 | AY196: 1 | AZ196: 1 | BA196: 1 | BB196: 1 | BC196: 1 | BD196: 1 | BE196: 1 | BF196: 1 | BG196: 1 | BH196: 1 | BI196: 1 | BJ196: 1 | BK196: 1 | BL196: 1 | BM196: 1 | BN196: 1 | BO196: 1 | BP196: =RANK(BP199,$C199:$CN199,0) -> 1 | BQ196: 1 | BR196: 1 | BS196: 1 | BT196: 1 | BU196: 1 | BV196: 1 | BW196: 1 | BX196: 1 | BY196: 1 | BZ196: 1 | CA196: 1 | CB196: 1 | CC196: 1 | CD196: 1 | CE196: 1 | CF196: 1 | CG196: 1 | CH196: 1 | CI196: 1 | CJ196: 1 | CK196: 1 | CL196: 1 | CM196: 1 | CN196: 1
B197: Time | CP197: =IF(Randomizer!CP221=0,"",Randomizer!CP221) ->  | CQ197: =IF(CP197=0, "", Randomizer!CQ221) ->  | CT197: =A196 -> 35
B198: Penalties
B199: Score | C199: =Randomizer!C224 -> 0 | D199: =Randomizer!D224 -> 0 | E199: =Randomizer!E224 -> 0 | F199: =Randomizer!F224 -> 0 | G199: =Randomizer!G224 -> 0 | H199: =Randomizer!H224 -> 0 | I199: =Randomizer!I224 -> 0 | J199: =Randomizer!J224 -> 0 | K199: =Randomizer!K224 -> 0 | L199: =Randomizer!L224 -> 0 | M199: =Randomizer!M224 -> 0 | N199: =Randomizer!N224 -> 0 | O199: =Randomizer!O224 -> 0 | P199: =Randomizer!P224 -> 0 | Q199: =Randomizer!Q224 -> 0 | R199: =Randomizer!R224 -> 0 | S199: =Randomizer!S224 -> 0 | T199: =Randomizer!T224 -> 0 | U199: =Randomizer!U224 -> 0 | V199: =Randomizer!V224 -> 0 | W199: =Randomizer!W224 -> 0 | X199: =Randomizer!X224 -> 0 | Y199: =Randomizer!Y224 -> 0 | Z199: =Randomizer!Z224 -> 0 | AA199: =Randomizer!AA224 -> 0 | AB199: =Randomizer!AB224 -> 0 | AC199: =Randomizer!AC224 -> 0 | AD199: =Randomizer!AD224 -> 0 | AE199: =Randomizer!AE224 -> 0 | AF199: =Randomizer!AF224 -> 0 | AG199: =Randomizer!AG224 -> 0 | AH199: =Randomizer!AH224 -> 0 | AI199: =Randomizer!AI224 -> 0 | AJ199: =Randomizer!AJ224 -> 0 | AK199: =Randomizer!AK224 -> 0 | AL199: =Randomizer!AL224 -> 0 | AM199: =Randomizer!AM224 -> 0 | AN199: =Randomizer!AN224 -> 0 | AO199: =Randomizer!AO224 -> 0 | AP199: =Randomizer!AP224 -> 0 | AQ199: =Randomizer!AQ224 -> 0 | AR199: =Randomizer!AR224 -> 0 | AS199: =Randomizer!AS224 -> 0 | AT199: =Randomizer!AT224 -> 0 | AU199: =Randomizer!AU224 -> 0 | AV199: =Randomizer!AV224 -> 0 | AW199: =Randomizer!AW224 -> 0 | AX199: =Randomizer!AX224 -> 0 | AY199: =Randomizer!AY224 -> 0 | AZ199: =Randomizer!AZ224 -> 0 | BA199: =Randomizer!BA224 -> 0 | BB199: =Randomizer!BB224 -> 0 | BC199: =Randomizer!BC224 -> 0 | BD199: =Randomizer!BD224 -> 0 | BE199: =Randomizer!BE224 -> 0 | BF199: =Randomizer!BF224 -> 0 | BG199: =Randomizer!BG224 -> 0 | BH199: =Randomizer!BH224 -> 0 | BI199: =Randomizer!BI224 -> 0 | BJ199: =Randomizer!BJ224 -> 0 | BK199: =Randomizer!BK224 -> 0 | BL199: =Randomizer!BL224 -> 0 | BM199: =Randomizer!BM224 -> 0 | BN199: =Randomizer!BN224 -> 0 | BO199: =Randomizer!BO224 -> 0 | BP199: =Randomizer!BP224 -> 0 | BQ199: =Randomizer!BQ224 -> 0 | BR199: =Randomizer!BR224 -> 0 | BS199: =Randomizer!BS224 -> 0 | BT199: =Randomizer!BT224 -> 0 | BU199: =Randomizer!BU224 -> 0 | BV199: =Randomizer!BV224 -> 0 | BW199: =Randomizer!BW224 -> 0 | BX199: =Randomizer!BX224 -> 0 | BY199: =Randomizer!BY224 -> 0 | BZ199: =Randomizer!BZ224 -> 0 | CA199: =Randomizer!CA224 -> 0 | CB199: =Randomizer!CB224 -> 0 | CC199: =Randomizer!CC224 -> 0 | CD199: =Randomizer!CD224 -> 0 | CE199: =Randomizer!CE224 -> 0 | CF199: =Randomizer!CF224 -> 0 | CG199: =Randomizer!CG224 -> 0 | CH199: =Randomizer!CH224 -> 0 | CI199: =Randomizer!CI224 -> 0 | CJ199: =Randomizer!CJ224 -> 0 | CK199: =Randomizer!CK224 -> 0 | CL199: =Randomizer!CL224 -> 0 | CM199: =Randomizer!CM224 -> 0 | CN199: =Randomizer!CN224 -> 0
B200: Name | C200: =C195 -> Frank Hulton | D200: Mark Redsell | E200: Greg Dakin | F200: Thorsten Folker | G200: Joel West | H200: Klaus Brettner | I200: Markus Meissner | J200: Stefan Bernardy | K200: Søren Krogh | L200: Alvaro Silgado | M200: Pete Burgess | N200: Dieter Perlick | O200: Simon Thornton | P200: André Austen | Q200: Siegfried Schedel | R200: George Young | S200: =S195 -> John Phillips | T200: Stefan Bertschi | U200: Jason Bioletti | V200: Allen Elliott | W200: Thomas Deinert | X200: Mike Evans | Y200: Jon Edison | Z200: Thomas Henselmann | AA200: Sebastian Reichert | AB200: Robert Hermans | AC200: Eberhard Rosemann | AD200: Klaus Kowalski | AE200: Mike Shellim | AF200: Martin Newnham | AG200: Marc Schmieding | AH200: Mark Treble | AI200: Gary Harrison | AJ200: Peter Gunning | AK200: Tobias Reik | AL200: Mick Walsh | AM200: Paul Garnett | AN200: Daniel Schneider | AO200: Torsten Hermann | AP200: Peter Kowalski | AQ200: Martin Kopp | AR200: Plöschberger Hannes | AS200: Rick Ruijsink | AT200: Mark Abbotts | AU200: Arne Finkeldey | AV200: Martin Ulrich | AW200: Tony Robertson | AX200: Jesper Christensen | AY200: Ulrich Duttenhofer | AZ200: Robert Ryan | BA200: 0 | BB200: 0 | BC200: 0 | BD200: 0 | BE200: 0 | BF200: 0 | BG200: 0 | BH200: 0 | BI200: 0 | BJ200: 0 | BK200: 0 | BL200: 0 | BM200: 0 | BN200: 0 | BO200: 0 | BP200: 0 | BQ200: 0 | BR200: 0 | BS200: 0 | BT200: 0 | BU200: 0 | BV200: 0 | BW200: 0 | BX200: 0 | BY200: 0 | BZ200: 0 | CA200: 0 | CB200: 0 | CC200: 0 | CD200: 0 | CE200: =CE195 -> 0 | CF200: 0 | CG200: 0 | CH200: 0 | CI200: 0 | CJ200: 0 | CK200: 0 | CL200: 0 | CM200: 0 | CN200: 0 | CT200: =A199 -> 0
A201: 36 | B201: Round rank | C201: =RANK(C204,$C204:$CN204,0) -> 1 | D201: =RANK(D204,$C204:$CN204,0) -> 1 | E201: 1 | F201: 1 | G201: 1 | H201: 1 | I201: 1 | J201: 1 | K201: 1 | L201: 1 | M201: 1 | N201: 1 | O201: 1 | P201: 1 | Q201: 1 | R201: 1 | S201: 1 | T201: 1 | U201: 1 | V201: 1 | W201: 1 | X201: 1 | Y201: 1 | Z201: 1 | AA201: 1 | AB201: 1 | AC201: 1 | AD201: 1 | AE201: 1 | AF201: 1 | AG201: 1 | AH201: 1 | AI201: 1 | AJ201: 1 | AK201: 1 | AL201: 1 | AM201: 1 | AN201: 1 | AO201: 1 | AP201: 1 | AQ201: 1 | AR201: 1 | AS201: 1 | AT201: 1 | AU201: 1 | AV201: 1 | AW201: 1 | AX201: 1 | AY201: 1 | AZ201: 1 | BA201: 1 | BB201: 1 | BC201: 1 | BD201: 1 | BE201: 1 | BF201: 1 | BG201: 1 | BH201: 1 | BI201: 1 | BJ201: 1 | BK201: 1 | BL201: 1 | BM201: 1 | BN201: 1 | BO201: 1 | BP201: =RANK(BP204,$C204:$CN204,0) -> 1 | BQ201: 1 | BR201: 1 | BS201: 1 | BT201: 1 | BU201: 1 | BV201: 1 | BW201: 1 | BX201: 1 | BY201: 1 | BZ201: 1 | CA201: 1 | CB201: 1 | CC201: 1 | CD201: 1 | CE201: 1 | CF201: 1 | CG201: 1 | CH201: 1 | CI201: 1 | CJ201: 1 | CK201: 1 | CL201: 1 | CM201: 1 | CN201: 1
B202: Time | CP202: =IF(Randomizer!CP227=0,"",Randomizer!CP227) ->  | CQ202: =IF(CP202=0, "", Randomizer!CQ227) ->  | CT202: =A201 -> 36
B203: Penalties
... 127 more rows

Sheet Results summary
A1: =CONCATENATE("Results Summary - ",'Enter data here!'!D3) -> Results Summary - South Open | F1: =IF('Enter data here!'!D4="","",'Enter data here!'!D4) -> 2014-05-10
A3: Overall Results (1-50): | H3: =CONCATENATE("CD - ",'Enter data here!'!D5) -> CD - John Phillips | J3: Round Winners: | O3: Teams:
J4: (* denotes joint round winners - see full round scores for details)
A5: ='Enter data here!'!A243 -> Rank | B5: ='Enter data here!'!B243 -> Competitor | C5: Team Name | D5: ='Enter data here!'!C243 -> Score | J5: Round | K5: Competitor | L5: Time | O5: Rank | P5: Team | Q5: Score | R5: Rank | S5: Teams | T5: Total
A6: ='Enter data here!'!A244 -> 1 | B6: ='Enter data here!'!B244 -> Mark Redsell | C6: ='Enter data here!'!D244 -> GBU | D6: ='Enter data here!'!C244 -> 5659.723346 | J6: =A6 -> 1 | K6: =IF(ISERROR('Full round scores'!F11-'Full round scores'!F10),"",IF(('Full round scores'!F11-'Full round scores'!F10)<0.001,CONCATENATE('Full round scores'!E10,$N$7),'Full round scores'!E10)) -> Peter Gunning | L6: ='Enter data here!'!$CP27 -> 37.27 | O6: 1 | P6: GBU | Q6: 16812.64 | R6: =RANK(T6,T6:T45) -> 28 | S6: ='Enter data here!'!C$11 -> Schwaben | T6: =SUMIF(C6:C55,S6,D6:D55) -> 15744.05725
A7: ='Enter data here!'!A245 -> 2 | B7: ='Enter data here!'!B245 -> Martin Newnham | C7: ='Enter data here!'!D245 -> GBU | D7: ='Enter data here!'!C245 -> 5619.222927 | J7: 2 | K7: =IF(ISERROR('Full round scores'!I11-'Full round scores'!I10),"",IF(('Full round scores'!I11-'Full round scores'!I10)<0.001,CONCATENATE('Full round scores'!H10,$N$7),'Full round scores'!H10)) -> Søren Krogh | L7: ='Enter data here!'!$CP32 -> 36.43 | N7: * | O7: 2 | P7: Schwaben | Q7: 15744.05 | R7: =RANK(T7,T6:T45) -> 40 | S7: ='Enter data here!'!D$11 -> Netherlands | T7: =SUMIF(C6:C55,S7,D6:D55) -> 6089.448713
A8: ='Enter data here!'!A246 -> 3 | B8: ='Enter data here!'!B246 -> Simon Thornton | C8: ='Enter data here!'!D246 -> GBU | D8: ='Enter data here!'!C246 -> 5533.702791 | J8: 3 | K8: =IF(ISERROR('Full round scores'!L11-'Full round scores'!L10),"",IF(('Full round scores'!L11-'Full round scores'!L10)<0.001,CONCATENATE('Full round scores'!K10,$N$7),'Full round scores'!K10)) -> Simon Thornton | L8: ='Enter data here!'!$CP37 -> 34.11 | O8: 3 | P8: Mickey's Massive | Q8: 15701.99 | R8: =RANK(T8,T6:T45) -> 27 | S8: ='Enter data here!'!E$11 -> GBU | T8: =SUMIF(C6:C55,S8,D6:D55) -> 16812.64906
A9: ='Enter data here!'!A247 -> 4 | B9: ='Enter data here!'!B247 -> Thorsten Folker | C9: ='Enter data here!'!D247 -> Schwaben | D9: ='Enter data here!'!C247 -> 5461.422776 | J9: 4 | K9: =IF(ISERROR('Full round scores'!O11-'Full round scores'!O10),"",IF(('Full round scores'!O11-'Full round scores'!O10)<0.001,CONCATENATE('Full round scores'!N10,$N$7),'Full round scores'!N10)) -> Mark Redsell | L9: ='Enter data here!'!$CP42 -> 37.4 | O9: 4 | P9: Germany 2 | Q9: 15536.63 | R9: =RANK(T9,T6:T45) -> 37 | S9: ='Enter data here!'!F$11 -> It's a Fix | T9: =SUMIF(C6:C55,S9,D6:D55) -> 9670.47765
A10: ='Enter data here!'!A248 -> 5 | B10: ='Enter data here!'!B248 -> André Austen | C10: ='Enter data here!'!D248 -> Germany 2 | D10: ='Enter data here!'!C248 -> 5413.40825 | J10: 5 | K10: =IF(ISERROR('Full round scores'!R11-'Full round scores'!R10),"",IF(('Full round scores'!R11-'Full round scores'!R10)<0.001,CONCATENATE('Full round scores'!Q10,$N$7),'Full round scores'!Q10)) -> John Phillips | L10: ='Enter data here!'!$CP47 -> 39.2 | O10: 5 | P10: SAF | Q10: 15287.93 | R10: =RANK(T10,T6:T45) -> 34 | S10: ='Enter data here!'!G$11 -> Celox Team | T10: =SUMIF(C6:C55,S10,D6:D55) -> 13510.81952
A11: ='Enter data here!'!A249 -> 6 | B11: ='Enter data here!'!B249 -> Peter Gunning | C11: ='Enter data here!'!D249 -> Mickey's Massive | D11: ='Enter data here!'!C249 -> 5365.654608 | J11: 6 | K11: =IF(ISERROR('Full round scores'!U11-'Full round scores'!U10),"",IF(('Full round scores'!U11-'Full round scores'!U10)<0.001,CONCATENATE('Full round scores'!T10,$N$7),'Full round scores'!T10)) -> Tobias Reik | L11: ='Enter data here!'!$CP52 -> 38.16 | O11: 6 | P11: SWISS LURCH | Q11: 14353.42 | R11: =RANK(T11,T6:T45) -> 30 | S11: ='Enter data here!'!H$11 -> Germany 2 | T11: =SUMIF(C6:C55,S11,D6:D55) -> 15536.62577
A12: ='Enter data here!'!A250 -> 7 | B12: ='Enter data here!'!B250 -> Joel West | C12: ='Enter data here!'!D250 -> Mickey's Massive | D12: ='Enter data here!'!C250 -> 5321.838283 | J12: 7 | K12: =IF(ISERROR('Full round scores'!X11-'Full round scores'!X10),"",IF(('Full round scores'!X11-'Full round scores'!X10)<0.001,CONCATENATE('Full round scores'!W10,$N$7),'Full round scores'!W10)) -> Mark Redsell | L12: ='Enter data here!'!$CP57 -> 36.99 | O12: 7 | P12: Celox Team | Q12: 13510.82 | R12: =RANK(T12,T6:T45) -> 35 | S12: ='Enter data here!'!I$11 -> Watering Can | T12: =SUMIF(C6:C55,S12,D6:D55) -> 11167.56476
A13: ='Enter data here!'!A251 -> 8 | B13: ='Enter data here!'!B251 -> Søren Krogh | C13: ='Enter data here!'!D251 -> 0 | D13: ='Enter data here!'!C251 -> 5309.638533 | J13: 8 | K13: =IF(ISERROR('Full round scores'!AA11-'Full round scores'!AA10),"",IF(('Full round scores'!AA11-'Full round scores'!AA10)<0.001,CONCATENATE('Full round scores'!Z10,$N$7),'Full round scores'!Z10)) ->  | L13: ='Enter data here!'!$CP62 ->  | O13: 8 | P13: Watering Can | Q13: 11167.57 | R13: =RANK(T13,T6:T45) -> 36 | S13: ='Enter data here!'!J$11 -> Swillers | T13: =SUMIF(C6:C55,S13,D6:D55) -> 9944.663743
A14: ='Enter data here!'!A252 -> 9 | B14: ='Enter data here!'!B252 -> Tobias Reik | C14: ='Enter data here!'!D252 -> Schwaben | D14: ='Enter data here!'!C252 -> 5307.912401 | J14: 9 | K14: =IF(ISERROR('Full round scores'!AD11-'Full round scores'!AD10),"",IF(('Full round scores'!AD11-'Full round scores'!AD10)<0.001,CONCATENATE('Full round scores'!AC10,$N$7),'Full round scores'!AC10)) ->  | L14: ='Enter data here!'!$CP67 ->  | O14: 9 | P14: No Name | Q14: 11071.32 | R14: =RANK(T14,T6:T45) -> 31 | S14: ='Enter data here!'!K$11 -> SAF | T14: =SUMIF(C6:C55,S14,D6:D55) -> 15287.92842
A15: ='Enter data here!'!A253 -> 10 | B15: ='Enter data here!'!B253 -> Peter Kowalski | C15: ='Enter data here!'!D253 -> SAF | D15: ='Enter data here!'!C253 -> 5282.26306 | J15: 10 | K15: =IF(ISERROR('Full round scores'!AG11-'Full round scores'!AG10),"",IF(('Full round scores'!AG11-'Full round scores'!AG10)<0.001,CONCATENATE('Full round scores'!AF10,$N$7),'Full round scores'!AF10)) ->  | L15: ='Enter data here!'!$CP72 ->  | O15: 10 | P15: Swillers | Q15: 9944.67 | R15: =RANK(T15,T6:T45) -> 39 | S15: ='Enter data here!'!L$11 -> THE Team | T15: =SUMIF(C6:C55,S15,D6:D55) -> 7760.512094
A16: ='Enter data here!'!A254 -> 11 | B16: ='Enter data here!'!B254 -> Markus Meissner | C16: ='Enter data here!'!D254 -> SWISS LURCH | D16: ='Enter data here!'!C254 -> 5276.591914 | J16: 11 | K16: =IF(ISERROR('Full round scores'!AJ11-'Full round scores'!AJ10),"",IF(('Full round scores'!AJ11-'Full round scores'!AJ10)<0.001,CONCATENATE('Full round scores'!AI10,$N$7),'Full round scores'!AI10)) ->  | L16: ='Enter data here!'!$CP77 ->  | O16: 11 | P16: It's A Fix | Q16: 9670.48 | R16: =RANK(T16,T6:T45) -> 29 | S16: ='Enter data here!'!M$11 -> Mickey's Massive | T16: =SUMIF(C6:C55,S16,D6:D55) -> 15701.99077
A17: ='Enter data here!'!A255 -> 12 | B17: ='Enter data here!'!B255 -> Alvaro Silgado | C17: ='Enter data here!'!D255 -> Watering Can | D17: ='Enter data here!'!C255 -> 5164.707447 | J17: 12 | K17: =IF(ISERROR('Full round scores'!AM11-'Full round scores'!AM10),"",IF(('Full round scores'!AM11-'Full round scores'!AM10)<0.001,CONCATENATE('Full round scores'!AL10,$N$7),'Full round scores'!AL10)) ->  | L17: ='Enter data here!'!$CP82 ->  | O17: 12 | P17: A Team | Q17: 9048 | R17: =RANK(T17,T6:T45) -> 33 | S17: ='Enter data here!'!N$11 -> No Name | T17: =SUMIF(C6:C55,S17,D6:D55) -> 13771.31495
A18: ='Enter data here!'!A256 -> 13 | B18: ='Enter data here!'!B256 -> John Phillips | C18: ='Enter data here!'!D256 -> Swillers | D18: ='Enter data here!'!C256 -> 5139.577487 | J18: 13 | K18: =IF(ISERROR('Full round scores'!AP11-'Full round scores'!AP10),"",IF(('Full round scores'!AP11-'Full round scores'!AP10)<0.001,CONCATENATE('Full round scores'!AO10,$N$7),'Full round scores'!AO10)) ->  | L18: ='Enter data here!'!$CP87 ->  | O18: 13 | P18: The Team | Q18: 7760.52 | R18: =RANK(T18,T6:T45) -> 32 | S18: ='Enter data here!'!O$11 -> SWISS LURCH | T18: =SUMIF(C6:C55,S18,D6:D55) -> 14353.41856
A19: ='Enter data here!'!A257 -> 14 | B19: ='Enter data here!'!B257 -> Daniel Schneider | C19: ='Enter data here!'!D257 -> Germany 2 | D19: ='Enter data here!'!C257 -> 5076.397036 | J19: 14 | K19: =IF(ISERROR('Full round scores'!AS11-'Full round scores'!AS10),"",IF(('Full round scores'!AS11-'Full round scores'!AS10)<0.001,CONCATENATE('Full round scores'!AR10,$N$7),'Full round scores'!AR10)) ->  | L19: ='Enter data here!'!$CP92 ->  | O19: 14 | P19: Netherlands | Q19: 6089.23 | R19: =RANK(T19,T6:T45) -> 38 | S19: ='Enter data here!'!P$11 -> A Team | T19: =SUMIF(C6:C55,S19,D6:D55) -> 9048.000745
A20: ='Enter data here!'!A258 -> 15 | B20: ='Enter data here!'!B258 -> Eberhard Rosemann | C20: ='Enter data here!'!D258 -> No Name | D20: ='Enter data here!'!C258 -> 5048.40058 | J20: 15 | K20: =IF(ISERROR('Full round scores'!AV11-'Full round scores'!AV10),"",IF(('Full round scores'!AV11-'Full round scores'!AV10)<0.001,CONCATENATE('Full round scores'!AU10,$N$7),'Full round scores'!AU10)) ->  | L20: ='Enter data here!'!$CP97 ->  | O20: 15 | R20: =RANK(T20,T6:T45) -> 1 | S20: ='Enter data here!'!Q$11 -> 0 | T20: =SUMIF(C6:C55,S20,D6:D55) -> 27241.36183
A21: ='Enter data here!'!A259 -> 16 | B21: ='Enter data here!'!B259 -> Sebastian Reichert | C21: ='Enter data here!'!D259 -> Germany 2 | D21: ='Enter data here!'!C259 -> 5046.820484 | J21: 16 | K21: =IF(ISERROR('Full round scores'!AY11-'Full round scores'!AY10),"",IF(('Full round scores'!AY11-'Full round scores'!AY10)<0.001,CONCATENATE('Full round scores'!AY10,$N$7),'Full round scores'!AX10)) ->  | L21: ='Enter data here!'!$CP102 ->  | O21: 16 | R21: =RANK(T21,T6:T45) -> 1 | S21: ='Enter data here!'!R$11 -> 0 | T21: =SUMIF(C6:C55,S21,D6:D55) -> 27241.36183
A22: ='Enter data here!'!A260 -> 17 | B22: ='Enter data here!'!B260 -> Dieter Perlick | C22: ='Enter data here!'!D260 -> SAF | D22: ='Enter data here!'!C260 -> 5016.029318 | J22: 17 | K22: =IF(ISERROR('Full round scores'!BB11-'Full round scores'!BB10),"",IF(('Full round scores'!BB11-'Full round scores'!BB10)<0.001,CONCATENATE('Full round scores'!BB10,$N$7),'Full round scores'!BA10)) ->  | L22: ='Enter data here!'!$CP107 ->  | O22: 17 | R22: =RANK(T22,T6:T45) -> 1 | S22: ='Enter data here!'!S$11 -> 0 | T22: =SUMIF(C6:C55,S22,D6:D55) -> 27241.36183
A23: ='Enter data here!'!A261 -> 18 | B23: ='Enter data here!'!B261 -> Stefan Bertschi | C23: ='Enter data here!'!D261 -> Mickey's Massive | D23: ='Enter data here!'!C261 -> 5014.497879 | J23: 18 | K23: =IF(ISERROR('Full round scores'!BE11-'Full round scores'!BE10),"",IF(('Full round scores'!BE11-'Full round scores'!BE10)<0.001,CONCATENATE('Full round scores'!BE10,$N$7),'Full round scores'!BD10)) ->  | L23: ='Enter data here!'!$CP112 ->  | O23: 18 | R23: =RANK(T23,T6:T45) -> 1 | S23: ='Enter data here!'!T$11 -> 0 | T23: =SUMIF(C6:C55,S23,D6:D55) -> 27241.36183
A24: ='Enter data here!'!A262 -> 19 | B24: ='Enter data here!'!B262 -> Klaus Kowalski | C24: ='Enter data here!'!D262 -> SAF | D24: ='Enter data here!'!C262 -> 4989.636042 | J24: 19 | K24: =IF(ISERROR('Full round scores'!BH11-'Full round scores'!BH10),"",IF(('Full round scores'!BH11-'Full round scores'!BH10)<0.001,CONCATENATE('Full round scores'!BH10,$N$7),'Full round scores'!BG10)) ->  | L24: ='Enter data here!'!$CP117 ->  | O24: 19 | R24: =RANK(T24,T6:T45) -> 1 | S24: ='Enter data here!'!U$11 -> 0 | T24: =SUMIF(C6:C55,S24,D6:D55) -> 27241.36183
A25: ='Enter data here!'!A263 -> 20 | B25: ='Enter data here!'!B263 -> Siegfried Schedel | C25: ='Enter data here!'!D263 -> Schwaben | D25: ='Enter data here!'!C263 -> 4974.722068 | J25: 20 | K25: =IF(ISERROR('Full round scores'!BK11-'Full round scores'!BK10),"",IF(('Full round scores'!BK11-'Full round scores'!BK10)<0.001,CONCATENATE('Full round scores'!BK10,$N$7),'Full round scores'!BJ10)) ->  | L25: ='Enter data here!'!$CP122 ->  | O25: 20 | R25: =RANK(T25,T6:T45) -> 1 | S25: ='Enter data here!'!V$11 -> 0 | T25: =SUMIF(C6:C55,S25,D6:D55) -> 27241.36183
A26: ='Enter data here!'!A264 -> 21 | B26: ='Enter data here!'!B264 -> Mark Treble | C26: ='Enter data here!'!D264 -> THE Team | D26: ='Enter data here!'!C264 -> 4969.03653 | J26: 21 | K26: =IF(ISERROR('Full round scores'!BN11-'Full round scores'!BN10),"",IF(('Full round scores'!BN11-'Full round scores'!BN10)<0.001,CONCATENATE('Full round scores'!BN10,$N$7),'Full round scores'!BM10)) ->  | L26: ='Enter data here!'!$CP127 ->  | O26: 21 | R26: =RANK(T26,T6:T45) -> 1 | S26: ='Enter data here!'!W$11 -> 0 | T26: =SUMIF(C6:C55,S26,D6:D55) -> 27241.36183
A27: ='Enter data here!'!A265 -> 22 | B27: ='Enter data here!'!B265 -> Plöschberger Hannes | C27: ='Enter data here!'!D265 -> 0 | D27: ='Enter data here!'!C265 -> 4863.75707 | J27: 22 | K27: =IF(ISERROR('Full round scores'!BQ11-'Full round scores'!BQ10),"",IF(('Full round scores'!BQ11-'Full round scores'!BQ10)<0.001,CONCATENATE('Full round scores'!BQ10,$N$7),'Full round scores'!BP10)) ->  | L27: ='Enter data here!'!$CP132 ->  | O27: 22 | R27: =RANK(T27,T6:T45) -> 1 | S27: ='Enter data here!'!X$11 -> 0 | T27: =SUMIF(C6:C55,S27,D6:D55) -> 27241.36183
A28: ='Enter data here!'!A266 -> 23 | B28: ='Enter data here!'!B266 -> Gary Harrison | C28: ='Enter data here!'!D266 -> It's A Fix | D28: ='Enter data here!'!C266 -> 4831.320513 | J28: 23 | K28: =IF(ISERROR('Full round scores'!BT11-'Full round scores'!BT10),"",IF(('Full round scores'!BT11-'Full round scores'!BT10)<0.001,CONCATENATE('Full round scores'!BT10,$N$7),'Full round scores'!BS10)) ->  | L28: ='Enter data here!'!$CP137 ->  | O28: 23 | R28: =RANK(T28,T6:T45) -> 1 | S28: ='Enter data here!'!Y$11 -> 0 | T28: =SUMIF(C6:C55,S28,D6:D55) -> 27241.36183
A29: ='Enter data here!'!A267 -> 24 | B29: ='Enter data here!'!B267 -> Stefan Bernardy | C29: ='Enter data here!'!D267 -> Netherlands | D29: ='Enter data here!'!C267 -> 4805.307048 | J29: 24 | K29: =IF(ISERROR('Full round scores'!BW11-'Full round scores'!BW10),"",IF(('Full round scores'!BW11-'Full round scores'!BW10)<0.001,CONCATENATE('Full round scores'!BW10,$N$7),'Full round scores'!BV10)) ->  | L29: ='Enter data here!'!$CP142 ->  | O29: 24 | R29: =RANK(T29,T6:T45) -> 1 | S29: ='Enter data here!'!Z$11 -> 0 | T29: =SUMIF(C6:C55,S29,D6:D55) -> 27241.36183
A30: ='Enter data here!'!A268 -> 25 | B30: ='Enter data here!'!B268 -> Greg Dakin | C30: ='Enter data here!'!D268 -> Swillers | D30: ='Enter data here!'!C268 -> 4805.086256 | J30: 25 | K30: =IF(ISERROR('Full round scores'!BZ11-'Full round scores'!BZ10),"",IF(('Full round scores'!BZ11-'Full round scores'!BZ10)<0.001,CONCATENATE('Full round scores'!BZ10,$N$7),'Full round scores'!BY10)) ->  | L30: ='Enter data here!'!$CP147 ->  | O30: 25 | R30: =RANK(T30,T6:T45) -> 1 | S30: ='Enter data here!'!AA$11 -> 0 | T30: =SUMIF(C6:C55,S30,D6:D55) -> 27241.36183
A31: ='Enter data here!'!A269 -> 26 | B31: ='Enter data here!'!B269 -> Klaus Brettner | C31: ='Enter data here!'!D269 -> Celox Team | D31: ='Enter data here!'!C269 -> 4795.289031 | J31: 26 | K31: =IF(ISERROR('Full round scores'!CC11-'Full round scores'!CC10),"",IF(('Full round scores'!CC11-'Full round scores'!CC10)<0.001,CONCATENATE('Full round scores'!CC10,$N$7),'Full round scores'!CB10)) ->  | L31: ='Enter data here!'!$CP152 ->  | O31: 26 | R31: =RANK(T31,T6:T45) -> 1 | S31: ='Enter data here!'!AB$11 -> 0 | T31: =SUMIF(C6:C55,S31,D6:D55) -> 27241.36183
A32: ='Enter data here!'!A270 -> 27 | B32: ='Enter data here!'!B270 -> Jesper Christensen | C32: ='Enter data here!'!D270 -> 0 | D32: ='Enter data here!'!C270 -> 4744.53905 | J32: 27 | K32: =IF(ISERROR('Full round scores'!CF11-'Full round scores'!CF10),"",IF(('Full round scores'!CF11-'Full round scores'!CF10)<0.001,CONCATENATE('Full round scores'!CF10,$N$7),'Full round scores'!CE10)) ->  | L32: ='Enter data here!'!$CP157 ->  | O32: 27 | R32: =RANK(T32,T6:T45) -> 1 | S32: ='Enter data here!'!AC$11 -> 0 | T32: =SUMIF(C6:C55,S32,D6:D55) -> 27241.36183
A33: ='Enter data here!'!A271 -> 28 | B33: ='Enter data here!'!B271 -> George Young | C33: ='Enter data here!'!D271 -> A Team | D33: ='Enter data here!'!C271 -> 4585.094856 | J33: 28 | K33: =IF(ISERROR('Full round scores'!CI11-'Full round scores'!CI10),"",IF(('Full round scores'!CI11-'Full round scores'!CI10)<0.001,CONCATENATE('Full round scores'!CI10,$N$7),'Full round scores'!CH10)) ->  | L33: ='Enter data here!'!$CP162 ->  | O33: 28 | R33: =RANK(T33,T6:T45) -> 1 | S33: ='Enter data here!'!AD$11 -> 0 | T33: =SUMIF(C6:C55,S33,D6:D55) -> 27241.36183
A34: ='Enter data here!'!A272 -> 29 | B34: ='Enter data here!'!B272 -> Martin Kopp | C34: ='Enter data here!'!D272 -> No Name | D34: ='Enter data here!'!C272 -> 4583.989322 | J34: 29 | K34: =IF(ISERROR('Full round scores'!CL11-'Full round scores'!CL10),"",IF(('Full round scores'!CL11-'Full round scores'!CL10)<0.001,CONCATENATE('Full round scores'!CL10,$N$7),'Full round scores'!CK10)) ->  | L34: ='Enter data here!'!$CP167 ->  | O34: 29 | R34: =RANK(T34,T6:T45) -> 1 | S34: ='Enter data here!'!AE$11 -> 0 | T34: =SUMIF(C6:C55,S34,D6:D55) -> 27241.36183
A35: ='Enter data here!'!A273 -> 30 | B35: ='Enter data here!'!B273 -> Thomas Henselmann | C35: ='Enter data here!'!D273 -> SWISS LURCH | D35: ='Enter data here!'!C273 -> 4540.025464 | F35: Rounds Flown | G35: ='Enter data here!'!C227 -> 7 | J35: 30 | K35: =IF(ISERROR('Full round scores'!CO11-'Full round scores'!CO10),"",IF(('Full round scores'!CO11-'Full round scores'!CO10)<0.001,CONCATENATE('Full round scores'!CO10,$N$7),'Full round scores'!CN10)) ->  | L35: ='Enter data here!'!$CP172 ->  | O35: 30 | R35: =RANK(T35,T6:T45) -> 1 | S35: ='Enter data here!'!AF$11 -> 0 | T35: =SUMIF(C6:C55,S35,D6:D55) -> 27241.36183
A36: ='Enter data here!'!A274 -> 31 | B36: ='Enter data here!'!B274 -> Martin Ulrich | C36: ='Enter data here!'!D274 -> SWISS LURCH | D36: ='Enter data here!'!C274 -> 4536.80118 | J36: 31 | K36: =IF(ISERROR('Full round scores'!CR11-'Full round scores'!CR10),"",IF(('Full round scores'!CR11-'Full round scores'!CR10)<0.001,CONCATENATE('Full round scores'!CR10,$N$7),'Full round scores'!CQ10)) ->  | L36: ='Enter data here!'!$CP177 ->  | O36: 31 | R36: =RANK(T36,T6:T45) -> 1 | S36: ='Enter data here!'!AG$11 -> 0 | T36: =SUMIF(C6:C55,S36,D6:D55) -> 27241.36183
A37: ='Enter data here!'!A275 -> 32 | B37: ='Enter data here!'!B275 -> Thomas Deinert | C37: ='Enter data here!'!D275 -> Celox Team | D37: ='Enter data here!'!C275 -> 4531.861594 | J37: 32 | K37: =IF(ISERROR('Full round scores'!CU11-'Full round scores'!CU10),"",IF(('Full round scores'!CU11-'Full round scores'!CU10)<0.001,CONCATENATE('Full round scores'!CU10,$N$7),'Full round scores'!CT10)) ->  | L37: ='Enter data here!'!$CP182 ->  | O37: 32 | R37: =RANK(T37,T6:T45) -> 1 | S37: ='Enter data here!'!AH$11 -> 0 | T37: =SUMIF(C6:C55,S37,D6:D55) -> 27241.36183
A38: ='Enter data here!'!A276 -> 33 | B38: ='Enter data here!'!B276 -> Mark Abbotts | C38: ='Enter data here!'!D276 -> Watering Can | D38: ='Enter data here!'!C276 -> 4476.240574 | F38: Best flight: | J38: 33 | K38: =IF(ISERROR('Full round scores'!CX11-'Full round scores'!CX10),"",IF(('Full round scores'!CX11-'Full round scores'!CX10)<0.001,CONCATENATE('Full round scores'!CX10,$N$7),'Full round scores'!CW10)) ->  | L38: ='Enter data here!'!$CP187 ->  | O38: 33 | R38: =RANK(T38,T6:T45) -> 1 | S38: ='Enter data here!'!AI$11 -> 0 | T38: =SUMIF(C6:C55,S38,D6:D55) -> 27241.36183
A39: ='Enter data here!'!A277 -> 34 | B39: ='Enter data here!'!B277 -> Mick Walsh | C39: ='Enter data here!'!D277 -> A Team | D39: ='Enter data here!'!C277 -> 4462.905888 | J39: 34 | K39: =IF(ISERROR('Full round scores'!DA11-'Full round scores'!DA10),"",IF(('Full round scores'!DA11-'Full round scores'!DA10)<0.001,CONCATENATE('Full round scores'!DA10,$N$7),'Full round scores'!CZ10)) ->  | L39: ='Enter data here!'!$CP192 ->  | O39: 34 | R39: =RANK(T39,T6:T45) -> 1 | S39: ='Enter data here!'!AJ$11 -> 0 | T39: =SUMIF(C6:C55,S39,D6:D55) -> 27241.36183
A40: ='Enter data here!'!A278 -> 35 | B40: ='Enter data here!'!B278 -> Mike Shellim | C40: ='Enter data here!'!D278 -> 0 | D40: ='Enter data here!'!C278 -> 4260.975788 | F40: ='Enter data here!'!CR229 -> Competitor | G40: Time | J40: 35 | K40: =IF(ISERROR('Full round scores'!DD11-'Full round scores'!DD10),"",IF(('Full round scores'!DD11-'Full round scores'!DD10)<0.001,CONCATENATE('Full round scores'!DD10,$N$7),'Full round scores'!DC10)) ->  | L40: ='Enter data here!'!$CP197 ->  | O40: 35 | R40: =RANK(T40,T6:T45) -> 1 | S40: ='Enter data here!'!AK$11 -> 0 | T40: =SUMIF(C6:C55,S40,D6:D55) -> 27241.36183
A41: ='Enter data here!'!A279 -> 36 | B41: ='Enter data here!'!B279 -> Torsten Hermann | C41: ='Enter data here!'!D279 -> Celox Team | D41: ='Enter data here!'!C279 -> 4183.668898 | F41: ='Enter data here!'!CR240 -> Simon Thornton | G41: ='Enter data here!'!CP240 -> 34.11 | J41: 36 | K41: =IF(ISERROR('Full round scores'!DG11-'Full round scores'!DG10),"",IF(('Full round scores'!DG11-'Full round scores'!DG10)<0.001,CONCATENATE('Full round scores'!DG10,$N$7),'Full round scores'!DF10)) ->  | L41: ='Enter data here!'!$CP202 ->  | O41: 36 | R41: =RANK(T41,T6:T45) -> 1 | S41: ='Enter data here!'!AL$11 -> 0 | T41: =SUMIF(C6:C55,S41,D6:D55) -> 27241.36183
A42: ='Enter data here!'!A280 -> 37 | B42: ='Enter data here!'!B280 -> Pete Burgess | C42: ='Enter data here!'!D280 -> No Name | D42: ='Enter data here!'!C280 -> 4138.925052 | J42: 37 | K42: =IF(ISERROR('Full round scores'!DJ11-'Full round scores'!DJ10),"",IF(('Full round scores'!DJ11-'Full round scores'!DJ10)<0.001,CONCATENATE('Full round scores'!DJ10,$N$7),'Full round scores'!DI10)) ->  | L42: ='Enter data here!'!$CP207 ->  | O42: 37 | R42: =RANK(T42,T6:T45) -> 1 | S42: ='Enter data here!'!AM$11 -> 0 | T42: =SUMIF(C6:C55,S42,D6:D55) -> 27241.36183
A43: ='Enter data here!'!A281 -> 38 | B43: ='Enter data here!'!B281 -> Allen Elliott | C43: ='Enter data here!'!D281 -> It's a Fix | D43: ='Enter data here!'!C281 -> 4123.527337 | F43: (In round | G43: ='Enter data here!'!CQ240 -> 3 | H43: ) | J43: 38 | K43: =IF(ISERROR('Full round scores'!DM11-'Full round scores'!DM10),"",IF(('Full round scores'!DM11-'Full round scores'!DM10)<0.001,CONCATENATE('Full round scores'!DM10,$N$7),'Full round scores'!DL10)) ->  | L43: ='Enter data here!'!$CP212 ->  | O43: 38 | R43: =RANK(T43,T6:T45) -> 1 | S43: ='Enter data here!'!AN$11 -> 0 | T43: =SUMIF(C6:C55,S43,D6:D55) -> 27241.36183
A44: ='Enter data here!'!A282 -> 39 | B44: ='Enter data here!'!B282 -> Marc Schmieding | C44: ='Enter data here!'!D282 -> 0 | D44: ='Enter data here!'!C282 -> 3798.784805 | J44: 39 | K44: =IF(ISERROR('Full round scores'!DP11-'Full round scores'!DP10),"",IF(('Full round scores'!DP11-'Full round scores'!DP10)<0.001,CONCATENATE('Full round scores'!DP10,$N$7),'Full round scores'!DO10)) ->  | L44: ='Enter data here!'!$CP127 ->  | O44: 39 | R44: =RANK(T44,T6:T45) -> 1 | S44: ='Enter data here!'!AO$11 -> 0 | T44: =SUMIF(C6:C55,S44,D6:D55) -> 27241.36183
A45: ='Enter data here!'!A283 -> 40 | B45: ='Enter data here!'!B283 -> Ulrich Duttenhofer | C45: ='Enter data here!'!D283 -> 0 | D45: ='Enter data here!'!C283 -> 3668.013711 | J45: 40 | K45: =IF(ISERROR('Full round scores'!DS11-'Full round scores'!DS10),"",IF(('Full round scores'!DS11-'Full round scores'!DS10)<0.001,CONCATENATE('Full round scores'!DS10,$N$7),'Full round scores'!DR10)) ->  | L45: ='Enter data here!'!$CP222 ->  | O45: 40 | R45: =RANK(T45,T6:T45) -> 1 | S45: ='Enter data here!'!AP$11 -> 0 | T45: =SUMIF(C6:C55,S45,D6:D55) -> 27241.36183
A46: ='Enter data here!'!A284 -> 41 | B46: ='Enter data here!'!B284 -> Jon Edison | C46: ='Enter data here!'!D284 -> THE Team | D46: ='Enter data here!'!C284 -> 2791.475564
A47: ='Enter data here!'!A285 -> 42 | B47: ='Enter data here!'!B285 -> Mike Evans | C47: ='Enter data here!'!D285 -> Watering Can | D47: ='Enter data here!'!C285 -> 1526.616736
A48: ='Enter data here!'!A286 -> 43 | B48: ='Enter data here!'!B286 -> Robert Hermans | C48: ='Enter data here!'!D286 -> Netherlands | D48: ='Enter data here!'!C286 -> 1284.141666
A49: ='Enter data here!'!A287 -> 44 | B49: ='Enter data here!'!B287 -> Tony Robertson | C49: ='Enter data here!'!D287 -> It's a Fix | D49: ='Enter data here!'!C287 -> 715.6298003
A50: ='Enter data here!'!A288 -> 45 | B50: ='Enter data here!'!B288 -> Jason Bioletti | C50: ='Enter data here!'!D288 -> 0 | D50: ='Enter data here!'!C288 -> 595.6528688
A51: ='Enter data here!'!A289 -> 46 | B51: ='Enter data here!'!B289 -> Frank Hulton | C51: ='Enter data here!'!D289 -> THE Team | D51: ='Enter data here!'!C289 -> 4.501986193e-12
A52: ='Enter data here!'!A290 -> 47 | B52: ='Enter data here!'!B290 -> Paul Garnett | C52: ='Enter data here!'!D290 -> Swillers | D52: ='Enter data here!'!C290 -> 4.054185561e-12
A53: ='Enter data here!'!A291 -> 48 | B53: ='Enter data here!'!B291 -> Robert Ryan | C53: ='Enter data here!'!D291 -> A Team | D53: ='Enter data here!'!C291 -> 3.714026607e-12
A54: ='Enter data here!'!A292 -> 49 | B54: ='Enter data here!'!B292 -> Arne Finkeldey | C54: ='Enter data here!'!D292 -> 0 | D54: ='Enter data here!'!C292 -> 3.561249863e-12 | F54: Sheet author:
A55: ='Enter data here!'!A293 -> 50 | B55: ='Enter data here!'!B293 -> Rick Ruijsink | C55: ='Enter data here!'!D293 -> Netherlands | D55: ='Enter data here!'!C293 -> 3.155068704e-12 | F55: Matt Brett, Sept 08
A57: =A1 -> Results Summary - South Open | F57: =F1 -> 2014-05-10
A59: Overall Results (51-90): | H59: =H3 -> CD - John Phillips
A61: =A5 -> Rank | B61: =B5 -> Competitor | D61: =D5 -> Score
A62: ='Enter data here!'!A294 -> 51 | B62: ='Enter data here!'!B294 ->  | D62: ='Enter data here!'!C294 -> 
A63: ='Enter data here!'!A295 -> 52 | B63: ='Enter data here!'!B295 ->  | D63: ='Enter data here!'!C295 -> 
A64: ='Enter data here!'!A296 -> 53 | B64: ='Enter data here!'!B296 ->  | D64: ='Enter data here!'!C296 -> 
A65: ='Enter data here!'!A297 -> 54 | B65: ='Enter data here!'!B297 ->  | D65: ='Enter data here!'!C297 -> 
A66: ='Enter data here!'!A298 -> 55 | B66: ='Enter data here!'!B298 ->  | D66: ='Enter data here!'!C298 -> 
A67: ='Enter data here!'!A299 -> 56 | B67: ='Enter data here!'!B299 ->  | D67: ='Enter data here!'!C299 -> 
A68: ='Enter data here!'!A300 -> 57 | B68: ='Enter data here!'!B300 ->  | D68: ='Enter data here!'!C300 -> 
A69: ='Enter data here!'!A301 -> 58 | B69: ='Enter data here!'!B301 ->  | D69: ='Enter data here!'!C301 -> 
A70: ='Enter data here!'!A302 -> 59 | B70: ='Enter data here!'!B302 ->  | D70: ='Enter data here!'!C302 -> 
A71: ='Enter data here!'!A303 -> 60 | B71: ='Enter data here!'!B303 ->  | D71: ='Enter data here!'!C303 -> 
A72: ='Enter data here!'!A304 -> 61 | B72: ='Enter data here!'!B304 ->  | D72: ='Enter data here!'!C304 -> 
A73: ='Enter data here!'!A305 -> 62 | B73: ='Enter data here!'!B305 ->  | D73: ='Enter data here!'!C305 -> 
A74: ='Enter data here!'!A306 -> 63 | B74: ='Enter data here!'!B306 ->  | D74: ='Enter data here!'!C306 -> 
A75: ='Enter data here!'!A307 -> 64 | B75: ='Enter data here!'!B307 ->  | D75: ='Enter data here!'!C307 -> 
A76: ='Enter data here!'!A308 -> 65 | B76: ='Enter data here!'!B308 ->  | D76: ='Enter data here!'!C308 -> 
A77: ='Enter data here!'!A309 -> 66 | B77: ='Enter data here!'!B309 ->  | D77: ='Enter data here!'!C309 -> 
A78: ='Enter data here!'!A310 -> 67 | B78: ='Enter data here!'!B310 ->  | D78: ='Enter data here!'!C310 -> 
A79: ='Enter data here!'!A311 -> 68 | B79: ='Enter data here!'!B311 ->  | D79: ='Enter data here!'!C311 -> 
A80: ='Enter data here!'!A312 -> 69 | B80: ='Enter data here!'!B312 ->  | D80: ='Enter data here!'!C312 -> 
A81: ='Enter data here!'!A313 -> 70 | B81: ='Enter data here!'!B313 ->  | D81: ='Enter data here!'!C313 ->  | F81: =F35 -> Rounds Flown | G81: =G35 -> 7
A82: ='Enter data here!'!A314 -> 71 | B82: ='Enter data here!'!B314 ->  | D82: ='Enter data here!'!C314 -> 
A83: ='Enter data here!'!A315 -> 72 | B83: ='Enter data here!'!B315 ->  | D83: ='Enter data here!'!C315 -> 
A84: ='Enter data here!'!A316 -> 73 | B84: ='Enter data here!'!B316 ->  | D84: ='Enter data here!'!C316 ->  | F84: =F38 -> Best flight:
A85: ='Enter data here!'!A317 -> 74 | B85: ='Enter data here!'!B317 ->  | D85: ='Enter data here!'!C317 -> 
A86: ='Enter data here!'!A318 -> 75 | B86: ='Enter data here!'!B318 ->  | D86: ='Enter data here!'!C318 ->  | F86: =F40 -> Competitor | G86: =G40 -> Time
A87: ='Enter data here!'!A319 -> 76 | B87: ='Enter data here!'!B319 ->  | D87: ='Enter data here!'!C319 ->  | F87: =F41 -> Simon Thornton | G87: =G41 -> 34.11
A88: ='Enter data here!'!A320 -> 77 | B88: ='Enter data here!'!B320 ->  | D88: ='Enter data here!'!C320 -> 
A89: ='Enter data here!'!A321 -> 78 | B89: ='Enter data here!'!B321 ->  | D89: ='Enter data here!'!C321 ->  | F89: =F43 -> (In round | G89: =G43 -> 3 | H89: =H43 -> )
A90: ='Enter data here!'!A322 -> 79 | B90: ='Enter data here!'!B322 ->  | D90: ='Enter data here!'!C322 -> 
A91: ='Enter data here!'!A323 -> 80 | B91: ='Enter data here!'!B323 ->  | D91: ='Enter data here!'!C323 -> 
A92: ='Enter data here!'!A324 -> 81 | B92: ='Enter data here!'!B324 ->  | D92: ='Enter data here!'!C324 -> 
A93: ='Enter data here!'!A325 -> 82 | B93: ='Enter data here!'!B325 ->  | D93: ='Enter data here!'!C325 -> 
A94: ='Enter data here!'!A326 -> 83 | B94: ='Enter data here!'!B326 ->  | D94: ='Enter data here!'!C326 -> 
A95: ='Enter data here!'!A327 -> 84 | B95: ='Enter data here!'!B327 ->  | D95: ='Enter data here!'!C327 -> 
A96: ='Enter data here!'!A328 -> 85 | B96: ='Enter data here!'!B328 ->  | D96: ='Enter data here!'!C328 -> 
A97: ='Enter data here!'!A329 -> 86 | B97: ='Enter data here!'!B329 ->  | D97: ='Enter data here!'!C329 -> 
A98: ='Enter data here!'!A330 -> 87 | B98: ='Enter data here!'!B330 ->  | D98: ='Enter data here!'!C330 -> 
A99: ='Enter data here!'!A331 -> 88 | B99: ='Enter data here!'!B331 ->  | D99: ='Enter data here!'!C331 -> 
A100: ='Enter data here!'!A332 -> 89 | B100: ='Enter data here!'!B332 ->  | D100: ='Enter data here!'!C332 ->  | F100: =F54 -> Sheet author:
A101: ='Enter data here!'!A333 -> 90 | B101: ='Enter data here!'!B333 ->  | D101: ='Enter data here!'!C333 ->  | F101: =F55 -> Matt Brett, Sept 08

Sheet Round summaries
A1: =CONCATENATE("Round Summaries - ",'Enter data here!'!D3) -> Round Summaries - South Open | H1: =IF('Enter data here!'!D4="","",'Enter data here!'!D4) -> 2014-05-10
A3: For a detailed round summary and leaderboard at the end of any given round, enter round number from 1-40 in light blue box.
A5: Round | B5: 1 | D5: Speed in: | E5: mph | H5: * - Leaderboard calcs on this page do | K5: mph
H6: not take any discards into account | K6: kph
B8: Round | C8: Result | H8: Round | I8: Leaderboard*
B9: =CONCATENATE(B8,$B$5,C8) -> Round 1 Result | H9: =CONCATENATE(H8,$B$5,I8) -> Round 1 Leaderboard*
A10: Rank | B10: Competitor | C10: Time | D10: Score | E10: =CONCATENATE("Av. Speed/",E5) -> Av. Speed/mph | G10: Rank | H10: Competitor | I10: Total Score
A11: 1 | B11: =IF(ISERROR('Full round scores'!B107),"",'Full round scores'!B107) -> Peter Gunning | C11: =IF(ISERROR('Full round scores'!C107),"",'Full round scores'!C107) -> 37.27 | D11: =IF(ISERROR('Full round scores'!D107),"",'Full round scores'!D107) -> 1000 | E11: =IF(ISERROR('Enter data here!'!$D$7/C11),"",IF($E$5="mph",(((10*'Enter data here!'!$D$7)/1609)*(60/C11)*60),(60/C11)*60)) -> 60.03258769 | G11: 1 | H11: ='Round by round data'!E360 -> Peter Gunning | I11: ='Round by round data'!F360 -> 1000
A12: 2 | B12: =IF(ISERROR('Full round scores'!B108),"",'Full round scores'!B108) -> Martin Newnham | C12: =IF(ISERROR('Full round scores'!C108),"",'Full round scores'!C108) -> 40.03 | D12: =IF(ISERROR('Full round scores'!D108),"",'Full round scores'!D108) -> 931.0517112 | E12: =IF(ISERROR('Enter data here!'!$D$7/C12),"",IF($E$5="mph",(((10*'Enter data here!'!$D$7)/1609)*(60/C12)*60),(60/C12)*60)) -> 55.8934435 | G12: 2 | H12: ='Round by round data'!E361 -> Martin Newnham | I12: ='Round by round data'!F361 -> 931.0517112
A13: 3 | B13: =IF(ISERROR('Full round scores'!B109),"",'Full round scores'!B109) -> Thorsten Folker | C13: =IF(ISERROR('Full round scores'!C109),"",'Full round scores'!C109) -> 40.2 | D13: =IF(ISERROR('Full round scores'!D109),"",'Full round scores'!D109) -> 927.1144279 | E13: =IF(ISERROR('Enter data here!'!$D$7/C13),"",IF($E$5="mph",(((10*'Enter data here!'!$D$7)/1609)*(60/C13)*60),(60/C13)*60)) -> 55.65707819 | G13: 3 | H13: ='Round by round data'!E362 -> Thorsten Folker | I13: ='Round by round data'!F362 -> 927.1144279
A14: 4 | B14: =IF(ISERROR('Full round scores'!B110),"",'Full round scores'!B110) -> Peter Kowalski | C14: =IF(ISERROR('Full round scores'!C110),"",'Full round scores'!C110) -> 40.53 | D14: =IF(ISERROR('Full round scores'!D110),"",'Full round scores'!D110) -> 919.5657538 | E14: =IF(ISERROR('Enter data here!'!$D$7/C14),"",IF($E$5="mph",(((10*'Enter data here!'!$D$7)/1609)*(60/C14)*60),(60/C14)*60)) -> 55.20391175 | G14: 4 | H14: ='Round by round data'!E363 -> Peter Kowalski | I14: ='Round by round data'!F363 -> 919.5657538
A15: 5 | B15: =IF(ISERROR('Full round scores'!B111),"",'Full round scores'!B111) -> Søren Krogh | C15: =IF(ISERROR('Full round scores'!C111),"",'Full round scores'!C111) -> 41.5 | D15: =IF(ISERROR('Full round scores'!D111),"",'Full round scores'!D111) -> 898.0722892 | E15: =IF(ISERROR('Enter data here!'!$D$7/C15),"",IF($E$5="mph",(((10*'Enter data here!'!$D$7)/1609)*(60/C15)*60),(60/C15)*60)) -> 53.91360345 | G15: 5 | H15: ='Round by round data'!E364 -> Søren Krogh | I15: ='Round by round data'!F364 -> 898.0722892
A16: 6 | B16: =IF(ISERROR('Full round scores'!B112),"",'Full round scores'!B112) -> Tobias Reik | C16: =IF(ISERROR('Full round scores'!C112),"",'Full round scores'!C112) -> 42.37 | D16: =IF(ISERROR('Full round scores'!D112),"",'Full round scores'!D112) -> 879.631815 | E16: =IF(ISERROR('Enter data here!'!$D$7/C16),"",IF($E$5="mph",(((10*'Enter data here!'!$D$7)/1609)*(60/C16)*60),(60/C16)*60)) -> 52.80657407 | G16: 6 | H16: ='Round by round data'!E365 -> Tobias Reik | I16: ='Round by round data'!F365 -> 879.631815
A17: 7 | B17: =IF(ISERROR('Full round scores'!B113),"",'Full round scores'!B113) -> Martin Ulrich | C17: =IF(ISERROR('Full round scores'!C113),"",'Full round scores'!C113) -> 42.43 | D17: =IF(ISERROR('Full round scores'!D113),"",'Full round scores'!D113) -> 878.3879331 | E17: =IF(ISERROR('Enter data here!'!$D$7/C17),"",IF($E$5="mph",(((10*'Enter data here!'!$D$7)/1609)*(60/C17)*60),(60/C17)*60)) -> 52.73190062 | G17: 7 | H17: ='Round by round data'!E366 -> Martin Ulrich | I17: ='Round by round data'!F366 -> 878.3879331
A18: 8 | B18: =IF(ISERROR('Full round scores'!B114),"",'Full round scores'!B114) -> Joel West | C18: =IF(ISERROR('Full round scores'!C114),"",'Full round scores'!C114) -> 42.96 | D18: =IF(ISERROR('Full round scores'!D114),"",'Full round scores'!D114) -> 867.5512104 | E18: =IF(ISERROR('Enter data here!'!$D$7/C18),"",IF($E$5="mph",(((10*'Enter data here!'!$D$7)/1609)*(60/C18)*60),(60/C18)*60)) -> 52.08134412 | G18: 8 | H18: ='Round by round data'!E367 -> Joel West | I18: ='Round by round data'!F367 -> 867.5512104
A19: 9 | B19: =IF(ISERROR('Full round scores'!B115),"",'Full round scores'!B115) -> Klaus Kowalski | C19: =IF(ISERROR('Full round scores'!C115),"",'Full round scores'!C115) -> 43.18 | D19: =IF(ISERROR('Full round scores'!D115),"",'Full round scores'!D115) -> 863.1310792 | E19: =IF(ISERROR('Enter data here!'!$D$7/C19),"",IF($E$5="mph",(((10*'Enter data here!'!$D$7)/1609)*(60/C19)*60),(60/C19)*60)) -> 51.8159922 | G19: 9 | H19: ='Round by round data'!E368 -> Klaus Kowalski | I19: ='Round by round data'!F368 -> 863.1310792
A20: 10 | B20: =IF(ISERROR('Full round scores'!B116),"",'Full round scores'!B116) -> Mick Walsh | C20: =IF(ISERROR('Full round scores'!C116),"",'Full round scores'!C116) -> 43.25 | D20: =IF(ISERROR('Full round scores'!D116),"",'Full round scores'!D116) -> 861.734104 | E20: =IF(ISERROR('Enter data here!'!$D$7/C20),"",IF($E$5="mph",(((10*'Enter data here!'!$D$7)/1609)*(60/C20)*60),(60/C20)*60)) -> 51.73212817 | G20: 10 | H20: ='Round by round data'!E369 -> Mick Walsh | I20: ='Round by round data'!F369 -> 861.734104
A21: 11 | B21: =IF(ISERROR('Full round scores'!B117),"",'Full round scores'!B117) -> Eberhard Rosemann | C21: =IF(ISERROR('Full round scores'!C117),"",'Full round scores'!C117) -> 43.32 | D21: =IF(ISERROR('Full round scores'!D117),"",'Full round scores'!D117) -> 860.3416436 | E21: =IF(ISERROR('Enter data here!'!$D$7/C21),"",IF($E$5="mph",(((10*'Enter data here!'!$D$7)/1609)*(60/C21)*60),(60/C21)*60)) -> 51.64853516 | G21: 11 | H21: ='Round by round data'!E370 -> Eberhard Rosemann | I21: ='Round by round data'!F370 -> 860.3416436
A22: 12 | B22: =IF(ISERROR('Full round scores'!B118),"",'Full round scores'!B118) -> Greg Dakin | C22: =IF(ISERROR('Full round scores'!C118),"",'Full round scores'!C118) -> 43.52 | D22: =IF(ISERROR('Full round scores'!D118),"",'Full round scores'!D118) -> 856.3878676 | E22: =IF(ISERROR('Enter data here!'!$D$7/C22),"",IF($E$5="mph",(((10*'Enter data here!'!$D$7)/1609)*(60/C22)*60),(60/C22)*60)) -> 51.41117976 | G22: 12 | H22: ='Round by round data'!E371 -> Greg Dakin | I22: ='Round by round data'!F371 -> 856.3878676
A23: 13 | B23: =IF(ISERROR('Full round scores'!B119),"",'Full round scores'!B119) -> Sebastian Reichert | C23: =IF(ISERROR('Full round scores'!C119),"",'Full round scores'!C119) -> 43.73 | D23: =IF(ISERROR('Full round scores'!D119),"",'Full round scores'!D119) -> 852.2753259 | E23: =IF(ISERROR('Enter data here!'!$D$7/C23),"",IF($E$5="mph",(((10*'Enter data here!'!$D$7)/1609)*(60/C23)*60),(60/C23)*60)) -> 51.16429324 | G23: 13 | H23: ='Round by round data'!E372 -> Sebastian Reichert | I23: ='Round by round data'!F372 -> 852.2753259
A24: 14 | B24: =IF(ISERROR('Full round scores'!B120),"",'Full round scores'!B120) -> Plöschberger Hannes | C24: =IF(ISERROR('Full round scores'!C120),"",'Full round scores'!C120) -> 43.83 | D24: =IF(ISERROR('Full round scores'!D120),"",'Full round scores'!D120) -> 850.3308236 | E24: =IF(ISERROR('Enter data here!'!$D$7/C24),"",IF($E$5="mph",(((10*'Enter data here!'!$D$7)/1609)*(60/C24)*60),(60/C24)*60)) -> 51.04755974 | G24: 14 | H24: ='Round by round data'!E373 -> Plöschberger Hannes | I24: ='Round by round data'!F373 -> 850.3308236
A25: 15 | B25: =IF(ISERROR('Full round scores'!B121),"",'Full round scores'!B121) -> Mike Shellim | C25: =IF(ISERROR('Full round scores'!C121),"",'Full round scores'!C121) -> 44.07 | D25: =IF(ISERROR('Full round scores'!D121),"",'Full round scores'!D121) -> 845.7000227 | E25: =IF(ISERROR('Enter data here!'!$D$7/C25),"",IF($E$5="mph",(((10*'Enter data here!'!$D$7)/1609)*(60/C25)*60),(60/C25)*60)) -> 50.76956077 | G25: 15 | H25: ='Round by round data'!E374 -> Mike Shellim | I25: ='Round by round data'!F374 -> 845.7000227
A26: 16 | B26: =IF(ISERROR('Full round scores'!B122),"",'Full round scores'!B122) -> André Austen | C26: =IF(ISERROR('Full round scores'!C122),"",'Full round scores'!C122) -> 44.16 | D26: =IF(ISERROR('Full round scores'!D122),"",'Full round scores'!D122) -> 843.9764493 | E26: =IF(ISERROR('Enter data here!'!$D$7/C26),"",IF($E$5="mph",(((10*'Enter data here!'!$D$7)/1609)*(60/C26)*60),(60/C26)*60)) -> 50.6660902 | G26: 16 | H26: ='Round by round data'!E375 -> André Austen | I26: ='Round by round data'!F375 -> 843.9764493
A27: 17 | B27: =IF(ISERROR('Full round scores'!B123),"",'Full round scores'!B123) -> Markus Meissner | C27: =IF(ISERROR('Full round scores'!C123),"",'Full round scores'!C123) -> 44.7 | D27: =IF(ISERROR('Full round scores'!D123),"",'Full round scores'!D123) -> 833.7807606 | E27: =IF(ISERROR('Enter data here!'!$D$7/C27),"",IF($E$5="mph",(((10*'Enter data here!'!$D$7)/1609)*(60/C27)*60),(60/C27)*60)) -> 50.05401663 | G27: 17 | H27: ='Round by round data'!E376 -> Markus Meissner | I27: ='Round by round data'!F376 -> 833.7807606
A28: 18 | B28: =IF(ISERROR('Full round scores'!B124),"",'Full round scores'!B124) -> Mark Redsell | C28: =IF(ISERROR('Full round scores'!C124),"",'Full round scores'!C124) -> 45 | D28: =IF(ISERROR('Full round scores'!D124),"",'Full round scores'!D124) -> 828.2222222 | E28: =IF(ISERROR('Enter data here!'!$D$7/C28),"",IF($E$5="mph",(((10*'Enter data here!'!$D$7)/1609)*(60/C28)*60),(60/C28)*60)) -> 49.72032318 | G28: 18 | H28: ='Round by round data'!E377 -> Mark Redsell | I28: ='Round by round data'!F377 -> 828.2222222
A29: 19 | B29: =IF(ISERROR('Full round scores'!B125),"",'Full round scores'!B125) -> Stefan Bernardy | C29: =IF(ISERROR('Full round scores'!C125),"",'Full round scores'!C125) -> 45.16 | D29: =IF(ISERROR('Full round scores'!D125),"",'Full round scores'!D125) -> 825.2878654 | E29: =IF(ISERROR('Enter data here!'!$D$7/C29),"",IF($E$5="mph",(((10*'Enter data here!'!$D$7)/1609)*(60/C29)*60),(60/C29)*60)) -> 49.54416615 | G29: 19 | H29: ='Round by round data'!E378 -> Stefan Bernardy | I29: ='Round by round data'!F378 -> 825.2878654
A30: 20 | B30: =IF(ISERROR('Full round scores'!B126),"",'Full round scores'!B126) -> Mark Treble | C30: =IF(ISERROR('Full round scores'!C126),"",'Full round scores'!C126) -> 45.19 | D30: =IF(ISERROR('Full round scores'!D126),"",'Full round scores'!D126) -> 824.7399867 | E30: =IF(ISERROR('Enter data here!'!$D$7/C30),"",IF($E$5="mph",(((10*'Enter data here!'!$D$7)/1609)*(60/C30)*60),(60/C30)*60)) -> 49.51127557 | G30: 20 | H30: ='Round by round data'!E379 -> Mark Treble | I30: ='Round by round data'!F379 -> 824.7399867
A31: 21 | B31: =IF(ISERROR('Full round scores'!B127),"",'Full round scores'!B127) -> Daniel Schneider | C31: =IF(ISERROR('Full round scores'!C127),"",'Full round scores'!C127) -> 45.3 | D31: =IF(ISERROR('Full round scores'!D127),"",'Full round scores'!D127) -> 822.7373068 | E31: =IF(ISERROR('Enter data here!'!$D$7/C31),"",IF($E$5="mph",(((10*'Enter data here!'!$D$7)/1609)*(60/C31)*60),(60/C31)*60)) -> 49.39104952 | G31: 21 | H31: ='Round by round data'!E380 -> Daniel Schneider | I31: ='Round by round data'!F380 -> 822.7373068
A32: 22 | B32: =IF(ISERROR('Full round scores'!B128),"",'Full round scores'!B128) -> John Phillips | C32: =IF(ISERROR('Full round scores'!C128),"",'Full round scores'!C128) -> 45.93 | D32: =IF(ISERROR('Full round scores'!D128),"",'Full round scores'!D128) -> 811.4522099 | E32: =IF(ISERROR('Enter data here!'!$D$7/C32),"",IF($E$5="mph",(((10*'Enter data here!'!$D$7)/1609)*(60/C32)*60),(60/C32)*60)) -> 48.71357595 | G32: 22 | H32: ='Round by round data'!E381 -> John Phillips | I32: ='Round by round data'!F381 -> 811.4522099
A33: 23 | B33: =IF(ISERROR('Full round scores'!B129),"",'Full round scores'!B129) -> Alvaro Silgado | C33: =IF(ISERROR('Full round scores'!C129),"",'Full round scores'!C129) -> 46.49 | D33: =IF(ISERROR('Full round scores'!D129),"",'Full round scores'!D129) -> 801.6777802 | E33: =IF(ISERROR('Enter data here!'!$D$7/C33),"",IF($E$5="mph",(((10*'Enter data here!'!$D$7)/1609)*(60/C33)*60),(60/C33)*60)) -> 48.12679164 | G33: 23 | H33: ='Round by round data'!E382 -> Alvaro Silgado | I33: ='Round by round data'!F382 -> 801.6777802
A34: 24 | B34: =IF(ISERROR('Full round scores'!B130),"",'Full round scores'!B130) -> George Young | C34: =IF(ISERROR('Full round scores'!C130),"",'Full round scores'!C130) -> 46.65 | D34: =IF(ISERROR('Full round scores'!D130),"",'Full round scores'!D130) -> 798.9281886 | E34: =IF(ISERROR('Enter data here!'!$D$7/C34),"",IF($E$5="mph",(((10*'Enter data here!'!$D$7)/1609)*(60/C34)*60),(60/C34)*60)) -> 47.96172654 | G34: 24 | H34: ='Round by round data'!E383 -> George Young | I34: ='Round by round data'!F383 -> 798.9281886
A35: 25 | B35: =IF(ISERROR('Full round scores'!B131),"",'Full round scores'!B131) -> Mark Abbotts | C35: =IF(ISERROR('Full round scores'!C131),"",'Full round scores'!C131) -> 47.53 | D35: =IF(ISERROR('Full round scores'!D131),"",'Full round scores'!D131) -> 784.1363349 | E35: =IF(ISERROR('Enter data here!'!$D$7/C35),"",IF($E$5="mph",(((10*'Enter data here!'!$D$7)/1609)*(60/C35)*60),(60/C35)*60)) -> 47.07373329 | G35: 25 | H35: ='Round by round data'!E384 -> Mark Abbotts | I35: ='Round by round data'!F384 -> 784.1363349
A36: 26 | B36: =IF(ISERROR('Full round scores'!B132),"",'Full round scores'!B132) -> Gary Harrison | C36: =IF(ISERROR('Full round scores'!C132),"",'Full round scores'!C132) -> 47.7 | D36: =IF(ISERROR('Full round scores'!D132),"",'Full round scores'!D132) -> 781.3417191 | E36: =IF(ISERROR('Enter data here!'!$D$7/C36),"",IF($E$5="mph",(((10*'Enter data here!'!$D$7)/1609)*(60/C36)*60),(60/C36)*60)) -> 46.90596527 | G36: 26 | H36: ='Round by round data'!E385 -> Gary Harrison | I36: ='Round by round data'!F385 -> 781.3417191
A37: 27 | B37: =IF(ISERROR('Full round scores'!B133),"",'Full round scores'!B133) -> Pete Burgess | C37: =IF(ISERROR('Full round scores'!C133),"",'Full round scores'!C133) -> 48.19 | D37: =IF(ISERROR('Full round scores'!D133),"",'Full round scores'!D133) -> 773.3969703 | E37: =IF(ISERROR('Enter data here!'!$D$7/C37),"",IF($E$5="mph",(((10*'Enter data here!'!$D$7)/1609)*(60/C37)*60),(60/C37)*60)) -> 46.42902144 | G37: 27 | H37: ='Round by round data'!E386 -> Pete Burgess | I37: ='Round by round data'!F386 -> 773.3969703
A38: 28 | B38: =IF(ISERROR('Full round scores'!B134),"",'Full round scores'!B134) -> Martin Kopp | C38: =IF(ISERROR('Full round scores'!C134),"",'Full round scores'!C134) -> 48.33 | D38: =IF(ISERROR('Full round scores'!D134),"",'Full round scores'!D134) -> 771.1566315 | E38: =IF(ISERROR('Enter data here!'!$D$7/C38),"",IF($E$5="mph",(((10*'Enter data here!'!$D$7)/1609)*(60/C38)*60),(60/C38)*60)) -> 46.2945281 | G38: 28 | H38: ='Round by round data'!E387 -> Martin Kopp | I38: ='Round by round data'!F387 -> 771.1566315
A39: 29 | B39: =IF(ISERROR('Full round scores'!B135),"",'Full round scores'!B135) -> Dieter Perlick | C39: =IF(ISERROR('Full round scores'!C135),"",'Full round scores'!C135) -> 48.57 | D39: =IF(ISERROR('Full round scores'!D135),"",'Full round scores'!D135) -> 767.3460984 | E39: =IF(ISERROR('Enter data here!'!$D$7/C39),"",IF($E$5="mph",(((10*'Enter data here!'!$D$7)/1609)*(60/C39)*60),(60/C39)*60)) -> 46.06577194 | G39: 29 | H39: ='Round by round data'!E388 -> Dieter Perlick | I39: ='Round by round data'!F388 -> 767.3460984
A40: 30 | B40: =IF(ISERROR('Full round scores'!B136),"",'Full round scores'!B136) -> Simon Thornton | C40: =IF(ISERROR('Full round scores'!C136),"",'Full round scores'!C136) -> 48.57 | D40: =IF(ISERROR('Full round scores'!D136),"",'Full round scores'!D136) -> 767.3460984 | E40: =IF(ISERROR('Enter data here!'!$D$7/C40),"",IF($E$5="mph",(((10*'Enter data here!'!$D$7)/1609)*(60/C40)*60),(60/C40)*60)) -> 46.06577194 | G40: 30 | H40: ='Round by round data'!E389 -> Simon Thornton | I40: ='Round by round data'!F389 -> 767.3460984
A41: 31 | B41: =IF(ISERROR('Full round scores'!B137),"",'Full round scores'!B137) -> Allen Elliott | C41: =IF(ISERROR('Full round scores'!C137),"",'Full round scores'!C137) -> 50.8 | D41: =IF(ISERROR('Full round scores'!D137),"",'Full round scores'!D137) -> 733.6614173 | E41: =IF(ISERROR('Enter data here!'!$D$7/C41),"",IF($E$5="mph",(((10*'Enter data here!'!$D$7)/1609)*(60/C41)*60),(60/C41)*60)) -> 44.04359337 | G41: 31 | H41: ='Round by round data'!E390 -> Allen Elliott | I41: ='Round by round data'!F390 -> 733.6614173
A42: 32 | B42: =IF(ISERROR('Full round scores'!B138),"",'Full round scores'!B138) -> Jon Edison | C42: =IF(ISERROR('Full round scores'!C138),"",'Full round scores'!C138) -> 51.05 | D42: =IF(ISERROR('Full round scores'!D138),"",'Full round scores'!D138) -> 730.0685602 | E42: =IF(ISERROR('Enter data here!'!$D$7/C42),"",IF($E$5="mph",(((10*'Enter data here!'!$D$7)/1609)*(60/C42)*60),(60/C42)*60)) -> 43.82790486 | G42: 32 | H42: ='Round by round data'!E391 -> Jon Edison | I42: ='Round by round data'!F391 -> 730.0685602
A43: 33 | B43: =IF(ISERROR('Full round scores'!B139),"",'Full round scores'!B139) -> Torsten Hermann | C43: =IF(ISERROR('Full round scores'!C139),"",'Full round scores'!C139) -> 51.1 | D43: =IF(ISERROR('Full round scores'!D139),"",'Full round scores'!D139) -> 729.3542074 | E43: =IF(ISERROR('Enter data here!'!$D$7/C43),"",IF($E$5="mph",(((10*'Enter data here!'!$D$7)/1609)*(60/C43)*60),(60/C43)*60)) -> 43.78502041 | G43: 33 | H43: ='Round by round data'!E392 -> Torsten Hermann | I43: ='Round by round data'!F392 -> 729.3542074
A44: 34 | B44: =IF(ISERROR('Full round scores'!B140),"",'Full round scores'!B140) -> Thomas Deinert | C44: =IF(ISERROR('Full round scores'!C140),"",'Full round scores'!C140) -> 51.62 | D44: =IF(ISERROR('Full round scores'!D140),"",'Full round scores'!D140) -> 722.006974 | E44: =IF(ISERROR('Enter data here!'!$D$7/C44),"",IF($E$5="mph",(((10*'Enter data here!'!$D$7)/1609)*(60/C44)*60),(60/C44)*60)) -> 43.34394698 | G44: 34 | H44: ='Round by round data'!E393 -> Thomas Deinert | I44: ='Round by round data'!F393 -> 722.006974
A45: 35 | B45: =IF(ISERROR('Full round scores'!B141),"",'Full round scores'!B141) -> Tony Robertson | C45: =IF(ISERROR('Full round scores'!C141),"",'Full round scores'!C141) -> 52.08 | D45: =IF(ISERROR('Full round scores'!D141),"",'Full round scores'!D141) -> 715.6298003 | E45: =IF(ISERROR('Enter data here!'!$D$7/C45),"",IF($E$5="mph",(((10*'Enter data here!'!$D$7)/1609)*(60/C45)*60),(60/C45)*60)) -> 42.96110874 | G45: 35 | H45: ='Round by round data'!E394 -> Tony Robertson | I45: ='Round by round data'!F394 -> 715.6298003
A46: 36 | B46: =IF(ISERROR('Full round scores'!B142),"",'Full round scores'!B142) -> Thomas Henselmann | C46: =IF(ISERROR('Full round scores'!C142),"",'Full round scores'!C142) -> 52.55 | D46: =IF(ISERROR('Full round scores'!D142),"",'Full round scores'!D142) -> 709.2293054 | E46: =IF(ISERROR('Enter data here!'!$D$7/C46),"",IF($E$5="mph",(((10*'Enter data here!'!$D$7)/1609)*(60/C46)*60),(60/C46)*60)) -> 42.57687047 | G46: 36 | H46: ='Round by round data'!E395 -> Thomas Henselmann | I46: ='Round by round data'!F395 -> 709.2293054
A47: 37 | B47: =IF(ISERROR('Full round scores'!B143),"",'Full round scores'!B143) -> Klaus Brettner | C47: =IF(ISERROR('Full round scores'!C143),"",'Full round scores'!C143) -> 52.96 | D47: =IF(ISERROR('Full round scores'!D143),"",'Full round scores'!D143) -> 703.7386707 | E47: =IF(ISERROR('Enter data here!'!$D$7/C47),"",IF($E$5="mph",(((10*'Enter data here!'!$D$7)/1609)*(60/C47)*60),(60/C47)*60)) -> 42.24725346 | G47: 37 | H47: ='Round by round data'!E396 -> Klaus Brettner | I47: ='Round by round data'!F396 -> 703.7386707
A48: 38 | B48: =IF(ISERROR('Full round scores'!B144),"",'Full round scores'!B144) -> Robert Hermans | C48: =IF(ISERROR('Full round scores'!C144),"",'Full round scores'!C144) -> 53.14 | D48: =IF(ISERROR('Full round scores'!D144),"",'Full round scores'!D144) -> 701.3549116 | E48: =IF(ISERROR('Enter data here!'!$D$7/C48),"",IF($E$5="mph",(((10*'Enter data here!'!$D$7)/1609)*(60/C48)*60),(60/C48)*60)) -> 42.10415023 | G48: 38 | H48: ='Round by round data'!E397 -> Robert Hermans | I48: ='Round by round data'!F397 -> 701.3549116
A49: 39 | B49: =IF(ISERROR('Full round scores'!B145),"",'Full round scores'!B145) -> Mike Evans | C49: =IF(ISERROR('Full round scores'!C145),"",'Full round scores'!C145) -> 53.18 | D49: =IF(ISERROR('Full round scores'!D145),"",'Full round scores'!D145) -> 700.8273787 | E49: =IF(ISERROR('Enter data here!'!$D$7/C49),"",IF($E$5="mph",(((10*'Enter data here!'!$D$7)/1609)*(60/C49)*60),(60/C49)*60)) -> 42.07248107 | G49: 39 | H49: ='Round by round data'!E398 -> Mike Evans | I49: ='Round by round data'!F398 -> 700.8273787
A50: 40 | B50: =IF(ISERROR('Full round scores'!B146),"",'Full round scores'!B146) -> Jesper Christensen | C50: =IF(ISERROR('Full round scores'!C146),"",'Full round scores'!C146) -> 53.3 | D50: =IF(ISERROR('Full round scores'!D146),"",'Full round scores'!D146) -> 699.249531 | E50: =IF(ISERROR('Enter data here!'!$D$7/C50),"",IF($E$5="mph",(((10*'Enter data here!'!$D$7)/1609)*(60/C50)*60),(60/C50)*60)) -> 41.97775878 | G50: 40 | H50: ='Round by round data'!E399 -> Jesper Christensen | I50: ='Round by round data'!F399 -> 699.249531
A51: 41 | B51: =IF(ISERROR('Full round scores'!B147),"",'Full round scores'!B147) -> Siegfried Schedel | C51: =IF(ISERROR('Full round scores'!C147),"",'Full round scores'!C147) -> 54.25 | D51: =IF(ISERROR('Full round scores'!D147),"",'Full round scores'!D147) -> 687.0046083 | E51: =IF(ISERROR('Enter data here!'!$D$7/C51),"",IF($E$5="mph",(((10*'Enter data here!'!$D$7)/1609)*(60/C51)*60),(60/C51)*60)) -> 41.24266439 | G51: 41 | H51: ='Round by round data'!E400 -> Siegfried Schedel | I51: ='Round by round data'!F400 -> 687.0046083
A52: 42 | B52: =IF(ISERROR('Full round scores'!B148),"",'Full round scores'!B148) -> Marc Schmieding | C52: =IF(ISERROR('Full round scores'!C148),"",'Full round scores'!C148) -> 60.05 | D52: =IF(ISERROR('Full round scores'!D148),"",'Full round scores'!D148) -> 620.6494588 | E52: =IF(ISERROR('Enter data here!'!$D$7/C52),"",IF($E$5="mph",(((10*'Enter data here!'!$D$7)/1609)*(60/C52)*60),(60/C52)*60)) -> 37.25919306 | G52: 42 | H52: ='Round by round data'!E401 -> Marc Schmieding | I52: ='Round by round data'!F401 -> 620.6494588
A53: 43 | B53: =IF(ISERROR('Full round scores'!B149),"",'Full round scores'!B149) -> Jason Bioletti | C53: =IF(ISERROR('Full round scores'!C149),"",'Full round scores'!C149) -> 62.57 | D53: =IF(ISERROR('Full round scores'!D149),"",'Full round scores'!D149) -> 595.6528688 | E53: =IF(ISERROR('Enter data here!'!$D$7/C53),"",IF($E$5="mph",(((10*'Enter data here!'!$D$7)/1609)*(60/C53)*60),(60/C53)*60)) -> 35.75858308 | G53: 43 | H53: ='Round by round data'!E402 -> Jason Bioletti | I53: ='Round by round data'!F402 -> 595.6528688
A54: 44 | B54: =IF(ISERROR('Full round scores'!B150),"",'Full round scores'!B150) -> Ulrich Duttenhofer | C54: =IF(ISERROR('Full round scores'!C150),"",'Full round scores'!C150) -> 64.69 | D54: =IF(ISERROR('Full round scores'!D150),"",'Full round scores'!D150) -> 576.1323234 | E54: =IF(ISERROR('Enter data here!'!$D$7/C54),"",IF($E$5="mph",(((10*'Enter data here!'!$D$7)/1609)*(60/C54)*60),(60/C54)*60)) -> 34.58671422 | G54: 44 | H54: ='Round by round data'!E403 -> Ulrich Duttenhofer | I54: ='Round by round data'!F403 -> 576.1323234
A55: 45 | B55: =IF(ISERROR('Full round scores'!B151),"",'Full round scores'!B151) -> Rick Ruijsink | C55: =IF(ISERROR('Full round scores'!C151),"",'Full round scores'!C151) -> dnf | D55: =IF(ISERROR('Full round scores'!D151),"",'Full round scores'!D151) -> 9.941380855e-13 | E55: =IF(ISERROR('Enter data here!'!$D$7/C55),"",IF($E$5="mph",(((10*'Enter data here!'!$D$7)/1609)*(60/C55)*60),(60/C55)*60)) ->  | G55: 45 | H55: ='Round by round data'!E404 -> Rick Ruijsink | I55: ='Round by round data'!F404 -> 9.941380855e-13
A56: 46 | B56: =IF(ISERROR('Full round scores'!B152),"",'Full round scores'!B152) -> Frank Hulton | C56: =IF(ISERROR('Full round scores'!C152),"",'Full round scores'!C152) -> dnf | D56: =IF(ISERROR('Full round scores'!D152),"",'Full round scores'!D152) -> 9.940762279e-13 | E56: =IF(ISERROR('Enter data here!'!$D$7/C56),"",IF($E$5="mph",(((10*'Enter data here!'!$D$7)/1609)*(60/C56)*60),(60/C56)*60)) ->  | G56: 46 | H56: ='Round by round data'!E405 -> Frank Hulton | I56: ='Round by round data'!F405 -> 9.940762279e-13
A57: 47 | B57: =IF(ISERROR('Full round scores'!B153),"",'Full round scores'!B153) -> Paul Garnett | C57: =IF(ISERROR('Full round scores'!C153),"",'Full round scores'!C153) -> dnf | D57: =IF(ISERROR('Full round scores'!D153),"",'Full round scores'!D153) -> 8.042381672e-13 | E57: =IF(ISERROR('Enter data here!'!$D$7/C57),"",IF($E$5="mph",(((10*'Enter data here!'!$D$7)/1609)*(60/C57)*60),(60/C57)*60)) ->  | G57: 47 | H57: ='Round by round data'!E406 -> Paul Garnett | I57: ='Round by round data'!F406 -> 8.042381672e-13
A58: 48 | B58: =IF(ISERROR('Full round scores'!B154),"",'Full round scores'!B154) -> Robert Ryan | C58: =IF(ISERROR('Full round scores'!C154),"",'Full round scores'!C154) -> dnf | D58: =IF(ISERROR('Full round scores'!D154),"",'Full round scores'!D154) -> 6.214190725e-13 | E58: =IF(ISERROR('Enter data here!'!$D$7/C58),"",IF($E$5="mph",(((10*'Enter data here!'!$D$7)/1609)*(60/C58)*60),(60/C58)*60)) ->  | G58: 48 | H58: ='Round by round data'!E407 -> Robert Ryan | I58: ='Round by round data'!F407 -> 6.214190725e-13
A59: 49 | B59: =IF(ISERROR('Full round scores'!B155),"",'Full round scores'!B155) -> Arne Finkeldey | C59: =IF(ISERROR('Full round scores'!C155),"",'Full round scores'!C155) -> dnf | D59: =IF(ISERROR('Full round scores'!D155),"",'Full round scores'!D155) -> 2.425298766e-13 | E59: =IF(ISERROR('Enter data here!'!$D$7/C59),"",IF($E$5="mph",(((10*'Enter data here!'!$D$7)/1609)*(60/C59)*60),(60/C59)*60)) ->  | G59: 49 | H59: ='Round by round data'!E408 -> Arne Finkeldey | I59: ='Round by round data'!F408 -> 2.425298766e-13
A60: 50 | B60: =IF(ISERROR('Full round scores'!B156),"",'Full round scores'!B156) -> Stefan Bertschi | C60: =IF(ISERROR('Full round scores'!C156),"",'Full round scores'!C156) -> dnf | D60: =IF(ISERROR('Full round scores'!D156),"",'Full round scores'!D156) -> 2.217052604e-13 | E60: =IF(ISERROR('Enter data here!'!$D$7/C60),"",IF($E$5="mph",(((10*'Enter data here!'!$D$7)/1609)*(60/C60)*60),(60/C60)*60)) ->  | G60: 50 | H60: ='Round by round data'!E409 -> Stefan Bertschi | I60: ='Round by round data'!F409 -> 2.217052604e-13
A61: 51 | B61: =IF(ISERROR('Full round scores'!B157),"",'Full round scores'!B157) ->  | C61: =IF(ISERROR('Full round scores'!C157),"",'Full round scores'!C157) ->  | D61: =IF(ISERROR('Full round scores'!D157),"",'Full round scores'!D157) ->  | E61: =IF(ISERROR('Enter data here!'!$D$7/C61),"",IF($E$5="mph",(((10*'Enter data here!'!$D$7)/1609)*(60/C61)*60),(60/C61)*60)) ->  | G61: 51 | H61: ='Round by round data'!E410 ->  | I61: ='Round by round data'!F410 -> 
A62: 52 | B62: =IF(ISERROR('Full round scores'!B158),"",'Full round scores'!B158) ->  | C62: =IF(ISERROR('Full round scores'!C158),"",'Full round scores'!C158) ->  | D62: =IF(ISERROR('Full round scores'!D158),"",'Full round scores'!D158) ->  | E62: =IF(ISERROR('Enter data here!'!$D$7/C62),"",IF($E$5="mph",(((10*'Enter data here!'!$D$7)/1609)*(60/C62)*60),(60/C62)*60)) ->  | G62: 52 | H62: ='Round by round data'!E411 ->  | I62: ='Round by round data'!F411 -> 
A63: 53 | B63: =IF(ISERROR('Full round scores'!B159),"",'Full round scores'!B159) ->  | C63: =IF(ISERROR('Full round scores'!C159),"",'Full round scores'!C159) ->  | D63: =IF(ISERROR('Full round scores'!D159),"",'Full round scores'!D159) ->  | E63: =IF(ISERROR('Enter data here!'!$D$7/C63),"",IF($E$5="mph",(((10*'Enter data here!'!$D$7)/1609)*(60/C63)*60),(60/C63)*60)) ->  | G63: 53 | H63: ='Round by round data'!E412 ->  | I63: ='Round by round data'!F412 -> 
A64: 54 | B64: =IF(ISERROR('Full round scores'!B160),"",'Full round scores'!B160) ->  | C64: =IF(ISERROR('Full round scores'!C160),"",'Full round scores'!C160) ->  | D64: =IF(ISERROR('Full round scores'!D160),"",'Full round scores'!D160) ->  | E64: =IF(ISERROR('Enter data here!'!$D$7/C64),"",IF($E$5="mph",(((10*'Enter data here!'!$D$7)/1609)*(60/C64)*60),(60/C64)*60)) ->  | G64: 54 | H64: ='Round by round data'!E413 ->  | I64: ='Round by round data'!F413 -> 
A65: 55 | B65: =IF(ISERROR('Full round scores'!B161),"",'Full round scores'!B161) ->  | C65: =IF(ISERROR('Full round scores'!C161),"",'Full round scores'!C161) ->  | D65: =IF(ISERROR('Full round scores'!D161),"",'Full round scores'!D161) ->  | E65: =IF(ISERROR('Enter data here!'!$D$7/C65),"",IF($E$5="mph",(((10*'Enter data here!'!$D$7)/1609)*(60/C65)*60),(60/C65)*60)) ->  | G65: 55 | H65: ='Round by round data'!E414 ->  | I65: ='Round by round data'!F414 -> 
A66: 56 | B66: =IF(ISERROR('Full round scores'!B162),"",'Full round scores'!B162) ->  | C66: =IF(ISERROR('Full round scores'!C162),"",'Full round scores'!C162) ->  | D66: =IF(ISERROR('Full round scores'!D162),"",'Full round scores'!D162) ->  | E66: =IF(ISERROR('Enter data here!'!$D$7/C66),"",IF($E$5="mph",(((10*'Enter data here!'!$D$7)/1609)*(60/C66)*60),(60/C66)*60)) ->  | G66: 56 | H66: ='Round by round data'!E415 ->  | I66: ='Round by round data'!F415 -> 
A67: 57 | B67: =IF(ISERROR('Full round scores'!B163),"",'Full round scores'!B163) ->  | C67: =IF(ISERROR('Full round scores'!C163),"",'Full round scores'!C163) ->  | D67: =IF(ISERROR('Full round scores'!D163),"",'Full round scores'!D163) ->  | E67: =IF(ISERROR('Enter data here!'!$D$7/C67),"",IF($E$5="mph",(((10*'Enter data here!'!$D$7)/1609)*(60/C67)*60),(60/C67)*60)) ->  | G67: 57 | H67: ='Round by round data'!E416 ->  | I67: ='Round by round data'!F416 -> 
A68: 58 | B68: =IF(ISERROR('Full round scores'!B164),"",'Full round scores'!B164) ->  | C68: =IF(ISERROR('Full round scores'!C164),"",'Full round scores'!C164) ->  | D68: =IF(ISERROR('Full round scores'!D164),"",'Full round scores'!D164) ->  | E68: =IF(ISERROR('Enter data here!'!$D$7/C68),"",IF($E$5="mph",(((10*'Enter data here!'!$D$7)/1609)*(60/C68)*60),(60/C68)*60)) ->  | G68: 58 | H68: ='Round by round data'!E417 ->  | I68: ='Round by round data'!F417 -> 
A69: 59 | B69: =IF(ISERROR('Full round scores'!B165),"",'Full round scores'!B165) ->  | C69: =IF(ISERROR('Full round scores'!C165),"",'Full round scores'!C165) ->  | D69: =IF(ISERROR('Full round scores'!D165),"",'Full round scores'!D165) ->  | E69: =IF(ISERROR('Enter data here!'!$D$7/C69),"",IF($E$5="mph",(((10*'Enter data here!'!$D$7)/1609)*(60/C69)*60),(60/C69)*60)) ->  | G69: 59 | H69: ='Round by round data'!E418 ->  | I69: ='Round by round data'!F418 -> 
A70: 60 | B70: =IF(ISERROR('Full round scores'!B166),"",'Full round scores'!B166) ->  | C70: =IF(ISERROR('Full round scores'!C166),"",'Full round scores'!C166) ->  | D70: =IF(ISERROR('Full round scores'!D166),"",'Full round scores'!D166) ->  | E70: =IF(ISERROR('Enter data here!'!$D$7/C70),"",IF($E$5="mph",(((10*'Enter data here!'!$D$7)/1609)*(60/C70)*60),(60/C70)*60)) ->  | G70: 60 | H70: ='Round by round data'!E419 ->  | I70: ='Round by round data'!F419 -> 
A71: 61 | B71: =IF(ISERROR('Full round scores'!B167),"",'Full round scores'!B167) ->  | C71: =IF(ISERROR('Full round scores'!C167),"",'Full round scores'!C167) ->  | D71: =IF(ISERROR('Full round scores'!D167),"",'Full round scores'!D167) ->  | E71: =IF(ISERROR('Enter data here!'!$D$7/C71),"",IF($E$5="mph",(((10*'Enter data here!'!$D$7)/1609)*(60/C71)*60),(60/C71)*60)) ->  | G71: 61 | H71: ='Round by round data'!E420 ->  | I71: ='Round by round data'!F420 -> 
A72: 62 | B72: =IF(ISERROR('Full round scores'!B168),"",'Full round scores'!B168) ->  | C72: =IF(ISERROR('Full round scores'!C168),"",'Full round scores'!C168) ->  | D72: =IF(ISERROR('Full round scores'!D168),"",'Full round scores'!D168) ->  | E72: =IF(ISERROR('Enter data here!'!$D$7/C72),"",IF($E$5="mph",(((10*'Enter data here!'!$D$7)/1609)*(60/C72)*60),(60/C72)*60)) ->  | G72: 62 | H72: ='Round by round data'!E421 ->  | I72: ='Round by round data'!F421 -> 
A73: 63 | B73: =IF(ISERROR('Full round scores'!B169),"",'Full round scores'!B169) ->  | C73: =IF(ISERROR('Full round scores'!C169),"",'Full round scores'!C169) ->  | D73: =IF(ISERROR('Full round scores'!D169),"",'Full round scores'!D169) ->  | E73: =IF(ISERROR('Enter data here!'!$D$7/C73),"",IF($E$5="mph",(((10*'Enter data here!'!$D$7)/1609)*(60/C73)*60),(60/C73)*60)) ->  | G73: 63 | H73: ='Round by round data'!E422 ->  | I73: ='Round by round data'!F422 -> 
A74: 64 | B74: =IF(ISERROR('Full round scores'!B170),"",'Full round scores'!B170) ->  | C74: =IF(ISERROR('Full round scores'!C170),"",'Full round scores'!C170) ->  | D74: =IF(ISERROR('Full round scores'!D170),"",'Full round scores'!D170) ->  | E74: =IF(ISERROR('Enter data here!'!$D$7/C74),"",IF($E$5="mph",(((10*'Enter data here!'!$D$7)/1609)*(60/C74)*60),(60/C74)*60)) ->  | G74: 64 | H74: ='Round by round data'!E423 ->  | I74: ='Round by round data'!F423 -> 
A75: 65 | B75: =IF(ISERROR('Full round scores'!B171),"",'Full round scores'!B171) ->  | C75: =IF(ISERROR('Full round scores'!C171),"",'Full round scores'!C171) ->  | D75: =IF(ISERROR('Full round scores'!D171),"",'Full round scores'!D171) ->  | E75: =IF(ISERROR('Enter data here!'!$D$7/C75),"",IF($E$5="mph",(((10*'Enter data here!'!$D$7)/1609)*(60/C75)*60),(60/C75)*60)) ->  | G75: 65 | H75: ='Round by round data'!E424 ->  | I75: ='Round by round data'!F424 -> 
A76: 66 | B76: =IF(ISERROR('Full round scores'!B172),"",'Full round scores'!B172) ->  | C76: =IF(ISERROR('Full round scores'!C172),"",'Full round scores'!C172) ->  | D76: =IF(ISERROR('Full round scores'!D172),"",'Full round scores'!D172) ->  | E76: =IF(ISERROR('Enter data here!'!$D$7/C76),"",IF($E$5="mph",(((10*'Enter data here!'!$D$7)/1609)*(60/C76)*60),(60/C76)*60)) ->  | G76: 66 | H76: ='Round by round data'!E425 ->  | I76: ='Round by round data'!F425 -> 
A77: 67 | B77: =IF(ISERROR('Full round scores'!B173),"",'Full round scores'!B173) ->  | C77: =IF(ISERROR('Full round scores'!C173),"",'Full round scores'!C173) ->  | D77: =IF(ISERROR('Full round scores'!D173),"",'Full round scores'!D173) ->  | E77: =IF(ISERROR('Enter data here!'!$D$7/C77),"",IF($E$5="mph",(((10*'Enter data here!'!$D$7)/1609)*(60/C77)*60),(60/C77)*60)) ->  | G77: 67 | H77: ='Round by round data'!E426 ->  | I77: ='Round by round data'!F426 -> 
A78: 68 | B78: =IF(ISERROR('Full round scores'!B174),"",'Full round scores'!B174) ->  | C78: =IF(ISERROR('Full round scores'!C174),"",'Full round scores'!C174) ->  | D78: =IF(ISERROR('Full round scores'!D174),"",'Full round scores'!D174) ->  | E78: =IF(ISERROR('Enter data here!'!$D$7/C78),"",IF($E$5="mph",(((10*'Enter data here!'!$D$7)/1609)*(60/C78)*60),(60/C78)*60)) ->  | G78: 68 | H78: ='Round by round data'!E427 ->  | I78: ='Round by round data'!F427 -> 
A79: 69 | B79: =IF(ISERROR('Full round scores'!B175),"",'Full round scores'!B175) ->  | C79: =IF(ISERROR('Full round scores'!C175),"",'Full round scores'!C175) ->  | D79: =IF(ISERROR('Full round scores'!D175),"",'Full round scores'!D175) ->  | E79: =IF(ISERROR('Enter data here!'!$D$7/C79),"",IF($E$5="mph",(((10*'Enter data here!'!$D$7)/1609)*(60/C79)*60),(60/C79)*60)) ->  | G79: 69 | H79: ='Round by round data'!E428 ->  | I79: ='Round by round data'!F428 -> 
A80: 70 | B80: =IF(ISERROR('Full round scores'!B176),"",'Full round scores'!B176) ->  | C80: =IF(ISERROR('Full round scores'!C176),"",'Full round scores'!C176) ->  | D80: =IF(ISERROR('Full round scores'!D176),"",'Full round scores'!D176) ->  | E80: =IF(ISERROR('Enter data here!'!$D$7/C80),"",IF($E$5="mph",(((10*'Enter data here!'!$D$7)/1609)*(60/C80)*60),(60/C80)*60)) ->  | G80: 70 | H80: ='Round by round data'!E429 ->  | I80: ='Round by round data'!F429 -> 
A81: 71 | B81: =IF(ISERROR('Full round scores'!B177),"",'Full round scores'!B177) ->  | C81: =IF(ISERROR('Full round scores'!C177),"",'Full round scores'!C177) ->  | D81: =IF(ISERROR('Full round scores'!D177),"",'Full round scores'!D177) ->  | E81: =IF(ISERROR('Enter data here!'!$D$7/C81),"",IF($E$5="mph",(((10*'Enter data here!'!$D$7)/1609)*(60/C81)*60),(60/C81)*60)) ->  | G81: 71 | H81: ='Round by round data'!E430 ->  | I81: ='Round by round data'!F430 -> 
A82: 72 | B82: =IF(ISERROR('Full round scores'!B178),"",'Full round scores'!B178) ->  | C82: =IF(ISERROR('Full round scores'!C178),"",'Full round scores'!C178) ->  | D82: =IF(ISERROR('Full round scores'!D178),"",'Full round scores'!D178) ->  | E82: =IF(ISERROR('Enter data here!'!$D$7/C82),"",IF($E$5="mph",(((10*'Enter data here!'!$D$7)/1609)*(60/C82)*60),(60/C82)*60)) ->  | G82: 72 | H82: ='Round by round data'!E431 ->  | I82: ='Round by round data'!F431 -> 
A83: 73 | B83: =IF(ISERROR('Full round scores'!B179),"",'Full round scores'!B179) ->  | C83: =IF(ISERROR('Full round scores'!C179),"",'Full round scores'!C179) ->  | D83: =IF(ISERROR('Full round scores'!D179),"",'Full round scores'!D179) ->  | E83: =IF(ISERROR('Enter data here!'!$D$7/C83),"",IF($E$5="mph",(((10*'Enter data here!'!$D$7)/1609)*(60/C83)*60),(60/C83)*60)) ->  | G83: 73 | H83: ='Round by round data'!E432 ->  | I83: ='Round by round data'!F432 -> 
A84: 74 | B84: =IF(ISERROR('Full round scores'!B180),"",'Full round scores'!B180) ->  | C84: =IF(ISERROR('Full round scores'!C180),"",'Full round scores'!C180) ->  | D84: =IF(ISERROR('Full round scores'!D180),"",'Full round scores'!D180) ->  | E84: =IF(ISERROR('Enter data here!'!$D$7/C84),"",IF($E$5="mph",(((10*'Enter data here!'!$D$7)/1609)*(60/C84)*60),(60/C84)*60)) ->  | G84: 74 | H84: ='Round by round data'!E433 ->  | I84: ='Round by round data'!F433 -> 
A85: 75 | B85: =IF(ISERROR('Full round scores'!B181),"",'Full round scores'!B181) ->  | C85: =IF(ISERROR('Full round scores'!C181),"",'Full round scores'!C181) ->  | D85: =IF(ISERROR('Full round scores'!D181),"",'Full round scores'!D181) ->  | E85: =IF(ISERROR('Enter data here!'!$D$7/C85),"",IF($E$5="mph",(((10*'Enter data here!'!$D$7)/1609)*(60/C85)*60),(60/C85)*60)) ->  | G85: 75 | H85: ='Round by round data'!E434 ->  | I85: ='Round by round data'!F434 -> 
A86: 76 | B86: =IF(ISERROR('Full round scores'!B182),"",'Full round scores'!B182) ->  | C86: =IF(ISERROR('Full round scores'!C182),"",'Full round scores'!C182) ->  | D86: =IF(ISERROR('Full round scores'!D182),"",'Full round scores'!D182) ->  | E86: =IF(ISERROR('Enter data here!'!$D$7/C86),"",IF($E$5="mph",(((10*'Enter data here!'!$D$7)/1609)*(60/C86)*60),(60/C86)*60)) ->  | G86: 76 | H86: ='Round by round data'!E435 ->  | I86: ='Round by round data'!F435 -> 
A87: 77 | B87: =IF(ISERROR('Full round scores'!B183),"",'Full round scores'!B183) ->  | C87: =IF(ISERROR('Full round scores'!C183),"",'Full round scores'!C183) ->  | D87: =IF(ISERROR('Full round scores'!D183),"",'Full round scores'!D183) ->  | E87: =IF(ISERROR('Enter data here!'!$D$7/C87),"",IF($E$5="mph",(((10*'Enter data here!'!$D$7)/1609)*(60/C87)*60),(60/C87)*60)) ->  | G87: 77 | H87: ='Round by round data'!E436 ->  | I87: ='Round by round data'!F436 -> 
A88: 78 | B88: =IF(ISERROR('Full round scores'!B184),"",'Full round scores'!B184) ->  | C88: =IF(ISERROR('Full round scores'!C184),"",'Full round scores'!C184) ->  | D88: =IF(ISERROR('Full round scores'!D184),"",'Full round scores'!D184) ->  | E88: =IF(ISERROR('Enter data here!'!$D$7/C88),"",IF($E$5="mph",(((10*'Enter data here!'!$D$7)/1609)*(60/C88)*60),(60/C88)*60)) ->  | G88: 78 | H88: ='Round by round data'!E437 ->  | I88: ='Round by round data'!F437 -> 
A89: 79 | B89: =IF(ISERROR('Full round scores'!B185),"",'Full round scores'!B185) ->  | C89: =IF(ISERROR('Full round scores'!C185),"",'Full round scores'!C185) ->  | D89: =IF(ISERROR('Full round scores'!D185),"",'Full round scores'!D185) ->  | E89: =IF(ISERROR('Enter data here!'!$D$7/C89),"",IF($E$5="mph",(((10*'Enter data here!'!$D$7)/1609)*(60/C89)*60),(60/C89)*60)) ->  | G89: 79 | H89: ='Round by round data'!E438 ->  | I89: ='Round by round data'!F438 -> 
A90: 80 | B90: =IF(ISERROR('Full round scores'!B186),"",'Full round scores'!B186) ->  | C90: =IF(ISERROR('Full round scores'!C186),"",'Full round scores'!C186) ->  | D90: =IF(ISERROR('Full round scores'!D186),"",'Full round scores'!D186) ->  | E90: =IF(ISERROR('Enter data here!'!$D$7/C90),"",IF($E$5="mph",(((10*'Enter data here!'!$D$7)/1609)*(60/C90)*60),(60/C90)*60)) ->  | G90: 80 | H90: ='Round by round data'!E439 ->  | I90: ='Round by round data'!F439 -> 
A91: 81 | B91: =IF(ISERROR('Full round scores'!B187),"",'Full round scores'!B187) ->  | C91: =IF(ISERROR('Full round scores'!C187),"",'Full round scores'!C187) ->  | D91: =IF(ISERROR('Full round scores'!D187),"",'Full round scores'!D187) ->  | E91: =IF(ISERROR('Enter data here!'!$D$7/C91),"",IF($E$5="mph",(((10*'Enter data here!'!$D$7)/1609)*(60/C91)*60),(60/C91)*60)) ->  | G91: 81 | H91: ='Round by round data'!E440 ->  | I91: ='Round by round data'!F440 -> 
A92: 82 | B92: =IF(ISERROR('Full round scores'!B188),"",'Full round scores'!B188) ->  | C92: =IF(ISERROR('Full round scores'!C188),"",'Full round scores'!C188) ->  | D92: =IF(ISERROR('Full round scores'!D188),"",'Full round scores'!D188) ->  | E92: =IF(ISERROR('Enter data here!'!$D$7/C92),"",IF($E$5="mph",(((10*'Enter data here!'!$D$7)/1609)*(60/C92)*60),(60/C92)*60)) ->  | G92: 82 | H92: ='Round by round data'!E441 ->  | I92: ='Round by round data'!F441 -> 
A93: 83 | B93: =IF(ISERROR('Full round scores'!B189),"",'Full round scores'!B189) ->  | C93: =IF(ISERROR('Full round scores'!C189),"",'Full round scores'!C189) ->  | D93: =IF(ISERROR('Full round scores'!D189),"",'Full round scores'!D189) ->  | E93: =IF(ISERROR('Enter data here!'!$D$7/C93),"",IF($E$5="mph",(((10*'Enter data here!'!$D$7)/1609)*(60/C93)*60),(60/C93)*60)) ->  | G93: 83 | H93: ='Round by round data'!E442 ->  | I93: ='Round by round data'!F442 -> 
A94: 84 | B94: =IF(ISERROR('Full round scores'!B190),"",'Full round scores'!B190) ->  | C94: =IF(ISERROR('Full round scores'!C190),"",'Full round scores'!C190) ->  | D94: =IF(ISERROR('Full round scores'!D190),"",'Full round scores'!D190) ->  | E94: =IF(ISERROR('Enter data here!'!$D$7/C94),"",IF($E$5="mph",(((10*'Enter data here!'!$D$7)/1609)*(60/C94)*60),(60/C94)*60)) ->  | G94: 84 | H94: ='Round by round data'!E443 ->  | I94: ='Round by round data'!F443 -> 
A95: 85 | B95: =IF(ISERROR('Full round scores'!B191),"",'Full round scores'!B191) ->  | C95: =IF(ISERROR('Full round scores'!C191),"",'Full round scores'!C191) ->  | D95: =IF(ISERROR('Full round scores'!D191),"",'Full round scores'!D191) ->  | E95: =IF(ISERROR('Enter data here!'!$D$7/C95),"",IF($E$5="mph",(((10*'Enter data here!'!$D$7)/1609)*(60/C95)*60),(60/C95)*60)) ->  | G95: 85 | H95: ='Round by round data'!E444 ->  | I95: ='Round by round data'!F444 -> 
A96: 86 | B96: =IF(ISERROR('Full round scores'!B192),"",'Full round scores'!B192) ->  | C96: =IF(ISERROR('Full round scores'!C192),"",'Full round scores'!C192) ->  | D96: =IF(ISERROR('Full round scores'!D192),"",'Full round scores'!D192) ->  | E96: =IF(ISERROR('Enter data here!'!$D$7/C96),"",IF($E$5="mph",(((10*'Enter data here!'!$D$7)/1609)*(60/C96)*60),(60/C96)*60)) ->  | G96: 86 | H96: ='Round by round data'!E445 ->  | I96: ='Round by round data'!F445 -> 
A97: 87 | B97: =IF(ISERROR('Full round scores'!B193),"",'Full round scores'!B193) ->  | C97: =IF(ISERROR('Full round scores'!C193),"",'Full round scores'!C193) ->  | D97: =IF(ISERROR('Full round scores'!D193),"",'Full round scores'!D193) ->  | E97: =IF(ISERROR('Enter data here!'!$D$7/C97),"",IF($E$5="mph",(((10*'Enter data here!'!$D$7)/1609)*(60/C97)*60),(60/C97)*60)) ->  | G97: 87 | H97: ='Round by round data'!E446 ->  | I97: ='Round by round data'!F446 -> 
A98: 88 | B98: =IF(ISERROR('Full round scores'!B194),"",'Full round scores'!B194) ->  | C98: =IF(ISERROR('Full round scores'!C194),"",'Full round scores'!C194) ->  | D98: =IF(ISERROR('Full round scores'!D194),"",'Full round scores'!D194) ->  | E98: =IF(ISERROR('Enter data here!'!$D$7/C98),"",IF($E$5="mph",(((10*'Enter data here!'!$D$7)/1609)*(60/C98)*60),(60/C98)*60)) ->  | G98: 88 | H98: ='Round by round data'!E447 ->  | I98: ='Round by round data'!F447 -> 
A99: 89 | B99: =IF(ISERROR('Full round scores'!B195),"",'Full round scores'!B195) ->  | C99: =IF(ISERROR('Full round scores'!C195),"",'Full round scores'!C195) ->  | D99: =IF(ISERROR('Full round scores'!D195),"",'Full round scores'!D195) ->  | E99: =IF(ISERROR('Enter data here!'!$D$7/C99),"",IF($E$5="mph",(((10*'Enter data here!'!$D$7)/1609)*(60/C99)*60),(60/C99)*60)) ->  | G99: 89 | H99: ='Round by round data'!E448 ->  | I99: ='Round by round data'!F448 -> 
A100: 90 | B100: =IF(ISERROR('Full round scores'!B196),"",'Full round scores'!B196) ->  | C100: =IF(ISERROR('Full round scores'!C196),"",'Full round scores'!C196) ->  | D100: =IF(ISERROR('Full round scores'!D196),"",'Full round scores'!D196) ->  | E100: =IF(ISERROR('Enter data here!'!$D$7/C100),"",IF($E$5="mph",(((10*'Enter data here!'!$D$7)/1609)*(60/C100)*60),(60/C100)*60)) ->  | G100: 90 | H100: ='Round by round data'!E449 ->  | I100: ='Round by round data'!F449 -> 

Sheet Full round scores
A1: =CONCATENATE("Full Round Scores - ",'Enter data here!'!D3) -> Full Round Scores - South Open | F1: =IF('Enter data here!'!D4="","",'Enter data here!'!D4) -> 2014-05-10
A3: This sheet summarises the round results for the entire competition.
B5: Round Number
B6: 0 | E6: 1 | H6: 2 | K6: 3 | N6: 4 | Q6: 5 | T6: 6 | W6: 7 | Z6: 8 | AC6: 9 | AF6: 10 | AI6: 11 | AL6: 12 | AO6: 13 | AR6: 14 | AU6: 15 | AX6: 16 | BA6: 17 | BD6: 18 | BG6: 19 | BJ6: 20 | BM6: 21 | BP6: 22 | BS6: 23 | BV6: 24 | BY6: 25 | CB6: 26 | CE6: 27 | CH6: 28 | CK6: 29 | CN6: 30 | CQ6: 31 | CT6: 32 | CW6: 33 | CZ6: 34 | DC6: 35 | DF6: 36 | DI6: 37 | DL6: 38 | DO6: 39 | DR6: 40
B7: 1 | C7: 2 | D7: 3 | E7: 1 | F7: 2 | G7: 3 | H7: =E7 -> 1 | I7: =F7 -> 2 | J7: 3 | K7: 1 | L7: 2 | M7: 3 | N7: 1 | O7: 2 | P7: 3 | Q7: 1 | R7: 2 | S7: 3 | T7: 1 | U7: 2 | V7: 3 | W7: 1 | X7: 2 | Y7: 3 | Z7: 1 | AA7: 2 | AB7: 3 | AC7: 1 | AD7: 2 | AE7: 3 | AF7: 1 | AG7: 2 | AH7: 3 | AI7: 1 | AJ7: 2 | AK7: 3 | AL7: 1 | AM7: 2 | AN7: 3 | AO7: 1 | AP7: 2 | AQ7: 3 | AR7: 1 | AS7: 2 | AT7: 3 | AU7: 1 | AV7: 2 | AW7: 3 | AX7: =AU7 -> 1 | AY7: 2 | AZ7: 3 | BA7: 1 | BB7: 2 | BC7: 3 | BD7: 1 | BE7: 2 | BF7: 3 | BG7: 1 | BH7: 2 | BI7: 3 | BJ7: 1 | BK7: 2 | BL7: 3 | BM7: 1 | BN7: 2 | BO7: 3 | BP7: 1 | BQ7: 2 | BR7: 3 | BS7: =BP7 -> 1 | BT7: 2 | BU7: 3 | BV7: 1 | BW7: 2 | BX7: 3 | BY7: 1 | BZ7: 2 | CA7: 3 | CB7: 1 | CC7: 2 | CD7: 3 | CE7: 1 | CF7: 2 | CG7: 3 | CH7: 1 | CI7: 2 | CJ7: 3 | CK7: 1 | CL7: 2 | CM7: 3 | CN7: 1 | CO7: 2 | CP7: 3 | CQ7: 1 | CR7: 2 | CS7: 3 | CT7: 1 | CU7: 2 | CV7: 3 | CW7: 1 | CX7: 2 | CY7: =CV7 -> 3 | CZ7: 1 | DA7: 2 | DB7: 3 | DC7: 1 | DD7: 2 | DE7: 3 | DF7: 1 | DG7: 2 | DH7: 3 | DI7: 1 | DJ7: 2 | DK7: 3 | DL7: 1 | DM7: 2 | DN7: 3 | DO7: 1 | DP7: 2 | DQ7: 3 | DR7: 1 | DS7: 2 | DT7: 3
B8: =CONCATENATE($B$6,B7) -> 01 | C8: =CONCATENATE($B$6,C7) -> 02 | D8: =CONCATENATE($B$6,D7) -> 03 | E8: =CONCATENATE($E$6,E7) -> 11 | F8: =CONCATENATE($E$6,F7) -> 12 | G8: =CONCATENATE($E$6,G7) -> 13 | H8: =CONCATENATE($H$6,H7) -> 21 | I8: =CONCATENATE($H$6,I7) -> 22 | J8: =CONCATENATE($H$6,J7) -> 23 | K8: =CONCATENATE($K$6,K7) -> 31 | L8: =CONCATENATE($K$6,L7) -> 32 | M8: =CONCATENATE($K$6,M7) -> 33 | N8: =CONCATENATE($N$6,N7) -> 41 | O8: =CONCATENATE($N$6,O7) -> 42 | P8: =CONCATENATE($N$6,P7) -> 43 | Q8: =CONCATENATE($Q$6,Q7) -> 51 | R8: =CONCATENATE($Q$6,R7) -> 52 | S8: =CONCATENATE($Q$6,S7) -> 53 | T8: =CONCATENATE($T$6,T7) -> 61 | U8: =CONCATENATE($T$6,U7) -> 62 | V8: =CONCATENATE($T$6,V7) -> 63 | W8: =CONCATENATE($W$6,W7) -> 71 | X8: =CONCATENATE($W$6,X7) -> 72 | Y8: =CONCATENATE($W$6,Y7) -> 73 | Z8: =CONCATENATE($Z$6,Z7) -> 81 | AA8: =CONCATENATE($Z$6,AA7) -> 82 | AB8: =CONCATENATE($Z$6,AB7) -> 83 | AC8: =CONCATENATE($AC$6,AC7) -> 91 | AD8: =CONCATENATE($AC$6,AD7) -> 92 | AE8: =CONCATENATE($AC$6,AE7) -> 93 | AF8: =CONCATENATE($AF$6,AF7) -> 101 | AG8: =CONCATENATE($AF$6,AG7) -> 102 | AH8: =CONCATENATE($AF$6,AH7) -> 103 | AI8: =CONCATENATE($AI$6,AI7) -> 111 | AJ8: =CONCATENATE($AI$6,AJ7) -> 112 | AK8: =CONCATENATE($AI$6,AK7) -> 113 | AL8: =CONCATENATE($AL$6,AL7) -> 121 | AM8: =CONCATENATE($AL$6,AM7) -> 122 | AN8: =CONCATENATE($AL$6,AN7) -> 123 | AO8: =CONCATENATE($AO$6,AO7) -> 131 | AP8: =CONCATENATE($AO$6,AP7) -> 132 | AQ8: =CONCATENATE($AO$6,AQ7) -> 133 | AR8: =CONCATENATE($AR$6,AR7) -> 141 | AS8: =CONCATENATE($AR$6,AS7) -> 142 | AT8: =CONCATENATE($AR$6,AT7) -> 143 | AU8: =CONCATENATE($AU$6,AU7) -> 151 | AV8: =CONCATENATE($AU$6,AV7) -> 152 | AW8: =CONCATENATE($AU$6,AW7) -> 153 | AX8: =CONCATENATE($AX$6,AX7) -> 161 | AY8: =CONCATENATE($AX$6,AY7) -> 162 | AZ8: =CONCATENATE($AX$6,AZ7) -> 163 | BA8: =CONCATENATE($BA$6,BA7) -> 171 | BB8: =CONCATENATE($BA$6,BB7) -> 172 | BC8: =CONCATENATE($BA$6,BC7) -> 173 | BD8: =CONCATENATE($BD$6,BD7) -> 181 | BE8: =CONCATENATE($BD$6,BE7) -> 182 | BF8: =CONCATENATE($BD$6,BF7) -> 183 | BG8: =CONCATENATE($BG$6,BG7) -> 191 | BH8: =CONCATENATE($BG$6,BH7) -> 192 | BI8: =CONCATENATE($BG$6,BI7) -> 193 | BJ8: =CONCATENATE($BJ$6,BJ7) -> 201 | BK8: =CONCATENATE($BJ$6,BK7) -> 202 | BL8: =CONCATENATE($BJ$6,BL7) -> 203 | BM8: =CONCATENATE($BM$6,BM7) -> 211 | BN8: =CONCATENATE($BM$6,BN7) -> 212 | BO8: =CONCATENATE($BM$6,BO7) -> 213 | BP8: =CONCATENATE($BP$6,BP7) -> 221 | BQ8: =CONCATENATE($BP$6,BQ7) -> 222 | BR8: =CONCATENATE($BP$6,BR7) -> 223 | BS8: =CONCATENATE($BS$6,BS7) -> 231 | BT8: =CONCATENATE($BS$6,BT7) -> 232 | BU8: =CONCATENATE($BS$6,BU7) -> 233 | BV8: =CONCATENATE($BV$6,BV7) -> 241 | BW8: =CONCATENATE($BV$6,BW7) -> 242 | BX8: =CONCATENATE($BV$6,BX7) -> 243 | BY8: =CONCATENATE($BY$6,BY7) -> 251 | BZ8: =CONCATENATE($BY$6,BZ7) -> 252 | CA8: =CONCATENATE($BY$6,CA7) -> 253 | CB8: =CONCATENATE($CB$6,CB7) -> 261 | CC8: =CONCATENATE($CB$6,CC7) -> 262 | CD8: =CONCATENATE($CB$6,CD7) -> 263 | CE8: =CONCATENATE($CE$6,CE7) -> 271 | CF8: =CONCATENATE($CE$6,CF7) -> 272 | CG8: =CONCATENATE($CE$6,CG7) -> 273 | CH8: =CONCATENATE($CH$6,CH7) -> 281 | CI8: =CONCATENATE($CH$6,CI7) -> 282 | CJ8: =CONCATENATE($CH$6,CJ7) -> 283 | CK8: =CONCATENATE($CK$6,CK7) -> 291 | CL8: =CONCATENATE($CK$6,CL7) -> 292 | CM8: =CONCATENATE($CK$6,CM7) -> 293 | CN8: =CONCATENATE($CN$6,CN7) -> 301 | CO8: =CONCATENATE($CN$6,CO7) -> 302 | CP8: =CONCATENATE($CN$6,CP7) -> 303 | CQ8: =CONCATENATE($CQ$6,CQ7) -> 311 | CR8: =CONCATENATE($CQ$6,CR7) -> 312 | CS8: =CONCATENATE($CQ$6,CS7) -> 313 | CT8: =CONCATENATE($CT$6,CT7) -> 321 | CU8: =CONCATENATE($CT$6,CU7) -> 322 | CV8: =CONCATENATE($CT$6,CV7) -> 323 | CW8: =CONCATENATE($CW$6,CW7) -> 331 | CX8: =CONCATENATE($CW$6,CX7) -> 332 | CY8: =CONCATENATE($CW$6,CY7) -> 333 | CZ8: =CONCATENATE($CZ$6,CZ7) -> 341 | DA8: =CONCATENATE($CZ$6,DA7) -> 342 | DB8: =CONCATENATE($CZ$6,DB7) -> 343 | DC8: =CONCATENATE($DC$6,DC7) -> 351 | DD8: =CONCATENATE($DC$6,DD7) -> 352 | DE8: =CONCATENATE($DC$6,DE7) -> 353 | DF8: =CONCATENATE($DF$6,DF7) -> 361 | DG8: =CONCATENATE($DF$6,DG7) -> 362 | DH8: =CONCATENATE($DF$6,DH7) -> 363 | DI8: =CONCATENATE($DI$6,DI7) -> 371 | DJ8: =CONCATENATE($DI$6,DJ7) -> 372 | DK8: =CONCATENATE($DI$6,DK7) -> 373 | DL8: =CONCATENATE($DL$6,DL7) -> 381 | DM8: =CONCATENATE($DL$6,DM7) -> 382 | DN8: =CONCATENATE($DL$6,DN7) -> 383 | DO8: =CONCATENATE($DO$6,DO7) -> 391 | DP8: =CONCATENATE($DO$6,DP7) -> 392 | DQ8: =CONCATENATE($DO$6,DQ7) -> 393 | DR8: =CONCATENATE($DR$6,DR7) -> 401 | DS8: =CONCATENATE($DR$6,DS7) -> 402 | DT8: =CONCATENATE($DR$6,DT7) -> 403
